Workbook

Sheet Distrib Utility Report (Quarte) (hidden)
B2: Chose Year | C2: 2021 | D2: Choose Year
B3: Reporting period | C3: Q1 | D3: Choose Period
B4: Distribution Utility or Service Point | C4: NWST | D4: Choose Distribution Utility
C7: =IF(D8="Q1",D7-1,D7) -> 2019 | D7: 2020 | E7: 2020 | F7: 2020 | G7: =IF(H8="Q1",H7-1,H7) -> 2020 | H7: =C2 -> 2021
C8: =IF(D8="Q1","Q4",IF(D8="Q2","Q1",IF(D8="Q3","Q2",IF(D8="Q4","Q3")))) -> Q4 | D8: Q1 | E8: Q2 | F8: Q3 | G8: =IF(H8="Q1","Q4",IF(H8="Q2","Q1",IF(H8="Q3","Q2",IF(H8="Q4","Q3")))) -> Q4 | H8: =C3 -> Q1
B11: Distribution Purchases and sales | C11: =IF(C8="","",C7&"-"&C8) -> 2019-Q4 | D11: =IF(D8="","",D7&"-"&D8) -> 2020-Q1 | E11: 2020-Q2 | F11: 2020-Q3 | G11: 2020-Q4 | H11: =H7&"-"&H8 -> 2021-Q1
B12: Energy Purchased (GWh) | C12: 10.53268272 | D12: 11.44433614 | E12: 11.5007718 | F12: 11.5007718 | G12: 11.80891586 | H12: 11.08164107
B13: Energy Sold (GWh) | C13: 4.4579511 | D13: 4.8001793 | E13: 4.102680475 | F13: 4.102680475 | G13: 4.964097 | H13: 5.1215862
B14: Energy Losses (GWh) | C14: 6.074731625 | D14: 6.64415684 | E14: 7.398091325 | F14: 7.398091325 | G14: 6.844818861 | H14: 5.960054875
B15: Energy Losses (%) | C15: =IFERROR(C14/C12,"") -> 0.5767506516 | D15: =IFERROR(D14/D12,"") -> 0.5805628879 | E15: 0.6432691174 | F15: 0.6432691174 | G15: 0.5796314362 | H15: =IFERROR(H14/H12,"") -> 0.5378314308
B17: Customer Numbers | C17: =IF(OR($C$3="Q1",$C$3="Q2",$C$3="Q3",$C$3="Q4"),C$7&"-"&$C$3,IF($C$3="Financial Year",C$7-1&"/"&C7,IF($C$3="Calender Year",C$7,IF($C$3="Jan - June (Bi-annual)","Jan-Jun,"&C7,IF($C$3="Jan - Sept","Jan-Sep,"&C7,IF($C$3="Jul - Dec (Bi-annual)","Jul-Dec,"&C7,"")))))) -> 2019-Q1 | D17: 2020-Q1 | E17: 2020-Q1 | F17: 2020-Q1 | G17: 2020-Q1 | H17: 2021-Q1
B18: Domestic | C18: 18856 | D18: 19819 | E18: 20063 | F18: 20063 | G18: 21120 | H18: 21443
B19: Commercial | C19: 531 | D19: 563 | E19: 572 | F19: 572 | G19: 640 | H19: 661
B20: Medium Industrial | C20: 47 | D20: 49 | E20: 46 | F20: 46 | G20: 42 | H20: 42
B21: Large Industrial | C21: 5 | D21: 5 | E21: 5 | F21: 5 | G21: 5 | H21: 5
B22: Extra Large Industrial | C22: 0 | D22: 0 | E22: 3 | F22: 3 | G22: 3 | H22: 3
B23: Street Lights | C23: 3 | D23: 3 | E23: 0 | F23: 0 | G23: 0 | H23: 0
B24: Total | C24: 19442 | D24: 20439 | E24: 20689 | F24: 20689 | G24: 21810 | H24: 22154
B26: Sales by customer category (GWh) | C26: =C11 -> 2019-Q4 | D26: 2020-Q1 | E26: 2020-Q2 | F26: 2020-Q3 | G26: 2020-Q4 | H26: 2021-Q1
B27: Domestic | C27: 1.8343188 | D27: 1.7642243 | E27: 1.501557289 | F27: 1.501557289 | G27: 1.9734236 | H27: 1.9510755
B28: Commercial | C28: 1.1780533 | D28: 1.4984658 | E28: 1.093542486 | F28: 1.093542486 | G28: 1.4634359 | H28: 1.7306627
B29: Medium Industrial | C29: 0.672141 | D29: 1.0576292 | E29: 0.5983917 | F29: 0.5983917 | G29: 0.4770345 | H29: 0.799736
B30: Large Industrial | C30: 0.773438 | D30: 0.47986 | E30: 0.909189 | F30: 0.909189 | G30: 1.050203 | H30: 0.640112
B31: Extra Large Industrial | C31: 0 | D31: 0 | E31: 0 | F31: 0 | G31: 0 | H31: 0 | T31: =24/67 -> 0.3582089552
B32: Street Lights | C32: 0 | D32: 0 | E32: 0 | F32: 0 | G32: 0 | H32: 0
B33: Total | C33: 4.4579511 | D33: 4.8001793 | E33: 4.102680475 | F33: 4.102680475 | G33: 4.964097 | H33: 5.1215862
C36: =C26 -> 2019-Q4 | D36: 2020-Q1 | E36: 2020-Q2 | F36: 2020-Q3 | G36: 2020-Q4 | H36: 2021-Q1
B37: =B27 -> Domestic | C37: =C27/C$33 -> 0.4114712698 | D37: 0.3675330003 | E37: 0.3659942075 | F37: 0.3659942075 | G37: 0.3975392906 | H37: 0.3809514131
B38: =B28 -> Commercial | C38: 0.2642589103 | D38: 0.3121687142 | E38: 0.2665434202 | F38: 0.2665434202 | G38: 0.29480405 | H38: 0.3379153708
B39: Medium Industrial | C39: 0.1507735246 | D39: 0.2203311864 | E39: 0.1458538396 | F39: 0.1458538396 | G39: 0.09609693364 | H39: 0.1561500615
B40: Large Industrial | C40: 0.1734962952 | D40: 0.09996709915 | E40: 0.2216085326 | F40: 0.2216085326 | G40: 0.2115597258 | H40: 0.1249831546
B41: Extra Large Industrial | C41: 0 | D41: 0 | E41: 0 | F41: 0 | G41: 0 | H41: 0
B42: Street Lights | C42: 0 | D42: 0 | E42: 0 | F42: 0 | G42: 0 | H42: 0
B43: Total | C43: 1 | D43: 1 | E43: 1 | F43: 1 | G43: 1 | H43: 1
B45: Network Length (Kms) | C45: =C26 -> 2019-Q4 | D45: =D26 -> 2020-Q1 | E45: 2020-Q2 | F45: 2020-Q3 | G45: 2020-Q4 | H45: 2021-Q1
B46: LV | C46: 938.7 | D46: 1101 | E46: 1101 | F46: 1101 | G46: 1101 | H46: 1130.851
B47: 11kv | C47: 0 | D47: 0 | E47: 0 | F47: 0 | G47: 0 | H47: 0
B48: 33kv | C48: 1510 | D48: 1700.42 | E48: 1700.42 | F48: 1700.42 | G48: 1700.42 | H48: 1770.856
B49: Total | C49: 2448.7 | D49: 2801.42 | E49: 2801.42 | F49: 2801.42 | G49: 2801.42 | H49: 2901.707
B51: Employees | C51: =C45 -> 2019-Q4 | D51: =D45 -> 2020-Q1 | E51: 2020-Q2 | F51: 2020-Q3 | G51: 2020-Q4 | H51: 2021-Q1
C52: 64 | D52: 64 | E52: 64 | F52: 64 | G52: 64 | H52: 66
B54: Transformers | C54: =C51 -> 2019-Q4 | D54: =D51 -> 2020-Q1 | E54: 2020-Q2 | F54: 2020-Q3 | G54: 2020-Q4 | H54: 2021-Q1
B55: Total Transformer Capacity (KVA) | C55: 0 | D55: 52800 | E55: 52975 | F55: 53275 | G55: 53275 | H55: 57815
B56: Total Transformers | C56: 547 | D56: 600 | E56: 603 | F56: 609 | G56: 609 | H56: 639
B57: 16 KVA | C57: 0 | D57: 0 | E57: 0 | F57: 0 | G57: 0 | H57: 0
B58: 25 KVA | C58: 92 | D58: 89 | E58: 90 | F58: 90 | G58: 90 | H58: 88
B59: 50 KVA | C59: 277 | D59: 301 | E59: 302 | F59: 308 | G59: 308 | H59: 320
B60: 100 KVA | C60: 93 | D60: 118 | E60: 119 | F60: 119 | G60: 119 | H60: 126
B61: 150 KVA | C61: 0 | D61: 0 | E61: 0 | F61: 0 | G61: 0 | H61: 0
B62: 200 KVA | C62: 41 | D62: 44 | E62: 44 | F62: 44 | G62: 44 | H62: 51
B63: 250 KVA | C63: 3 | D63: 3 | E63: 3 | F63: 3 | G63: 3 | H63: 3
B64: 300 KVA | C64: 0 | D64: 0 | E64: 0 | F64: 0 | G64: 0 | H64: 0
B65: 315 KVA | C65: 28 | D65: 30 | E65: 30 | F65: 30 | G65: 30 | H65: 34
B66: >315 kva | C66: 13 | D66: 15 | E66: 15 | F66: 15 | G66: 15 | H66: 17
B67: 500KVA | C67: 0 | D67: 0 | E67: 0 | F67: 0 | G67: 0 | H67: 0
B68: O&M | C68: =C54 -> 2019-Q4 | D68: =D54 -> 2020-Q1 | E68: 2020-Q2 | F68: 2020-Q3 | G68: 2020-Q4 | H68: 2021-Q1
B69: Total O&M (Shs' Millions) | C69: 1003.405448 | D69: 886.300342 | E69: 781.57891 | F69: 781.57891 | G69: 1306.178816 | H69: 1031.406268
B70: Staff Costs | C70: 510.89767 | D70: 491.483248 | E70: 473.71453 | F70: 473.71453 | G70: 583.135607 | H70: 594.452658
B71: R&M | C71: 340.270636 | D71: 217.115582 | E71: 191.612311 | F71: 191.612311 | G71: 531.709617 | H71: 253.879033
B72: Transport | C72: 74.666122 | D72: 104.260694 | E72: 55.51868 | F72: 55.51868 | G72: 90.389781 | H72: 70.232727
B73: Admin | C73: 71.960621 | D73: 73.440818 | E73: 60.733389 | F73: 60.733389 | G73: 95.145426 | H73: 105.968934
B74: Regulatory & Others | C74: 5.610399 | D74: 0 | E74: 0 | F74: 0 | G74: 5.798385 | H74: 6.872916
B76: Cost of Purchases and Sales | C76: =C68 -> 2019-Q4 | D76: =D68 -> 2020-Q1 | E76: 2020-Q2 | F76: 2020-Q3 | G76: 2020-Q4 | H76: 2021-Q1
B77: Cost of Energy (Shs' Millions) | C77: 3189.126879 | D77: 1329.723734 | E77: 3591.721596 | F77: 3591.721596 | G77: 2353.388408 | H77: 2223.523198
B78: Revenue | C78: 3034.70842 | D78: 3267.349255 | E78: 2685.192236 | F78: 2685.192236 | G78: 3240.868406 | H78: 3274.576854
B79: Cost per Unit (shs/kwh) | C79: 302.7839119 | D79: 116.1905521 | E79: 312.3026575 | F79: 312.3026575 | G79: 199.2891165 | H79: 200.6492705
B80: Revenue per Unit (Shs/kwh) | C80: 680.7406255 | D80: 680.6723355 | E80: 654.4970422 | F80: 654.4970422 | G80: 652.8616194 | H80: 639.3677126
B82: Performance indicators | C82: =C76 -> 2019-Q4 | D82: =D76 -> 2020-Q1 | E82: 2020-Q2 | F82: 2020-Q3 | G82: 2020-Q4 | H82: 2021-Q1
B83: Customer to Employee Ratio | C83: =IFERROR(C24/C52,"") -> 303.78125 | D83: 319.359375 | E83: 323.265625 | F83: 323.265625 | G83: 340.78125 | H83: 335.6666667
B84: Employee to Energy sales (MWh) | C84: =IFERROR((C13*10^3)/C52,"") -> 69.65548594 | D84: 75.00280156 | E84: 64.10438242 | F84: 64.10438242 | G84: 77.56401563 | H84: 77.59979091
B85: Average Energy sales per customer (MWh) | C85: =(C13*10^3)/C24 -> 0.2292948822 | D85: 0.2348539214 | E85: 0.1983025025 | F85: 0.1983025025 | G85: 0.2276064649 | H85: 0.231181105
B86: O&M (shs) per kWh sold | C86: =(C69*10^6)/(C13*10^6) -> 225.0822016 | D86: 184.6390075 | E86: 190.5044555 | F86: 190.5044555 | G86: 263.1251597 | H86: 201.384147
B87: O&M (Million. Shs) per KM of Network length | C87: =IFERROR((C69)/C49,"") -> 0.4097706734 | D87: 0.3163753889 | E87: 0.2789938353 | F87: 0.2789938353 | G87: 0.4662559759 | H87: 0.3554481097
B88: Distribution Loss Factor | C88: =C15 -> 0.5767506516 | D88: 0.5805628879 | E88: 0.6432691174 | F88: 0.6432691174 | G88: 0.5796314362 | H88: 0.5378314308
B90: Average consumption per customer | C90: =C82 -> 2019-Q4 | D90: =D82 -> 2020-Q1 | E90: 2020-Q2 | F90: 2020-Q3 | G90: 2020-Q4 | H90: 2021-Q1
B91: Domestic customers (Kwh) | C91: =IFERROR((C27*10^6)/C18,"") -> 97.2803776 | D91: 89.0168172 | E91: 74.84211181 | F91: 74.84211181 | G91: 93.43861742 | H91: 90.98892412
B92: Commercial customers (kWh) | C92: 2218.556121 | D92: 2661.573357 | E92: 1911.787563 | F92: 1911.787563 | G92: 2286.618594 | H92: 2618.249168
B93: Medium industries (kWh) | C93: 14300.87234 | D93: 21584.26939 | E93: 13008.51522 | F93: 13008.51522 | G93: 11357.96429 | H93: 19041.33333
B94: Large industrial customers (kwh) | C94: 154687.6 | D94: 95972 | E94: 181837.8 | F94: 181837.8 | G94: 210040.6 | H94: 128022.4
B95: Extra large industries (kwh) | E95: 0 | F95: 0 | G95: 0 | H95: 0
B96: Street Lights | C96: 0 | D96: 0
B97: Transformation Capacity in kvA per km | C97: =IFERROR(C55/C49,"") -> 0 | D97: 18.84758444 | E97: 18.91005276 | F97: 19.01714131 | G97: 19.01714131 | H97: 19.92447894

Sheet Distribution Dashboard
F3: Year | G3: Period
D4: Select the Reporting Period of Choice here | F4: 2026 | G4: Q1
D57: Period | E57: =E61 -> 2022-Q1 | F57: =F61 -> 2023-Q1 | G57: 2024-Q1 | H57: 2025-Q1 | I57: 2026-Q1
D58: Energy Purchases (MWh) | E58: =IFERROR(SUM(E62:E70),"") -> 1161318.365 | F58: =IFERROR(SUM(F62:F70),"") -> 1260801.516 | G58: =IFERROR(SUM(G62:G70),"") -> 1407779.28 | H58: 1533049.66 | I58: =IFERROR(SUM(I62:I70),"") -> 1778160.641
D59: Energy Sales (MWh) | E59: =IFERROR(SUM(E72:E80),"") -> 955524.6545 | F59: =IFERROR(SUM(F72:F80),"") -> 1041915.34 | G59: =IFERROR(SUM(G72:G80),"") -> 1169028.195 | H59: 1291007.578 | I59: =IFERROR(SUM(I72:I80),"") -> 1453015.993
D60: Energy Losses (%age) | E60: =IFERROR(((E58-E59)/E58),"") -> 0.1772069717 | F60: =IFERROR(((F58-F59)/F58),"") -> 0.1736087508 | G60: =IFERROR(((G58-G59)/G58),"") -> 0.1695941175 | H60: =IFERROR(((H58-H59)/H58),"") -> 0.1578827408 | I60: =IFERROR(((I58-I59)/I58),"") -> 0.1828544849
D61: Energy Purchases by Utility (MWh) | E61: =IF(OR($G$4="Q1",$G$4="Q2",$G$4="Q3",$G$4="Q4"),a!A$100&"-"&$G$4,IF($G$4="Financial Year",a!A$100-1&"/"&a!A100,IF($G$4="Calendar Year",a!A$100,IF($G$4="Jan - June (Bi-annual)","Jan-Jun,"&a!A100,IF($G$4="Jan - Sept","Jan-Sept,"&a!A100,IF($G$4="Jul - Dec (Bi-annual)","Jul-Dec,"&a!A100,"")))))) -> 2022-Q1 | F61: =IF(OR($G$4="Q1",$G$4="Q2",$G$4="Q3",$G$4="Q4"),a!B$100&"-"&$G$4,IF($G$4="Financial Year",a!B$100-1&"/"&a!B100,IF($G$4="Calendar Year",a!B$100,IF($G$4="Jan - June (Bi-annual)","Jan-Jun,"&a!B100,IF($G$4="Jan - Sept","Jan-Sept,"&a!B100,IF($G$4="Jul - Dec (Bi-annual)","Jul-Dec,"&a!B100,"")))))) -> 2023-Q1 | G61: =IF(OR($G$4="Q1",$G$4="Q2",$G$4="Q3",$G$4="Q4"),a!C$100&"-"&$G$4,IF($G$4="Financial Year",a!C$100-1&"/"&a!C100,IF($G$4="Calendar Year",a!C$100,IF($G$4="Jan - June (Bi-annual)","Jan-Jun,"&a!C100,IF($G$4="Jan - Sept","Jan-Sept,"&a!C100,IF($G$4="Jul - Dec (Bi-annual)","Jul-Dec,"&a!C100,"")))))) -> 2024-Q1 | H61: =IF(OR($G$4="Q1",$G$4="Q2",$G$4="Q3",$G$4="Q4"),a!D$100&"-"&$G$4,IF($G$4="Financial Year",a!D$100-1&"/"&a!D100,IF($G$4="Calendar Year",a!D$100,IF($G$4="Jan - June (Bi-annual)","Jan-Jun,"&a!D100,IF($G$4="Jan - Sept","Jan-Sept,"&a!D100,IF($G$4="Jul - Dec (Bi-annual)","Jul-Dec,"&a!D100,"")))))) -> 2025-Q1 | I61: =IF(OR($G$4="Q1",$G$4="Q2",$G$4="Q3",$G$4="Q4"),'Energy Purchased'!E$719&"-"&$G$4,IF($G$4="Financial Year",'Energy Purchased'!E$719-1&"/"&'Energy Purchased'!E719,IF($G$4="Calendar Year",'Energy Purchased'!E$719,IF($G$4="Jan - June (Bi-annual)","Jan-Jun,"&'Energy Purchased'!E719,IF($G$4="Jan - Sept","Jan-Sept,"&'Energy Purchased'!E719,IF($G$4="Jul - Dec (Bi-annual)","Jul-Dec,"&'Energy Purchased'!E719,"")))))) -> 2026-Q1
D62: BECS | E62: =IFERROR(SUM(IF($G$4="Q1",SUMIFS(Energy_Purchased_kWh[Energy Purchased],Energy_Purchased_kWh[Year],a!A$100,Energy_Purchased_kWh[Quarter],"Q1",Energy_Purchased_kWh[Utility],$D62),IF($G$4="Q2",SUMIFS(Energy_Purchased_kWh[Energy Purchased],Energy_Purchased_kWh[Year],a!A$100,Energy_Purchased_kWh[Quarter],"Q2",Energy_Purchased_kWh[Utility],$D62),IF($G$4="Q3",SUMIFS(Energy_Purchased_kWh[Energy Purchased],Energy_Purchased_kWh[Year],a!A$100,Energy_Purchased_kWh[Quarter],"Q3",Energy_Purchased_kWh[Utility],$D62),IF($G$4="Q4",SUMIFS(Energy_Purchased_kWh[Energy Purchased],Energy_Purchased_kWh[Year],a!A$100,Energy_Purchased_kWh[Quarter],"Q4",Energy_Purchased_kWh[Utility],$D62), IF($G$4="Calendar Year",SUMIFS(Energy_Purchased_kWh[Energy Purchased],Energy_Purchased_kWh[Year],a!A$100,Energy_Purchased_kWh[Utility],$D62),""))))))/10^3,"") -> 0 | F62: =IFERROR(SUM(IF($G$4="Q1",SUMIFS(Energy_Purchased_kWh[Energy Purchased],Energy_Purchased_kWh[Year],a!B$100,Energy_Purchased_kWh[Quarter],"Q1",Energy_Purchased_kWh[Utility],$D62),IF($G$4="Q2",SUMIFS(Energy_Purchased_kWh[Energy Purchased],Energy_Purchased_kWh[Year],a!B$100,Energy_Purchased_kWh[Quarter],"Q2",Energy_Purchased_kWh[Utility],$D62),IF($G$4="Q3",SUMIFS(Energy_Purchased_kWh[Energy Purchased],Energy_Purchased_kWh[Year],a!B$100,Energy_Purchased_kWh[Quarter],"Q3",Energy_Purchased_kWh[Utility],$D62),IF($G$4="Q4",SUMIFS(Energy_Purchased_kWh[Energy Purchased],Energy_Purchased_kWh[Year],a!B$100,Energy_Purchased_kWh[Quarter],"Q4",Energy_Purchased_kWh[Utility],$D62), IF($G$4="Calendar Year",SUMIFS(Energy_Purchased_kWh[Energy Purchased],Energy_Purchased_kWh[Year],a!B$100,Energy_Purchased_kWh[Utility],$D62),""))))))/10^3,"") -> 0 | G62: =IFERROR(SUM(IF($G$4="Q1",SUMIFS(Energy_Purchased_kWh[Energy Purchased],Energy_Purchased_kWh[Year],a!C$100,Energy_Purchased_kWh[Quarter],"Q1",Energy_Purchased_kWh[Utility],$D62),IF($G$4="Q2",SUMIFS(Energy_Purchased_kWh[Energy Purchased],Energy_Purchased_kWh[Year],a!C$100,Energy_Purchased_kWh[Quarter],"Q2",Energy_Purchased_kWh[Utility],$D62),IF($G$4="Q3",SUMIFS(Energy_Purchased_kWh[Energy Purchased],Energy_Purchased_kWh[Year],a!C$100,Energy_Purchased_kWh[Quarter],"Q3",Energy_Purchased_kWh[Utility],$D62),IF($G$4="Q4",SUMIFS(Energy_Purchased_kWh[Energy Purchased],Energy_Purchased_kWh[Year],a!C$100,Energy_Purchased_kWh[Quarter],"Q4",Energy_Purchased_kWh[Utility],$D62), IF($G$4="Calendar Year",SUMIFS(Energy_Purchased_kWh[Energy Purchased],Energy_Purchased_kWh[Year],a!C$100,Energy_Purchased_kWh[Utility],$D62),""))))))/10^3,"") -> 0 | H62: =IFERROR(SUM(IF($G$4="Q1",SUMIFS(Energy_Purchased_kWh[Energy Purchased],Energy_Purchased_kWh[Year],a!D$100,Energy_Purchased_kWh[Quarter],"Q1",Energy_Purchased_kWh[Utility],$D62),IF($G$4="Q2",SUMIFS(Energy_Purchased_kWh[Energy Purchased],Energy_Purchased_kWh[Year],a!D$100,Energy_Purchased_kWh[Quarter],"Q2",Energy_Purchased_kWh[Utility],$D62),IF($G$4="Q3",SUMIFS(Energy_Purchased_kWh[Energy Purchased],Energy_Purchased_kWh[Year],a!D$100,Energy_Purchased_kWh[Quarter],"Q3",Energy_Purchased_kWh[Utility],$D62),IF($G$4="Q4",SUMIFS(Energy_Purchased_kWh[Energy Purchased],Energy_Purchased_kWh[Year],a!D$100,Energy_Purchased_kWh[Quarter],"Q4",Energy_Purchased_kWh[Utility],$D62), IF($G$4="Calendar Year",SUMIFS(Energy_Purchased_kWh[Energy Purchased],Energy_Purchased_kWh[Year],a!D$100,Energy_Purchased_kWh[Utility],$D62),""))))))/10^3,"") -> 0 | I62: =IFERROR(SUM(IF($G$4="Q1",SUMIFS(Energy_Purchased_kWh[Energy Purchased],Energy_Purchased_kWh[Year],a!E$100,Energy_Purchased_kWh[Quarter],"Q1",Energy_Purchased_kWh[Utility],$D62),IF($G$4="Q2",SUMIFS(Energy_Purchased_kWh[Energy Purchased],Energy_Purchased_kWh[Year],a!E$100,Energy_Purchased_kWh[Quarter],"Q2",Energy_Purchased_kWh[Utility],$D62),IF($G$4="Q3",SUMIFS(Energy_Purchased_kWh[Energy Purchased],Energy_Purchased_kWh[Year],a!E$100,Energy_Purchased_kWh[Quarter],"Q3",Energy_Purchased_kWh[Utility],$D62),IF($G$4="Q4",SUMIFS(Energy_Purchased_kWh[Energy Purchased],Energy_Purchased_kWh[Year],a!E$100,Energy_Purchased_kWh[Quarter],"Q4",Energy_Purchased_kWh[Utility],$D62), IF($G$4="Calendar Year",SUMIFS(Energy_Purchased_kWh[Energy Purchased],Energy_Purchased_kWh[Year],a!E$100,Energy_Purchased_kWh[Utility],$D62),""))))))/10^3,"") -> 0
D63: KABALEGA HYDROMAX | E63: =IFERROR(SUM(IF($G$4="Q1",SUMIFS(Energy_Purchased_kWh[Energy Purchased],Energy_Purchased_kWh[Year],a!A$100,Energy_Purchased_kWh[Quarter],"Q1",Energy_Purchased_kWh[Utility],$D63),IF($G$4="Q2",SUMIFS(Energy_Purchased_kWh[Energy Purchased],Energy_Purchased_kWh[Year],a!A$100,Energy_Purchased_kWh[Quarter],"Q2",Energy_Purchased_kWh[Utility],$D63),IF($G$4="Q3",SUMIFS(Energy_Purchased_kWh[Energy Purchased],Energy_Purchased_kWh[Year],a!A$100,Energy_Purchased_kWh[Quarter],"Q3",Energy_Purchased_kWh[Utility],$D63),IF($G$4="Q4",SUMIFS(Energy_Purchased_kWh[Energy Purchased],Energy_Purchased_kWh[Year],a!A$100,Energy_Purchased_kWh[Quarter],"Q4",Energy_Purchased_kWh[Utility],$D63), IF($G$4="Calendar Year",SUMIFS(Energy_Purchased_kWh[Energy Purchased],Energy_Purchased_kWh[Year],a!A$100,Energy_Purchased_kWh[Utility],$D63),""))))))/10^3,"") -> 0 | F63: =IFERROR(SUM(IF($G$4="Q1",SUMIFS(Energy_Purchased_kWh[Energy Purchased],Energy_Purchased_kWh[Year],a!B$100,Energy_Purchased_kWh[Quarter],"Q1",Energy_Purchased_kWh[Utility],$D63),IF($G$4="Q2",SUMIFS(Energy_Purchased_kWh[Energy Purchased],Energy_Purchased_kWh[Year],a!B$100,Energy_Purchased_kWh[Quarter],"Q2",Energy_Purchased_kWh[Utility],$D63),IF($G$4="Q3",SUMIFS(Energy_Purchased_kWh[Energy Purchased],Energy_Purchased_kWh[Year],a!B$100,Energy_Purchased_kWh[Quarter],"Q3",Energy_Purchased_kWh[Utility],$D63),IF($G$4="Q4",SUMIFS(Energy_Purchased_kWh[Energy Purchased],Energy_Purchased_kWh[Year],a!B$100,Energy_Purchased_kWh[Quarter],"Q4",Energy_Purchased_kWh[Utility],$D63), IF($G$4="Calendar Year",SUMIFS(Energy_Purchased_kWh[Energy Purchased],Energy_Purchased_kWh[Year],a!B$100,Energy_Purchased_kWh[Utility],$D63),""))))))/10^3,"") -> 0 | G63: =IFERROR(SUM(IF($G$4="Q1",SUMIFS(Energy_Purchased_kWh[Energy Purchased],Energy_Purchased_kWh[Year],a!C$100,Energy_Purchased_kWh[Quarter],"Q1",Energy_Purchased_kWh[Utility],$D63),IF($G$4="Q2",SUMIFS(Energy_Purchased_kWh[Energy Purchased],Energy_Purchased_kWh[Year],a!C$100,Energy_Purchased_kWh[Quarter],"Q2",Energy_Purchased_kWh[Utility],$D63),IF($G$4="Q3",SUMIFS(Energy_Purchased_kWh[Energy Purchased],Energy_Purchased_kWh[Year],a!C$100,Energy_Purchased_kWh[Quarter],"Q3",Energy_Purchased_kWh[Utility],$D63),IF($G$4="Q4",SUMIFS(Energy_Purchased_kWh[Energy Purchased],Energy_Purchased_kWh[Year],a!C$100,Energy_Purchased_kWh[Quarter],"Q4",Energy_Purchased_kWh[Utility],$D63), IF($G$4="Calendar Year",SUMIFS(Energy_Purchased_kWh[Energy Purchased],Energy_Purchased_kWh[Year],a!C$100,Energy_Purchased_kWh[Utility],$D63),""))))))/10^3,"") -> 192.069 | H63: =IFERROR(SUM(IF($G$4="Q1",SUMIFS(Energy_Purchased_kWh[Energy Purchased],Energy_Purchased_kWh[Year],a!D$100,Energy_Purchased_kWh[Quarter],"Q1",Energy_Purchased_kWh[Utility],$D63),IF($G$4="Q2",SUMIFS(Energy_Purchased_kWh[Energy Purchased],Energy_Purchased_kWh[Year],a!D$100,Energy_Purchased_kWh[Quarter],"Q2",Energy_Purchased_kWh[Utility],$D63),IF($G$4="Q3",SUMIFS(Energy_Purchased_kWh[Energy Purchased],Energy_Purchased_kWh[Year],a!D$100,Energy_Purchased_kWh[Quarter],"Q3",Energy_Purchased_kWh[Utility],$D63),IF($G$4="Q4",SUMIFS(Energy_Purchased_kWh[Energy Purchased],Energy_Purchased_kWh[Year],a!D$100,Energy_Purchased_kWh[Quarter],"Q4",Energy_Purchased_kWh[Utility],$D63), IF($G$4="Calendar Year",SUMIFS(Energy_Purchased_kWh[Energy Purchased],Energy_Purchased_kWh[Year],a!D$100,Energy_Purchased_kWh[Utility],$D63),""))))))/10^3,"") -> 102.694 | I63: =IFERROR(SUM(IF($G$4="Q1",SUMIFS(Energy_Purchased_kWh[Energy Purchased],Energy_Purchased_kWh[Year],a!E$100,Energy_Purchased_kWh[Quarter],"Q1",Energy_Purchased_kWh[Utility],$D63),IF($G$4="Q2",SUMIFS(Energy_Purchased_kWh[Energy Purchased],Energy_Purchased_kWh[Year],a!E$100,Energy_Purchased_kWh[Quarter],"Q2",Energy_Purchased_kWh[Utility],$D63),IF($G$4="Q3",SUMIFS(Energy_Purchased_kWh[Energy Purchased],Energy_Purchased_kWh[Year],a!E$100,Energy_Purchased_kWh[Quarter],"Q3",Energy_Purchased_kWh[Utility],$D63),IF($G$4="Q4",SUMIFS(Energy_Purchased_kWh[Energy Purchased],Energy_Purchased_kWh[Year],a!E$100,Energy_Purchased_kWh[Quarter],"Q4",Energy_Purchased_kWh[Utility],$D63), IF($G$4="Calendar Year",SUMIFS(Energy_Purchased_kWh[Energy Purchased],Energy_Purchased_kWh[Year],a!E$100,Energy_Purchased_kWh[Utility],$D63),""))))))/10^3,"") -> 0
D64: KIL | E64: =IFERROR(SUM(IF($G$4="Q1",SUMIFS(Energy_Purchased_kWh[Energy Purchased],Energy_Purchased_kWh[Year],a!A$100,Energy_Purchased_kWh[Quarter],"Q1",Energy_Purchased_kWh[Utility],$D64),IF($G$4="Q2",SUMIFS(Energy_Purchased_kWh[Energy Purchased],Energy_Purchased_kWh[Year],a!A$100,Energy_Purchased_kWh[Quarter],"Q2",Energy_Purchased_kWh[Utility],$D64),IF($G$4="Q3",SUMIFS(Energy_Purchased_kWh[Energy Purchased],Energy_Purchased_kWh[Year],a!A$100,Energy_Purchased_kWh[Quarter],"Q3",Energy_Purchased_kWh[Utility],$D64),IF($G$4="Q4",SUMIFS(Energy_Purchased_kWh[Energy Purchased],Energy_Purchased_kWh[Year],a!A$100,Energy_Purchased_kWh[Quarter],"Q4",Energy_Purchased_kWh[Utility],$D64), IF($G$4="Calendar Year",SUMIFS(Energy_Purchased_kWh[Energy Purchased],Energy_Purchased_kWh[Year],a!A$100,Energy_Purchased_kWh[Utility],$D64),""))))))/10^3,"") -> 2815.634 | F64: =IFERROR(SUM(IF($G$4="Q1",SUMIFS(Energy_Purchased_kWh[Energy Purchased],Energy_Purchased_kWh[Year],a!B$100,Energy_Purchased_kWh[Quarter],"Q1",Energy_Purchased_kWh[Utility],$D64),IF($G$4="Q2",SUMIFS(Energy_Purchased_kWh[Energy Purchased],Energy_Purchased_kWh[Year],a!B$100,Energy_Purchased_kWh[Quarter],"Q2",Energy_Purchased_kWh[Utility],$D64),IF($G$4="Q3",SUMIFS(Energy_Purchased_kWh[Energy Purchased],Energy_Purchased_kWh[Year],a!B$100,Energy_Purchased_kWh[Quarter],"Q3",Energy_Purchased_kWh[Utility],$D64),IF($G$4="Q4",SUMIFS(Energy_Purchased_kWh[Energy Purchased],Energy_Purchased_kWh[Year],a!B$100,Energy_Purchased_kWh[Quarter],"Q4",Energy_Purchased_kWh[Utility],$D64), IF($G$4="Calendar Year",SUMIFS(Energy_Purchased_kWh[Energy Purchased],Energy_Purchased_kWh[Year],a!B$100,Energy_Purchased_kWh[Utility],$D64),""))))))/10^3,"") -> 3825.556 | G64: =IFERROR(SUM(IF($G$4="Q1",SUMIFS(Energy_Purchased_kWh[Energy Purchased],Energy_Purchased_kWh[Year],a!C$100,Energy_Purchased_kWh[Quarter],"Q1",Energy_Purchased_kWh[Utility],$D64),IF($G$4="Q2",SUMIFS(Energy_Purchased_kWh[Energy Purchased],Energy_Purchased_kWh[Year],a!C$100,Energy_Purchased_kWh[Quarter],"Q2",Energy_Purchased_kWh[Utility],$D64),IF($G$4="Q3",SUMIFS(Energy_Purchased_kWh[Energy Purchased],Energy_Purchased_kWh[Year],a!C$100,Energy_Purchased_kWh[Quarter],"Q3",Energy_Purchased_kWh[Utility],$D64),IF($G$4="Q4",SUMIFS(Energy_Purchased_kWh[Energy Purchased],Energy_Purchased_kWh[Year],a!C$100,Energy_Purchased_kWh[Quarter],"Q4",Energy_Purchased_kWh[Utility],$D64), IF($G$4="Calendar Year",SUMIFS(Energy_Purchased_kWh[Energy Purchased],Energy_Purchased_kWh[Year],a!C$100,Energy_Purchased_kWh[Utility],$D64),""))))))/10^3,"") -> 4425.214 | H64: =IFERROR(SUM(IF($G$4="Q1",SUMIFS(Energy_Purchased_kWh[Energy Purchased],Energy_Purchased_kWh[Year],a!D$100,Energy_Purchased_kWh[Quarter],"Q1",Energy_Purchased_kWh[Utility],$D64),IF($G$4="Q2",SUMIFS(Energy_Purchased_kWh[Energy Purchased],Energy_Purchased_kWh[Year],a!D$100,Energy_Purchased_kWh[Quarter],"Q2",Energy_Purchased_kWh[Utility],$D64),IF($G$4="Q3",SUMIFS(Energy_Purchased_kWh[Energy Purchased],Energy_Purchased_kWh[Year],a!D$100,Energy_Purchased_kWh[Quarter],"Q3",Energy_Purchased_kWh[Utility],$D64),IF($G$4="Q4",SUMIFS(Energy_Purchased_kWh[Energy Purchased],Energy_Purchased_kWh[Year],a!D$100,Energy_Purchased_kWh[Quarter],"Q4",Energy_Purchased_kWh[Utility],$D64), IF($G$4="Calendar Year",SUMIFS(Energy_Purchased_kWh[Energy Purchased],Energy_Purchased_kWh[Year],a!D$100,Energy_Purchased_kWh[Utility],$D64),""))))))/10^3,"") -> 0 | I64: =IFERROR(SUM(IF($G$4="Q1",SUMIFS(Energy_Purchased_kWh[Energy Purchased],Energy_Purchased_kWh[Year],a!E$100,Energy_Purchased_kWh[Quarter],"Q1",Energy_Purchased_kWh[Utility],$D64),IF($G$4="Q2",SUMIFS(Energy_Purchased_kWh[Energy Purchased],Energy_Purchased_kWh[Year],a!E$100,Energy_Purchased_kWh[Quarter],"Q2",Energy_Purchased_kWh[Utility],$D64),IF($G$4="Q3",SUMIFS(Energy_Purchased_kWh[Energy Purchased],Energy_Purchased_kWh[Year],a!E$100,Energy_Purchased_kWh[Quarter],"Q3",Energy_Purchased_kWh[Utility],$D64),IF($G$4="Q4",SUMIFS(Energy_Purchased_kWh[Energy Purchased],Energy_Purchased_kWh[Year],a!E$100,Energy_Purchased_kWh[Quarter],"Q4",Energy_Purchased_kWh[Utility],$D64), IF($G$4="Calendar Year",SUMIFS(Energy_Purchased_kWh[Energy Purchased],Energy_Purchased_kWh[Year],a!E$100,Energy_Purchased_kWh[Utility],$D64),""))))))/10^3,"") -> 0
D65: KIS | E65: =IFERROR(SUM(IF($G$4="Q1",SUMIFS(Energy_Purchased_kWh[Energy Purchased],Energy_Purchased_kWh[Year],a!A$100,Energy_Purchased_kWh[Quarter],"Q1",Energy_Purchased_kWh[Utility],$D65),IF($G$4="Q2",SUMIFS(Energy_Purchased_kWh[Energy Purchased],Energy_Purchased_kWh[Year],a!A$100,Energy_Purchased_kWh[Quarter],"Q2",Energy_Purchased_kWh[Utility],$D65),IF($G$4="Q3",SUMIFS(Energy_Purchased_kWh[Energy Purchased],Energy_Purchased_kWh[Year],a!A$100,Energy_Purchased_kWh[Quarter],"Q3",Energy_Purchased_kWh[Utility],$D65),IF($G$4="Q4",SUMIFS(Energy_Purchased_kWh[Energy Purchased],Energy_Purchased_kWh[Year],a!A$100,Energy_Purchased_kWh[Quarter],"Q4",Energy_Purchased_kWh[Utility],$D65), IF($G$4="Calendar Year",SUMIFS(Energy_Purchased_kWh[Energy Purchased],Energy_Purchased_kWh[Year],a!A$100,Energy_Purchased_kWh[Utility],$D65),""))))))/10^3,"") -> 0 | F65: =IFERROR(SUM(IF($G$4="Q1",SUMIFS(Energy_Purchased_kWh[Energy Purchased],Energy_Purchased_kWh[Year],a!B$100,Energy_Purchased_kWh[Quarter],"Q1",Energy_Purchased_kWh[Utility],$D65),IF($G$4="Q2",SUMIFS(Energy_Purchased_kWh[Energy Purchased],Energy_Purchased_kWh[Year],a!B$100,Energy_Purchased_kWh[Quarter],"Q2",Energy_Purchased_kWh[Utility],$D65),IF($G$4="Q3",SUMIFS(Energy_Purchased_kWh[Energy Purchased],Energy_Purchased_kWh[Year],a!B$100,Energy_Purchased_kWh[Quarter],"Q3",Energy_Purchased_kWh[Utility],$D65),IF($G$4="Q4",SUMIFS(Energy_Purchased_kWh[Energy Purchased],Energy_Purchased_kWh[Year],a!B$100,Energy_Purchased_kWh[Quarter],"Q4",Energy_Purchased_kWh[Utility],$D65), IF($G$4="Calendar Year",SUMIFS(Energy_Purchased_kWh[Energy Purchased],Energy_Purchased_kWh[Year],a!B$100,Energy_Purchased_kWh[Utility],$D65),""))))))/10^3,"") -> 0 | G65: =IFERROR(SUM(IF($G$4="Q1",SUMIFS(Energy_Purchased_kWh[Energy Purchased],Energy_Purchased_kWh[Year],a!C$100,Energy_Purchased_kWh[Quarter],"Q1",Energy_Purchased_kWh[Utility],$D65),IF($G$4="Q2",SUMIFS(Energy_Purchased_kWh[Energy Purchased],Energy_Purchased_kWh[Year],a!C$100,Energy_Purchased_kWh[Quarter],"Q2",Energy_Purchased_kWh[Utility],$D65),IF($G$4="Q3",SUMIFS(Energy_Purchased_kWh[Energy Purchased],Energy_Purchased_kWh[Year],a!C$100,Energy_Purchased_kWh[Quarter],"Q3",Energy_Purchased_kWh[Utility],$D65),IF($G$4="Q4",SUMIFS(Energy_Purchased_kWh[Energy Purchased],Energy_Purchased_kWh[Year],a!C$100,Energy_Purchased_kWh[Quarter],"Q4",Energy_Purchased_kWh[Utility],$D65), IF($G$4="Calendar Year",SUMIFS(Energy_Purchased_kWh[Energy Purchased],Energy_Purchased_kWh[Year],a!C$100,Energy_Purchased_kWh[Utility],$D65),""))))))/10^3,"") -> 0 | H65: =IFERROR(SUM(IF($G$4="Q1",SUMIFS(Energy_Purchased_kWh[Energy Purchased],Energy_Purchased_kWh[Year],a!D$100,Energy_Purchased_kWh[Quarter],"Q1",Energy_Purchased_kWh[Utility],$D65),IF($G$4="Q2",SUMIFS(Energy_Purchased_kWh[Energy Purchased],Energy_Purchased_kWh[Year],a!D$100,Energy_Purchased_kWh[Quarter],"Q2",Energy_Purchased_kWh[Utility],$D65),IF($G$4="Q3",SUMIFS(Energy_Purchased_kWh[Energy Purchased],Energy_Purchased_kWh[Year],a!D$100,Energy_Purchased_kWh[Quarter],"Q3",Energy_Purchased_kWh[Utility],$D65),IF($G$4="Q4",SUMIFS(Energy_Purchased_kWh[Energy Purchased],Energy_Purchased_kWh[Year],a!D$100,Energy_Purchased_kWh[Quarter],"Q4",Energy_Purchased_kWh[Utility],$D65), IF($G$4="Calendar Year",SUMIFS(Energy_Purchased_kWh[Energy Purchased],Energy_Purchased_kWh[Year],a!D$100,Energy_Purchased_kWh[Utility],$D65),""))))))/10^3,"") -> 0 | I65: 858.788129
D66: KRECS | E66: =IFERROR(SUM(IF($G$4="Q1",SUMIFS(Energy_Purchased_kWh[Energy Purchased],Energy_Purchased_kWh[Year],a!A$100,Energy_Purchased_kWh[Quarter],"Q1",Energy_Purchased_kWh[Utility],$D66),IF($G$4="Q2",SUMIFS(Energy_Purchased_kWh[Energy Purchased],Energy_Purchased_kWh[Year],a!A$100,Energy_Purchased_kWh[Quarter],"Q2",Energy_Purchased_kWh[Utility],$D66),IF($G$4="Q3",SUMIFS(Energy_Purchased_kWh[Energy Purchased],Energy_Purchased_kWh[Year],a!A$100,Energy_Purchased_kWh[Quarter],"Q3",Energy_Purchased_kWh[Utility],$D66),IF($G$4="Q4",SUMIFS(Energy_Purchased_kWh[Energy Purchased],Energy_Purchased_kWh[Year],a!A$100,Energy_Purchased_kWh[Quarter],"Q4",Energy_Purchased_kWh[Utility],$D66), IF($G$4="Calendar Year",SUMIFS(Energy_Purchased_kWh[Energy Purchased],Energy_Purchased_kWh[Year],a!A$100,Energy_Purchased_kWh[Utility],$D66),""))))))/10^3,"") -> 2088.983 | F66: =IFERROR(SUM(IF($G$4="Q1",SUMIFS(Energy_Purchased_kWh[Energy Purchased],Energy_Purchased_kWh[Year],a!B$100,Energy_Purchased_kWh[Quarter],"Q1",Energy_Purchased_kWh[Utility],$D66),IF($G$4="Q2",SUMIFS(Energy_Purchased_kWh[Energy Purchased],Energy_Purchased_kWh[Year],a!B$100,Energy_Purchased_kWh[Quarter],"Q2",Energy_Purchased_kWh[Utility],$D66),IF($G$4="Q3",SUMIFS(Energy_Purchased_kWh[Energy Purchased],Energy_Purchased_kWh[Year],a!B$100,Energy_Purchased_kWh[Quarter],"Q3",Energy_Purchased_kWh[Utility],$D66),IF($G$4="Q4",SUMIFS(Energy_Purchased_kWh[Energy Purchased],Energy_Purchased_kWh[Year],a!B$100,Energy_Purchased_kWh[Quarter],"Q4",Energy_Purchased_kWh[Utility],$D66), IF($G$4="Calendar Year",SUMIFS(Energy_Purchased_kWh[Energy Purchased],Energy_Purchased_kWh[Year],a!B$100,Energy_Purchased_kWh[Utility],$D66),""))))))/10^3,"") -> 3410.437 | G66: =IFERROR(SUM(IF($G$4="Q1",SUMIFS(Energy_Purchased_kWh[Energy Purchased],Energy_Purchased_kWh[Year],a!C$100,Energy_Purchased_kWh[Quarter],"Q1",Energy_Purchased_kWh[Utility],$D66),IF($G$4="Q2",SUMIFS(Energy_Purchased_kWh[Energy Purchased],Energy_Purchased_kWh[Year],a!C$100,Energy_Purchased_kWh[Quarter],"Q2",Energy_Purchased_kWh[Utility],$D66),IF($G$4="Q3",SUMIFS(Energy_Purchased_kWh[Energy Purchased],Energy_Purchased_kWh[Year],a!C$100,Energy_Purchased_kWh[Quarter],"Q3",Energy_Purchased_kWh[Utility],$D66),IF($G$4="Q4",SUMIFS(Energy_Purchased_kWh[Energy Purchased],Energy_Purchased_kWh[Year],a!C$100,Energy_Purchased_kWh[Quarter],"Q4",Energy_Purchased_kWh[Utility],$D66), IF($G$4="Calendar Year",SUMIFS(Energy_Purchased_kWh[Energy Purchased],Energy_Purchased_kWh[Year],a!C$100,Energy_Purchased_kWh[Utility],$D66),""))))))/10^3,"") -> 0 | H66: =IFERROR(SUM(IF($G$4="Q1",SUMIFS(Energy_Purchased_kWh[Energy Purchased],Energy_Purchased_kWh[Year],a!D$100,Energy_Purchased_kWh[Quarter],"Q1",Energy_Purchased_kWh[Utility],$D66),IF($G$4="Q2",SUMIFS(Energy_Purchased_kWh[Energy Purchased],Energy_Purchased_kWh[Year],a!D$100,Energy_Purchased_kWh[Quarter],"Q2",Energy_Purchased_kWh[Utility],$D66),IF($G$4="Q3",SUMIFS(Energy_Purchased_kWh[Energy Purchased],Energy_Purchased_kWh[Year],a!D$100,Energy_Purchased_kWh[Quarter],"Q3",Energy_Purchased_kWh[Utility],$D66),IF($G$4="Q4",SUMIFS(Energy_Purchased_kWh[Energy Purchased],Energy_Purchased_kWh[Year],a!D$100,Energy_Purchased_kWh[Quarter],"Q4",Energy_Purchased_kWh[Utility],$D66), IF($G$4="Calendar Year",SUMIFS(Energy_Purchased_kWh[Energy Purchased],Energy_Purchased_kWh[Year],a!D$100,Energy_Purchased_kWh[Utility],$D66),""))))))/10^3,"") -> 0 | I66: =IFERROR(SUM(IF($G$4="Q1",SUMIFS(Energy_Purchased_kWh[Energy Purchased],Energy_Purchased_kWh[Year],a!E$100,Energy_Purchased_kWh[Quarter],"Q1",Energy_Purchased_kWh[Utility],$D66),IF($G$4="Q2",SUMIFS(Energy_Purchased_kWh[Energy Purchased],Energy_Purchased_kWh[Year],a!E$100,Energy_Purchased_kWh[Quarter],"Q2",Energy_Purchased_kWh[Utility],$D66),IF($G$4="Q3",SUMIFS(Energy_Purchased_kWh[Energy Purchased],Energy_Purchased_kWh[Year],a!E$100,Energy_Purchased_kWh[Quarter],"Q3",Energy_Purchased_kWh[Utility],$D66),IF($G$4="Q4",SUMIFS(Energy_Purchased_kWh[Energy Purchased],Energy_Purchased_kWh[Year],a!E$100,Energy_Purchased_kWh[Quarter],"Q4",Energy_Purchased_kWh[Utility],$D66), IF($G$4="Calendar Year",SUMIFS(Energy_Purchased_kWh[Energy Purchased],Energy_Purchased_kWh[Year],a!E$100,Energy_Purchased_kWh[Utility],$D66),""))))))/10^3,"") -> 0
D67: PACMECS | E67: =IFERROR(SUM(IF($G$4="Q1",SUMIFS(Energy_Purchased_kWh[Energy Purchased],Energy_Purchased_kWh[Year],a!A$100,Energy_Purchased_kWh[Quarter],"Q1",Energy_Purchased_kWh[Utility],$D67),IF($G$4="Q2",SUMIFS(Energy_Purchased_kWh[Energy Purchased],Energy_Purchased_kWh[Year],a!A$100,Energy_Purchased_kWh[Quarter],"Q2",Energy_Purchased_kWh[Utility],$D67),IF($G$4="Q3",SUMIFS(Energy_Purchased_kWh[Energy Purchased],Energy_Purchased_kWh[Year],a!A$100,Energy_Purchased_kWh[Quarter],"Q3",Energy_Purchased_kWh[Utility],$D67),IF($G$4="Q4",SUMIFS(Energy_Purchased_kWh[Energy Purchased],Energy_Purchased_kWh[Year],a!A$100,Energy_Purchased_kWh[Quarter],"Q4",Energy_Purchased_kWh[Utility],$D67), IF($G$4="Calendar Year",SUMIFS(Energy_Purchased_kWh[Energy Purchased],Energy_Purchased_kWh[Year],a!A$100,Energy_Purchased_kWh[Utility],$D67),""))))))/10^3,"") -> 1022.117 | F67: =IFERROR(SUM(IF($G$4="Q1",SUMIFS(Energy_Purchased_kWh[Energy Purchased],Energy_Purchased_kWh[Year],a!B$100,Energy_Purchased_kWh[Quarter],"Q1",Energy_Purchased_kWh[Utility],$D67),IF($G$4="Q2",SUMIFS(Energy_Purchased_kWh[Energy Purchased],Energy_Purchased_kWh[Year],a!B$100,Energy_Purchased_kWh[Quarter],"Q2",Energy_Purchased_kWh[Utility],$D67),IF($G$4="Q3",SUMIFS(Energy_Purchased_kWh[Energy Purchased],Energy_Purchased_kWh[Year],a!B$100,Energy_Purchased_kWh[Quarter],"Q3",Energy_Purchased_kWh[Utility],$D67),IF($G$4="Q4",SUMIFS(Energy_Purchased_kWh[Energy Purchased],Energy_Purchased_kWh[Year],a!B$100,Energy_Purchased_kWh[Quarter],"Q4",Energy_Purchased_kWh[Utility],$D67), IF($G$4="Calendar Year",SUMIFS(Energy_Purchased_kWh[Energy Purchased],Energy_Purchased_kWh[Year],a!B$100,Energy_Purchased_kWh[Utility],$D67),""))))))/10^3,"") -> 1305.669 | G67: =IFERROR(SUM(IF($G$4="Q1",SUMIFS(Energy_Purchased_kWh[Energy Purchased],Energy_Purchased_kWh[Year],a!C$100,Energy_Purchased_kWh[Quarter],"Q1",Energy_Purchased_kWh[Utility],$D67),IF($G$4="Q2",SUMIFS(Energy_Purchased_kWh[Energy Purchased],Energy_Purchased_kWh[Year],a!C$100,Energy_Purchased_kWh[Quarter],"Q2",Energy_Purchased_kWh[Utility],$D67),IF($G$4="Q3",SUMIFS(Energy_Purchased_kWh[Energy Purchased],Energy_Purchased_kWh[Year],a!C$100,Energy_Purchased_kWh[Quarter],"Q3",Energy_Purchased_kWh[Utility],$D67),IF($G$4="Q4",SUMIFS(Energy_Purchased_kWh[Energy Purchased],Energy_Purchased_kWh[Year],a!C$100,Energy_Purchased_kWh[Quarter],"Q4",Energy_Purchased_kWh[Utility],$D67), IF($G$4="Calendar Year",SUMIFS(Energy_Purchased_kWh[Energy Purchased],Energy_Purchased_kWh[Year],a!C$100,Energy_Purchased_kWh[Utility],$D67),""))))))/10^3,"") -> 0 | H67: =IFERROR(SUM(IF($G$4="Q1",SUMIFS(Energy_Purchased_kWh[Energy Purchased],Energy_Purchased_kWh[Year],a!D$100,Energy_Purchased_kWh[Quarter],"Q1",Energy_Purchased_kWh[Utility],$D67),IF($G$4="Q2",SUMIFS(Energy_Purchased_kWh[Energy Purchased],Energy_Purchased_kWh[Year],a!D$100,Energy_Purchased_kWh[Quarter],"Q2",Energy_Purchased_kWh[Utility],$D67),IF($G$4="Q3",SUMIFS(Energy_Purchased_kWh[Energy Purchased],Energy_Purchased_kWh[Year],a!D$100,Energy_Purchased_kWh[Quarter],"Q3",Energy_Purchased_kWh[Utility],$D67),IF($G$4="Q4",SUMIFS(Energy_Purchased_kWh[Energy Purchased],Energy_Purchased_kWh[Year],a!D$100,Energy_Purchased_kWh[Quarter],"Q4",Energy_Purchased_kWh[Utility],$D67), IF($G$4="Calendar Year",SUMIFS(Energy_Purchased_kWh[Energy Purchased],Energy_Purchased_kWh[Year],a!D$100,Energy_Purchased_kWh[Utility],$D67),""))))))/10^3,"") -> 0 | I67: =IFERROR(SUM(IF($G$4="Q1",SUMIFS(Energy_Purchased_kWh[Energy Purchased],Energy_Purchased_kWh[Year],a!E$100,Energy_Purchased_kWh[Quarter],"Q1",Energy_Purchased_kWh[Utility],$D67),IF($G$4="Q2",SUMIFS(Energy_Purchased_kWh[Energy Purchased],Energy_Purchased_kWh[Year],a!E$100,Energy_Purchased_kWh[Quarter],"Q2",Energy_Purchased_kWh[Utility],$D67),IF($G$4="Q3",SUMIFS(Energy_Purchased_kWh[Energy Purchased],Energy_Purchased_kWh[Year],a!E$100,Energy_Purchased_kWh[Quarter],"Q3",Energy_Purchased_kWh[Utility],$D67),IF($G$4="Q4",SUMIFS(Energy_Purchased_kWh[Energy Purchased],Energy_Purchased_kWh[Year],a!E$100,Energy_Purchased_kWh[Quarter],"Q4",Energy_Purchased_kWh[Utility],$D67), IF($G$4="Calendar Year",SUMIFS(Energy_Purchased_kWh[Energy Purchased],Energy_Purchased_kWh[Year],a!E$100,Energy_Purchased_kWh[Utility],$D67),""))))))/10^3,"") -> 0
D68: UEDCL | E68: =IFERROR(SUM(IF($G$4="Q1",SUMIFS(Energy_Purchased_kWh[Energy Purchased],Energy_Purchased_kWh[Year],a!A$100,Energy_Purchased_kWh[Quarter],"Q1",Energy_Purchased_kWh[Utility],$D68),IF($G$4="Q2",SUMIFS(Energy_Purchased_kWh[Energy Purchased],Energy_Purchased_kWh[Year],a!A$100,Energy_Purchased_kWh[Quarter],"Q2",Energy_Purchased_kWh[Utility],$D68),IF($G$4="Q3",SUMIFS(Energy_Purchased_kWh[Energy Purchased],Energy_Purchased_kWh[Year],a!A$100,Energy_Purchased_kWh[Quarter],"Q3",Energy_Purchased_kWh[Utility],$D68),IF($G$4="Q4",SUMIFS(Energy_Purchased_kWh[Energy Purchased],Energy_Purchased_kWh[Year],a!A$100,Energy_Purchased_kWh[Quarter],"Q4",Energy_Purchased_kWh[Utility],$D68), IF($G$4="Calendar Year",SUMIFS(Energy_Purchased_kWh[Energy Purchased],Energy_Purchased_kWh[Year],a!A$100,Energy_Purchased_kWh[Utility],$D68),""))))))/10^3,"") -> 28738.09015 | F68: =IFERROR(SUM(IF($G$4="Q1",SUMIFS(Energy_Purchased_kWh[Energy Purchased],Energy_Purchased_kWh[Year],a!B$100,Energy_Purchased_kWh[Quarter],"Q1",Energy_Purchased_kWh[Utility],$D68),IF($G$4="Q2",SUMIFS(Energy_Purchased_kWh[Energy Purchased],Energy_Purchased_kWh[Year],a!B$100,Energy_Purchased_kWh[Quarter],"Q2",Energy_Purchased_kWh[Utility],$D68),IF($G$4="Q3",SUMIFS(Energy_Purchased_kWh[Energy Purchased],Energy_Purchased_kWh[Year],a!B$100,Energy_Purchased_kWh[Quarter],"Q3",Energy_Purchased_kWh[Utility],$D68),IF($G$4="Q4",SUMIFS(Energy_Purchased_kWh[Energy Purchased],Energy_Purchased_kWh[Year],a!B$100,Energy_Purchased_kWh[Quarter],"Q4",Energy_Purchased_kWh[Utility],$D68), IF($G$4="Calendar Year",SUMIFS(Energy_Purchased_kWh[Energy Purchased],Energy_Purchased_kWh[Year],a!B$100,Energy_Purchased_kWh[Utility],$D68),""))))))/10^3,"") -> 35563.44082 | G68: =IFERROR(SUM(IF($G$4="Q1",SUMIFS(Energy_Purchased_kWh[Energy Purchased],Energy_Purchased_kWh[Year],a!C$100,Energy_Purchased_kWh[Quarter],"Q1",Energy_Purchased_kWh[Utility],$D68),IF($G$4="Q2",SUMIFS(Energy_Purchased_kWh[Energy Purchased],Energy_Purchased_kWh[Year],a!C$100,Energy_Purchased_kWh[Quarter],"Q2",Energy_Purchased_kWh[Utility],$D68),IF($G$4="Q3",SUMIFS(Energy_Purchased_kWh[Energy Purchased],Energy_Purchased_kWh[Year],a!C$100,Energy_Purchased_kWh[Quarter],"Q3",Energy_Purchased_kWh[Utility],$D68),IF($G$4="Q4",SUMIFS(Energy_Purchased_kWh[Energy Purchased],Energy_Purchased_kWh[Year],a!C$100,Energy_Purchased_kWh[Quarter],"Q4",Energy_Purchased_kWh[Utility],$D68), IF($G$4="Calendar Year",SUMIFS(Energy_Purchased_kWh[Energy Purchased],Energy_Purchased_kWh[Year],a!C$100,Energy_Purchased_kWh[Utility],$D68),""))))))/10^3,"") -> 47809.53663 | H68: =IFERROR(SUM(IF($G$4="Q1",SUMIFS(Energy_Purchased_kWh[Energy Purchased],Energy_Purchased_kWh[Year],a!D$100,Energy_Purchased_kWh[Quarter],"Q1",Energy_Purchased_kWh[Utility],$D68),IF($G$4="Q2",SUMIFS(Energy_Purchased_kWh[Energy Purchased],Energy_Purchased_kWh[Year],a!D$100,Energy_Purchased_kWh[Quarter],"Q2",Energy_Purchased_kWh[Utility],$D68),IF($G$4="Q3",SUMIFS(Energy_Purchased_kWh[Energy Purchased],Energy_Purchased_kWh[Year],a!D$100,Energy_Purchased_kWh[Quarter],"Q3",Energy_Purchased_kWh[Utility],$D68),IF($G$4="Q4",SUMIFS(Energy_Purchased_kWh[Energy Purchased],Energy_Purchased_kWh[Year],a!D$100,Energy_Purchased_kWh[Quarter],"Q4",Energy_Purchased_kWh[Utility],$D68), IF($G$4="Calendar Year",SUMIFS(Energy_Purchased_kWh[Energy Purchased],Energy_Purchased_kWh[Year],a!D$100,Energy_Purchased_kWh[Utility],$D68),""))))))/10^3,"") -> 54671.02633 | I68: =IFERROR(SUM(IF($G$4="Q1",SUMIFS(Energy_Purchased_kWh[Energy Purchased],Energy_Purchased_kWh[Year],a!E$100,Energy_Purchased_kWh[Quarter],"Q1",Energy_Purchased_kWh[Utility],$D68),IF($G$4="Q2",SUMIFS(Energy_Purchased_kWh[Energy Purchased],Energy_Purchased_kWh[Year],a!E$100,Energy_Purchased_kWh[Quarter],"Q2",Energy_Purchased_kWh[Utility],$D68),IF($G$4="Q3",SUMIFS(Energy_Purchased_kWh[Energy Purchased],Energy_Purchased_kWh[Year],a!E$100,Energy_Purchased_kWh[Quarter],"Q3",Energy_Purchased_kWh[Utility],$D68),IF($G$4="Q4",SUMIFS(Energy_Purchased_kWh[Energy Purchased],Energy_Purchased_kWh[Year],a!E$100,Energy_Purchased_kWh[Quarter],"Q4",Energy_Purchased_kWh[Utility],$D68), IF($G$4="Calendar Year",SUMIFS(Energy_Purchased_kWh[Energy Purchased],Energy_Purchased_kWh[Year],a!E$100,Energy_Purchased_kWh[Utility],$D68),""))))))/10^3,"") -> 1766984.864
D69: UMEME | E69: =IFERROR(SUM(IF($G$4="Q1",SUMIFS(Energy_Purchased_kWh[Energy Purchased],Energy_Purchased_kWh[Year],a!A$100,Energy_Purchased_kWh[Quarter],"Q1",Energy_Purchased_kWh[Utility],$D69),IF($G$4="Q2",SUMIFS(Energy_Purchased_kWh[Energy Purchased],Energy_Purchased_kWh[Year],a!A$100,Energy_Purchased_kWh[Quarter],"Q2",Energy_Purchased_kWh[Utility],$D69),IF($G$4="Q3",SUMIFS(Energy_Purchased_kWh[Energy Purchased],Energy_Purchased_kWh[Year],a!A$100,Energy_Purchased_kWh[Quarter],"Q3",Energy_Purchased_kWh[Utility],$D69),IF($G$4="Q4",SUMIFS(Energy_Purchased_kWh[Energy Purchased],Energy_Purchased_kWh[Year],a!A$100,Energy_Purchased_kWh[Quarter],"Q4",Energy_Purchased_kWh[Utility],$D69), IF($G$4="Calendar Year",SUMIFS(Energy_Purchased_kWh[Energy Purchased],Energy_Purchased_kWh[Year],a!A$100,Energy_Purchased_kWh[Utility],$D69),""))))))/10^3,"") -> 1126653.541 | F69: =IFERROR(SUM(IF($G$4="Q1",SUMIFS(Energy_Purchased_kWh[Energy Purchased],Energy_Purchased_kWh[Year],a!B$100,Energy_Purchased_kWh[Quarter],"Q1",Energy_Purchased_kWh[Utility],$D69),IF($G$4="Q2",SUMIFS(Energy_Purchased_kWh[Energy Purchased],Energy_Purchased_kWh[Year],a!B$100,Energy_Purchased_kWh[Quarter],"Q2",Energy_Purchased_kWh[Utility],$D69),IF($G$4="Q3",SUMIFS(Energy_Purchased_kWh[Energy Purchased],Energy_Purchased_kWh[Year],a!B$100,Energy_Purchased_kWh[Quarter],"Q3",Energy_Purchased_kWh[Utility],$D69),IF($G$4="Q4",SUMIFS(Energy_Purchased_kWh[Energy Purchased],Energy_Purchased_kWh[Year],a!B$100,Energy_Purchased_kWh[Quarter],"Q4",Energy_Purchased_kWh[Utility],$D69), IF($G$4="Calendar Year",SUMIFS(Energy_Purchased_kWh[Energy Purchased],Energy_Purchased_kWh[Year],a!B$100,Energy_Purchased_kWh[Utility],$D69),""))))))/10^3,"") -> 1216696.413 | G69: =IFERROR(SUM(IF($G$4="Q1",SUMIFS(Energy_Purchased_kWh[Energy Purchased],Energy_Purchased_kWh[Year],a!C$100,Energy_Purchased_kWh[Quarter],"Q1",Energy_Purchased_kWh[Utility],$D69),IF($G$4="Q2",SUMIFS(Energy_Purchased_kWh[Energy Purchased],Energy_Purchased_kWh[Year],a!C$100,Energy_Purchased_kWh[Quarter],"Q2",Energy_Purchased_kWh[Utility],$D69),IF($G$4="Q3",SUMIFS(Energy_Purchased_kWh[Energy Purchased],Energy_Purchased_kWh[Year],a!C$100,Energy_Purchased_kWh[Quarter],"Q3",Energy_Purchased_kWh[Utility],$D69),IF($G$4="Q4",SUMIFS(Energy_Purchased_kWh[Energy Purchased],Energy_Purchased_kWh[Year],a!C$100,Energy_Purchased_kWh[Quarter],"Q4",Energy_Purchased_kWh[Utility],$D69), IF($G$4="Calendar Year",SUMIFS(Energy_Purchased_kWh[Energy Purchased],Energy_Purchased_kWh[Year],a!C$100,Energy_Purchased_kWh[Utility],$D69),""))))))/10^3,"") -> 1345729.668 | H69: =IFERROR(SUM(IF($G$4="Q1",SUMIFS(Energy_Purchased_kWh[Energy Purchased],Energy_Purchased_kWh[Year],a!D$100,Energy_Purchased_kWh[Quarter],"Q1",Energy_Purchased_kWh[Utility],$D69),IF($G$4="Q2",SUMIFS(Energy_Purchased_kWh[Energy Purchased],Energy_Purchased_kWh[Year],a!D$100,Energy_Purchased_kWh[Quarter],"Q2",Energy_Purchased_kWh[Utility],$D69),IF($G$4="Q3",SUMIFS(Energy_Purchased_kWh[Energy Purchased],Energy_Purchased_kWh[Year],a!D$100,Energy_Purchased_kWh[Quarter],"Q3",Energy_Purchased_kWh[Utility],$D69),IF($G$4="Q4",SUMIFS(Energy_Purchased_kWh[Energy Purchased],Energy_Purchased_kWh[Year],a!D$100,Energy_Purchased_kWh[Quarter],"Q4",Energy_Purchased_kWh[Utility],$D69), IF($G$4="Calendar Year",SUMIFS(Energy_Purchased_kWh[Energy Purchased],Energy_Purchased_kWh[Year],a!D$100,Energy_Purchased_kWh[Utility],$D69),""))))))/10^3,"") -> 1468669.602 | I69: =IFERROR(SUM(IF($G$4="Q1",SUMIFS(Energy_Purchased_kWh[Energy Purchased],Energy_Purchased_kWh[Year],a!E$100,Energy_Purchased_kWh[Quarter],"Q1",Energy_Purchased_kWh[Utility],$D69),IF($G$4="Q2",SUMIFS(Energy_Purchased_kWh[Energy Purchased],Energy_Purchased_kWh[Year],a!E$100,Energy_Purchased_kWh[Quarter],"Q2",Energy_Purchased_kWh[Utility],$D69),IF($G$4="Q3",SUMIFS(Energy_Purchased_kWh[Energy Purchased],Energy_Purchased_kWh[Year],a!E$100,Energy_Purchased_kWh[Quarter],"Q3",Energy_Purchased_kWh[Utility],$D69),IF($G$4="Q4",SUMIFS(Energy_Purchased_kWh[Energy Purchased],Energy_Purchased_kWh[Year],a!E$100,Energy_Purchased_kWh[Quarter],"Q4",Energy_Purchased_kWh[Utility],$D69), IF($G$4="Calendar Year",SUMIFS(Energy_Purchased_kWh[Energy Purchased],Energy_Purchased_kWh[Year],a!E$100,Energy_Purchased_kWh[Utility],$D69),""))))))/10^3,"") -> 0
D70: WENRECO | E70: =IFERROR(SUM(IF($G$4="Q1",SUMIFS(Energy_Purchased_kWh[Energy Purchased],Energy_Purchased_kWh[Year],a!A$100,Energy_Purchased_kWh[Quarter],"Q1",Energy_Purchased_kWh[Utility],$D70),IF($G$4="Q2",SUMIFS(Energy_Purchased_kWh[Energy Purchased],Energy_Purchased_kWh[Year],a!A$100,Energy_Purchased_kWh[Quarter],"Q2",Energy_Purchased_kWh[Utility],$D70),IF($G$4="Q3",SUMIFS(Energy_Purchased_kWh[Energy Purchased],Energy_Purchased_kWh[Year],a!A$100,Energy_Purchased_kWh[Quarter],"Q3",Energy_Purchased_kWh[Utility],$D70),IF($G$4="Q4",SUMIFS(Energy_Purchased_kWh[Energy Purchased],Energy_Purchased_kWh[Year],a!A$100,Energy_Purchased_kWh[Quarter],"Q4",Energy_Purchased_kWh[Utility],$D70), IF($G$4="Calendar Year",SUMIFS(Energy_Purchased_kWh[Energy Purchased],Energy_Purchased_kWh[Year],a!A$100,Energy_Purchased_kWh[Utility],$D70),""))))))/10^3,"") -> 0 | F70: =IFERROR(SUM(IF($G$4="Q1",SUMIFS(Energy_Purchased_kWh[Energy Purchased],Energy_Purchased_kWh[Year],a!B$100,Energy_Purchased_kWh[Quarter],"Q1",Energy_Purchased_kWh[Utility],$D70),IF($G$4="Q2",SUMIFS(Energy_Purchased_kWh[Energy Purchased],Energy_Purchased_kWh[Year],a!B$100,Energy_Purchased_kWh[Quarter],"Q2",Energy_Purchased_kWh[Utility],$D70),IF($G$4="Q3",SUMIFS(Energy_Purchased_kWh[Energy Purchased],Energy_Purchased_kWh[Year],a!B$100,Energy_Purchased_kWh[Quarter],"Q3",Energy_Purchased_kWh[Utility],$D70),IF($G$4="Q4",SUMIFS(Energy_Purchased_kWh[Energy Purchased],Energy_Purchased_kWh[Year],a!B$100,Energy_Purchased_kWh[Quarter],"Q4",Energy_Purchased_kWh[Utility],$D70), IF($G$4="Calendar Year",SUMIFS(Energy_Purchased_kWh[Energy Purchased],Energy_Purchased_kWh[Year],a!B$100,Energy_Purchased_kWh[Utility],$D70),""))))))/10^3,"") -> 0 | G70: =IFERROR(SUM(IF($G$4="Q1",SUMIFS(Energy_Purchased_kWh[Energy Purchased],Energy_Purchased_kWh[Year],a!C$100,Energy_Purchased_kWh[Quarter],"Q1",Energy_Purchased_kWh[Utility],$D70),IF($G$4="Q2",SUMIFS(Energy_Purchased_kWh[Energy Purchased],Energy_Purchased_kWh[Year],a!C$100,Energy_Purchased_kWh[Quarter],"Q2",Energy_Purchased_kWh[Utility],$D70),IF($G$4="Q3",SUMIFS(Energy_Purchased_kWh[Energy Purchased],Energy_Purchased_kWh[Year],a!C$100,Energy_Purchased_kWh[Quarter],"Q3",Energy_Purchased_kWh[Utility],$D70),IF($G$4="Q4",SUMIFS(Energy_Purchased_kWh[Energy Purchased],Energy_Purchased_kWh[Year],a!C$100,Energy_Purchased_kWh[Quarter],"Q4",Energy_Purchased_kWh[Utility],$D70), IF($G$4="Calendar Year",SUMIFS(Energy_Purchased_kWh[Energy Purchased],Energy_Purchased_kWh[Year],a!C$100,Energy_Purchased_kWh[Utility],$D70),""))))))/10^3,"") -> 9622.792 | H70: =IFERROR(SUM(IF($G$4="Q1",SUMIFS(Energy_Purchased_kWh[Energy Purchased],Energy_Purchased_kWh[Year],a!D$100,Energy_Purchased_kWh[Quarter],"Q1",Energy_Purchased_kWh[Utility],$D70),IF($G$4="Q2",SUMIFS(Energy_Purchased_kWh[Energy Purchased],Energy_Purchased_kWh[Year],a!D$100,Energy_Purchased_kWh[Quarter],"Q2",Energy_Purchased_kWh[Utility],$D70),IF($G$4="Q3",SUMIFS(Energy_Purchased_kWh[Energy Purchased],Energy_Purchased_kWh[Year],a!D$100,Energy_Purchased_kWh[Quarter],"Q3",Energy_Purchased_kWh[Utility],$D70),IF($G$4="Q4",SUMIFS(Energy_Purchased_kWh[Energy Purchased],Energy_Purchased_kWh[Year],a!D$100,Energy_Purchased_kWh[Quarter],"Q4",Energy_Purchased_kWh[Utility],$D70), IF($G$4="Calendar Year",SUMIFS(Energy_Purchased_kWh[Energy Purchased],Energy_Purchased_kWh[Year],a!D$100,Energy_Purchased_kWh[Utility],$D70),""))))))/10^3,"") -> 9606.338 | I70: =IFERROR(SUM(IF($G$4="Q1",SUMIFS(Energy_Purchased_kWh[Energy Purchased],Energy_Purchased_kWh[Year],a!E$100,Energy_Purchased_kWh[Quarter],"Q1",Energy_Purchased_kWh[Utility],$D70),IF($G$4="Q2",SUMIFS(Energy_Purchased_kWh[Energy Purchased],Energy_Purchased_kWh[Year],a!E$100,Energy_Purchased_kWh[Quarter],"Q2",Energy_Purchased_kWh[Utility],$D70),IF($G$4="Q3",SUMIFS(Energy_Purchased_kWh[Energy Purchased],Energy_Purchased_kWh[Year],a!E$100,Energy_Purchased_kWh[Quarter],"Q3",Energy_Purchased_kWh[Utility],$D70),IF($G$4="Q4",SUMIFS(Energy_Purchased_kWh[Energy Purchased],Energy_Purchased_kWh[Year],a!E$100,Energy_Purchased_kWh[Quarter],"Q4",Energy_Purchased_kWh[Utility],$D70), IF($G$4="Calendar Year",SUMIFS(Energy_Purchased_kWh[Energy Purchased],Energy_Purchased_kWh[Year],a!E$100,Energy_Purchased_kWh[Utility],$D70),""))))))/10^3,"") -> 10316.989
D71: Energy Sales by Utility (MWh) | E71: =E61 -> 2022-Q1 | F71: =F61 -> 2023-Q1 | G71: =G61 -> 2024-Q1 | H71: =H61 -> 2025-Q1 | I71: =I61 -> 2026-Q1
D72: BECS | E72: =IFERROR(SUM(IF($G$4="Q1",SUMIFS(Energy_Sales_kWh[Energy Sales],Energy_Sales_kWh[Year],a!A$100,Energy_Sales_kWh[Quarter],"Q1",Energy_Sales_kWh[Utility],$D72),IF($G$4="Q2",SUMIFS(Energy_Sales_kWh[Energy Sales],Energy_Sales_kWh[Year],a!A$100,Energy_Sales_kWh[Quarter],"Q2",Energy_Sales_kWh[Utility],$D72),IF($G$4="Q3",SUMIFS(Energy_Sales_kWh[Energy Sales],Energy_Sales_kWh[Year],a!A$100,Energy_Sales_kWh[Quarter],"Q3",Energy_Sales_kWh[Utility],$D72),IF($G$4="Q4",SUMIFS(Energy_Sales_kWh[Energy Sales],Energy_Sales_kWh[Year],a!A$100,Energy_Sales_kWh[Quarter],"Q4",Energy_Sales_kWh[Utility],$D72), IF($G$4="Calendar Year",SUMIFS(Energy_Sales_kWh[Energy Sales],Energy_Sales_kWh[Year],a!A$100,Energy_Sales_kWh[Utility],$D72),""))))))/10^3,"") -> 0 | F72: =IFERROR(SUM(IF($G$4="Q1",SUMIFS(Energy_Sales_kWh[Energy Sales],Energy_Sales_kWh[Year],a!B$100,Energy_Sales_kWh[Quarter],"Q1",Energy_Sales_kWh[Utility],$D72),IF($G$4="Q2",SUMIFS(Energy_Sales_kWh[Energy Sales],Energy_Sales_kWh[Year],a!B$100,Energy_Sales_kWh[Quarter],"Q2",Energy_Sales_kWh[Utility],$D72),IF($G$4="Q3",SUMIFS(Energy_Sales_kWh[Energy Sales],Energy_Sales_kWh[Year],a!B$100,Energy_Sales_kWh[Quarter],"Q3",Energy_Sales_kWh[Utility],$D72),IF($G$4="Q4",SUMIFS(Energy_Sales_kWh[Energy Sales],Energy_Sales_kWh[Year],a!B$100,Energy_Sales_kWh[Quarter],"Q4",Energy_Sales_kWh[Utility],$D72), IF($G$4="Calendar Year",SUMIFS(Energy_Sales_kWh[Energy Sales],Energy_Sales_kWh[Year],a!B$100,Energy_Sales_kWh[Utility],$D72),""))))))/10^3,"") -> 0 | G72: =IFERROR(SUM(IF($G$4="Q1",SUMIFS(Energy_Sales_kWh[Energy Sales],Energy_Sales_kWh[Year],a!C$100,Energy_Sales_kWh[Quarter],"Q1",Energy_Sales_kWh[Utility],$D72),IF($G$4="Q2",SUMIFS(Energy_Sales_kWh[Energy Sales],Energy_Sales_kWh[Year],a!C$100,Energy_Sales_kWh[Quarter],"Q2",Energy_Sales_kWh[Utility],$D72),IF($G$4="Q3",SUMIFS(Energy_Sales_kWh[Energy Sales],Energy_Sales_kWh[Year],a!C$100,Energy_Sales_kWh[Quarter],"Q3",Energy_Sales_kWh[Utility],$D72),IF($G$4="Q4",SUMIFS(Energy_Sales_kWh[Energy Sales],Energy_Sales_kWh[Year],a!C$100,Energy_Sales_kWh[Quarter],"Q4",Energy_Sales_kWh[Utility],$D72), IF($G$4="Calendar Year",SUMIFS(Energy_Sales_kWh[Energy Sales],Energy_Sales_kWh[Year],a!C$100,Energy_Sales_kWh[Utility],$D72),""))))))/10^3,"") -> 0 | H72: =IFERROR(SUM(IF($G$4="Q1",SUMIFS(Energy_Sales_kWh[Energy Sales],Energy_Sales_kWh[Year],a!D$100,Energy_Sales_kWh[Quarter],"Q1",Energy_Sales_kWh[Utility],$D72),IF($G$4="Q2",SUMIFS(Energy_Sales_kWh[Energy Sales],Energy_Sales_kWh[Year],a!D$100,Energy_Sales_kWh[Quarter],"Q2",Energy_Sales_kWh[Utility],$D72),IF($G$4="Q3",SUMIFS(Energy_Sales_kWh[Energy Sales],Energy_Sales_kWh[Year],a!D$100,Energy_Sales_kWh[Quarter],"Q3",Energy_Sales_kWh[Utility],$D72),IF($G$4="Q4",SUMIFS(Energy_Sales_kWh[Energy Sales],Energy_Sales_kWh[Year],a!D$100,Energy_Sales_kWh[Quarter],"Q4",Energy_Sales_kWh[Utility],$D72), IF($G$4="Calendar Year",SUMIFS(Energy_Sales_kWh[Energy Sales],Energy_Sales_kWh[Year],a!D$100,Energy_Sales_kWh[Utility],$D72),""))))))/10^3,"") -> 0 | I72: =IFERROR(SUM(IF($G$4="Q1",SUMIFS(Energy_Sales_kWh[Energy Sales],Energy_Sales_kWh[Year],a!E$100,Energy_Sales_kWh[Quarter],"Q1",Energy_Sales_kWh[Utility],$D72),IF($G$4="Q2",SUMIFS(Energy_Sales_kWh[Energy Sales],Energy_Sales_kWh[Year],a!E$100,Energy_Sales_kWh[Quarter],"Q2",Energy_Sales_kWh[Utility],$D72),IF($G$4="Q3",SUMIFS(Energy_Sales_kWh[Energy Sales],Energy_Sales_kWh[Year],a!E$100,Energy_Sales_kWh[Quarter],"Q3",Energy_Sales_kWh[Utility],$D72),IF($G$4="Q4",SUMIFS(Energy_Sales_kWh[Energy Sales],Energy_Sales_kWh[Year],a!E$100,Energy_Sales_kWh[Quarter],"Q4",Energy_Sales_kWh[Utility],$D72), IF($G$4="Calendar Year",SUMIFS(Energy_Sales_kWh[Energy Sales],Energy_Sales_kWh[Year],a!E$100,Energy_Sales_kWh[Utility],$D72),""))))))/10^3,"") -> 0
D73: KABALEGA HYDROMAX** | E73: =IFERROR(SUM(IF($G$4="Q1",SUMIFS(Energy_Sales_kWh[Energy Sales],Energy_Sales_kWh[Year],a!A$100,Energy_Sales_kWh[Quarter],"Q1",Energy_Sales_kWh[Utility],$D73),IF($G$4="Q2",SUMIFS(Energy_Sales_kWh[Energy Sales],Energy_Sales_kWh[Year],a!A$100,Energy_Sales_kWh[Quarter],"Q2",Energy_Sales_kWh[Utility],$D73),IF($G$4="Q3",SUMIFS(Energy_Sales_kWh[Energy Sales],Energy_Sales_kWh[Year],a!A$100,Energy_Sales_kWh[Quarter],"Q3",Energy_Sales_kWh[Utility],$D73),IF($G$4="Q4",SUMIFS(Energy_Sales_kWh[Energy Sales],Energy_Sales_kWh[Year],a!A$100,Energy_Sales_kWh[Quarter],"Q4",Energy_Sales_kWh[Utility],$D73), IF($G$4="Calendar Year",SUMIFS(Energy_Sales_kWh[Energy Sales],Energy_Sales_kWh[Year],a!A$100,Energy_Sales_kWh[Utility],$D73),""))))))/10^3,"") -> 0 | F73: =IFERROR(SUM(IF($G$4="Q1",SUMIFS(Energy_Sales_kWh[Energy Sales],Energy_Sales_kWh[Year],a!B$100,Energy_Sales_kWh[Quarter],"Q1",Energy_Sales_kWh[Utility],$D73),IF($G$4="Q2",SUMIFS(Energy_Sales_kWh[Energy Sales],Energy_Sales_kWh[Year],a!B$100,Energy_Sales_kWh[Quarter],"Q2",Energy_Sales_kWh[Utility],$D73),IF($G$4="Q3",SUMIFS(Energy_Sales_kWh[Energy Sales],Energy_Sales_kWh[Year],a!B$100,Energy_Sales_kWh[Quarter],"Q3",Energy_Sales_kWh[Utility],$D73),IF($G$4="Q4",SUMIFS(Energy_Sales_kWh[Energy Sales],Energy_Sales_kWh[Year],a!B$100,Energy_Sales_kWh[Quarter],"Q4",Energy_Sales_kWh[Utility],$D73), IF($G$4="Calendar Year",SUMIFS(Energy_Sales_kWh[Energy Sales],Energy_Sales_kWh[Year],a!B$100,Energy_Sales_kWh[Utility],$D73),""))))))/10^3,"") -> 0 | G73: =IFERROR(SUM(IF($G$4="Q1",SUMIFS(Energy_Sales_kWh[Energy Sales],Energy_Sales_kWh[Year],a!C$100,Energy_Sales_kWh[Quarter],"Q1",Energy_Sales_kWh[Utility],$D73),IF($G$4="Q2",SUMIFS(Energy_Sales_kWh[Energy Sales],Energy_Sales_kWh[Year],a!C$100,Energy_Sales_kWh[Quarter],"Q2",Energy_Sales_kWh[Utility],$D73),IF($G$4="Q3",SUMIFS(Energy_Sales_kWh[Energy Sales],Energy_Sales_kWh[Year],a!C$100,Energy_Sales_kWh[Quarter],"Q3",Energy_Sales_kWh[Utility],$D73),IF($G$4="Q4",SUMIFS(Energy_Sales_kWh[Energy Sales],Energy_Sales_kWh[Year],a!C$100,Energy_Sales_kWh[Quarter],"Q4",Energy_Sales_kWh[Utility],$D73), IF($G$4="Calendar Year",SUMIFS(Energy_Sales_kWh[Energy Sales],Energy_Sales_kWh[Year],a!C$100,Energy_Sales_kWh[Utility],$D73),""))))))/10^3,"") -> 323.6396 | H73: =IFERROR(SUM(IF($G$4="Q1",SUMIFS(Energy_Sales_kWh[Energy Sales],Energy_Sales_kWh[Year],a!D$100,Energy_Sales_kWh[Quarter],"Q1",Energy_Sales_kWh[Utility],$D73),IF($G$4="Q2",SUMIFS(Energy_Sales_kWh[Energy Sales],Energy_Sales_kWh[Year],a!D$100,Energy_Sales_kWh[Quarter],"Q2",Energy_Sales_kWh[Utility],$D73),IF($G$4="Q3",SUMIFS(Energy_Sales_kWh[Energy Sales],Energy_Sales_kWh[Year],a!D$100,Energy_Sales_kWh[Quarter],"Q3",Energy_Sales_kWh[Utility],$D73),IF($G$4="Q4",SUMIFS(Energy_Sales_kWh[Energy Sales],Energy_Sales_kWh[Year],a!D$100,Energy_Sales_kWh[Quarter],"Q4",Energy_Sales_kWh[Utility],$D73), IF($G$4="Calendar Year",SUMIFS(Energy_Sales_kWh[Energy Sales],Energy_Sales_kWh[Year],a!D$100,Energy_Sales_kWh[Utility],$D73),""))))))/10^3,"") -> 55.3116 | I73: =IFERROR(SUM(IF($G$4="Q1",SUMIFS(Energy_Sales_kWh[Energy Sales],Energy_Sales_kWh[Year],a!E$100,Energy_Sales_kWh[Quarter],"Q1",Energy_Sales_kWh[Utility],$D73),IF($G$4="Q2",SUMIFS(Energy_Sales_kWh[Energy Sales],Energy_Sales_kWh[Year],a!E$100,Energy_Sales_kWh[Quarter],"Q2",Energy_Sales_kWh[Utility],$D73),IF($G$4="Q3",SUMIFS(Energy_Sales_kWh[Energy Sales],Energy_Sales_kWh[Year],a!E$100,Energy_Sales_kWh[Quarter],"Q3",Energy_Sales_kWh[Utility],$D73),IF($G$4="Q4",SUMIFS(Energy_Sales_kWh[Energy Sales],Energy_Sales_kWh[Year],a!E$100,Energy_Sales_kWh[Quarter],"Q4",Energy_Sales_kWh[Utility],$D73), IF($G$4="Calendar Year",SUMIFS(Energy_Sales_kWh[Energy Sales],Energy_Sales_kWh[Year],a!E$100,Energy_Sales_kWh[Utility],$D73),""))))))/10^3,"") -> 0
D74: KALANGALA INFRASTRUCTURE SERVICES | E74: =IFERROR(SUM(IF($G$4="Q1",SUMIFS(Energy_Sales_kWh[Energy Sales],Energy_Sales_kWh[Year],a!A$100,Energy_Sales_kWh[Quarter],"Q1",Energy_Sales_kWh[Utility],$D74),IF($G$4="Q2",SUMIFS(Energy_Sales_kWh[Energy Sales],Energy_Sales_kWh[Year],a!A$100,Energy_Sales_kWh[Quarter],"Q2",Energy_Sales_kWh[Utility],$D74),IF($G$4="Q3",SUMIFS(Energy_Sales_kWh[Energy Sales],Energy_Sales_kWh[Year],a!A$100,Energy_Sales_kWh[Quarter],"Q3",Energy_Sales_kWh[Utility],$D74),IF($G$4="Q4",SUMIFS(Energy_Sales_kWh[Energy Sales],Energy_Sales_kWh[Year],a!A$100,Energy_Sales_kWh[Quarter],"Q4",Energy_Sales_kWh[Utility],$D74), IF($G$4="Calendar Year",SUMIFS(Energy_Sales_kWh[Energy Sales],Energy_Sales_kWh[Year],a!A$100,Energy_Sales_kWh[Utility],$D74),""))))))/10^3,"") -> 0 | F74: =IFERROR(SUM(IF($G$4="Q1",SUMIFS(Energy_Sales_kWh[Energy Sales],Energy_Sales_kWh[Year],a!B$100,Energy_Sales_kWh[Quarter],"Q1",Energy_Sales_kWh[Utility],$D74),IF($G$4="Q2",SUMIFS(Energy_Sales_kWh[Energy Sales],Energy_Sales_kWh[Year],a!B$100,Energy_Sales_kWh[Quarter],"Q2",Energy_Sales_kWh[Utility],$D74),IF($G$4="Q3",SUMIFS(Energy_Sales_kWh[Energy Sales],Energy_Sales_kWh[Year],a!B$100,Energy_Sales_kWh[Quarter],"Q3",Energy_Sales_kWh[Utility],$D74),IF($G$4="Q4",SUMIFS(Energy_Sales_kWh[Energy Sales],Energy_Sales_kWh[Year],a!B$100,Energy_Sales_kWh[Quarter],"Q4",Energy_Sales_kWh[Utility],$D74), IF($G$4="Calendar Year",SUMIFS(Energy_Sales_kWh[Energy Sales],Energy_Sales_kWh[Year],a!B$100,Energy_Sales_kWh[Utility],$D74),""))))))/10^3,"") -> 0 | G74: =IFERROR(SUM(IF($G$4="Q1",SUMIFS(Energy_Sales_kWh[Energy Sales],Energy_Sales_kWh[Year],a!C$100,Energy_Sales_kWh[Quarter],"Q1",Energy_Sales_kWh[Utility],$D74),IF($G$4="Q2",SUMIFS(Energy_Sales_kWh[Energy Sales],Energy_Sales_kWh[Year],a!C$100,Energy_Sales_kWh[Quarter],"Q2",Energy_Sales_kWh[Utility],$D74),IF($G$4="Q3",SUMIFS(Energy_Sales_kWh[Energy Sales],Energy_Sales_kWh[Year],a!C$100,Energy_Sales_kWh[Quarter],"Q3",Energy_Sales_kWh[Utility],$D74),IF($G$4="Q4",SUMIFS(Energy_Sales_kWh[Energy Sales],Energy_Sales_kWh[Year],a!C$100,Energy_Sales_kWh[Quarter],"Q4",Energy_Sales_kWh[Utility],$D74), IF($G$4="Calendar Year",SUMIFS(Energy_Sales_kWh[Energy Sales],Energy_Sales_kWh[Year],a!C$100,Energy_Sales_kWh[Utility],$D74),""))))))/10^3,"") -> 474.7068399 | H74: =IFERROR(SUM(IF($G$4="Q1",SUMIFS(Energy_Sales_kWh[Energy Sales],Energy_Sales_kWh[Year],a!D$100,Energy_Sales_kWh[Quarter],"Q1",Energy_Sales_kWh[Utility],$D74),IF($G$4="Q2",SUMIFS(Energy_Sales_kWh[Energy Sales],Energy_Sales_kWh[Year],a!D$100,Energy_Sales_kWh[Quarter],"Q2",Energy_Sales_kWh[Utility],$D74),IF($G$4="Q3",SUMIFS(Energy_Sales_kWh[Energy Sales],Energy_Sales_kWh[Year],a!D$100,Energy_Sales_kWh[Quarter],"Q3",Energy_Sales_kWh[Utility],$D74),IF($G$4="Q4",SUMIFS(Energy_Sales_kWh[Energy Sales],Energy_Sales_kWh[Year],a!D$100,Energy_Sales_kWh[Quarter],"Q4",Energy_Sales_kWh[Utility],$D74), IF($G$4="Calendar Year",SUMIFS(Energy_Sales_kWh[Energy Sales],Energy_Sales_kWh[Year],a!D$100,Energy_Sales_kWh[Utility],$D74),""))))))/10^3,"") -> 521.49549 | I74: =IFERROR(SUM(IF($G$4="Q1",SUMIFS(Energy_Sales_kWh[Energy Sales],Energy_Sales_kWh[Year],a!E$100,Energy_Sales_kWh[Quarter],"Q1",Energy_Sales_kWh[Utility],$D74),IF($G$4="Q2",SUMIFS(Energy_Sales_kWh[Energy Sales],Energy_Sales_kWh[Year],a!E$100,Energy_Sales_kWh[Quarter],"Q2",Energy_Sales_kWh[Utility],$D74),IF($G$4="Q3",SUMIFS(Energy_Sales_kWh[Energy Sales],Energy_Sales_kWh[Year],a!E$100,Energy_Sales_kWh[Quarter],"Q3",Energy_Sales_kWh[Utility],$D74),IF($G$4="Q4",SUMIFS(Energy_Sales_kWh[Energy Sales],Energy_Sales_kWh[Year],a!E$100,Energy_Sales_kWh[Quarter],"Q4",Energy_Sales_kWh[Utility],$D74), IF($G$4="Calendar Year",SUMIFS(Energy_Sales_kWh[Energy Sales],Energy_Sales_kWh[Year],a!E$100,Energy_Sales_kWh[Utility],$D74),""))))))/10^3,"") -> 516.3872
D75: KIL | E75: =IFERROR(SUM(IF($G$4="Q1",SUMIFS(Energy_Sales_kWh[Energy Sales],Energy_Sales_kWh[Year],a!A$100,Energy_Sales_kWh[Quarter],"Q1",Energy_Sales_kWh[Utility],$D75),IF($G$4="Q2",SUMIFS(Energy_Sales_kWh[Energy Sales],Energy_Sales_kWh[Year],a!A$100,Energy_Sales_kWh[Quarter],"Q2",Energy_Sales_kWh[Utility],$D75),IF($G$4="Q3",SUMIFS(Energy_Sales_kWh[Energy Sales],Energy_Sales_kWh[Year],a!A$100,Energy_Sales_kWh[Quarter],"Q3",Energy_Sales_kWh[Utility],$D75),IF($G$4="Q4",SUMIFS(Energy_Sales_kWh[Energy Sales],Energy_Sales_kWh[Year],a!A$100,Energy_Sales_kWh[Quarter],"Q4",Energy_Sales_kWh[Utility],$D75), IF($G$4="Calendar Year",SUMIFS(Energy_Sales_kWh[Energy Sales],Energy_Sales_kWh[Year],a!A$100,Energy_Sales_kWh[Utility],$D75),""))))))/10^3,"") -> 1724.09338 | F75: =IFERROR(SUM(IF($G$4="Q1",SUMIFS(Energy_Sales_kWh[Energy Sales],Energy_Sales_kWh[Year],a!B$100,Energy_Sales_kWh[Quarter],"Q1",Energy_Sales_kWh[Utility],$D75),IF($G$4="Q2",SUMIFS(Energy_Sales_kWh[Energy Sales],Energy_Sales_kWh[Year],a!B$100,Energy_Sales_kWh[Quarter],"Q2",Energy_Sales_kWh[Utility],$D75),IF($G$4="Q3",SUMIFS(Energy_Sales_kWh[Energy Sales],Energy_Sales_kWh[Year],a!B$100,Energy_Sales_kWh[Quarter],"Q3",Energy_Sales_kWh[Utility],$D75),IF($G$4="Q4",SUMIFS(Energy_Sales_kWh[Energy Sales],Energy_Sales_kWh[Year],a!B$100,Energy_Sales_kWh[Quarter],"Q4",Energy_Sales_kWh[Utility],$D75), IF($G$4="Calendar Year",SUMIFS(Energy_Sales_kWh[Energy Sales],Energy_Sales_kWh[Year],a!B$100,Energy_Sales_kWh[Utility],$D75),""))))))/10^3,"") -> 1974.29297 | G75: =IFERROR(SUM(IF($G$4="Q1",SUMIFS(Energy_Sales_kWh[Energy Sales],Energy_Sales_kWh[Year],a!C$100,Energy_Sales_kWh[Quarter],"Q1",Energy_Sales_kWh[Utility],$D75),IF($G$4="Q2",SUMIFS(Energy_Sales_kWh[Energy Sales],Energy_Sales_kWh[Year],a!C$100,Energy_Sales_kWh[Quarter],"Q2",Energy_Sales_kWh[Utility],$D75),IF($G$4="Q3",SUMIFS(Energy_Sales_kWh[Energy Sales],Energy_Sales_kWh[Year],a!C$100,Energy_Sales_kWh[Quarter],"Q3",Energy_Sales_kWh[Utility],$D75),IF($G$4="Q4",SUMIFS(Energy_Sales_kWh[Energy Sales],Energy_Sales_kWh[Year],a!C$100,Energy_Sales_kWh[Quarter],"Q4",Energy_Sales_kWh[Utility],$D75), IF($G$4="Calendar Year",SUMIFS(Energy_Sales_kWh[Energy Sales],Energy_Sales_kWh[Year],a!C$100,Energy_Sales_kWh[Utility],$D75),""))))))/10^3,"") -> 2823.73308 | H75: =IFERROR(SUM(IF($G$4="Q1",SUMIFS(Energy_Sales_kWh[Energy Sales],Energy_Sales_kWh[Year],a!D$100,Energy_Sales_kWh[Quarter],"Q1",Energy_Sales_kWh[Utility],$D75),IF($G$4="Q2",SUMIFS(Energy_Sales_kWh[Energy Sales],Energy_Sales_kWh[Year],a!D$100,Energy_Sales_kWh[Quarter],"Q2",Energy_Sales_kWh[Utility],$D75),IF($G$4="Q3",SUMIFS(Energy_Sales_kWh[Energy Sales],Energy_Sales_kWh[Year],a!D$100,Energy_Sales_kWh[Quarter],"Q3",Energy_Sales_kWh[Utility],$D75),IF($G$4="Q4",SUMIFS(Energy_Sales_kWh[Energy Sales],Energy_Sales_kWh[Year],a!D$100,Energy_Sales_kWh[Quarter],"Q4",Energy_Sales_kWh[Utility],$D75), IF($G$4="Calendar Year",SUMIFS(Energy_Sales_kWh[Energy Sales],Energy_Sales_kWh[Year],a!D$100,Energy_Sales_kWh[Utility],$D75),""))))))/10^3,"") -> 0 | I75: =IFERROR(SUM(IF($G$4="Q1",SUMIFS(Energy_Sales_kWh[Energy Sales],Energy_Sales_kWh[Year],a!E$100,Energy_Sales_kWh[Quarter],"Q1",Energy_Sales_kWh[Utility],$D75),IF($G$4="Q2",SUMIFS(Energy_Sales_kWh[Energy Sales],Energy_Sales_kWh[Year],a!E$100,Energy_Sales_kWh[Quarter],"Q2",Energy_Sales_kWh[Utility],$D75),IF($G$4="Q3",SUMIFS(Energy_Sales_kWh[Energy Sales],Energy_Sales_kWh[Year],a!E$100,Energy_Sales_kWh[Quarter],"Q3",Energy_Sales_kWh[Utility],$D75),IF($G$4="Q4",SUMIFS(Energy_Sales_kWh[Energy Sales],Energy_Sales_kWh[Year],a!E$100,Energy_Sales_kWh[Quarter],"Q4",Energy_Sales_kWh[Utility],$D75), IF($G$4="Calendar Year",SUMIFS(Energy_Sales_kWh[Energy Sales],Energy_Sales_kWh[Year],a!E$100,Energy_Sales_kWh[Utility],$D75),""))))))/10^3,"") -> 0
D76: KRECS | E76: =IFERROR(SUM(IF($G$4="Q1",SUMIFS(Energy_Sales_kWh[Energy Sales],Energy_Sales_kWh[Year],a!A$100,Energy_Sales_kWh[Quarter],"Q1",Energy_Sales_kWh[Utility],$D76),IF($G$4="Q2",SUMIFS(Energy_Sales_kWh[Energy Sales],Energy_Sales_kWh[Year],a!A$100,Energy_Sales_kWh[Quarter],"Q2",Energy_Sales_kWh[Utility],$D76),IF($G$4="Q3",SUMIFS(Energy_Sales_kWh[Energy Sales],Energy_Sales_kWh[Year],a!A$100,Energy_Sales_kWh[Quarter],"Q3",Energy_Sales_kWh[Utility],$D76),IF($G$4="Q4",SUMIFS(Energy_Sales_kWh[Energy Sales],Energy_Sales_kWh[Year],a!A$100,Energy_Sales_kWh[Quarter],"Q4",Energy_Sales_kWh[Utility],$D76), IF($G$4="Calendar Year",SUMIFS(Energy_Sales_kWh[Energy Sales],Energy_Sales_kWh[Year],a!A$100,Energy_Sales_kWh[Utility],$D76),""))))))/10^3,"") -> 1685.315 | F76: =IFERROR(SUM(IF($G$4="Q1",SUMIFS(Energy_Sales_kWh[Energy Sales],Energy_Sales_kWh[Year],a!B$100,Energy_Sales_kWh[Quarter],"Q1",Energy_Sales_kWh[Utility],$D76),IF($G$4="Q2",SUMIFS(Energy_Sales_kWh[Energy Sales],Energy_Sales_kWh[Year],a!B$100,Energy_Sales_kWh[Quarter],"Q2",Energy_Sales_kWh[Utility],$D76),IF($G$4="Q3",SUMIFS(Energy_Sales_kWh[Energy Sales],Energy_Sales_kWh[Year],a!B$100,Energy_Sales_kWh[Quarter],"Q3",Energy_Sales_kWh[Utility],$D76),IF($G$4="Q4",SUMIFS(Energy_Sales_kWh[Energy Sales],Energy_Sales_kWh[Year],a!B$100,Energy_Sales_kWh[Quarter],"Q4",Energy_Sales_kWh[Utility],$D76), IF($G$4="Calendar Year",SUMIFS(Energy_Sales_kWh[Energy Sales],Energy_Sales_kWh[Year],a!B$100,Energy_Sales_kWh[Utility],$D76),""))))))/10^3,"") -> 2521.82 | G76: =IFERROR(SUM(IF($G$4="Q1",SUMIFS(Energy_Sales_kWh[Energy Sales],Energy_Sales_kWh[Year],a!C$100,Energy_Sales_kWh[Quarter],"Q1",Energy_Sales_kWh[Utility],$D76),IF($G$4="Q2",SUMIFS(Energy_Sales_kWh[Energy Sales],Energy_Sales_kWh[Year],a!C$100,Energy_Sales_kWh[Quarter],"Q2",Energy_Sales_kWh[Utility],$D76),IF($G$4="Q3",SUMIFS(Energy_Sales_kWh[Energy Sales],Energy_Sales_kWh[Year],a!C$100,Energy_Sales_kWh[Quarter],"Q3",Energy_Sales_kWh[Utility],$D76),IF($G$4="Q4",SUMIFS(Energy_Sales_kWh[Energy Sales],Energy_Sales_kWh[Year],a!C$100,Energy_Sales_kWh[Quarter],"Q4",Energy_Sales_kWh[Utility],$D76), IF($G$4="Calendar Year",SUMIFS(Energy_Sales_kWh[Energy Sales],Energy_Sales_kWh[Year],a!C$100,Energy_Sales_kWh[Utility],$D76),""))))))/10^3,"") -> 0 | H76: =IFERROR(SUM(IF($G$4="Q1",SUMIFS(Energy_Sales_kWh[Energy Sales],Energy_Sales_kWh[Year],a!D$100,Energy_Sales_kWh[Quarter],"Q1",Energy_Sales_kWh[Utility],$D76),IF($G$4="Q2",SUMIFS(Energy_Sales_kWh[Energy Sales],Energy_Sales_kWh[Year],a!D$100,Energy_Sales_kWh[Quarter],"Q2",Energy_Sales_kWh[Utility],$D76),IF($G$4="Q3",SUMIFS(Energy_Sales_kWh[Energy Sales],Energy_Sales_kWh[Year],a!D$100,Energy_Sales_kWh[Quarter],"Q3",Energy_Sales_kWh[Utility],$D76),IF($G$4="Q4",SUMIFS(Energy_Sales_kWh[Energy Sales],Energy_Sales_kWh[Year],a!D$100,Energy_Sales_kWh[Quarter],"Q4",Energy_Sales_kWh[Utility],$D76), IF($G$4="Calendar Year",SUMIFS(Energy_Sales_kWh[Energy Sales],Energy_Sales_kWh[Year],a!D$100,Energy_Sales_kWh[Utility],$D76),""))))))/10^3,"") -> 0 | I76: =IFERROR(SUM(IF($G$4="Q1",SUMIFS(Energy_Sales_kWh[Energy Sales],Energy_Sales_kWh[Year],a!E$100,Energy_Sales_kWh[Quarter],"Q1",Energy_Sales_kWh[Utility],$D76),IF($G$4="Q2",SUMIFS(Energy_Sales_kWh[Energy Sales],Energy_Sales_kWh[Year],a!E$100,Energy_Sales_kWh[Quarter],"Q2",Energy_Sales_kWh[Utility],$D76),IF($G$4="Q3",SUMIFS(Energy_Sales_kWh[Energy Sales],Energy_Sales_kWh[Year],a!E$100,Energy_Sales_kWh[Quarter],"Q3",Energy_Sales_kWh[Utility],$D76),IF($G$4="Q4",SUMIFS(Energy_Sales_kWh[Energy Sales],Energy_Sales_kWh[Year],a!E$100,Energy_Sales_kWh[Quarter],"Q4",Energy_Sales_kWh[Utility],$D76), IF($G$4="Calendar Year",SUMIFS(Energy_Sales_kWh[Energy Sales],Energy_Sales_kWh[Year],a!E$100,Energy_Sales_kWh[Utility],$D76),""))))))/10^3,"") -> 0
D77: PACMECS | E77: =IFERROR(SUM(IF($G$4="Q1",SUMIFS(Energy_Sales_kWh[Energy Sales],Energy_Sales_kWh[Year],a!A$100,Energy_Sales_kWh[Quarter],"Q1",Energy_Sales_kWh[Utility],$D77),IF($G$4="Q2",SUMIFS(Energy_Sales_kWh[Energy Sales],Energy_Sales_kWh[Year],a!A$100,Energy_Sales_kWh[Quarter],"Q2",Energy_Sales_kWh[Utility],$D77),IF($G$4="Q3",SUMIFS(Energy_Sales_kWh[Energy Sales],Energy_Sales_kWh[Year],a!A$100,Energy_Sales_kWh[Quarter],"Q3",Energy_Sales_kWh[Utility],$D77),IF($G$4="Q4",SUMIFS(Energy_Sales_kWh[Energy Sales],Energy_Sales_kWh[Year],a!A$100,Energy_Sales_kWh[Quarter],"Q4",Energy_Sales_kWh[Utility],$D77), IF($G$4="Calendar Year",SUMIFS(Energy_Sales_kWh[Energy Sales],Energy_Sales_kWh[Year],a!A$100,Energy_Sales_kWh[Utility],$D77),""))))))/10^3,"") -> 851.938 | F77: =IFERROR(SUM(IF($G$4="Q1",SUMIFS(Energy_Sales_kWh[Energy Sales],Energy_Sales_kWh[Year],a!B$100,Energy_Sales_kWh[Quarter],"Q1",Energy_Sales_kWh[Utility],$D77),IF($G$4="Q2",SUMIFS(Energy_Sales_kWh[Energy Sales],Energy_Sales_kWh[Year],a!B$100,Energy_Sales_kWh[Quarter],"Q2",Energy_Sales_kWh[Utility],$D77),IF($G$4="Q3",SUMIFS(Energy_Sales_kWh[Energy Sales],Energy_Sales_kWh[Year],a!B$100,Energy_Sales_kWh[Quarter],"Q3",Energy_Sales_kWh[Utility],$D77),IF($G$4="Q4",SUMIFS(Energy_Sales_kWh[Energy Sales],Energy_Sales_kWh[Year],a!B$100,Energy_Sales_kWh[Quarter],"Q4",Energy_Sales_kWh[Utility],$D77), IF($G$4="Calendar Year",SUMIFS(Energy_Sales_kWh[Energy Sales],Energy_Sales_kWh[Year],a!B$100,Energy_Sales_kWh[Utility],$D77),""))))))/10^3,"") -> 1043.512 | G77: =IFERROR(SUM(IF($G$4="Q1",SUMIFS(Energy_Sales_kWh[Energy Sales],Energy_Sales_kWh[Year],a!C$100,Energy_Sales_kWh[Quarter],"Q1",Energy_Sales_kWh[Utility],$D77),IF($G$4="Q2",SUMIFS(Energy_Sales_kWh[Energy Sales],Energy_Sales_kWh[Year],a!C$100,Energy_Sales_kWh[Quarter],"Q2",Energy_Sales_kWh[Utility],$D77),IF($G$4="Q3",SUMIFS(Energy_Sales_kWh[Energy Sales],Energy_Sales_kWh[Year],a!C$100,Energy_Sales_kWh[Quarter],"Q3",Energy_Sales_kWh[Utility],$D77),IF($G$4="Q4",SUMIFS(Energy_Sales_kWh[Energy Sales],Energy_Sales_kWh[Year],a!C$100,Energy_Sales_kWh[Quarter],"Q4",Energy_Sales_kWh[Utility],$D77), IF($G$4="Calendar Year",SUMIFS(Energy_Sales_kWh[Energy Sales],Energy_Sales_kWh[Year],a!C$100,Energy_Sales_kWh[Utility],$D77),""))))))/10^3,"") -> 0 | H77: =IFERROR(SUM(IF($G$4="Q1",SUMIFS(Energy_Sales_kWh[Energy Sales],Energy_Sales_kWh[Year],a!D$100,Energy_Sales_kWh[Quarter],"Q1",Energy_Sales_kWh[Utility],$D77),IF($G$4="Q2",SUMIFS(Energy_Sales_kWh[Energy Sales],Energy_Sales_kWh[Year],a!D$100,Energy_Sales_kWh[Quarter],"Q2",Energy_Sales_kWh[Utility],$D77),IF($G$4="Q3",SUMIFS(Energy_Sales_kWh[Energy Sales],Energy_Sales_kWh[Year],a!D$100,Energy_Sales_kWh[Quarter],"Q3",Energy_Sales_kWh[Utility],$D77),IF($G$4="Q4",SUMIFS(Energy_Sales_kWh[Energy Sales],Energy_Sales_kWh[Year],a!D$100,Energy_Sales_kWh[Quarter],"Q4",Energy_Sales_kWh[Utility],$D77), IF($G$4="Calendar Year",SUMIFS(Energy_Sales_kWh[Energy Sales],Energy_Sales_kWh[Year],a!D$100,Energy_Sales_kWh[Utility],$D77),""))))))/10^3,"") -> 0 | I77: =IFERROR(SUM(IF($G$4="Q1",SUMIFS(Energy_Sales_kWh[Energy Sales],Energy_Sales_kWh[Year],a!E$100,Energy_Sales_kWh[Quarter],"Q1",Energy_Sales_kWh[Utility],$D77),IF($G$4="Q2",SUMIFS(Energy_Sales_kWh[Energy Sales],Energy_Sales_kWh[Year],a!E$100,Energy_Sales_kWh[Quarter],"Q2",Energy_Sales_kWh[Utility],$D77),IF($G$4="Q3",SUMIFS(Energy_Sales_kWh[Energy Sales],Energy_Sales_kWh[Year],a!E$100,Energy_Sales_kWh[Quarter],"Q3",Energy_Sales_kWh[Utility],$D77),IF($G$4="Q4",SUMIFS(Energy_Sales_kWh[Energy Sales],Energy_Sales_kWh[Year],a!E$100,Energy_Sales_kWh[Quarter],"Q4",Energy_Sales_kWh[Utility],$D77), IF($G$4="Calendar Year",SUMIFS(Energy_Sales_kWh[Energy Sales],Energy_Sales_kWh[Year],a!E$100,Energy_Sales_kWh[Utility],$D77),""))))))/10^3,"") -> 0
D78: UEDCL | E78: =IFERROR(SUM(IF($G$4="Q1",SUMIFS(Energy_Sales_kWh[Energy Sales],Energy_Sales_kWh[Year],a!A$100,Energy_Sales_kWh[Quarter],"Q1",Energy_Sales_kWh[Utility],$D78),IF($G$4="Q2",SUMIFS(Energy_Sales_kWh[Energy Sales],Energy_Sales_kWh[Year],a!A$100,Energy_Sales_kWh[Quarter],"Q2",Energy_Sales_kWh[Utility],$D78),IF($G$4="Q3",SUMIFS(Energy_Sales_kWh[Energy Sales],Energy_Sales_kWh[Year],a!A$100,Energy_Sales_kWh[Quarter],"Q3",Energy_Sales_kWh[Utility],$D78),IF($G$4="Q4",SUMIFS(Energy_Sales_kWh[Energy Sales],Energy_Sales_kWh[Year],a!A$100,Energy_Sales_kWh[Quarter],"Q4",Energy_Sales_kWh[Utility],$D78), IF($G$4="Calendar Year",SUMIFS(Energy_Sales_kWh[Energy Sales],Energy_Sales_kWh[Year],a!A$100,Energy_Sales_kWh[Utility],$D78),""))))))/10^3,"") -> 18576.18259 | F78: =IFERROR(SUM(IF($G$4="Q1",SUMIFS(Energy_Sales_kWh[Energy Sales],Energy_Sales_kWh[Year],a!B$100,Energy_Sales_kWh[Quarter],"Q1",Energy_Sales_kWh[Utility],$D78),IF($G$4="Q2",SUMIFS(Energy_Sales_kWh[Energy Sales],Energy_Sales_kWh[Year],a!B$100,Energy_Sales_kWh[Quarter],"Q2",Energy_Sales_kWh[Utility],$D78),IF($G$4="Q3",SUMIFS(Energy_Sales_kWh[Energy Sales],Energy_Sales_kWh[Year],a!B$100,Energy_Sales_kWh[Quarter],"Q3",Energy_Sales_kWh[Utility],$D78),IF($G$4="Q4",SUMIFS(Energy_Sales_kWh[Energy Sales],Energy_Sales_kWh[Year],a!B$100,Energy_Sales_kWh[Quarter],"Q4",Energy_Sales_kWh[Utility],$D78), IF($G$4="Calendar Year",SUMIFS(Energy_Sales_kWh[Energy Sales],Energy_Sales_kWh[Year],a!B$100,Energy_Sales_kWh[Utility],$D78),""))))))/10^3,"") -> 22448.30843 | G78: =IFERROR(SUM(IF($G$4="Q1",SUMIFS(Energy_Sales_kWh[Energy Sales],Energy_Sales_kWh[Year],a!C$100,Energy_Sales_kWh[Quarter],"Q1",Energy_Sales_kWh[Utility],$D78),IF($G$4="Q2",SUMIFS(Energy_Sales_kWh[Energy Sales],Energy_Sales_kWh[Year],a!C$100,Energy_Sales_kWh[Quarter],"Q2",Energy_Sales_kWh[Utility],$D78),IF($G$4="Q3",SUMIFS(Energy_Sales_kWh[Energy Sales],Energy_Sales_kWh[Year],a!C$100,Energy_Sales_kWh[Quarter],"Q3",Energy_Sales_kWh[Utility],$D78),IF($G$4="Q4",SUMIFS(Energy_Sales_kWh[Energy Sales],Energy_Sales_kWh[Year],a!C$100,Energy_Sales_kWh[Quarter],"Q4",Energy_Sales_kWh[Utility],$D78), IF($G$4="Calendar Year",SUMIFS(Energy_Sales_kWh[Energy Sales],Energy_Sales_kWh[Year],a!C$100,Energy_Sales_kWh[Utility],$D78),""))))))/10^3,"") -> 27814.6435 | H78: =IFERROR(SUM(IF($G$4="Q1",SUMIFS(Energy_Sales_kWh[Energy Sales],Energy_Sales_kWh[Year],a!D$100,Energy_Sales_kWh[Quarter],"Q1",Energy_Sales_kWh[Utility],$D78),IF($G$4="Q2",SUMIFS(Energy_Sales_kWh[Energy Sales],Energy_Sales_kWh[Year],a!D$100,Energy_Sales_kWh[Quarter],"Q2",Energy_Sales_kWh[Utility],$D78),IF($G$4="Q3",SUMIFS(Energy_Sales_kWh[Energy Sales],Energy_Sales_kWh[Year],a!D$100,Energy_Sales_kWh[Quarter],"Q3",Energy_Sales_kWh[Utility],$D78),IF($G$4="Q4",SUMIFS(Energy_Sales_kWh[Energy Sales],Energy_Sales_kWh[Year],a!D$100,Energy_Sales_kWh[Quarter],"Q4",Energy_Sales_kWh[Utility],$D78), IF($G$4="Calendar Year",SUMIFS(Energy_Sales_kWh[Energy Sales],Energy_Sales_kWh[Year],a!D$100,Energy_Sales_kWh[Utility],$D78),""))))))/10^3,"") -> 42350.92343 | I78: =IFERROR(SUM(IF($G$4="Q1",SUMIFS(Energy_Sales_kWh[Energy Sales],Energy_Sales_kWh[Year],a!E$100,Energy_Sales_kWh[Quarter],"Q1",Energy_Sales_kWh[Utility],$D78),IF($G$4="Q2",SUMIFS(Energy_Sales_kWh[Energy Sales],Energy_Sales_kWh[Year],a!E$100,Energy_Sales_kWh[Quarter],"Q2",Energy_Sales_kWh[Utility],$D78),IF($G$4="Q3",SUMIFS(Energy_Sales_kWh[Energy Sales],Energy_Sales_kWh[Year],a!E$100,Energy_Sales_kWh[Quarter],"Q3",Energy_Sales_kWh[Utility],$D78),IF($G$4="Q4",SUMIFS(Energy_Sales_kWh[Energy Sales],Energy_Sales_kWh[Year],a!E$100,Energy_Sales_kWh[Quarter],"Q4",Energy_Sales_kWh[Utility],$D78), IF($G$4="Calendar Year",SUMIFS(Energy_Sales_kWh[Energy Sales],Energy_Sales_kWh[Year],a!E$100,Energy_Sales_kWh[Utility],$D78),""))))))/10^3,"") -> 1439856.23
D79: UMEME | E79: =IFERROR(SUM(IF($G$4="Q1",SUMIFS(Energy_Sales_kWh[Energy Sales],Energy_Sales_kWh[Year],a!A$100,Energy_Sales_kWh[Quarter],"Q1",Energy_Sales_kWh[Utility],$D79),IF($G$4="Q2",SUMIFS(Energy_Sales_kWh[Energy Sales],Energy_Sales_kWh[Year],a!A$100,Energy_Sales_kWh[Quarter],"Q2",Energy_Sales_kWh[Utility],$D79),IF($G$4="Q3",SUMIFS(Energy_Sales_kWh[Energy Sales],Energy_Sales_kWh[Year],a!A$100,Energy_Sales_kWh[Quarter],"Q3",Energy_Sales_kWh[Utility],$D79),IF($G$4="Q4",SUMIFS(Energy_Sales_kWh[Energy Sales],Energy_Sales_kWh[Year],a!A$100,Energy_Sales_kWh[Quarter],"Q4",Energy_Sales_kWh[Utility],$D79), IF($G$4="Calendar Year",SUMIFS(Energy_Sales_kWh[Energy Sales],Energy_Sales_kWh[Year],a!A$100,Energy_Sales_kWh[Utility],$D79),""))))))/10^3,"") -> 932687.1255 | F79: =IFERROR(SUM(IF($G$4="Q1",SUMIFS(Energy_Sales_kWh[Energy Sales],Energy_Sales_kWh[Year],a!B$100,Energy_Sales_kWh[Quarter],"Q1",Energy_Sales_kWh[Utility],$D79),IF($G$4="Q2",SUMIFS(Energy_Sales_kWh[Energy Sales],Energy_Sales_kWh[Year],a!B$100,Energy_Sales_kWh[Quarter],"Q2",Energy_Sales_kWh[Utility],$D79),IF($G$4="Q3",SUMIFS(Energy_Sales_kWh[Energy Sales],Energy_Sales_kWh[Year],a!B$100,Energy_Sales_kWh[Quarter],"Q3",Energy_Sales_kWh[Utility],$D79),IF($G$4="Q4",SUMIFS(Energy_Sales_kWh[Energy Sales],Energy_Sales_kWh[Year],a!B$100,Energy_Sales_kWh[Quarter],"Q4",Energy_Sales_kWh[Utility],$D79), IF($G$4="Calendar Year",SUMIFS(Energy_Sales_kWh[Energy Sales],Energy_Sales_kWh[Year],a!B$100,Energy_Sales_kWh[Utility],$D79),""))))))/10^3,"") -> 1013927.406 | G79: =IFERROR(SUM(IF($G$4="Q1",SUMIFS(Energy_Sales_kWh[Energy Sales],Energy_Sales_kWh[Year],a!C$100,Energy_Sales_kWh[Quarter],"Q1",Energy_Sales_kWh[Utility],$D79),IF($G$4="Q2",SUMIFS(Energy_Sales_kWh[Energy Sales],Energy_Sales_kWh[Year],a!C$100,Energy_Sales_kWh[Quarter],"Q2",Energy_Sales_kWh[Utility],$D79),IF($G$4="Q3",SUMIFS(Energy_Sales_kWh[Energy Sales],Energy_Sales_kWh[Year],a!C$100,Energy_Sales_kWh[Quarter],"Q3",Energy_Sales_kWh[Utility],$D79),IF($G$4="Q4",SUMIFS(Energy_Sales_kWh[Energy Sales],Energy_Sales_kWh[Year],a!C$100,Energy_Sales_kWh[Quarter],"Q4",Energy_Sales_kWh[Utility],$D79), IF($G$4="Calendar Year",SUMIFS(Energy_Sales_kWh[Energy Sales],Energy_Sales_kWh[Year],a!C$100,Energy_Sales_kWh[Utility],$D79),""))))))/10^3,"") -> 1129889.376 | H79: =IFERROR(SUM(IF($G$4="Q1",SUMIFS(Energy_Sales_kWh[Energy Sales],Energy_Sales_kWh[Year],a!D$100,Energy_Sales_kWh[Quarter],"Q1",Energy_Sales_kWh[Utility],$D79),IF($G$4="Q2",SUMIFS(Energy_Sales_kWh[Energy Sales],Energy_Sales_kWh[Year],a!D$100,Energy_Sales_kWh[Quarter],"Q2",Energy_Sales_kWh[Utility],$D79),IF($G$4="Q3",SUMIFS(Energy_Sales_kWh[Energy Sales],Energy_Sales_kWh[Year],a!D$100,Energy_Sales_kWh[Quarter],"Q3",Energy_Sales_kWh[Utility],$D79),IF($G$4="Q4",SUMIFS(Energy_Sales_kWh[Energy Sales],Energy_Sales_kWh[Year],a!D$100,Energy_Sales_kWh[Quarter],"Q4",Energy_Sales_kWh[Utility],$D79), IF($G$4="Calendar Year",SUMIFS(Energy_Sales_kWh[Energy Sales],Energy_Sales_kWh[Year],a!D$100,Energy_Sales_kWh[Utility],$D79),""))))))/10^3,"") -> 1238473.509 | I79: =IFERROR(SUM(IF($G$4="Q1",SUMIFS(Energy_Sales_kWh[Energy Sales],Energy_Sales_kWh[Year],a!E$100,Energy_Sales_kWh[Quarter],"Q1",Energy_Sales_kWh[Utility],$D79),IF($G$4="Q2",SUMIFS(Energy_Sales_kWh[Energy Sales],Energy_Sales_kWh[Year],a!E$100,Energy_Sales_kWh[Quarter],"Q2",Energy_Sales_kWh[Utility],$D79),IF($G$4="Q3",SUMIFS(Energy_Sales_kWh[Energy Sales],Energy_Sales_kWh[Year],a!E$100,Energy_Sales_kWh[Quarter],"Q3",Energy_Sales_kWh[Utility],$D79),IF($G$4="Q4",SUMIFS(Energy_Sales_kWh[Energy Sales],Energy_Sales_kWh[Year],a!E$100,Energy_Sales_kWh[Quarter],"Q4",Energy_Sales_kWh[Utility],$D79), IF($G$4="Calendar Year",SUMIFS(Energy_Sales_kWh[Energy Sales],Energy_Sales_kWh[Year],a!E$100,Energy_Sales_kWh[Utility],$D79),""))))))/10^3,"") -> 0
D80: WENRECO | E80: =IFERROR(SUM(IF($G$4="Q1",SUMIFS(Energy_Sales_kWh[Energy Sales],Energy_Sales_kWh[Year],a!A$100,Energy_Sales_kWh[Quarter],"Q1",Energy_Sales_kWh[Utility],$D80),IF($G$4="Q2",SUMIFS(Energy_Sales_kWh[Energy Sales],Energy_Sales_kWh[Year],a!A$100,Energy_Sales_kWh[Quarter],"Q2",Energy_Sales_kWh[Utility],$D80),IF($G$4="Q3",SUMIFS(Energy_Sales_kWh[Energy Sales],Energy_Sales_kWh[Year],a!A$100,Energy_Sales_kWh[Quarter],"Q3",Energy_Sales_kWh[Utility],$D80),IF($G$4="Q4",SUMIFS(Energy_Sales_kWh[Energy Sales],Energy_Sales_kWh[Year],a!A$100,Energy_Sales_kWh[Quarter],"Q4",Energy_Sales_kWh[Utility],$D80), IF($G$4="Calendar Year",SUMIFS(Energy_Sales_kWh[Energy Sales],Energy_Sales_kWh[Year],a!A$100,Energy_Sales_kWh[Utility],$D80),""))))))/10^3,"") -> 0 | F80: =IFERROR(SUM(IF($G$4="Q1",SUMIFS(Energy_Sales_kWh[Energy Sales],Energy_Sales_kWh[Year],a!B$100,Energy_Sales_kWh[Quarter],"Q1",Energy_Sales_kWh[Utility],$D80),IF($G$4="Q2",SUMIFS(Energy_Sales_kWh[Energy Sales],Energy_Sales_kWh[Year],a!B$100,Energy_Sales_kWh[Quarter],"Q2",Energy_Sales_kWh[Utility],$D80),IF($G$4="Q3",SUMIFS(Energy_Sales_kWh[Energy Sales],Energy_Sales_kWh[Year],a!B$100,Energy_Sales_kWh[Quarter],"Q3",Energy_Sales_kWh[Utility],$D80),IF($G$4="Q4",SUMIFS(Energy_Sales_kWh[Energy Sales],Energy_Sales_kWh[Year],a!B$100,Energy_Sales_kWh[Quarter],"Q4",Energy_Sales_kWh[Utility],$D80), IF($G$4="Calendar Year",SUMIFS(Energy_Sales_kWh[Energy Sales],Energy_Sales_kWh[Year],a!B$100,Energy_Sales_kWh[Utility],$D80),""))))))/10^3,"") -> 0 | G80: =IFERROR(SUM(IF($G$4="Q1",SUMIFS(Energy_Sales_kWh[Energy Sales],Energy_Sales_kWh[Year],a!C$100,Energy_Sales_kWh[Quarter],"Q1",Energy_Sales_kWh[Utility],$D80),IF($G$4="Q2",SUMIFS(Energy_Sales_kWh[Energy Sales],Energy_Sales_kWh[Year],a!C$100,Energy_Sales_kWh[Quarter],"Q2",Energy_Sales_kWh[Utility],$D80),IF($G$4="Q3",SUMIFS(Energy_Sales_kWh[Energy Sales],Energy_Sales_kWh[Year],a!C$100,Energy_Sales_kWh[Quarter],"Q3",Energy_Sales_kWh[Utility],$D80),IF($G$4="Q4",SUMIFS(Energy_Sales_kWh[Energy Sales],Energy_Sales_kWh[Year],a!C$100,Energy_Sales_kWh[Quarter],"Q4",Energy_Sales_kWh[Utility],$D80), IF($G$4="Calendar Year",SUMIFS(Energy_Sales_kWh[Energy Sales],Energy_Sales_kWh[Year],a!C$100,Energy_Sales_kWh[Utility],$D80),""))))))/10^3,"") -> 7702.096 | H80: =IFERROR(SUM(IF($G$4="Q1",SUMIFS(Energy_Sales_kWh[Energy Sales],Energy_Sales_kWh[Year],a!D$100,Energy_Sales_kWh[Quarter],"Q1",Energy_Sales_kWh[Utility],$D80),IF($G$4="Q2",SUMIFS(Energy_Sales_kWh[Energy Sales],Energy_Sales_kWh[Year],a!D$100,Energy_Sales_kWh[Quarter],"Q2",Energy_Sales_kWh[Utility],$D80),IF($G$4="Q3",SUMIFS(Energy_Sales_kWh[Energy Sales],Energy_Sales_kWh[Year],a!D$100,Energy_Sales_kWh[Quarter],"Q3",Energy_Sales_kWh[Utility],$D80),IF($G$4="Q4",SUMIFS(Energy_Sales_kWh[Energy Sales],Energy_Sales_kWh[Year],a!D$100,Energy_Sales_kWh[Quarter],"Q4",Energy_Sales_kWh[Utility],$D80), IF($G$4="Calendar Year",SUMIFS(Energy_Sales_kWh[Energy Sales],Energy_Sales_kWh[Year],a!D$100,Energy_Sales_kWh[Utility],$D80),""))))))/10^3,"") -> 9606.338 | I80: =IFERROR(SUM(IF($G$4="Q1",SUMIFS(Energy_Sales_kWh[Energy Sales],Energy_Sales_kWh[Year],a!E$100,Energy_Sales_kWh[Quarter],"Q1",Energy_Sales_kWh[Utility],$D80),IF($G$4="Q2",SUMIFS(Energy_Sales_kWh[Energy Sales],Energy_Sales_kWh[Year],a!E$100,Energy_Sales_kWh[Quarter],"Q2",Energy_Sales_kWh[Utility],$D80),IF($G$4="Q3",SUMIFS(Energy_Sales_kWh[Energy Sales],Energy_Sales_kWh[Year],a!E$100,Energy_Sales_kWh[Quarter],"Q3",Energy_Sales_kWh[Utility],$D80),IF($G$4="Q4",SUMIFS(Energy_Sales_kWh[Energy Sales],Energy_Sales_kWh[Year],a!E$100,Energy_Sales_kWh[Quarter],"Q4",Energy_Sales_kWh[Utility],$D80), IF($G$4="Calendar Year",SUMIFS(Energy_Sales_kWh[Energy Sales],Energy_Sales_kWh[Year],a!E$100,Energy_Sales_kWh[Utility],$D80),""))))))/10^3,"") -> 12643.375
D81: Energy Losses by Utility (%age) | E81: =E71 -> 2022-Q1 | F81: =F71 -> 2023-Q1 | G81: =G71 -> 2024-Q1 | H81: =H71 -> 2025-Q1 | I81: =I71 -> 2026-Q1
D82: BECS | E82: =IFERROR(((E62-E72)/E62),"") ->  | F82: =IFERROR(((F62-F72)/F62),"") -> 
D83: KABALEGA HYDROMAX | E83: =IFERROR(((E63-E73)/E63),"") ->  | F83: =IFERROR(((F63-F73)/F63),"") ->  | G83: -0.6850173636 | H83: 0.4613940444 | I83: =IFERROR(((I63-I73)/I63),"") -> 
D84: KIL | E84: =IFERROR(((E64-E75)/E64),"") -> 0.3876713451 | F84: =IFERROR(((F64-F75)/F64),"") -> 0.4839199923 | G84: 0.3618990901
D85: KIS | E85: =IFERROR(((E65-E74)/E65),"") ->  | F85: =IFERROR(((F65-F74)/F65),"") ->  | I85: 0.3987024476
D86: KRECS | E86: =IFERROR(((E66-E76)/E66),"") -> 0.1932366132 | F86: =IFERROR(((F66-F76)/F66),"") -> 0.2605581044
D87: PACMECS | E87: =IFERROR(((E67-E77)/E67),"") -> 0.1664965948 | F87: =IFERROR(((F67-F77)/F67),"") -> 0.2007836596
D88: UEDCL | E88: =IFERROR(((E68-E78)/E68),"") -> 0.3536041367 | F88: =IFERROR(((F68-F78)/F68),"") -> 0.3687813128 | G88: 0.4182197641 | H88: 0.2253497642 | I88: 0.1851338061
D89: UMEME | E89: =IFERROR(((E69-E79)/E69),"") -> 0.172161546 | F89: =IFERROR(((F69-F79)/F69),"") -> 0.1666553831 | G89: 0.1603890417 | H89: 0.156737834
D90: WENRECO | E90: =IFERROR(((E70-E80)/E70),"") ->  | F90: =IFERROR(((F70-F80)/F70),"") ->  | G90: 0.1995986196 | H90: 0 | I90: -0.22549079
D91: Customer Numbers by Utility | E91: =E81 -> 2022-Q1 | F91: =F81 -> 2023-Q1 | G91: =G81 -> 2024-Q1 | H91: =H81 -> 2025-Q1 | I91: =I81 -> 2026-Q1
D92: BECS | E92: =IFERROR(SUM(IF($G$4="Q1",SUMIFS(Customer_Numbers[Customers],Customer_Numbers[Year],a!A$100,Customer_Numbers[Quarter],"Q1",Customer_Numbers[Utility],$D92),IF($G$4="Q2",SUMIFS(Customer_Numbers[Customers],Customer_Numbers[Year],a!A$100,Customer_Numbers[Quarter],"Q2",Customer_Numbers[Utility],$D92),IF($G$4="Q3",SUMIFS(Customer_Numbers[Customers],Customer_Numbers[Year],a!A$100,Customer_Numbers[Quarter],"Q3",Customer_Numbers[Utility],$D92),IF($G$4="Q4",SUMIFS(Customer_Numbers[Customers],Customer_Numbers[Year],a!A$100,Customer_Numbers[Quarter],"Q4",Customer_Numbers[Utility],$D92), IF($G$4="Calendar Year",SUMIFS(Customer_Numbers[Customers],Customer_Numbers[Year],a!A$100,Customer_Numbers[Utility],$D92,Customer_Numbers[Quarter],"Q4"),"")))))),"") -> 0 | F92: =IFERROR(SUM(IF($G$4="Q1",SUMIFS(Customer_Numbers[Customers],Customer_Numbers[Year],a!B$100,Customer_Numbers[Quarter],"Q1",Customer_Numbers[Utility],$D92),IF($G$4="Q2",SUMIFS(Customer_Numbers[Customers],Customer_Numbers[Year],a!B$100,Customer_Numbers[Quarter],"Q2",Customer_Numbers[Utility],$D92),IF($G$4="Q3",SUMIFS(Customer_Numbers[Customers],Customer_Numbers[Year],a!B$100,Customer_Numbers[Quarter],"Q3",Customer_Numbers[Utility],$D92),IF($G$4="Q4",SUMIFS(Customer_Numbers[Customers],Customer_Numbers[Year],a!B$100,Customer_Numbers[Quarter],"Q4",Customer_Numbers[Utility],$D92), IF($G$4="Calendar Year",SUMIFS(Customer_Numbers[Customers],Customer_Numbers[Year],a!B$100,Customer_Numbers[Utility],$D92,Customer_Numbers[Quarter],"Q4"),"")))))),"") -> 0 | G92: =IFERROR(SUM(IF($G$4="Q1",SUMIFS(Customer_Numbers[Customers],Customer_Numbers[Year],a!C$100,Customer_Numbers[Quarter],"Q1",Customer_Numbers[Utility],$D92),IF($G$4="Q2",SUMIFS(Customer_Numbers[Customers],Customer_Numbers[Year],a!C$100,Customer_Numbers[Quarter],"Q2",Customer_Numbers[Utility],$D92),IF($G$4="Q3",SUMIFS(Customer_Numbers[Customers],Customer_Numbers[Year],a!C$100,Customer_Numbers[Quarter],"Q3",Customer_Numbers[Utility],$D92),IF($G$4="Q4",SUMIFS(Customer_Numbers[Customers],Customer_Numbers[Year],a!C$100,Customer_Numbers[Quarter],"Q4",Customer_Numbers[Utility],$D92), IF($G$4="Calendar Year",SUMIFS(Customer_Numbers[Customers],Customer_Numbers[Year],a!C$100,Customer_Numbers[Utility],$D92,Customer_Numbers[Quarter],"Q4"),"")))))),"") -> 0 | H92: =IFERROR(SUM(IF($G$4="Q1",SUMIFS(Customer_Numbers[Customers],Customer_Numbers[Year],a!D$100,Customer_Numbers[Quarter],"Q1",Customer_Numbers[Utility],$D92),IF($G$4="Q2",SUMIFS(Customer_Numbers[Customers],Customer_Numbers[Year],a!D$100,Customer_Numbers[Quarter],"Q2",Customer_Numbers[Utility],$D92),IF($G$4="Q3",SUMIFS(Customer_Numbers[Customers],Customer_Numbers[Year],a!D$100,Customer_Numbers[Quarter],"Q3",Customer_Numbers[Utility],$D92),IF($G$4="Q4",SUMIFS(Customer_Numbers[Customers],Customer_Numbers[Year],a!D$100,Customer_Numbers[Quarter],"Q4",Customer_Numbers[Utility],$D92), IF($G$4="Calendar Year",SUMIFS(Customer_Numbers[Customers],Customer_Numbers[Year],a!D$100,Customer_Numbers[Utility],$D92,Customer_Numbers[Quarter],"Q4"),"")))))),"") -> 0 | I92: =IFERROR(SUM(IF($G$4="Q1",SUMIFS(Customer_Numbers[Customers],Customer_Numbers[Year],a!E$100,Customer_Numbers[Quarter],"Q1",Customer_Numbers[Utility],$D92),IF($G$4="Q2",SUMIFS(Customer_Numbers[Customers],Customer_Numbers[Year],a!E$100,Customer_Numbers[Quarter],"Q2",Customer_Numbers[Utility],$D92),IF($G$4="Q3",SUMIFS(Customer_Numbers[Customers],Customer_Numbers[Year],a!E$100,Customer_Numbers[Quarter],"Q3",Customer_Numbers[Utility],$D92),IF($G$4="Q4",SUMIFS(Customer_Numbers[Customers],Customer_Numbers[Year],a!E$100,Customer_Numbers[Quarter],"Q4",Customer_Numbers[Utility],$D92), IF($G$4="Calendar Year",SUMIFS(Customer_Numbers[Customers],Customer_Numbers[Year],a!E$100,Customer_Numbers[Utility],$D92,Customer_Numbers[Quarter],"Q4"),"")))))),"") -> 0
D93: KABALEGA HYDROMAX | E93: =IFERROR(SUM(IF($G$4="Q1",SUMIFS(Customer_Numbers[Customers],Customer_Numbers[Year],a!A$100,Customer_Numbers[Quarter],"Q1",Customer_Numbers[Utility],$D93),IF($G$4="Q2",SUMIFS(Customer_Numbers[Customers],Customer_Numbers[Year],a!A$100,Customer_Numbers[Quarter],"Q2",Customer_Numbers[Utility],$D93),IF($G$4="Q3",SUMIFS(Customer_Numbers[Customers],Customer_Numbers[Year],a!A$100,Customer_Numbers[Quarter],"Q3",Customer_Numbers[Utility],$D93),IF($G$4="Q4",SUMIFS(Customer_Numbers[Customers],Customer_Numbers[Year],a!A$100,Customer_Numbers[Quarter],"Q4",Customer_Numbers[Utility],$D93), IF($G$4="Calendar Year",SUMIFS(Customer_Numbers[Customers],Customer_Numbers[Year],a!A$100,Customer_Numbers[Utility],$D93,Customer_Numbers[Quarter],"Q4"),"")))))),"") -> 0 | F93: =IFERROR(SUM(IF($G$4="Q1",SUMIFS(Customer_Numbers[Customers],Customer_Numbers[Year],a!B$100,Customer_Numbers[Quarter],"Q1",Customer_Numbers[Utility],$D93),IF($G$4="Q2",SUMIFS(Customer_Numbers[Customers],Customer_Numbers[Year],a!B$100,Customer_Numbers[Quarter],"Q2",Customer_Numbers[Utility],$D93),IF($G$4="Q3",SUMIFS(Customer_Numbers[Customers],Customer_Numbers[Year],a!B$100,Customer_Numbers[Quarter],"Q3",Customer_Numbers[Utility],$D93),IF($G$4="Q4",SUMIFS(Customer_Numbers[Customers],Customer_Numbers[Year],a!B$100,Customer_Numbers[Quarter],"Q4",Customer_Numbers[Utility],$D93), IF($G$4="Calendar Year",SUMIFS(Customer_Numbers[Customers],Customer_Numbers[Year],a!B$100,Customer_Numbers[Utility],$D93,Customer_Numbers[Quarter],"Q4"),"")))))),"") -> 0 | G93: =IFERROR(SUM(IF($G$4="Q1",SUMIFS(Customer_Numbers[Customers],Customer_Numbers[Year],a!C$100,Customer_Numbers[Quarter],"Q1",Customer_Numbers[Utility],$D93),IF($G$4="Q2",SUMIFS(Customer_Numbers[Customers],Customer_Numbers[Year],a!C$100,Customer_Numbers[Quarter],"Q2",Customer_Numbers[Utility],$D93),IF($G$4="Q3",SUMIFS(Customer_Numbers[Customers],Customer_Numbers[Year],a!C$100,Customer_Numbers[Quarter],"Q3",Customer_Numbers[Utility],$D93),IF($G$4="Q4",SUMIFS(Customer_Numbers[Customers],Customer_Numbers[Year],a!C$100,Customer_Numbers[Quarter],"Q4",Customer_Numbers[Utility],$D93), IF($G$4="Calendar Year",SUMIFS(Customer_Numbers[Customers],Customer_Numbers[Year],a!C$100,Customer_Numbers[Utility],$D93,Customer_Numbers[Quarter],"Q4"),"")))))),"") -> 355 | H93: =IFERROR(SUM(IF($G$4="Q1",SUMIFS(Customer_Numbers[Customers],Customer_Numbers[Year],a!D$100,Customer_Numbers[Quarter],"Q1",Customer_Numbers[Utility],$D93),IF($G$4="Q2",SUMIFS(Customer_Numbers[Customers],Customer_Numbers[Year],a!D$100,Customer_Numbers[Quarter],"Q2",Customer_Numbers[Utility],$D93),IF($G$4="Q3",SUMIFS(Customer_Numbers[Customers],Customer_Numbers[Year],a!D$100,Customer_Numbers[Quarter],"Q3",Customer_Numbers[Utility],$D93),IF($G$4="Q4",SUMIFS(Customer_Numbers[Customers],Customer_Numbers[Year],a!D$100,Customer_Numbers[Quarter],"Q4",Customer_Numbers[Utility],$D93), IF($G$4="Calendar Year",SUMIFS(Customer_Numbers[Customers],Customer_Numbers[Year],a!D$100,Customer_Numbers[Utility],$D93,Customer_Numbers[Quarter],"Q4"),"")))))),"") -> 375 | I93: =IFERROR(SUM(IF($G$4="Q1",SUMIFS(Customer_Numbers[Customers],Customer_Numbers[Year],a!E$100,Customer_Numbers[Quarter],"Q1",Customer_Numbers[Utility],$D93),IF($G$4="Q2",SUMIFS(Customer_Numbers[Customers],Customer_Numbers[Year],a!E$100,Customer_Numbers[Quarter],"Q2",Customer_Numbers[Utility],$D93),IF($G$4="Q3",SUMIFS(Customer_Numbers[Customers],Customer_Numbers[Year],a!E$100,Customer_Numbers[Quarter],"Q3",Customer_Numbers[Utility],$D93),IF($G$4="Q4",SUMIFS(Customer_Numbers[Customers],Customer_Numbers[Year],a!E$100,Customer_Numbers[Quarter],"Q4",Customer_Numbers[Utility],$D93), IF($G$4="Calendar Year",SUMIFS(Customer_Numbers[Customers],Customer_Numbers[Year],a!E$100,Customer_Numbers[Utility],$D93,Customer_Numbers[Quarter],"Q4"),"")))))),"") -> 0
D94: KIL | E94: =IFERROR(SUM(IF($G$4="Q1",SUMIFS(Customer_Numbers[Customers],Customer_Numbers[Year],a!A$100,Customer_Numbers[Quarter],"Q1",Customer_Numbers[Utility],$D94),IF($G$4="Q2",SUMIFS(Customer_Numbers[Customers],Customer_Numbers[Year],a!A$100,Customer_Numbers[Quarter],"Q2",Customer_Numbers[Utility],$D94),IF($G$4="Q3",SUMIFS(Customer_Numbers[Customers],Customer_Numbers[Year],a!A$100,Customer_Numbers[Quarter],"Q3",Customer_Numbers[Utility],$D94),IF($G$4="Q4",SUMIFS(Customer_Numbers[Customers],Customer_Numbers[Year],a!A$100,Customer_Numbers[Quarter],"Q4",Customer_Numbers[Utility],$D94), IF($G$4="Calendar Year",SUMIFS(Customer_Numbers[Customers],Customer_Numbers[Year],a!A$100,Customer_Numbers[Utility],$D94,Customer_Numbers[Quarter],"Q4"),"")))))),"") -> 19622 | F94: =IFERROR(SUM(IF($G$4="Q1",SUMIFS(Customer_Numbers[Customers],Customer_Numbers[Year],a!B$100,Customer_Numbers[Quarter],"Q1",Customer_Numbers[Utility],$D94),IF($G$4="Q2",SUMIFS(Customer_Numbers[Customers],Customer_Numbers[Year],a!B$100,Customer_Numbers[Quarter],"Q2",Customer_Numbers[Utility],$D94),IF($G$4="Q3",SUMIFS(Customer_Numbers[Customers],Customer_Numbers[Year],a!B$100,Customer_Numbers[Quarter],"Q3",Customer_Numbers[Utility],$D94),IF($G$4="Q4",SUMIFS(Customer_Numbers[Customers],Customer_Numbers[Year],a!B$100,Customer_Numbers[Quarter],"Q4",Customer_Numbers[Utility],$D94), IF($G$4="Calendar Year",SUMIFS(Customer_Numbers[Customers],Customer_Numbers[Year],a!B$100,Customer_Numbers[Utility],$D94,Customer_Numbers[Quarter],"Q4"),"")))))),"") -> 20024 | G94: =IFERROR(SUM(IF($G$4="Q1",SUMIFS(Customer_Numbers[Customers],Customer_Numbers[Year],a!C$100,Customer_Numbers[Quarter],"Q1",Customer_Numbers[Utility],$D94),IF($G$4="Q2",SUMIFS(Customer_Numbers[Customers],Customer_Numbers[Year],a!C$100,Customer_Numbers[Quarter],"Q2",Customer_Numbers[Utility],$D94),IF($G$4="Q3",SUMIFS(Customer_Numbers[Customers],Customer_Numbers[Year],a!C$100,Customer_Numbers[Quarter],"Q3",Customer_Numbers[Utility],$D94),IF($G$4="Q4",SUMIFS(Customer_Numbers[Customers],Customer_Numbers[Year],a!C$100,Customer_Numbers[Quarter],"Q4",Customer_Numbers[Utility],$D94), IF($G$4="Calendar Year",SUMIFS(Customer_Numbers[Customers],Customer_Numbers[Year],a!C$100,Customer_Numbers[Utility],$D94,Customer_Numbers[Quarter],"Q4"),"")))))),"") -> 21487 | H94: =IFERROR(SUM(IF($G$4="Q1",SUMIFS(Customer_Numbers[Customers],Customer_Numbers[Year],a!D$100,Customer_Numbers[Quarter],"Q1",Customer_Numbers[Utility],$D94),IF($G$4="Q2",SUMIFS(Customer_Numbers[Customers],Customer_Numbers[Year],a!D$100,Customer_Numbers[Quarter],"Q2",Customer_Numbers[Utility],$D94),IF($G$4="Q3",SUMIFS(Customer_Numbers[Customers],Customer_Numbers[Year],a!D$100,Customer_Numbers[Quarter],"Q3",Customer_Numbers[Utility],$D94),IF($G$4="Q4",SUMIFS(Customer_Numbers[Customers],Customer_Numbers[Year],a!D$100,Customer_Numbers[Quarter],"Q4",Customer_Numbers[Utility],$D94), IF($G$4="Calendar Year",SUMIFS(Customer_Numbers[Customers],Customer_Numbers[Year],a!D$100,Customer_Numbers[Utility],$D94,Customer_Numbers[Quarter],"Q4"),"")))))),"") -> 0 | I94: =IFERROR(SUM(IF($G$4="Q1",SUMIFS(Customer_Numbers[Customers],Customer_Numbers[Year],a!E$100,Customer_Numbers[Quarter],"Q1",Customer_Numbers[Utility],$D94),IF($G$4="Q2",SUMIFS(Customer_Numbers[Customers],Customer_Numbers[Year],a!E$100,Customer_Numbers[Quarter],"Q2",Customer_Numbers[Utility],$D94),IF($G$4="Q3",SUMIFS(Customer_Numbers[Customers],Customer_Numbers[Year],a!E$100,Customer_Numbers[Quarter],"Q3",Customer_Numbers[Utility],$D94),IF($G$4="Q4",SUMIFS(Customer_Numbers[Customers],Customer_Numbers[Year],a!E$100,Customer_Numbers[Quarter],"Q4",Customer_Numbers[Utility],$D94), IF($G$4="Calendar Year",SUMIFS(Customer_Numbers[Customers],Customer_Numbers[Year],a!E$100,Customer_Numbers[Utility],$D94,Customer_Numbers[Quarter],"Q4"),"")))))),"") -> 0
D95: KIS | E95: =IFERROR(SUM(IF($G$4="Q1",SUMIFS(Customer_Numbers[Customers],Customer_Numbers[Year],a!A$100,Customer_Numbers[Quarter],"Q1",Customer_Numbers[Utility],$D95),IF($G$4="Q2",SUMIFS(Customer_Numbers[Customers],Customer_Numbers[Year],a!A$100,Customer_Numbers[Quarter],"Q2",Customer_Numbers[Utility],$D95),IF($G$4="Q3",SUMIFS(Customer_Numbers[Customers],Customer_Numbers[Year],a!A$100,Customer_Numbers[Quarter],"Q3",Customer_Numbers[Utility],$D95),IF($G$4="Q4",SUMIFS(Customer_Numbers[Customers],Customer_Numbers[Year],a!A$100,Customer_Numbers[Quarter],"Q4",Customer_Numbers[Utility],$D95), IF($G$4="Calendar Year",SUMIFS(Customer_Numbers[Customers],Customer_Numbers[Year],a!A$100,Customer_Numbers[Utility],$D95,Customer_Numbers[Quarter],"Q4"),"")))))),"") -> 0 | F95: =IFERROR(SUM(IF($G$4="Q1",SUMIFS(Customer_Numbers[Customers],Customer_Numbers[Year],a!B$100,Customer_Numbers[Quarter],"Q1",Customer_Numbers[Utility],$D95),IF($G$4="Q2",SUMIFS(Customer_Numbers[Customers],Customer_Numbers[Year],a!B$100,Customer_Numbers[Quarter],"Q2",Customer_Numbers[Utility],$D95),IF($G$4="Q3",SUMIFS(Customer_Numbers[Customers],Customer_Numbers[Year],a!B$100,Customer_Numbers[Quarter],"Q3",Customer_Numbers[Utility],$D95),IF($G$4="Q4",SUMIFS(Customer_Numbers[Customers],Customer_Numbers[Year],a!B$100,Customer_Numbers[Quarter],"Q4",Customer_Numbers[Utility],$D95), IF($G$4="Calendar Year",SUMIFS(Customer_Numbers[Customers],Customer_Numbers[Year],a!B$100,Customer_Numbers[Utility],$D95,Customer_Numbers[Quarter],"Q4"),"")))))),"") -> 0 | G95: =IFERROR(SUM(IF($G$4="Q1",SUMIFS(Customer_Numbers[Customers],Customer_Numbers[Year],a!C$100,Customer_Numbers[Quarter],"Q1",Customer_Numbers[Utility],$D95),IF($G$4="Q2",SUMIFS(Customer_Numbers[Customers],Customer_Numbers[Year],a!C$100,Customer_Numbers[Quarter],"Q2",Customer_Numbers[Utility],$D95),IF($G$4="Q3",SUMIFS(Customer_Numbers[Customers],Customer_Numbers[Year],a!C$100,Customer_Numbers[Quarter],"Q3",Customer_Numbers[Utility],$D95),IF($G$4="Q4",SUMIFS(Customer_Numbers[Customers],Customer_Numbers[Year],a!C$100,Customer_Numbers[Quarter],"Q4",Customer_Numbers[Utility],$D95), IF($G$4="Calendar Year",SUMIFS(Customer_Numbers[Customers],Customer_Numbers[Year],a!C$100,Customer_Numbers[Utility],$D95,Customer_Numbers[Quarter],"Q4"),"")))))),"") -> 4828 | H95: =IFERROR(SUM(IF($G$4="Q1",SUMIFS(Customer_Numbers[Customers],Customer_Numbers[Year],a!D$100,Customer_Numbers[Quarter],"Q1",Customer_Numbers[Utility],$D95),IF($G$4="Q2",SUMIFS(Customer_Numbers[Customers],Customer_Numbers[Year],a!D$100,Customer_Numbers[Quarter],"Q2",Customer_Numbers[Utility],$D95),IF($G$4="Q3",SUMIFS(Customer_Numbers[Customers],Customer_Numbers[Year],a!D$100,Customer_Numbers[Quarter],"Q3",Customer_Numbers[Utility],$D95),IF($G$4="Q4",SUMIFS(Customer_Numbers[Customers],Customer_Numbers[Year],a!D$100,Customer_Numbers[Quarter],"Q4",Customer_Numbers[Utility],$D95), IF($G$4="Calendar Year",SUMIFS(Customer_Numbers[Customers],Customer_Numbers[Year],a!D$100,Customer_Numbers[Utility],$D95,Customer_Numbers[Quarter],"Q4"),"")))))),"") -> 5590 | I95: 6756
D96: KRECS | E96: =IFERROR(SUM(IF($G$4="Q1",SUMIFS(Customer_Numbers[Customers],Customer_Numbers[Year],a!A$100,Customer_Numbers[Quarter],"Q1",Customer_Numbers[Utility],$D96),IF($G$4="Q2",SUMIFS(Customer_Numbers[Customers],Customer_Numbers[Year],a!A$100,Customer_Numbers[Quarter],"Q2",Customer_Numbers[Utility],$D96),IF($G$4="Q3",SUMIFS(Customer_Numbers[Customers],Customer_Numbers[Year],a!A$100,Customer_Numbers[Quarter],"Q3",Customer_Numbers[Utility],$D96),IF($G$4="Q4",SUMIFS(Customer_Numbers[Customers],Customer_Numbers[Year],a!A$100,Customer_Numbers[Quarter],"Q4",Customer_Numbers[Utility],$D96), IF($G$4="Calendar Year",SUMIFS(Customer_Numbers[Customers],Customer_Numbers[Year],a!A$100,Customer_Numbers[Utility],$D96,Customer_Numbers[Quarter],"Q4"),"")))))),"") -> 9436 | F96: =IFERROR(SUM(IF($G$4="Q1",SUMIFS(Customer_Numbers[Customers],Customer_Numbers[Year],a!B$100,Customer_Numbers[Quarter],"Q1",Customer_Numbers[Utility],$D96),IF($G$4="Q2",SUMIFS(Customer_Numbers[Customers],Customer_Numbers[Year],a!B$100,Customer_Numbers[Quarter],"Q2",Customer_Numbers[Utility],$D96),IF($G$4="Q3",SUMIFS(Customer_Numbers[Customers],Customer_Numbers[Year],a!B$100,Customer_Numbers[Quarter],"Q3",Customer_Numbers[Utility],$D96),IF($G$4="Q4",SUMIFS(Customer_Numbers[Customers],Customer_Numbers[Year],a!B$100,Customer_Numbers[Quarter],"Q4",Customer_Numbers[Utility],$D96), IF($G$4="Calendar Year",SUMIFS(Customer_Numbers[Customers],Customer_Numbers[Year],a!B$100,Customer_Numbers[Utility],$D96,Customer_Numbers[Quarter],"Q4"),"")))))),"") -> 9752 | G96: =IFERROR(SUM(IF($G$4="Q1",SUMIFS(Customer_Numbers[Customers],Customer_Numbers[Year],a!C$100,Customer_Numbers[Quarter],"Q1",Customer_Numbers[Utility],$D96),IF($G$4="Q2",SUMIFS(Customer_Numbers[Customers],Customer_Numbers[Year],a!C$100,Customer_Numbers[Quarter],"Q2",Customer_Numbers[Utility],$D96),IF($G$4="Q3",SUMIFS(Customer_Numbers[Customers],Customer_Numbers[Year],a!C$100,Customer_Numbers[Quarter],"Q3",Customer_Numbers[Utility],$D96),IF($G$4="Q4",SUMIFS(Customer_Numbers[Customers],Customer_Numbers[Year],a!C$100,Customer_Numbers[Quarter],"Q4",Customer_Numbers[Utility],$D96), IF($G$4="Calendar Year",SUMIFS(Customer_Numbers[Customers],Customer_Numbers[Year],a!C$100,Customer_Numbers[Utility],$D96,Customer_Numbers[Quarter],"Q4"),"")))))),"") -> 11095 | H96: =IFERROR(SUM(IF($G$4="Q1",SUMIFS(Customer_Numbers[Customers],Customer_Numbers[Year],a!D$100,Customer_Numbers[Quarter],"Q1",Customer_Numbers[Utility],$D96),IF($G$4="Q2",SUMIFS(Customer_Numbers[Customers],Customer_Numbers[Year],a!D$100,Customer_Numbers[Quarter],"Q2",Customer_Numbers[Utility],$D96),IF($G$4="Q3",SUMIFS(Customer_Numbers[Customers],Customer_Numbers[Year],a!D$100,Customer_Numbers[Quarter],"Q3",Customer_Numbers[Utility],$D96),IF($G$4="Q4",SUMIFS(Customer_Numbers[Customers],Customer_Numbers[Year],a!D$100,Customer_Numbers[Quarter],"Q4",Customer_Numbers[Utility],$D96), IF($G$4="Calendar Year",SUMIFS(Customer_Numbers[Customers],Customer_Numbers[Year],a!D$100,Customer_Numbers[Utility],$D96,Customer_Numbers[Quarter],"Q4"),"")))))),"") -> 0 | I96: =IFERROR(SUM(IF($G$4="Q1",SUMIFS(Customer_Numbers[Customers],Customer_Numbers[Year],a!E$100,Customer_Numbers[Quarter],"Q1",Customer_Numbers[Utility],$D96),IF($G$4="Q2",SUMIFS(Customer_Numbers[Customers],Customer_Numbers[Year],a!E$100,Customer_Numbers[Quarter],"Q2",Customer_Numbers[Utility],$D96),IF($G$4="Q3",SUMIFS(Customer_Numbers[Customers],Customer_Numbers[Year],a!E$100,Customer_Numbers[Quarter],"Q3",Customer_Numbers[Utility],$D96),IF($G$4="Q4",SUMIFS(Customer_Numbers[Customers],Customer_Numbers[Year],a!E$100,Customer_Numbers[Quarter],"Q4",Customer_Numbers[Utility],$D96), IF($G$4="Calendar Year",SUMIFS(Customer_Numbers[Customers],Customer_Numbers[Year],a!E$100,Customer_Numbers[Utility],$D96,Customer_Numbers[Quarter],"Q4"),"")))))),"") -> 0
D97: PACMECS | E97: =IFERROR(SUM(IF($G$4="Q1",SUMIFS(Customer_Numbers[Customers],Customer_Numbers[Year],a!A$100,Customer_Numbers[Quarter],"Q1",Customer_Numbers[Utility],$D97),IF($G$4="Q2",SUMIFS(Customer_Numbers[Customers],Customer_Numbers[Year],a!A$100,Customer_Numbers[Quarter],"Q2",Customer_Numbers[Utility],$D97),IF($G$4="Q3",SUMIFS(Customer_Numbers[Customers],Customer_Numbers[Year],a!A$100,Customer_Numbers[Quarter],"Q3",Customer_Numbers[Utility],$D97),IF($G$4="Q4",SUMIFS(Customer_Numbers[Customers],Customer_Numbers[Year],a!A$100,Customer_Numbers[Quarter],"Q4",Customer_Numbers[Utility],$D97), IF($G$4="Calendar Year",SUMIFS(Customer_Numbers[Customers],Customer_Numbers[Year],a!A$100,Customer_Numbers[Utility],$D97,Customer_Numbers[Quarter],"Q4"),"")))))),"") -> 7850 | F97: =IFERROR(SUM(IF($G$4="Q1",SUMIFS(Customer_Numbers[Customers],Customer_Numbers[Year],a!B$100,Customer_Numbers[Quarter],"Q1",Customer_Numbers[Utility],$D97),IF($G$4="Q2",SUMIFS(Customer_Numbers[Customers],Customer_Numbers[Year],a!B$100,Customer_Numbers[Quarter],"Q2",Customer_Numbers[Utility],$D97),IF($G$4="Q3",SUMIFS(Customer_Numbers[Customers],Customer_Numbers[Year],a!B$100,Customer_Numbers[Quarter],"Q3",Customer_Numbers[Utility],$D97),IF($G$4="Q4",SUMIFS(Customer_Numbers[Customers],Customer_Numbers[Year],a!B$100,Customer_Numbers[Quarter],"Q4",Customer_Numbers[Utility],$D97), IF($G$4="Calendar Year",SUMIFS(Customer_Numbers[Customers],Customer_Numbers[Year],a!B$100,Customer_Numbers[Utility],$D97,Customer_Numbers[Quarter],"Q4"),"")))))),"") -> 8417 | G97: =IFERROR(SUM(IF($G$4="Q1",SUMIFS(Customer_Numbers[Customers],Customer_Numbers[Year],a!C$100,Customer_Numbers[Quarter],"Q1",Customer_Numbers[Utility],$D97),IF($G$4="Q2",SUMIFS(Customer_Numbers[Customers],Customer_Numbers[Year],a!C$100,Customer_Numbers[Quarter],"Q2",Customer_Numbers[Utility],$D97),IF($G$4="Q3",SUMIFS(Customer_Numbers[Customers],Customer_Numbers[Year],a!C$100,Customer_Numbers[Quarter],"Q3",Customer_Numbers[Utility],$D97),IF($G$4="Q4",SUMIFS(Customer_Numbers[Customers],Customer_Numbers[Year],a!C$100,Customer_Numbers[Quarter],"Q4",Customer_Numbers[Utility],$D97), IF($G$4="Calendar Year",SUMIFS(Customer_Numbers[Customers],Customer_Numbers[Year],a!C$100,Customer_Numbers[Utility],$D97,Customer_Numbers[Quarter],"Q4"),"")))))),"") -> 0 | H97: =IFERROR(SUM(IF($G$4="Q1",SUMIFS(Customer_Numbers[Customers],Customer_Numbers[Year],a!D$100,Customer_Numbers[Quarter],"Q1",Customer_Numbers[Utility],$D97),IF($G$4="Q2",SUMIFS(Customer_Numbers[Customers],Customer_Numbers[Year],a!D$100,Customer_Numbers[Quarter],"Q2",Customer_Numbers[Utility],$D97),IF($G$4="Q3",SUMIFS(Customer_Numbers[Customers],Customer_Numbers[Year],a!D$100,Customer_Numbers[Quarter],"Q3",Customer_Numbers[Utility],$D97),IF($G$4="Q4",SUMIFS(Customer_Numbers[Customers],Customer_Numbers[Year],a!D$100,Customer_Numbers[Quarter],"Q4",Customer_Numbers[Utility],$D97), IF($G$4="Calendar Year",SUMIFS(Customer_Numbers[Customers],Customer_Numbers[Year],a!D$100,Customer_Numbers[Utility],$D97,Customer_Numbers[Quarter],"Q4"),"")))))),"") -> 0 | I97: =IFERROR(SUM(IF($G$4="Q1",SUMIFS(Customer_Numbers[Customers],Customer_Numbers[Year],a!E$100,Customer_Numbers[Quarter],"Q1",Customer_Numbers[Utility],$D97),IF($G$4="Q2",SUMIFS(Customer_Numbers[Customers],Customer_Numbers[Year],a!E$100,Customer_Numbers[Quarter],"Q2",Customer_Numbers[Utility],$D97),IF($G$4="Q3",SUMIFS(Customer_Numbers[Customers],Customer_Numbers[Year],a!E$100,Customer_Numbers[Quarter],"Q3",Customer_Numbers[Utility],$D97),IF($G$4="Q4",SUMIFS(Customer_Numbers[Customers],Customer_Numbers[Year],a!E$100,Customer_Numbers[Quarter],"Q4",Customer_Numbers[Utility],$D97), IF($G$4="Calendar Year",SUMIFS(Customer_Numbers[Customers],Customer_Numbers[Year],a!E$100,Customer_Numbers[Utility],$D97,Customer_Numbers[Quarter],"Q4"),"")))))),"") -> 0
D98: UEDCL | E98: =IFERROR(SUM(IF($G$4="Q1",SUMIFS(Customer_Numbers[Customers],Customer_Numbers[Year],a!A$100,Customer_Numbers[Quarter],"Q1",Customer_Numbers[Utility],$D98),IF($G$4="Q2",SUMIFS(Customer_Numbers[Customers],Customer_Numbers[Year],a!A$100,Customer_Numbers[Quarter],"Q2",Customer_Numbers[Utility],$D98),IF($G$4="Q3",SUMIFS(Customer_Numbers[Customers],Customer_Numbers[Year],a!A$100,Customer_Numbers[Quarter],"Q3",Customer_Numbers[Utility],$D98),IF($G$4="Q4",SUMIFS(Customer_Numbers[Customers],Customer_Numbers[Year],a!A$100,Customer_Numbers[Quarter],"Q4",Customer_Numbers[Utility],$D98), IF($G$4="Calendar Year",SUMIFS(Customer_Numbers[Customers],Customer_Numbers[Year],a!A$100,Customer_Numbers[Utility],$D98,Customer_Numbers[Quarter],"Q4"),"")))))),"") -> 90572 | F98: =IFERROR(SUM(IF($G$4="Q1",SUMIFS(Customer_Numbers[Customers],Customer_Numbers[Year],a!B$100,Customer_Numbers[Quarter],"Q1",Customer_Numbers[Utility],$D98),IF($G$4="Q2",SUMIFS(Customer_Numbers[Customers],Customer_Numbers[Year],a!B$100,Customer_Numbers[Quarter],"Q2",Customer_Numbers[Utility],$D98),IF($G$4="Q3",SUMIFS(Customer_Numbers[Customers],Customer_Numbers[Year],a!B$100,Customer_Numbers[Quarter],"Q3",Customer_Numbers[Utility],$D98),IF($G$4="Q4",SUMIFS(Customer_Numbers[Customers],Customer_Numbers[Year],a!B$100,Customer_Numbers[Quarter],"Q4",Customer_Numbers[Utility],$D98), IF($G$4="Calendar Year",SUMIFS(Customer_Numbers[Customers],Customer_Numbers[Year],a!B$100,Customer_Numbers[Utility],$D98,Customer_Numbers[Quarter],"Q4"),"")))))),"") -> 108727 | G98: =IFERROR(SUM(IF($G$4="Q1",SUMIFS(Customer_Numbers[Customers],Customer_Numbers[Year],a!C$100,Customer_Numbers[Quarter],"Q1",Customer_Numbers[Utility],$D98),IF($G$4="Q2",SUMIFS(Customer_Numbers[Customers],Customer_Numbers[Year],a!C$100,Customer_Numbers[Quarter],"Q2",Customer_Numbers[Utility],$D98),IF($G$4="Q3",SUMIFS(Customer_Numbers[Customers],Customer_Numbers[Year],a!C$100,Customer_Numbers[Quarter],"Q3",Customer_Numbers[Utility],$D98),IF($G$4="Q4",SUMIFS(Customer_Numbers[Customers],Customer_Numbers[Year],a!C$100,Customer_Numbers[Quarter],"Q4",Customer_Numbers[Utility],$D98), IF($G$4="Calendar Year",SUMIFS(Customer_Numbers[Customers],Customer_Numbers[Year],a!C$100,Customer_Numbers[Utility],$D98,Customer_Numbers[Quarter],"Q4"),"")))))),"") -> 143203 | H98: =IFERROR(SUM(IF($G$4="Q1",SUMIFS(Customer_Numbers[Customers],Customer_Numbers[Year],a!D$100,Customer_Numbers[Quarter],"Q1",Customer_Numbers[Utility],$D98),IF($G$4="Q2",SUMIFS(Customer_Numbers[Customers],Customer_Numbers[Year],a!D$100,Customer_Numbers[Quarter],"Q2",Customer_Numbers[Utility],$D98),IF($G$4="Q3",SUMIFS(Customer_Numbers[Customers],Customer_Numbers[Year],a!D$100,Customer_Numbers[Quarter],"Q3",Customer_Numbers[Utility],$D98),IF($G$4="Q4",SUMIFS(Customer_Numbers[Customers],Customer_Numbers[Year],a!D$100,Customer_Numbers[Quarter],"Q4",Customer_Numbers[Utility],$D98), IF($G$4="Calendar Year",SUMIFS(Customer_Numbers[Customers],Customer_Numbers[Year],a!D$100,Customer_Numbers[Utility],$D98,Customer_Numbers[Quarter],"Q4"),"")))))),"") -> 241235 | I98: =IFERROR(SUM(IF($G$4="Q1",SUMIFS(Customer_Numbers[Customers],Customer_Numbers[Year],a!E$100,Customer_Numbers[Quarter],"Q1",Customer_Numbers[Utility],$D98),IF($G$4="Q2",SUMIFS(Customer_Numbers[Customers],Customer_Numbers[Year],a!E$100,Customer_Numbers[Quarter],"Q2",Customer_Numbers[Utility],$D98),IF($G$4="Q3",SUMIFS(Customer_Numbers[Customers],Customer_Numbers[Year],a!E$100,Customer_Numbers[Quarter],"Q3",Customer_Numbers[Utility],$D98),IF($G$4="Q4",SUMIFS(Customer_Numbers[Customers],Customer_Numbers[Year],a!E$100,Customer_Numbers[Quarter],"Q4",Customer_Numbers[Utility],$D98), IF($G$4="Calendar Year",SUMIFS(Customer_Numbers[Customers],Customer_Numbers[Year],a!E$100,Customer_Numbers[Utility],$D98,Customer_Numbers[Quarter],"Q4"),"")))))),"") -> 2757667
D99: UMEME | E99: =IFERROR(SUM(IF($G$4="Q1",SUMIFS(Customer_Numbers[Customers],Customer_Numbers[Year],a!A$100,Customer_Numbers[Quarter],"Q1",Customer_Numbers[Utility],$D99),IF($G$4="Q2",SUMIFS(Customer_Numbers[Customers],Customer_Numbers[Year],a!A$100,Customer_Numbers[Quarter],"Q2",Customer_Numbers[Utility],$D99),IF($G$4="Q3",SUMIFS(Customer_Numbers[Customers],Customer_Numbers[Year],a!A$100,Customer_Numbers[Quarter],"Q3",Customer_Numbers[Utility],$D99),IF($G$4="Q4",SUMIFS(Customer_Numbers[Customers],Customer_Numbers[Year],a!A$100,Customer_Numbers[Quarter],"Q4",Customer_Numbers[Utility],$D99), IF($G$4="Calendar Year",SUMIFS(Customer_Numbers[Customers],Customer_Numbers[Year],a!A$100,Customer_Numbers[Utility],$D99,Customer_Numbers[Quarter],"Q4"),"")))))),"") -> 1652502 | F99: =IFERROR(SUM(IF($G$4="Q1",SUMIFS(Customer_Numbers[Customers],Customer_Numbers[Year],a!B$100,Customer_Numbers[Quarter],"Q1",Customer_Numbers[Utility],$D99),IF($G$4="Q2",SUMIFS(Customer_Numbers[Customers],Customer_Numbers[Year],a!B$100,Customer_Numbers[Quarter],"Q2",Customer_Numbers[Utility],$D99),IF($G$4="Q3",SUMIFS(Customer_Numbers[Customers],Customer_Numbers[Year],a!B$100,Customer_Numbers[Quarter],"Q3",Customer_Numbers[Utility],$D99),IF($G$4="Q4",SUMIFS(Customer_Numbers[Customers],Customer_Numbers[Year],a!B$100,Customer_Numbers[Quarter],"Q4",Customer_Numbers[Utility],$D99), IF($G$4="Calendar Year",SUMIFS(Customer_Numbers[Customers],Customer_Numbers[Year],a!B$100,Customer_Numbers[Utility],$D99,Customer_Numbers[Quarter],"Q4"),"")))))),"") -> 1798468 | G99: =IFERROR(SUM(IF($G$4="Q1",SUMIFS(Customer_Numbers[Customers],Customer_Numbers[Year],a!C$100,Customer_Numbers[Quarter],"Q1",Customer_Numbers[Utility],$D99),IF($G$4="Q2",SUMIFS(Customer_Numbers[Customers],Customer_Numbers[Year],a!C$100,Customer_Numbers[Quarter],"Q2",Customer_Numbers[Utility],$D99),IF($G$4="Q3",SUMIFS(Customer_Numbers[Customers],Customer_Numbers[Year],a!C$100,Customer_Numbers[Quarter],"Q3",Customer_Numbers[Utility],$D99),IF($G$4="Q4",SUMIFS(Customer_Numbers[Customers],Customer_Numbers[Year],a!C$100,Customer_Numbers[Quarter],"Q4",Customer_Numbers[Utility],$D99), IF($G$4="Calendar Year",SUMIFS(Customer_Numbers[Customers],Customer_Numbers[Year],a!C$100,Customer_Numbers[Utility],$D99,Customer_Numbers[Quarter],"Q4"),"")))))),"") -> 2001128 | H99: =IFERROR(SUM(IF($G$4="Q1",SUMIFS(Customer_Numbers[Customers],Customer_Numbers[Year],a!D$100,Customer_Numbers[Quarter],"Q1",Customer_Numbers[Utility],$D99),IF($G$4="Q2",SUMIFS(Customer_Numbers[Customers],Customer_Numbers[Year],a!D$100,Customer_Numbers[Quarter],"Q2",Customer_Numbers[Utility],$D99),IF($G$4="Q3",SUMIFS(Customer_Numbers[Customers],Customer_Numbers[Year],a!D$100,Customer_Numbers[Quarter],"Q3",Customer_Numbers[Utility],$D99),IF($G$4="Q4",SUMIFS(Customer_Numbers[Customers],Customer_Numbers[Year],a!D$100,Customer_Numbers[Quarter],"Q4",Customer_Numbers[Utility],$D99), IF($G$4="Calendar Year",SUMIFS(Customer_Numbers[Customers],Customer_Numbers[Year],a!D$100,Customer_Numbers[Utility],$D99,Customer_Numbers[Quarter],"Q4"),"")))))),"") -> 2165750 | I99: =IFERROR(SUM(IF($G$4="Q1",SUMIFS(Customer_Numbers[Customers],Customer_Numbers[Year],a!E$100,Customer_Numbers[Quarter],"Q1",Customer_Numbers[Utility],$D99),IF($G$4="Q2",SUMIFS(Customer_Numbers[Customers],Customer_Numbers[Year],a!E$100,Customer_Numbers[Quarter],"Q2",Customer_Numbers[Utility],$D99),IF($G$4="Q3",SUMIFS(Customer_Numbers[Customers],Customer_Numbers[Year],a!E$100,Customer_Numbers[Quarter],"Q3",Customer_Numbers[Utility],$D99),IF($G$4="Q4",SUMIFS(Customer_Numbers[Customers],Customer_Numbers[Year],a!E$100,Customer_Numbers[Quarter],"Q4",Customer_Numbers[Utility],$D99), IF($G$4="Calendar Year",SUMIFS(Customer_Numbers[Customers],Customer_Numbers[Year],a!E$100,Customer_Numbers[Utility],$D99,Customer_Numbers[Quarter],"Q4"),"")))))),"") -> 0
D100: WENRECO | E100: =IFERROR(SUM(IF($G$4="Q1",SUMIFS(Customer_Numbers[Customers],Customer_Numbers[Year],a!A$100,Customer_Numbers[Quarter],"Q1",Customer_Numbers[Utility],$D100),IF($G$4="Q2",SUMIFS(Customer_Numbers[Customers],Customer_Numbers[Year],a!A$100,Customer_Numbers[Quarter],"Q2",Customer_Numbers[Utility],$D100),IF($G$4="Q3",SUMIFS(Customer_Numbers[Customers],Customer_Numbers[Year],a!A$100,Customer_Numbers[Quarter],"Q3",Customer_Numbers[Utility],$D100),IF($G$4="Q4",SUMIFS(Customer_Numbers[Customers],Customer_Numbers[Year],a!A$100,Customer_Numbers[Quarter],"Q4",Customer_Numbers[Utility],$D100), IF($G$4="Calendar Year",SUMIFS(Customer_Numbers[Customers],Customer_Numbers[Year],a!A$100,Customer_Numbers[Utility],$D100,Customer_Numbers[Quarter],"Q4"),"")))))),"") -> 0 | F100: =IFERROR(SUM(IF($G$4="Q1",SUMIFS(Customer_Numbers[Customers],Customer_Numbers[Year],a!B$100,Customer_Numbers[Quarter],"Q1",Customer_Numbers[Utility],$D100),IF($G$4="Q2",SUMIFS(Customer_Numbers[Customers],Customer_Numbers[Year],a!B$100,Customer_Numbers[Quarter],"Q2",Customer_Numbers[Utility],$D100),IF($G$4="Q3",SUMIFS(Customer_Numbers[Customers],Customer_Numbers[Year],a!B$100,Customer_Numbers[Quarter],"Q3",Customer_Numbers[Utility],$D100),IF($G$4="Q4",SUMIFS(Customer_Numbers[Customers],Customer_Numbers[Year],a!B$100,Customer_Numbers[Quarter],"Q4",Customer_Numbers[Utility],$D100), IF($G$4="Calendar Year",SUMIFS(Customer_Numbers[Customers],Customer_Numbers[Year],a!B$100,Customer_Numbers[Utility],$D100,Customer_Numbers[Quarter],"Q4"),"")))))),"") -> 0 | G100: =IFERROR(SUM(IF($G$4="Q1",SUMIFS(Customer_Numbers[Customers],Customer_Numbers[Year],a!C$100,Customer_Numbers[Quarter],"Q1",Customer_Numbers[Utility],$D100),IF($G$4="Q2",SUMIFS(Customer_Numbers[Customers],Customer_Numbers[Year],a!C$100,Customer_Numbers[Quarter],"Q2",Customer_Numbers[Utility],$D100),IF($G$4="Q3",SUMIFS(Customer_Numbers[Customers],Customer_Numbers[Year],a!C$100,Customer_Numbers[Quarter],"Q3",Customer_Numbers[Utility],$D100),IF($G$4="Q4",SUMIFS(Customer_Numbers[Customers],Customer_Numbers[Year],a!C$100,Customer_Numbers[Quarter],"Q4",Customer_Numbers[Utility],$D100), IF($G$4="Calendar Year",SUMIFS(Customer_Numbers[Customers],Customer_Numbers[Year],a!C$100,Customer_Numbers[Utility],$D100,Customer_Numbers[Quarter],"Q4"),"")))))),"") -> 25964 | H100: =IFERROR(SUM(IF($G$4="Q1",SUMIFS(Customer_Numbers[Customers],Customer_Numbers[Year],a!D$100,Customer_Numbers[Quarter],"Q1",Customer_Numbers[Utility],$D100),IF($G$4="Q2",SUMIFS(Customer_Numbers[Customers],Customer_Numbers[Year],a!D$100,Customer_Numbers[Quarter],"Q2",Customer_Numbers[Utility],$D100),IF($G$4="Q3",SUMIFS(Customer_Numbers[Customers],Customer_Numbers[Year],a!D$100,Customer_Numbers[Quarter],"Q3",Customer_Numbers[Utility],$D100),IF($G$4="Q4",SUMIFS(Customer_Numbers[Customers],Customer_Numbers[Year],a!D$100,Customer_Numbers[Quarter],"Q4",Customer_Numbers[Utility],$D100), IF($G$4="Calendar Year",SUMIFS(Customer_Numbers[Customers],Customer_Numbers[Year],a!D$100,Customer_Numbers[Utility],$D100,Customer_Numbers[Quarter],"Q4"),"")))))),"") -> 34056 | I100: =IFERROR(SUM(IF($G$4="Q1",SUMIFS(Customer_Numbers[Customers],Customer_Numbers[Year],a!E$100,Customer_Numbers[Quarter],"Q1",Customer_Numbers[Utility],$D100),IF($G$4="Q2",SUMIFS(Customer_Numbers[Customers],Customer_Numbers[Year],a!E$100,Customer_Numbers[Quarter],"Q2",Customer_Numbers[Utility],$D100),IF($G$4="Q3",SUMIFS(Customer_Numbers[Customers],Customer_Numbers[Year],a!E$100,Customer_Numbers[Quarter],"Q3",Customer_Numbers[Utility],$D100),IF($G$4="Q4",SUMIFS(Customer_Numbers[Customers],Customer_Numbers[Year],a!E$100,Customer_Numbers[Quarter],"Q4",Customer_Numbers[Utility],$D100), IF($G$4="Calendar Year",SUMIFS(Customer_Numbers[Customers],Customer_Numbers[Year],a!E$100,Customer_Numbers[Utility],$D100,Customer_Numbers[Quarter],"Q4"),"")))))),"") -> 38315
D101: Total Customer Numbers | E101: =SUM(E92:E100) -> 1779982 | F101: =SUM(F92:F100) -> 1945388 | G101: =SUM(G92:G100) -> 2208060 | H101: =SUM(H92:H100) -> 2447006 | I101: =SUM(I92:I100) -> 2802738
D102: Customer Numbers by Category | E102: =E91 -> 2022-Q1 | F102: =F91 -> 2023-Q1 | G102: =G91 -> 2024-Q1 | H102: =H91 -> 2025-Q1 | I102: =I91 -> 2026-Q1
D103: Commercial | E103: =IFERROR(SUM(IF($G$4="Q1",SUMIFS(Customer_Numbers[Customers],Customer_Numbers[Year],a!A$100,Customer_Numbers[Quarter],"Q1",Customer_Numbers[Category],$D103),IF($G$4="Q2",SUMIFS(Customer_Numbers[Customers],Customer_Numbers[Year],a!A$100,Customer_Numbers[Quarter],"Q2",Customer_Numbers[Category],$D103),IF($G$4="Q3",SUMIFS(Customer_Numbers[Customers],Customer_Numbers[Year],a!A$100,Customer_Numbers[Quarter],"Q3",Customer_Numbers[Category],$D103),IF($G$4="Q4",SUMIFS(Customer_Numbers[Customers],Customer_Numbers[Year],a!A$100,Customer_Numbers[Quarter],"Q4",Customer_Numbers[Category],$D103), IF($G$4="Calendar Year",SUMIFS(Customer_Numbers[Customers],Customer_Numbers[Year],a!A$100,Customer_Numbers[Category],$D103,Customer_Numbers[Quarter],"Q4"),"")))))),"") -> 90957 | F103: =IFERROR(SUM(IF($G$4="Q1",SUMIFS(Customer_Numbers[Customers],Customer_Numbers[Year],a!B$100,Customer_Numbers[Quarter],"Q1",Customer_Numbers[Category],$D103),IF($G$4="Q2",SUMIFS(Customer_Numbers[Customers],Customer_Numbers[Year],a!B$100,Customer_Numbers[Quarter],"Q2",Customer_Numbers[Category],$D103),IF($G$4="Q3",SUMIFS(Customer_Numbers[Customers],Customer_Numbers[Year],a!B$100,Customer_Numbers[Quarter],"Q3",Customer_Numbers[Category],$D103),IF($G$4="Q4",SUMIFS(Customer_Numbers[Customers],Customer_Numbers[Year],a!B$100,Customer_Numbers[Quarter],"Q4",Customer_Numbers[Category],$D103), IF($G$4="Calendar Year",SUMIFS(Customer_Numbers[Customers],Customer_Numbers[Year],a!B$100,Customer_Numbers[Category],$D103,Customer_Numbers[Quarter],"Q4"),"")))))),"") -> 94047 | G103: =IFERROR(SUM(IF($G$4="Q1",SUMIFS(Customer_Numbers[Customers],Customer_Numbers[Year],a!C$100,Customer_Numbers[Quarter],"Q1",Customer_Numbers[Category],$D103),IF($G$4="Q2",SUMIFS(Customer_Numbers[Customers],Customer_Numbers[Year],a!C$100,Customer_Numbers[Quarter],"Q2",Customer_Numbers[Category],$D103),IF($G$4="Q3",SUMIFS(Customer_Numbers[Customers],Customer_Numbers[Year],a!C$100,Customer_Numbers[Quarter],"Q3",Customer_Numbers[Category],$D103),IF($G$4="Q4",SUMIFS(Customer_Numbers[Customers],Customer_Numbers[Year],a!C$100,Customer_Numbers[Quarter],"Q4",Customer_Numbers[Category],$D103), IF($G$4="Calendar Year",SUMIFS(Customer_Numbers[Customers],Customer_Numbers[Year],a!C$100,Customer_Numbers[Category],$D103,Customer_Numbers[Quarter],"Q4"),"")))))),"") -> 96172 | H103: =IFERROR(SUM(IF($G$4="Q1",SUMIFS(Customer_Numbers[Customers],Customer_Numbers[Year],a!D$100,Customer_Numbers[Quarter],"Q1",Customer_Numbers[Category],$D103),IF($G$4="Q2",SUMIFS(Customer_Numbers[Customers],Customer_Numbers[Year],a!D$100,Customer_Numbers[Quarter],"Q2",Customer_Numbers[Category],$D103),IF($G$4="Q3",SUMIFS(Customer_Numbers[Customers],Customer_Numbers[Year],a!D$100,Customer_Numbers[Quarter],"Q3",Customer_Numbers[Category],$D103),IF($G$4="Q4",SUMIFS(Customer_Numbers[Customers],Customer_Numbers[Year],a!D$100,Customer_Numbers[Quarter],"Q4",Customer_Numbers[Category],$D103), IF($G$4="Calendar Year",SUMIFS(Customer_Numbers[Customers],Customer_Numbers[Year],a!D$100,Customer_Numbers[Category],$D103,Customer_Numbers[Quarter],"Q4"),"")))))),"") -> 97582 | I103: =IFERROR(SUM(IF($G$4="Q1",SUMIFS(Customer_Numbers[Customers],Customer_Numbers[Year],a!E$100,Customer_Numbers[Quarter],"Q1",Customer_Numbers[Category],$D103),IF($G$4="Q2",SUMIFS(Customer_Numbers[Customers],Customer_Numbers[Year],a!E$100,Customer_Numbers[Quarter],"Q2",Customer_Numbers[Category],$D103),IF($G$4="Q3",SUMIFS(Customer_Numbers[Customers],Customer_Numbers[Year],a!E$100,Customer_Numbers[Quarter],"Q3",Customer_Numbers[Category],$D103),IF($G$4="Q4",SUMIFS(Customer_Numbers[Customers],Customer_Numbers[Year],a!E$100,Customer_Numbers[Quarter],"Q4",Customer_Numbers[Category],$D103), IF($G$4="Calendar Year",SUMIFS(Customer_Numbers[Customers],Customer_Numbers[Year],a!E$100,Customer_Numbers[Category],$D103,Customer_Numbers[Quarter],"Q4"),"")))))),"") -> 89833
D104: Domestic | E104: =IFERROR(SUM(IF($G$4="Q1",SUMIFS(Customer_Numbers[Customers],Customer_Numbers[Year],a!A$100,Customer_Numbers[Quarter],"Q1",Customer_Numbers[Category],$D104),IF($G$4="Q2",SUMIFS(Customer_Numbers[Customers],Customer_Numbers[Year],a!A$100,Customer_Numbers[Quarter],"Q2",Customer_Numbers[Category],$D104),IF($G$4="Q3",SUMIFS(Customer_Numbers[Customers],Customer_Numbers[Year],a!A$100,Customer_Numbers[Quarter],"Q3",Customer_Numbers[Category],$D104),IF($G$4="Q4",SUMIFS(Customer_Numbers[Customers],Customer_Numbers[Year],a!A$100,Customer_Numbers[Quarter],"Q4",Customer_Numbers[Category],$D104), IF($G$4="Calendar Year",SUMIFS(Customer_Numbers[Customers],Customer_Numbers[Year],a!A$100,Customer_Numbers[Category],$D104,Customer_Numbers[Quarter],"Q4"),"")))))),"") -> 1684822 | F104: =IFERROR(SUM(IF($G$4="Q1",SUMIFS(Customer_Numbers[Customers],Customer_Numbers[Year],a!B$100,Customer_Numbers[Quarter],"Q1",Customer_Numbers[Category],$D104),IF($G$4="Q2",SUMIFS(Customer_Numbers[Customers],Customer_Numbers[Year],a!B$100,Customer_Numbers[Quarter],"Q2",Customer_Numbers[Category],$D104),IF($G$4="Q3",SUMIFS(Customer_Numbers[Customers],Customer_Numbers[Year],a!B$100,Customer_Numbers[Quarter],"Q3",Customer_Numbers[Category],$D104),IF($G$4="Q4",SUMIFS(Customer_Numbers[Customers],Customer_Numbers[Year],a!B$100,Customer_Numbers[Quarter],"Q4",Customer_Numbers[Category],$D104), IF($G$4="Calendar Year",SUMIFS(Customer_Numbers[Customers],Customer_Numbers[Year],a!B$100,Customer_Numbers[Category],$D104,Customer_Numbers[Quarter],"Q4"),"")))))),"") -> 1846818 | G104: =IFERROR(SUM(IF($G$4="Q1",SUMIFS(Customer_Numbers[Customers],Customer_Numbers[Year],a!C$100,Customer_Numbers[Quarter],"Q1",Customer_Numbers[Category],$D104),IF($G$4="Q2",SUMIFS(Customer_Numbers[Customers],Customer_Numbers[Year],a!C$100,Customer_Numbers[Quarter],"Q2",Customer_Numbers[Category],$D104),IF($G$4="Q3",SUMIFS(Customer_Numbers[Customers],Customer_Numbers[Year],a!C$100,Customer_Numbers[Quarter],"Q3",Customer_Numbers[Category],$D104),IF($G$4="Q4",SUMIFS(Customer_Numbers[Customers],Customer_Numbers[Year],a!C$100,Customer_Numbers[Quarter],"Q4",Customer_Numbers[Category],$D104), IF($G$4="Calendar Year",SUMIFS(Customer_Numbers[Customers],Customer_Numbers[Year],a!C$100,Customer_Numbers[Category],$D104,Customer_Numbers[Quarter],"Q4"),"")))))),"") -> 2106938 | H104: =IFERROR(SUM(IF($G$4="Q1",SUMIFS(Customer_Numbers[Customers],Customer_Numbers[Year],a!D$100,Customer_Numbers[Quarter],"Q1",Customer_Numbers[Category],$D104),IF($G$4="Q2",SUMIFS(Customer_Numbers[Customers],Customer_Numbers[Year],a!D$100,Customer_Numbers[Quarter],"Q2",Customer_Numbers[Category],$D104),IF($G$4="Q3",SUMIFS(Customer_Numbers[Customers],Customer_Numbers[Year],a!D$100,Customer_Numbers[Quarter],"Q3",Customer_Numbers[Category],$D104),IF($G$4="Q4",SUMIFS(Customer_Numbers[Customers],Customer_Numbers[Year],a!D$100,Customer_Numbers[Quarter],"Q4",Customer_Numbers[Category],$D104), IF($G$4="Calendar Year",SUMIFS(Customer_Numbers[Customers],Customer_Numbers[Year],a!D$100,Customer_Numbers[Category],$D104,Customer_Numbers[Quarter],"Q4"),"")))))),"") -> 2344254 | I104: =IFERROR(SUM(IF($G$4="Q1",SUMIFS(Customer_Numbers[Customers],Customer_Numbers[Year],a!E$100,Customer_Numbers[Quarter],"Q1",Customer_Numbers[Category],$D104),IF($G$4="Q2",SUMIFS(Customer_Numbers[Customers],Customer_Numbers[Year],a!E$100,Customer_Numbers[Quarter],"Q2",Customer_Numbers[Category],$D104),IF($G$4="Q3",SUMIFS(Customer_Numbers[Customers],Customer_Numbers[Year],a!E$100,Customer_Numbers[Quarter],"Q3",Customer_Numbers[Category],$D104),IF($G$4="Q4",SUMIFS(Customer_Numbers[Customers],Customer_Numbers[Year],a!E$100,Customer_Numbers[Quarter],"Q4",Customer_Numbers[Category],$D104), IF($G$4="Calendar Year",SUMIFS(Customer_Numbers[Customers],Customer_Numbers[Year],a!E$100,Customer_Numbers[Category],$D104,Customer_Numbers[Quarter],"Q4"),"")))))),"") -> 2707272
D105: Extra Large | E105: =IFERROR(SUM(IF($G$4="Q1",SUMIFS(Customer_Numbers[Customers],Customer_Numbers[Year],a!A$100,Customer_Numbers[Quarter],"Q1",Customer_Numbers[Category],$D105),IF($G$4="Q2",SUMIFS(Customer_Numbers[Customers],Customer_Numbers[Year],a!A$100,Customer_Numbers[Quarter],"Q2",Customer_Numbers[Category],$D105),IF($G$4="Q3",SUMIFS(Customer_Numbers[Customers],Customer_Numbers[Year],a!A$100,Customer_Numbers[Quarter],"Q3",Customer_Numbers[Category],$D105),IF($G$4="Q4",SUMIFS(Customer_Numbers[Customers],Customer_Numbers[Year],a!A$100,Customer_Numbers[Quarter],"Q4",Customer_Numbers[Category],$D105), IF($G$4="Calendar Year",SUMIFS(Customer_Numbers[Customers],Customer_Numbers[Year],a!A$100,Customer_Numbers[Category],$D105,Customer_Numbers[Quarter],"Q4"),"")))))),"") -> 54 | F105: =IFERROR(SUM(IF($G$4="Q1",SUMIFS(Customer_Numbers[Customers],Customer_Numbers[Year],a!B$100,Customer_Numbers[Quarter],"Q1",Customer_Numbers[Category],$D105),IF($G$4="Q2",SUMIFS(Customer_Numbers[Customers],Customer_Numbers[Year],a!B$100,Customer_Numbers[Quarter],"Q2",Customer_Numbers[Category],$D105),IF($G$4="Q3",SUMIFS(Customer_Numbers[Customers],Customer_Numbers[Year],a!B$100,Customer_Numbers[Quarter],"Q3",Customer_Numbers[Category],$D105),IF($G$4="Q4",SUMIFS(Customer_Numbers[Customers],Customer_Numbers[Year],a!B$100,Customer_Numbers[Quarter],"Q4",Customer_Numbers[Category],$D105), IF($G$4="Calendar Year",SUMIFS(Customer_Numbers[Customers],Customer_Numbers[Year],a!B$100,Customer_Numbers[Category],$D105,Customer_Numbers[Quarter],"Q4"),"")))))),"") -> 49 | G105: =IFERROR(SUM(IF($G$4="Q1",SUMIFS(Customer_Numbers[Customers],Customer_Numbers[Year],a!C$100,Customer_Numbers[Quarter],"Q1",Customer_Numbers[Category],$D105),IF($G$4="Q2",SUMIFS(Customer_Numbers[Customers],Customer_Numbers[Year],a!C$100,Customer_Numbers[Quarter],"Q2",Customer_Numbers[Category],$D105),IF($G$4="Q3",SUMIFS(Customer_Numbers[Customers],Customer_Numbers[Year],a!C$100,Customer_Numbers[Quarter],"Q3",Customer_Numbers[Category],$D105),IF($G$4="Q4",SUMIFS(Customer_Numbers[Customers],Customer_Numbers[Year],a!C$100,Customer_Numbers[Quarter],"Q4",Customer_Numbers[Category],$D105), IF($G$4="Calendar Year",SUMIFS(Customer_Numbers[Customers],Customer_Numbers[Year],a!C$100,Customer_Numbers[Category],$D105,Customer_Numbers[Quarter],"Q4"),"")))))),"") -> 49 | H105: =IFERROR(SUM(IF($G$4="Q1",SUMIFS(Customer_Numbers[Customers],Customer_Numbers[Year],a!D$100,Customer_Numbers[Quarter],"Q1",Customer_Numbers[Category],$D105),IF($G$4="Q2",SUMIFS(Customer_Numbers[Customers],Customer_Numbers[Year],a!D$100,Customer_Numbers[Quarter],"Q2",Customer_Numbers[Category],$D105),IF($G$4="Q3",SUMIFS(Customer_Numbers[Customers],Customer_Numbers[Year],a!D$100,Customer_Numbers[Quarter],"Q3",Customer_Numbers[Category],$D105),IF($G$4="Q4",SUMIFS(Customer_Numbers[Customers],Customer_Numbers[Year],a!D$100,Customer_Numbers[Quarter],"Q4",Customer_Numbers[Category],$D105), IF($G$4="Calendar Year",SUMIFS(Customer_Numbers[Customers],Customer_Numbers[Year],a!D$100,Customer_Numbers[Category],$D105,Customer_Numbers[Quarter],"Q4"),"")))))),"") -> 52 | I105: =IFERROR(SUM(IF($G$4="Q1",SUMIFS(Customer_Numbers[Customers],Customer_Numbers[Year],a!E$100,Customer_Numbers[Quarter],"Q1",Customer_Numbers[Category],$D105),IF($G$4="Q2",SUMIFS(Customer_Numbers[Customers],Customer_Numbers[Year],a!E$100,Customer_Numbers[Quarter],"Q2",Customer_Numbers[Category],$D105),IF($G$4="Q3",SUMIFS(Customer_Numbers[Customers],Customer_Numbers[Year],a!E$100,Customer_Numbers[Quarter],"Q3",Customer_Numbers[Category],$D105),IF($G$4="Q4",SUMIFS(Customer_Numbers[Customers],Customer_Numbers[Year],a!E$100,Customer_Numbers[Quarter],"Q4",Customer_Numbers[Category],$D105), IF($G$4="Calendar Year",SUMIFS(Customer_Numbers[Customers],Customer_Numbers[Year],a!E$100,Customer_Numbers[Category],$D105,Customer_Numbers[Quarter],"Q4"),"")))))),"") -> 65
D106: Large Industries | E106: =IFERROR(SUM(IF($G$4="Q1",SUMIFS(Customer_Numbers[Customers],Customer_Numbers[Year],a!A$100,Customer_Numbers[Quarter],"Q1",Customer_Numbers[Category],$D106),IF($G$4="Q2",SUMIFS(Customer_Numbers[Customers],Customer_Numbers[Year],a!A$100,Customer_Numbers[Quarter],"Q2",Customer_Numbers[Category],$D106),IF($G$4="Q3",SUMIFS(Customer_Numbers[Customers],Customer_Numbers[Year],a!A$100,Customer_Numbers[Quarter],"Q3",Customer_Numbers[Category],$D106),IF($G$4="Q4",SUMIFS(Customer_Numbers[Customers],Customer_Numbers[Year],a!A$100,Customer_Numbers[Quarter],"Q4",Customer_Numbers[Category],$D106), IF($G$4="Calendar Year",SUMIFS(Customer_Numbers[Customers],Customer_Numbers[Year],a!A$100,Customer_Numbers[Category],$D106,Customer_Numbers[Quarter],"Q4"),"")))))),"") -> 635 | F106: =IFERROR(SUM(IF($G$4="Q1",SUMIFS(Customer_Numbers[Customers],Customer_Numbers[Year],a!B$100,Customer_Numbers[Quarter],"Q1",Customer_Numbers[Category],$D106),IF($G$4="Q2",SUMIFS(Customer_Numbers[Customers],Customer_Numbers[Year],a!B$100,Customer_Numbers[Quarter],"Q2",Customer_Numbers[Category],$D106),IF($G$4="Q3",SUMIFS(Customer_Numbers[Customers],Customer_Numbers[Year],a!B$100,Customer_Numbers[Quarter],"Q3",Customer_Numbers[Category],$D106),IF($G$4="Q4",SUMIFS(Customer_Numbers[Customers],Customer_Numbers[Year],a!B$100,Customer_Numbers[Quarter],"Q4",Customer_Numbers[Category],$D106), IF($G$4="Calendar Year",SUMIFS(Customer_Numbers[Customers],Customer_Numbers[Year],a!B$100,Customer_Numbers[Category],$D106,Customer_Numbers[Quarter],"Q4"),"")))))),"") -> 666 | G106: =IFERROR(SUM(IF($G$4="Q1",SUMIFS(Customer_Numbers[Customers],Customer_Numbers[Year],a!C$100,Customer_Numbers[Quarter],"Q1",Customer_Numbers[Category],$D106),IF($G$4="Q2",SUMIFS(Customer_Numbers[Customers],Customer_Numbers[Year],a!C$100,Customer_Numbers[Quarter],"Q2",Customer_Numbers[Category],$D106),IF($G$4="Q3",SUMIFS(Customer_Numbers[Customers],Customer_Numbers[Year],a!C$100,Customer_Numbers[Quarter],"Q3",Customer_Numbers[Category],$D106),IF($G$4="Q4",SUMIFS(Customer_Numbers[Customers],Customer_Numbers[Year],a!C$100,Customer_Numbers[Quarter],"Q4",Customer_Numbers[Category],$D106), IF($G$4="Calendar Year",SUMIFS(Customer_Numbers[Customers],Customer_Numbers[Year],a!C$100,Customer_Numbers[Category],$D106,Customer_Numbers[Quarter],"Q4"),"")))))),"") -> 702 | H106: =IFERROR(SUM(IF($G$4="Q1",SUMIFS(Customer_Numbers[Customers],Customer_Numbers[Year],a!D$100,Customer_Numbers[Quarter],"Q1",Customer_Numbers[Category],$D106),IF($G$4="Q2",SUMIFS(Customer_Numbers[Customers],Customer_Numbers[Year],a!D$100,Customer_Numbers[Quarter],"Q2",Customer_Numbers[Category],$D106),IF($G$4="Q3",SUMIFS(Customer_Numbers[Customers],Customer_Numbers[Year],a!D$100,Customer_Numbers[Quarter],"Q3",Customer_Numbers[Category],$D106),IF($G$4="Q4",SUMIFS(Customer_Numbers[Customers],Customer_Numbers[Year],a!D$100,Customer_Numbers[Quarter],"Q4",Customer_Numbers[Category],$D106), IF($G$4="Calendar Year",SUMIFS(Customer_Numbers[Customers],Customer_Numbers[Year],a!D$100,Customer_Numbers[Category],$D106,Customer_Numbers[Quarter],"Q4"),"")))))),"") -> 737 | I106: =IFERROR(SUM(IF($G$4="Q1",SUMIFS(Customer_Numbers[Customers],Customer_Numbers[Year],a!E$100,Customer_Numbers[Quarter],"Q1",Customer_Numbers[Category],$D106),IF($G$4="Q2",SUMIFS(Customer_Numbers[Customers],Customer_Numbers[Year],a!E$100,Customer_Numbers[Quarter],"Q2",Customer_Numbers[Category],$D106),IF($G$4="Q3",SUMIFS(Customer_Numbers[Customers],Customer_Numbers[Year],a!E$100,Customer_Numbers[Quarter],"Q3",Customer_Numbers[Category],$D106),IF($G$4="Q4",SUMIFS(Customer_Numbers[Customers],Customer_Numbers[Year],a!E$100,Customer_Numbers[Quarter],"Q4",Customer_Numbers[Category],$D106), IF($G$4="Calendar Year",SUMIFS(Customer_Numbers[Customers],Customer_Numbers[Year],a!E$100,Customer_Numbers[Category],$D106,Customer_Numbers[Quarter],"Q4"),"")))))),"") -> 766
D107: Medium Industries | E107: =IFERROR(SUM(IF($G$4="Q1",SUMIFS(Customer_Numbers[Customers],Customer_Numbers[Year],a!A$100,Customer_Numbers[Quarter],"Q1",Customer_Numbers[Category],$D107),IF($G$4="Q2",SUMIFS(Customer_Numbers[Customers],Customer_Numbers[Year],a!A$100,Customer_Numbers[Quarter],"Q2",Customer_Numbers[Category],$D107),IF($G$4="Q3",SUMIFS(Customer_Numbers[Customers],Customer_Numbers[Year],a!A$100,Customer_Numbers[Quarter],"Q3",Customer_Numbers[Category],$D107),IF($G$4="Q4",SUMIFS(Customer_Numbers[Customers],Customer_Numbers[Year],a!A$100,Customer_Numbers[Quarter],"Q4",Customer_Numbers[Category],$D107), IF($G$4="Calendar Year",SUMIFS(Customer_Numbers[Customers],Customer_Numbers[Year],a!A$100,Customer_Numbers[Category],$D107,Customer_Numbers[Quarter],"Q4"),"")))))),"") -> 3217 | F107: =IFERROR(SUM(IF($G$4="Q1",SUMIFS(Customer_Numbers[Customers],Customer_Numbers[Year],a!B$100,Customer_Numbers[Quarter],"Q1",Customer_Numbers[Category],$D107),IF($G$4="Q2",SUMIFS(Customer_Numbers[Customers],Customer_Numbers[Year],a!B$100,Customer_Numbers[Quarter],"Q2",Customer_Numbers[Category],$D107),IF($G$4="Q3",SUMIFS(Customer_Numbers[Customers],Customer_Numbers[Year],a!B$100,Customer_Numbers[Quarter],"Q3",Customer_Numbers[Category],$D107),IF($G$4="Q4",SUMIFS(Customer_Numbers[Customers],Customer_Numbers[Year],a!B$100,Customer_Numbers[Quarter],"Q4",Customer_Numbers[Category],$D107), IF($G$4="Calendar Year",SUMIFS(Customer_Numbers[Customers],Customer_Numbers[Year],a!B$100,Customer_Numbers[Category],$D107,Customer_Numbers[Quarter],"Q4"),"")))))),"") -> 3509 | G107: =IFERROR(SUM(IF($G$4="Q1",SUMIFS(Customer_Numbers[Customers],Customer_Numbers[Year],a!C$100,Customer_Numbers[Quarter],"Q1",Customer_Numbers[Category],$D107),IF($G$4="Q2",SUMIFS(Customer_Numbers[Customers],Customer_Numbers[Year],a!C$100,Customer_Numbers[Quarter],"Q2",Customer_Numbers[Category],$D107),IF($G$4="Q3",SUMIFS(Customer_Numbers[Customers],Customer_Numbers[Year],a!C$100,Customer_Numbers[Quarter],"Q3",Customer_Numbers[Category],$D107),IF($G$4="Q4",SUMIFS(Customer_Numbers[Customers],Customer_Numbers[Year],a!C$100,Customer_Numbers[Quarter],"Q4",Customer_Numbers[Category],$D107), IF($G$4="Calendar Year",SUMIFS(Customer_Numbers[Customers],Customer_Numbers[Year],a!C$100,Customer_Numbers[Category],$D107,Customer_Numbers[Quarter],"Q4"),"")))))),"") -> 3839 | H107: =IFERROR(SUM(IF($G$4="Q1",SUMIFS(Customer_Numbers[Customers],Customer_Numbers[Year],a!D$100,Customer_Numbers[Quarter],"Q1",Customer_Numbers[Category],$D107),IF($G$4="Q2",SUMIFS(Customer_Numbers[Customers],Customer_Numbers[Year],a!D$100,Customer_Numbers[Quarter],"Q2",Customer_Numbers[Category],$D107),IF($G$4="Q3",SUMIFS(Customer_Numbers[Customers],Customer_Numbers[Year],a!D$100,Customer_Numbers[Quarter],"Q3",Customer_Numbers[Category],$D107),IF($G$4="Q4",SUMIFS(Customer_Numbers[Customers],Customer_Numbers[Year],a!D$100,Customer_Numbers[Quarter],"Q4",Customer_Numbers[Category],$D107), IF($G$4="Calendar Year",SUMIFS(Customer_Numbers[Customers],Customer_Numbers[Year],a!D$100,Customer_Numbers[Category],$D107,Customer_Numbers[Quarter],"Q4"),"")))))),"") -> 4024 | I107: =IFERROR(SUM(IF($G$4="Q1",SUMIFS(Customer_Numbers[Customers],Customer_Numbers[Year],a!E$100,Customer_Numbers[Quarter],"Q1",Customer_Numbers[Category],$D107),IF($G$4="Q2",SUMIFS(Customer_Numbers[Customers],Customer_Numbers[Year],a!E$100,Customer_Numbers[Quarter],"Q2",Customer_Numbers[Category],$D107),IF($G$4="Q3",SUMIFS(Customer_Numbers[Customers],Customer_Numbers[Year],a!E$100,Customer_Numbers[Quarter],"Q3",Customer_Numbers[Category],$D107),IF($G$4="Q4",SUMIFS(Customer_Numbers[Customers],Customer_Numbers[Year],a!E$100,Customer_Numbers[Quarter],"Q4",Customer_Numbers[Category],$D107), IF($G$4="Calendar Year",SUMIFS(Customer_Numbers[Customers],Customer_Numbers[Year],a!E$100,Customer_Numbers[Category],$D107,Customer_Numbers[Quarter],"Q4"),"")))))),"") -> 4396
D108: Public Amenities | E108: =IFERROR(SUM(IF($G$4="Q1",SUMIFS(Customer_Numbers[Customers],Customer_Numbers[Year],a!A$100,Customer_Numbers[Quarter],"Q1",Customer_Numbers[Category],$D108),IF($G$4="Q2",SUMIFS(Customer_Numbers[Customers],Customer_Numbers[Year],a!A$100,Customer_Numbers[Quarter],"Q2",Customer_Numbers[Category],$D108),IF($G$4="Q3",SUMIFS(Customer_Numbers[Customers],Customer_Numbers[Year],a!A$100,Customer_Numbers[Quarter],"Q3",Customer_Numbers[Category],$D108),IF($G$4="Q4",SUMIFS(Customer_Numbers[Customers],Customer_Numbers[Year],a!A$100,Customer_Numbers[Quarter],"Q4",Customer_Numbers[Category],$D108), IF($G$4="Calendar Year",SUMIFS(Customer_Numbers[Customers],Customer_Numbers[Year],a!A$100,Customer_Numbers[Category],$D108,Customer_Numbers[Quarter],"Q4"),"")))))),"") -> 0 | F108: =IFERROR(SUM(IF($G$4="Q1",SUMIFS(Customer_Numbers[Customers],Customer_Numbers[Year],a!B$100,Customer_Numbers[Quarter],"Q1",Customer_Numbers[Category],$D108),IF($G$4="Q2",SUMIFS(Customer_Numbers[Customers],Customer_Numbers[Year],a!B$100,Customer_Numbers[Quarter],"Q2",Customer_Numbers[Category],$D108),IF($G$4="Q3",SUMIFS(Customer_Numbers[Customers],Customer_Numbers[Year],a!B$100,Customer_Numbers[Quarter],"Q3",Customer_Numbers[Category],$D108),IF($G$4="Q4",SUMIFS(Customer_Numbers[Customers],Customer_Numbers[Year],a!B$100,Customer_Numbers[Quarter],"Q4",Customer_Numbers[Category],$D108), IF($G$4="Calendar Year",SUMIFS(Customer_Numbers[Customers],Customer_Numbers[Year],a!B$100,Customer_Numbers[Category],$D108,Customer_Numbers[Quarter],"Q4"),"")))))),"") -> 0 | G108: =IFERROR(SUM(IF($G$4="Q1",SUMIFS(Customer_Numbers[Customers],Customer_Numbers[Year],a!C$100,Customer_Numbers[Quarter],"Q1",Customer_Numbers[Category],$D108),IF($G$4="Q2",SUMIFS(Customer_Numbers[Customers],Customer_Numbers[Year],a!C$100,Customer_Numbers[Quarter],"Q2",Customer_Numbers[Category],$D108),IF($G$4="Q3",SUMIFS(Customer_Numbers[Customers],Customer_Numbers[Year],a!C$100,Customer_Numbers[Quarter],"Q3",Customer_Numbers[Category],$D108),IF($G$4="Q4",SUMIFS(Customer_Numbers[Customers],Customer_Numbers[Year],a!C$100,Customer_Numbers[Quarter],"Q4",Customer_Numbers[Category],$D108), IF($G$4="Calendar Year",SUMIFS(Customer_Numbers[Customers],Customer_Numbers[Year],a!C$100,Customer_Numbers[Category],$D108,Customer_Numbers[Quarter],"Q4"),"")))))),"") -> 1 | H108: =IFERROR(SUM(IF($G$4="Q1",SUMIFS(Customer_Numbers[Customers],Customer_Numbers[Year],a!D$100,Customer_Numbers[Quarter],"Q1",Customer_Numbers[Category],$D108),IF($G$4="Q2",SUMIFS(Customer_Numbers[Customers],Customer_Numbers[Year],a!D$100,Customer_Numbers[Quarter],"Q2",Customer_Numbers[Category],$D108),IF($G$4="Q3",SUMIFS(Customer_Numbers[Customers],Customer_Numbers[Year],a!D$100,Customer_Numbers[Quarter],"Q3",Customer_Numbers[Category],$D108),IF($G$4="Q4",SUMIFS(Customer_Numbers[Customers],Customer_Numbers[Year],a!D$100,Customer_Numbers[Quarter],"Q4",Customer_Numbers[Category],$D108), IF($G$4="Calendar Year",SUMIFS(Customer_Numbers[Customers],Customer_Numbers[Year],a!D$100,Customer_Numbers[Category],$D108,Customer_Numbers[Quarter],"Q4"),"")))))),"") -> 1 | I108: =IFERROR(SUM(IF($G$4="Q1",SUMIFS(Customer_Numbers[Customers],Customer_Numbers[Year],a!E$100,Customer_Numbers[Quarter],"Q1",Customer_Numbers[Category],$D108),IF($G$4="Q2",SUMIFS(Customer_Numbers[Customers],Customer_Numbers[Year],a!E$100,Customer_Numbers[Quarter],"Q2",Customer_Numbers[Category],$D108),IF($G$4="Q3",SUMIFS(Customer_Numbers[Customers],Customer_Numbers[Year],a!E$100,Customer_Numbers[Quarter],"Q3",Customer_Numbers[Category],$D108),IF($G$4="Q4",SUMIFS(Customer_Numbers[Customers],Customer_Numbers[Year],a!E$100,Customer_Numbers[Quarter],"Q4",Customer_Numbers[Category],$D108), IF($G$4="Calendar Year",SUMIFS(Customer_Numbers[Customers],Customer_Numbers[Year],a!E$100,Customer_Numbers[Category],$D108,Customer_Numbers[Quarter],"Q4"),"")))))),"") -> 494
D109: Network Length (Kms) by category | E109: =E102 -> 2022-Q1 | F109: =F102 -> 2023-Q1 | G109: =G102 -> 2024-Q1 | H109: =H102 -> 2025-Q1 | I109: =I102 -> 2026-Q1
D110: 11 kV | E110: =IFERROR(SUM(IF($G$4="Q1",SUMIFS(Network_Length__Kms___2[Length],Network_Length__Kms___2[Year],a!A$100,Network_Length__Kms___2[Quarter],"Q1",Network_Length__Kms___2[Category],$D110),IF($G$4="Q2",SUMIFS(Network_Length__Kms___2[Length],Network_Length__Kms___2[Year],a!A$100,Network_Length__Kms___2[Quarter],"Q2",Network_Length__Kms___2[Category],$D110),IF($G$4="Q3",SUMIFS(Network_Length__Kms___2[Length],Network_Length__Kms___2[Year],a!A$100,Network_Length__Kms___2[Quarter],"Q3",Network_Length__Kms___2[Category],$D110),IF($G$4="Q4",SUMIFS(Network_Length__Kms___2[Length],Network_Length__Kms___2[Year],a!A$100,Network_Length__Kms___2[Quarter],"Q4",Network_Length__Kms___2[Category],$D110), IF($G$4="Calendar Year",SUMIFS(Network_Length__Kms___2[Length],Network_Length__Kms___2[Year],a!A$100,Network_Length__Kms___2[Quarter],"Q4",Network_Length__Kms___2[Category],$D110),"")))))),"") -> 7344.222621 | F110: =IFERROR(SUM(IF($G$4="Q1",SUMIFS(Network_Length__Kms___2[Length],Network_Length__Kms___2[Year],a!B$100,Network_Length__Kms___2[Quarter],"Q1",Network_Length__Kms___2[Category],$D110),IF($G$4="Q2",SUMIFS(Network_Length__Kms___2[Length],Network_Length__Kms___2[Year],a!B$100,Network_Length__Kms___2[Quarter],"Q2",Network_Length__Kms___2[Category],$D110),IF($G$4="Q3",SUMIFS(Network_Length__Kms___2[Length],Network_Length__Kms___2[Year],a!B$100,Network_Length__Kms___2[Quarter],"Q3",Network_Length__Kms___2[Category],$D110),IF($G$4="Q4",SUMIFS(Network_Length__Kms___2[Length],Network_Length__Kms___2[Year],a!B$100,Network_Length__Kms___2[Quarter],"Q4",Network_Length__Kms___2[Category],$D110), IF($G$4="Calendar Year",SUMIFS(Network_Length__Kms___2[Length],Network_Length__Kms___2[Year],a!B$100,Network_Length__Kms___2[Quarter],"Q4",Network_Length__Kms___2[Category],$D110),"")))))),"") -> 7306.1609 | G110: =IFERROR(SUM(IF($G$4="Q1",SUMIFS(Network_Length__Kms___2[Length],Network_Length__Kms___2[Year],a!C$100,Network_Length__Kms___2[Quarter],"Q1",Network_Length__Kms___2[Category],$D110),IF($G$4="Q2",SUMIFS(Network_Length__Kms___2[Length],Network_Length__Kms___2[Year],a!C$100,Network_Length__Kms___2[Quarter],"Q2",Network_Length__Kms___2[Category],$D110),IF($G$4="Q3",SUMIFS(Network_Length__Kms___2[Length],Network_Length__Kms___2[Year],a!C$100,Network_Length__Kms___2[Quarter],"Q3",Network_Length__Kms___2[Category],$D110),IF($G$4="Q4",SUMIFS(Network_Length__Kms___2[Length],Network_Length__Kms___2[Year],a!C$100,Network_Length__Kms___2[Quarter],"Q4",Network_Length__Kms___2[Category],$D110), IF($G$4="Calendar Year",SUMIFS(Network_Length__Kms___2[Length],Network_Length__Kms___2[Year],a!C$100,Network_Length__Kms___2[Quarter],"Q4",Network_Length__Kms___2[Category],$D110),"")))))),"") -> 7640.634567 | H110: 7843.002368 | I110: 8576
D111: 33 kV | E111: =IFERROR(SUM(IF($G$4="Q1",SUMIFS(Network_Length__Kms___2[Length],Network_Length__Kms___2[Year],a!A$100,Network_Length__Kms___2[Quarter],"Q1",Network_Length__Kms___2[Category],$D111),IF($G$4="Q2",SUMIFS(Network_Length__Kms___2[Length],Network_Length__Kms___2[Year],a!A$100,Network_Length__Kms___2[Quarter],"Q2",Network_Length__Kms___2[Category],$D111),IF($G$4="Q3",SUMIFS(Network_Length__Kms___2[Length],Network_Length__Kms___2[Year],a!A$100,Network_Length__Kms___2[Quarter],"Q3",Network_Length__Kms___2[Category],$D111),IF($G$4="Q4",SUMIFS(Network_Length__Kms___2[Length],Network_Length__Kms___2[Year],a!A$100,Network_Length__Kms___2[Quarter],"Q4",Network_Length__Kms___2[Category],$D111), IF($G$4="Calendar Year",SUMIFS(Network_Length__Kms___2[Length],Network_Length__Kms___2[Year],a!A$100,Network_Length__Kms___2[Quarter],"Q4",Network_Length__Kms___2[Category],$D111),"")))))),"") -> 19899.66404 | F111: =IFERROR(SUM(IF($G$4="Q1",SUMIFS(Network_Length__Kms___2[Length],Network_Length__Kms___2[Year],a!B$100,Network_Length__Kms___2[Quarter],"Q1",Network_Length__Kms___2[Category],$D111),IF($G$4="Q2",SUMIFS(Network_Length__Kms___2[Length],Network_Length__Kms___2[Year],a!B$100,Network_Length__Kms___2[Quarter],"Q2",Network_Length__Kms___2[Category],$D111),IF($G$4="Q3",SUMIFS(Network_Length__Kms___2[Length],Network_Length__Kms___2[Year],a!B$100,Network_Length__Kms___2[Quarter],"Q3",Network_Length__Kms___2[Category],$D111),IF($G$4="Q4",SUMIFS(Network_Length__Kms___2[Length],Network_Length__Kms___2[Year],a!B$100,Network_Length__Kms___2[Quarter],"Q4",Network_Length__Kms___2[Category],$D111), IF($G$4="Calendar Year",SUMIFS(Network_Length__Kms___2[Length],Network_Length__Kms___2[Year],a!B$100,Network_Length__Kms___2[Quarter],"Q4",Network_Length__Kms___2[Category],$D111),"")))))),"") -> 22259.323 | G111: =IFERROR(SUM(IF($G$4="Q1",SUMIFS(Network_Length__Kms___2[Length],Network_Length__Kms___2[Year],a!C$100,Network_Length__Kms___2[Quarter],"Q1",Network_Length__Kms___2[Category],$D111),IF($G$4="Q2",SUMIFS(Network_Length__Kms___2[Length],Network_Length__Kms___2[Year],a!C$100,Network_Length__Kms___2[Quarter],"Q2",Network_Length__Kms___2[Category],$D111),IF($G$4="Q3",SUMIFS(Network_Length__Kms___2[Length],Network_Length__Kms___2[Year],a!C$100,Network_Length__Kms___2[Quarter],"Q3",Network_Length__Kms___2[Category],$D111),IF($G$4="Q4",SUMIFS(Network_Length__Kms___2[Length],Network_Length__Kms___2[Year],a!C$100,Network_Length__Kms___2[Quarter],"Q4",Network_Length__Kms___2[Category],$D111), IF($G$4="Calendar Year",SUMIFS(Network_Length__Kms___2[Length],Network_Length__Kms___2[Year],a!C$100,Network_Length__Kms___2[Quarter],"Q4",Network_Length__Kms___2[Category],$D111),"")))))),"") -> 24757.04254 | H111: 26349.52368 | I111: =IFERROR(SUM(IF($G$4="Q1",SUMIFS(Network_Length__Kms___2[Length],Network_Length__Kms___2[Year],a!E$100,Network_Length__Kms___2[Quarter],"Q1",Network_Length__Kms___2[Category],$D111),IF($G$4="Q2",SUMIFS(Network_Length__Kms___2[Length],Network_Length__Kms___2[Year],a!E$100,Network_Length__Kms___2[Quarter],"Q2",Network_Length__Kms___2[Category],$D111),IF($G$4="Q3",SUMIFS(Network_Length__Kms___2[Length],Network_Length__Kms___2[Year],a!E$100,Network_Length__Kms___2[Quarter],"Q3",Network_Length__Kms___2[Category],$D111),IF($G$4="Q4",SUMIFS(Network_Length__Kms___2[Length],Network_Length__Kms___2[Year],a!E$100,Network_Length__Kms___2[Quarter],"Q4",Network_Length__Kms___2[Category],$D111), IF($G$4="Calendar Year",SUMIFS(Network_Length__Kms___2[Length],Network_Length__Kms___2[Year],a!E$100,Network_Length__Kms___2[Quarter],"Q4",Network_Length__Kms___2[Category],$D111),"")))))),"") -> 29992.31
D112: LV | E112: =IFERROR(SUM(IF($G$4="Q1",SUMIFS(Network_Length__Kms___2[Length],Network_Length__Kms___2[Year],a!A$100,Network_Length__Kms___2[Quarter],"Q1",Network_Length__Kms___2[Category],$D112),IF($G$4="Q2",SUMIFS(Network_Length__Kms___2[Length],Network_Length__Kms___2[Year],a!A$100,Network_Length__Kms___2[Quarter],"Q2",Network_Length__Kms___2[Category],$D112),IF($G$4="Q3",SUMIFS(Network_Length__Kms___2[Length],Network_Length__Kms___2[Year],a!A$100,Network_Length__Kms___2[Quarter],"Q3",Network_Length__Kms___2[Category],$D112),IF($G$4="Q4",SUMIFS(Network_Length__Kms___2[Length],Network_Length__Kms___2[Year],a!A$100,Network_Length__Kms___2[Quarter],"Q4",Network_Length__Kms___2[Category],$D112), IF($G$4="Calendar Year",SUMIFS(Network_Length__Kms___2[Length],Network_Length__Kms___2[Year],a!A$100,Network_Length__Kms___2[Quarter],"Q4",Network_Length__Kms___2[Category],$D112),"")))))),"") -> 30229.10417 | F112: =IFERROR(SUM(IF($G$4="Q1",SUMIFS(Network_Length__Kms___2[Length],Network_Length__Kms___2[Year],a!B$100,Network_Length__Kms___2[Quarter],"Q1",Network_Length__Kms___2[Category],$D112),IF($G$4="Q2",SUMIFS(Network_Length__Kms___2[Length],Network_Length__Kms___2[Year],a!B$100,Network_Length__Kms___2[Quarter],"Q2",Network_Length__Kms___2[Category],$D112),IF($G$4="Q3",SUMIFS(Network_Length__Kms___2[Length],Network_Length__Kms___2[Year],a!B$100,Network_Length__Kms___2[Quarter],"Q3",Network_Length__Kms___2[Category],$D112),IF($G$4="Q4",SUMIFS(Network_Length__Kms___2[Length],Network_Length__Kms___2[Year],a!B$100,Network_Length__Kms___2[Quarter],"Q4",Network_Length__Kms___2[Category],$D112), IF($G$4="Calendar Year",SUMIFS(Network_Length__Kms___2[Length],Network_Length__Kms___2[Year],a!B$100,Network_Length__Kms___2[Quarter],"Q4",Network_Length__Kms___2[Category],$D112),"")))))),"") -> 32375.481 | G112: =IFERROR(SUM(IF($G$4="Q1",SUMIFS(Network_Length__Kms___2[Length],Network_Length__Kms___2[Year],a!C$100,Network_Length__Kms___2[Quarter],"Q1",Network_Length__Kms___2[Category],$D112),IF($G$4="Q2",SUMIFS(Network_Length__Kms___2[Length],Network_Length__Kms___2[Year],a!C$100,Network_Length__Kms___2[Quarter],"Q2",Network_Length__Kms___2[Category],$D112),IF($G$4="Q3",SUMIFS(Network_Length__Kms___2[Length],Network_Length__Kms___2[Year],a!C$100,Network_Length__Kms___2[Quarter],"Q3",Network_Length__Kms___2[Category],$D112),IF($G$4="Q4",SUMIFS(Network_Length__Kms___2[Length],Network_Length__Kms___2[Year],a!C$100,Network_Length__Kms___2[Quarter],"Q4",Network_Length__Kms___2[Category],$D112), IF($G$4="Calendar Year",SUMIFS(Network_Length__Kms___2[Length],Network_Length__Kms___2[Year],a!C$100,Network_Length__Kms___2[Quarter],"Q4",Network_Length__Kms___2[Category],$D112),"")))))),"") -> 34264.20575 | H112: =IFERROR(SUM(IF($G$4="Q1",SUMIFS(Network_Length__Kms___2[Length],Network_Length__Kms___2[Year],a!D$100,Network_Length__Kms___2[Quarter],"Q1",Network_Length__Kms___2[Category],$D112),IF($G$4="Q2",SUMIFS(Network_Length__Kms___2[Length],Network_Length__Kms___2[Year],a!D$100,Network_Length__Kms___2[Quarter],"Q2",Network_Length__Kms___2[Category],$D112),IF($G$4="Q3",SUMIFS(Network_Length__Kms___2[Length],Network_Length__Kms___2[Year],a!D$100,Network_Length__Kms___2[Quarter],"Q3",Network_Length__Kms___2[Category],$D112),IF($G$4="Q4",SUMIFS(Network_Length__Kms___2[Length],Network_Length__Kms___2[Year],a!D$100,Network_Length__Kms___2[Quarter],"Q4",Network_Length__Kms___2[Category],$D112), IF($G$4="Calendar Year",SUMIFS(Network_Length__Kms___2[Length],Network_Length__Kms___2[Year],a!D$100,Network_Length__Kms___2[Quarter],"Q4",Network_Length__Kms___2[Category],$D112),"")))))),"") -> 35511.38068 | I112: =IFERROR(SUM(IF($G$4="Q1",SUMIFS(Network_Length__Kms___2[Length],Network_Length__Kms___2[Year],a!E$100,Network_Length__Kms___2[Quarter],"Q1",Network_Length__Kms___2[Category],$D112),IF($G$4="Q2",SUMIFS(Network_Length__Kms___2[Length],Network_Length__Kms___2[Year],a!E$100,Network_Length__Kms___2[Quarter],"Q2",Network_Length__Kms___2[Category],$D112),IF($G$4="Q3",SUMIFS(Network_Length__Kms___2[Length],Network_Length__Kms___2[Year],a!E$100,Network_Length__Kms___2[Quarter],"Q3",Network_Length__Kms___2[Category],$D112),IF($G$4="Q4",SUMIFS(Network_Length__Kms___2[Length],Network_Length__Kms___2[Year],a!E$100,Network_Length__Kms___2[Quarter],"Q4",Network_Length__Kms___2[Category],$D112), IF($G$4="Calendar Year",SUMIFS(Network_Length__Kms___2[Length],Network_Length__Kms___2[Year],a!E$100,Network_Length__Kms___2[Quarter],"Q4",Network_Length__Kms___2[Category],$D112),"")))))),"") -> 57756.01
D113: Street lights | E113: =IFERROR(SUM(IF($G$4="Q1",SUMIFS(Network_Length__Kms___2[Length],Network_Length__Kms___2[Year],a!A$100,Network_Length__Kms___2[Quarter],"Q1",Network_Length__Kms___2[Category],$D113),IF($G$4="Q2",SUMIFS(Network_Length__Kms___2[Length],Network_Length__Kms___2[Year],a!A$100,Network_Length__Kms___2[Quarter],"Q2",Network_Length__Kms___2[Category],$D113),IF($G$4="Q3",SUMIFS(Network_Length__Kms___2[Length],Network_Length__Kms___2[Year],a!A$100,Network_Length__Kms___2[Quarter],"Q3",Network_Length__Kms___2[Category],$D113),IF($G$4="Q4",SUMIFS(Network_Length__Kms___2[Length],Network_Length__Kms___2[Year],a!A$100,Network_Length__Kms___2[Quarter],"Q4",Network_Length__Kms___2[Category],$D113), IF($G$4="Calendar Year",SUMIFS(Network_Length__Kms___2[Length],Network_Length__Kms___2[Year],a!A$100,Network_Length__Kms___2[Quarter],"Q4",Network_Length__Kms___2[Category],$D113),"")))))),"") -> 612 | F113: =IFERROR(SUM(IF($G$4="Q1",SUMIFS(Network_Length__Kms___2[Length],Network_Length__Kms___2[Year],a!B$100,Network_Length__Kms___2[Quarter],"Q1",Network_Length__Kms___2[Category],$D113),IF($G$4="Q2",SUMIFS(Network_Length__Kms___2[Length],Network_Length__Kms___2[Year],a!B$100,Network_Length__Kms___2[Quarter],"Q2",Network_Length__Kms___2[Category],$D113),IF($G$4="Q3",SUMIFS(Network_Length__Kms___2[Length],Network_Length__Kms___2[Year],a!B$100,Network_Length__Kms___2[Quarter],"Q3",Network_Length__Kms___2[Category],$D113),IF($G$4="Q4",SUMIFS(Network_Length__Kms___2[Length],Network_Length__Kms___2[Year],a!B$100,Network_Length__Kms___2[Quarter],"Q4",Network_Length__Kms___2[Category],$D113), IF($G$4="Calendar Year",SUMIFS(Network_Length__Kms___2[Length],Network_Length__Kms___2[Year],a!B$100,Network_Length__Kms___2[Quarter],"Q4",Network_Length__Kms___2[Category],$D113),"")))))),"") -> 613 | G113: =IFERROR(SUM(IF($G$4="Q1",SUMIFS(Network_Length__Kms___2[Length],Network_Length__Kms___2[Year],a!C$100,Network_Length__Kms___2[Quarter],"Q1",Network_Length__Kms___2[Category],$D113),IF($G$4="Q2",SUMIFS(Network_Length__Kms___2[Length],Network_Length__Kms___2[Year],a!C$100,Network_Length__Kms___2[Quarter],"Q2",Network_Length__Kms___2[Category],$D113),IF($G$4="Q3",SUMIFS(Network_Length__Kms___2[Length],Network_Length__Kms___2[Year],a!C$100,Network_Length__Kms___2[Quarter],"Q3",Network_Length__Kms___2[Category],$D113),IF($G$4="Q4",SUMIFS(Network_Length__Kms___2[Length],Network_Length__Kms___2[Year],a!C$100,Network_Length__Kms___2[Quarter],"Q4",Network_Length__Kms___2[Category],$D113), IF($G$4="Calendar Year",SUMIFS(Network_Length__Kms___2[Length],Network_Length__Kms___2[Year],a!C$100,Network_Length__Kms___2[Quarter],"Q4",Network_Length__Kms___2[Category],$D113),"")))))),"") -> 613 | H113: =IFERROR(SUM(IF($G$4="Q1",SUMIFS(Network_Length__Kms___2[Length],Network_Length__Kms___2[Year],a!D$100,Network_Length__Kms___2[Quarter],"Q1",Network_Length__Kms___2[Category],$D113),IF($G$4="Q2",SUMIFS(Network_Length__Kms___2[Length],Network_Length__Kms___2[Year],a!D$100,Network_Length__Kms___2[Quarter],"Q2",Network_Length__Kms___2[Category],$D113),IF($G$4="Q3",SUMIFS(Network_Length__Kms___2[Length],Network_Length__Kms___2[Year],a!D$100,Network_Length__Kms___2[Quarter],"Q3",Network_Length__Kms___2[Category],$D113),IF($G$4="Q4",SUMIFS(Network_Length__Kms___2[Length],Network_Length__Kms___2[Year],a!D$100,Network_Length__Kms___2[Quarter],"Q4",Network_Length__Kms___2[Category],$D113), IF($G$4="Calendar Year",SUMIFS(Network_Length__Kms___2[Length],Network_Length__Kms___2[Year],a!D$100,Network_Length__Kms___2[Quarter],"Q4",Network_Length__Kms___2[Category],$D113),"")))))),"") -> 612 | I113: 623
D114: Total Network Length | E114: =SUM(E110:E113) -> 58084.99083 | F114: =SUM(F110:F113) -> 62553.9649 | G114: 67274.88286 | H114: 70315.90672 | I114: =SUM(I110:I113) -> 96947.32
D115: Network Length (Kms) by Utility | E115: =E109 -> 2022-Q1 | F115: =F109 -> 2023-Q1 | G115: 2024-Q1 | H115: 2025-Q1 | I115: 2026-Q1
D116: BECS | E116: =IFERROR(SUM(IF($G$4="Q1",SUMIFS(Network_Length__Kms___2[Length],Network_Length__Kms___2[Year],a!A$100,Network_Length__Kms___2[Quarter],"Q1",Network_Length__Kms___2[Utility],$D116),IF($G$4="Q2",SUMIFS(Network_Length__Kms___2[Length],Network_Length__Kms___2[Year],a!A$100,Network_Length__Kms___2[Quarter],"Q2",Network_Length__Kms___2[Utility],$D116),IF($G$4="Q3",SUMIFS(Network_Length__Kms___2[Length],Network_Length__Kms___2[Year],a!A$100,Network_Length__Kms___2[Quarter],"Q3",Network_Length__Kms___2[Utility],$D116),IF($G$4="Q4",SUMIFS(Network_Length__Kms___2[Length],Network_Length__Kms___2[Year],a!A$100,Network_Length__Kms___2[Quarter],"Q4",Network_Length__Kms___2[Utility],$D116), IF($G$4="Calendar Year",SUMIFS(Network_Length__Kms___2[Length],Network_Length__Kms___2[Year],a!A$100,Network_Length__Kms___2[Quarter],"Q4",Network_Length__Kms___2[Utility],$D116),IF($G$4="Jan - June (Bi-annual)",SUM(SUMIFS(Network_Length__Kms___2[Length],Network_Length__Kms___2[Year],a!A$100,Network_Length__Kms___2[Utility],$D116,Network_Length__Kms___2[Quarter],"Q1",Network_Length__Kms___2[Utility],$D116),SUMIFS(Network_Length__Kms___2[Length],Network_Length__Kms___2[Year],a!A$100,Network_Length__Kms___2[Utility],$D116,Network_Length__Kms___2[Quarter],"Q2",Network_Length__Kms___2[Utility],$D116)),""))))))),"") -> 0 | F116: =IFERROR(SUM(IF($G$4="Q1",SUMIFS(Network_Length__Kms___2[Length],Network_Length__Kms___2[Year],a!B$100,Network_Length__Kms___2[Quarter],"Q1",Network_Length__Kms___2[Utility],$D116),IF($G$4="Q2",SUMIFS(Network_Length__Kms___2[Length],Network_Length__Kms___2[Year],a!B$100,Network_Length__Kms___2[Quarter],"Q2",Network_Length__Kms___2[Utility],$D116),IF($G$4="Q3",SUMIFS(Network_Length__Kms___2[Length],Network_Length__Kms___2[Year],a!B$100,Network_Length__Kms___2[Quarter],"Q3",Network_Length__Kms___2[Utility],$D116),IF($G$4="Q4",SUMIFS(Network_Length__Kms___2[Length],Network_Length__Kms___2[Year],a!B$100,Network_Length__Kms___2[Quarter],"Q4",Network_Length__Kms___2[Utility],$D116), IF($G$4="Calendar Year",SUMIFS(Network_Length__Kms___2[Length],Network_Length__Kms___2[Year],a!B$100,Network_Length__Kms___2[Quarter],"Q4",Network_Length__Kms___2[Utility],$D116),IF($G$4="Jan - June (Bi-annual)",SUM(SUMIFS(Network_Length__Kms___2[Length],Network_Length__Kms___2[Year],a!B$100,Network_Length__Kms___2[Utility],$D116,Network_Length__Kms___2[Quarter],"Q1",Network_Length__Kms___2[Utility],$D116),SUMIFS(Network_Length__Kms___2[Length],Network_Length__Kms___2[Year],a!B$100,Network_Length__Kms___2[Utility],$D116,Network_Length__Kms___2[Quarter],"Q2",Network_Length__Kms___2[Utility],$D116)),""))))))),"") -> 0 | G116: =IFERROR(SUM(IF($G$4="Q1",SUMIFS(Network_Length__Kms___2[Length],Network_Length__Kms___2[Year],a!C$100,Network_Length__Kms___2[Quarter],"Q1",Network_Length__Kms___2[Utility],$D116),IF($G$4="Q2",SUMIFS(Network_Length__Kms___2[Length],Network_Length__Kms___2[Year],a!C$100,Network_Length__Kms___2[Quarter],"Q2",Network_Length__Kms___2[Utility],$D116),IF($G$4="Q3",SUMIFS(Network_Length__Kms___2[Length],Network_Length__Kms___2[Year],a!C$100,Network_Length__Kms___2[Quarter],"Q3",Network_Length__Kms___2[Utility],$D116),IF($G$4="Q4",SUMIFS(Network_Length__Kms___2[Length],Network_Length__Kms___2[Year],a!C$100,Network_Length__Kms___2[Quarter],"Q4",Network_Length__Kms___2[Utility],$D116), IF($G$4="Calendar Year",SUMIFS(Network_Length__Kms___2[Length],Network_Length__Kms___2[Year],a!C$100,Network_Length__Kms___2[Quarter],"Q4",Network_Length__Kms___2[Utility],$D116),IF($G$4="Jan - June (Bi-annual)",SUM(SUMIFS(Network_Length__Kms___2[Length],Network_Length__Kms___2[Year],a!C$100,Network_Length__Kms___2[Utility],$D116,Network_Length__Kms___2[Quarter],"Q1",Network_Length__Kms___2[Utility],$D116),SUMIFS(Network_Length__Kms___2[Length],Network_Length__Kms___2[Year],a!C$100,Network_Length__Kms___2[Utility],$D116,Network_Length__Kms___2[Quarter],"Q2",Network_Length__Kms___2[Utility],$D116)),""))))))),"") -> 0 | H116: =IFERROR(SUM(IF($G$4="Q1",SUMIFS(Network_Length__Kms___2[Length],Network_Length__Kms___2[Year],a!D$100,Network_Length__Kms___2[Quarter],"Q1",Network_Length__Kms___2[Utility],$D116),IF($G$4="Q2",SUMIFS(Network_Length__Kms___2[Length],Network_Length__Kms___2[Year],a!D$100,Network_Length__Kms___2[Quarter],"Q2",Network_Length__Kms___2[Utility],$D116),IF($G$4="Q3",SUMIFS(Network_Length__Kms___2[Length],Network_Length__Kms___2[Year],a!D$100,Network_Length__Kms___2[Quarter],"Q3",Network_Length__Kms___2[Utility],$D116),IF($G$4="Q4",SUMIFS(Network_Length__Kms___2[Length],Network_Length__Kms___2[Year],a!D$100,Network_Length__Kms___2[Quarter],"Q4",Network_Length__Kms___2[Utility],$D116), IF($G$4="Calendar Year",SUMIFS(Network_Length__Kms___2[Length],Network_Length__Kms___2[Year],a!D$100,Network_Length__Kms___2[Quarter],"Q4",Network_Length__Kms___2[Utility],$D116),IF($G$4="Jan - June (Bi-annual)",SUM(SUMIFS(Network_Length__Kms___2[Length],Network_Length__Kms___2[Year],a!D$100,Network_Length__Kms___2[Utility],$D116,Network_Length__Kms___2[Quarter],"Q1",Network_Length__Kms___2[Utility],$D116),SUMIFS(Network_Length__Kms___2[Length],Network_Length__Kms___2[Year],a!D$100,Network_Length__Kms___2[Utility],$D116,Network_Length__Kms___2[Quarter],"Q2",Network_Length__Kms___2[Utility],$D116)),""))))))),"") -> 0 | I116: =IFERROR(SUM(IF($G$4="Q1",SUMIFS(Network_Length__Kms___2[Length],Network_Length__Kms___2[Year],a!E$100,Network_Length__Kms___2[Quarter],"Q1",Network_Length__Kms___2[Utility],$D116),IF($G$4="Q2",SUMIFS(Network_Length__Kms___2[Length],Network_Length__Kms___2[Year],a!E$100,Network_Length__Kms___2[Quarter],"Q2",Network_Length__Kms___2[Utility],$D116),IF($G$4="Q3",SUMIFS(Network_Length__Kms___2[Length],Network_Length__Kms___2[Year],a!E$100,Network_Length__Kms___2[Quarter],"Q3",Network_Length__Kms___2[Utility],$D116),IF($G$4="Q4",SUMIFS(Network_Length__Kms___2[Length],Network_Length__Kms___2[Year],a!E$100,Network_Length__Kms___2[Quarter],"Q4",Network_Length__Kms___2[Utility],$D116), IF($G$4="Calendar Year",SUMIFS(Network_Length__Kms___2[Length],Network_Length__Kms___2[Year],a!E$100,Network_Length__Kms___2[Quarter],"Q4",Network_Length__Kms___2[Utility],$D116),IF($G$4="Jan - June (Bi-annual)",SUM(SUMIFS(Network_Length__Kms___2[Length],Network_Length__Kms___2[Year],a!E$100,Network_Length__Kms___2[Utility],$D116,Network_Length__Kms___2[Quarter],"Q1",Network_Length__Kms___2[Utility],$D116),SUMIFS(Network_Length__Kms___2[Length],Network_Length__Kms___2[Year],a!E$100,Network_Length__Kms___2[Utility],$D116,Network_Length__Kms___2[Quarter],"Q2",Network_Length__Kms___2[Utility],$D116)),""))))))),"") -> 0
D117: KABALEGA HYDROMAX | E117: =IFERROR(SUM(IF($G$4="Q1",SUMIFS(Network_Length__Kms___2[Length],Network_Length__Kms___2[Year],a!A$100,Network_Length__Kms___2[Quarter],"Q1",Network_Length__Kms___2[Utility],$D117),IF($G$4="Q2",SUMIFS(Network_Length__Kms___2[Length],Network_Length__Kms___2[Year],a!A$100,Network_Length__Kms___2[Quarter],"Q2",Network_Length__Kms___2[Utility],$D117),IF($G$4="Q3",SUMIFS(Network_Length__Kms___2[Length],Network_Length__Kms___2[Year],a!A$100,Network_Length__Kms___2[Quarter],"Q3",Network_Length__Kms___2[Utility],$D117),IF($G$4="Q4",SUMIFS(Network_Length__Kms___2[Length],Network_Length__Kms___2[Year],a!A$100,Network_Length__Kms___2[Quarter],"Q4",Network_Length__Kms___2[Utility],$D117), IF($G$4="Calendar Year",SUMIFS(Network_Length__Kms___2[Length],Network_Length__Kms___2[Year],a!A$100,Network_Length__Kms___2[Quarter],"Q4",Network_Length__Kms___2[Utility],$D117),IF($G$4="Jan - June (Bi-annual)",SUM(SUMIFS(Network_Length__Kms___2[Length],Network_Length__Kms___2[Year],a!A$100,Network_Length__Kms___2[Utility],$D117,Network_Length__Kms___2[Quarter],"Q1",Network_Length__Kms___2[Utility],$D117),SUMIFS(Network_Length__Kms___2[Length],Network_Length__Kms___2[Year],a!A$100,Network_Length__Kms___2[Utility],$D117,Network_Length__Kms___2[Quarter],"Q2",Network_Length__Kms___2[Utility],$D117)),""))))))),"") -> 0 | F117: =IFERROR(SUM(IF($G$4="Q1",SUMIFS(Network_Length__Kms___2[Length],Network_Length__Kms___2[Year],a!B$100,Network_Length__Kms___2[Quarter],"Q1",Network_Length__Kms___2[Utility],$D117),IF($G$4="Q2",SUMIFS(Network_Length__Kms___2[Length],Network_Length__Kms___2[Year],a!B$100,Network_Length__Kms___2[Quarter],"Q2",Network_Length__Kms___2[Utility],$D117),IF($G$4="Q3",SUMIFS(Network_Length__Kms___2[Length],Network_Length__Kms___2[Year],a!B$100,Network_Length__Kms___2[Quarter],"Q3",Network_Length__Kms___2[Utility],$D117),IF($G$4="Q4",SUMIFS(Network_Length__Kms___2[Length],Network_Length__Kms___2[Year],a!B$100,Network_Length__Kms___2[Quarter],"Q4",Network_Length__Kms___2[Utility],$D117), IF($G$4="Calendar Year",SUMIFS(Network_Length__Kms___2[Length],Network_Length__Kms___2[Year],a!B$100,Network_Length__Kms___2[Quarter],"Q4",Network_Length__Kms___2[Utility],$D117),IF($G$4="Jan - June (Bi-annual)",SUM(SUMIFS(Network_Length__Kms___2[Length],Network_Length__Kms___2[Year],a!B$100,Network_Length__Kms___2[Utility],$D117,Network_Length__Kms___2[Quarter],"Q1",Network_Length__Kms___2[Utility],$D117),SUMIFS(Network_Length__Kms___2[Length],Network_Length__Kms___2[Year],a!B$100,Network_Length__Kms___2[Utility],$D117,Network_Length__Kms___2[Quarter],"Q2",Network_Length__Kms___2[Utility],$D117)),""))))))),"") -> 0 | G117: =IFERROR(SUM(IF($G$4="Q1",SUMIFS(Network_Length__Kms___2[Length],Network_Length__Kms___2[Year],a!C$100,Network_Length__Kms___2[Quarter],"Q1",Network_Length__Kms___2[Utility],$D117),IF($G$4="Q2",SUMIFS(Network_Length__Kms___2[Length],Network_Length__Kms___2[Year],a!C$100,Network_Length__Kms___2[Quarter],"Q2",Network_Length__Kms___2[Utility],$D117),IF($G$4="Q3",SUMIFS(Network_Length__Kms___2[Length],Network_Length__Kms___2[Year],a!C$100,Network_Length__Kms___2[Quarter],"Q3",Network_Length__Kms___2[Utility],$D117),IF($G$4="Q4",SUMIFS(Network_Length__Kms___2[Length],Network_Length__Kms___2[Year],a!C$100,Network_Length__Kms___2[Quarter],"Q4",Network_Length__Kms___2[Utility],$D117), IF($G$4="Calendar Year",SUMIFS(Network_Length__Kms___2[Length],Network_Length__Kms___2[Year],a!C$100,Network_Length__Kms___2[Quarter],"Q4",Network_Length__Kms___2[Utility],$D117),IF($G$4="Jan - June (Bi-annual)",SUM(SUMIFS(Network_Length__Kms___2[Length],Network_Length__Kms___2[Year],a!C$100,Network_Length__Kms___2[Utility],$D117,Network_Length__Kms___2[Quarter],"Q1",Network_Length__Kms___2[Utility],$D117),SUMIFS(Network_Length__Kms___2[Length],Network_Length__Kms___2[Year],a!C$100,Network_Length__Kms___2[Utility],$D117,Network_Length__Kms___2[Quarter],"Q2",Network_Length__Kms___2[Utility],$D117)),""))))))),"") -> 0 | H117: =IFERROR(SUM(IF($G$4="Q1",SUMIFS(Network_Length__Kms___2[Length],Network_Length__Kms___2[Year],a!D$100,Network_Length__Kms___2[Quarter],"Q1",Network_Length__Kms___2[Utility],$D117),IF($G$4="Q2",SUMIFS(Network_Length__Kms___2[Length],Network_Length__Kms___2[Year],a!D$100,Network_Length__Kms___2[Quarter],"Q2",Network_Length__Kms___2[Utility],$D117),IF($G$4="Q3",SUMIFS(Network_Length__Kms___2[Length],Network_Length__Kms___2[Year],a!D$100,Network_Length__Kms___2[Quarter],"Q3",Network_Length__Kms___2[Utility],$D117),IF($G$4="Q4",SUMIFS(Network_Length__Kms___2[Length],Network_Length__Kms___2[Year],a!D$100,Network_Length__Kms___2[Quarter],"Q4",Network_Length__Kms___2[Utility],$D117), IF($G$4="Calendar Year",SUMIFS(Network_Length__Kms___2[Length],Network_Length__Kms___2[Year],a!D$100,Network_Length__Kms___2[Quarter],"Q4",Network_Length__Kms___2[Utility],$D117),IF($G$4="Jan - June (Bi-annual)",SUM(SUMIFS(Network_Length__Kms___2[Length],Network_Length__Kms___2[Year],a!D$100,Network_Length__Kms___2[Utility],$D117,Network_Length__Kms___2[Quarter],"Q1",Network_Length__Kms___2[Utility],$D117),SUMIFS(Network_Length__Kms___2[Length],Network_Length__Kms___2[Year],a!D$100,Network_Length__Kms___2[Utility],$D117,Network_Length__Kms___2[Quarter],"Q2",Network_Length__Kms___2[Utility],$D117)),""))))))),"") -> 0 | I117: =IFERROR(SUM(IF($G$4="Q1",SUMIFS(Network_Length__Kms___2[Length],Network_Length__Kms___2[Year],a!E$100,Network_Length__Kms___2[Quarter],"Q1",Network_Length__Kms___2[Utility],$D117),IF($G$4="Q2",SUMIFS(Network_Length__Kms___2[Length],Network_Length__Kms___2[Year],a!E$100,Network_Length__Kms___2[Quarter],"Q2",Network_Length__Kms___2[Utility],$D117),IF($G$4="Q3",SUMIFS(Network_Length__Kms___2[Length],Network_Length__Kms___2[Year],a!E$100,Network_Length__Kms___2[Quarter],"Q3",Network_Length__Kms___2[Utility],$D117),IF($G$4="Q4",SUMIFS(Network_Length__Kms___2[Length],Network_Length__Kms___2[Year],a!E$100,Network_Length__Kms___2[Quarter],"Q4",Network_Length__Kms___2[Utility],$D117), IF($G$4="Calendar Year",SUMIFS(Network_Length__Kms___2[Length],Network_Length__Kms___2[Year],a!E$100,Network_Length__Kms___2[Quarter],"Q4",Network_Length__Kms___2[Utility],$D117),IF($G$4="Jan - June (Bi-annual)",SUM(SUMIFS(Network_Length__Kms___2[Length],Network_Length__Kms___2[Year],a!E$100,Network_Length__Kms___2[Utility],$D117,Network_Length__Kms___2[Quarter],"Q1",Network_Length__Kms___2[Utility],$D117),SUMIFS(Network_Length__Kms___2[Length],Network_Length__Kms___2[Year],a!E$100,Network_Length__Kms___2[Utility],$D117,Network_Length__Kms___2[Quarter],"Q2",Network_Length__Kms___2[Utility],$D117)),""))))))),"") -> 0
D118: KIL | E118: =IFERROR(SUM(IF($G$4="Q1",SUMIFS(Network_Length__Kms___2[Length],Network_Length__Kms___2[Year],a!A$100,Network_Length__Kms___2[Quarter],"Q1",Network_Length__Kms___2[Utility],$D118),IF($G$4="Q2",SUMIFS(Network_Length__Kms___2[Length],Network_Length__Kms___2[Year],a!A$100,Network_Length__Kms___2[Quarter],"Q2",Network_Length__Kms___2[Utility],$D118),IF($G$4="Q3",SUMIFS(Network_Length__Kms___2[Length],Network_Length__Kms___2[Year],a!A$100,Network_Length__Kms___2[Quarter],"Q3",Network_Length__Kms___2[Utility],$D118),IF($G$4="Q4",SUMIFS(Network_Length__Kms___2[Length],Network_Length__Kms___2[Year],a!A$100,Network_Length__Kms___2[Quarter],"Q4",Network_Length__Kms___2[Utility],$D118), IF($G$4="Calendar Year",SUMIFS(Network_Length__Kms___2[Length],Network_Length__Kms___2[Year],a!A$100,Network_Length__Kms___2[Quarter],"Q4",Network_Length__Kms___2[Utility],$D118),IF($G$4="Jan - June (Bi-annual)",SUM(SUMIFS(Network_Length__Kms___2[Length],Network_Length__Kms___2[Year],a!A$100,Network_Length__Kms___2[Utility],$D118,Network_Length__Kms___2[Quarter],"Q1",Network_Length__Kms___2[Utility],$D118),SUMIFS(Network_Length__Kms___2[Length],Network_Length__Kms___2[Year],a!A$100,Network_Length__Kms___2[Utility],$D118,Network_Length__Kms___2[Quarter],"Q2",Network_Length__Kms___2[Utility],$D118)),""))))))),"") -> 851.984 | F118: =IFERROR(SUM(IF($G$4="Q1",SUMIFS(Network_Length__Kms___2[Length],Network_Length__Kms___2[Year],a!B$100,Network_Length__Kms___2[Quarter],"Q1",Network_Length__Kms___2[Utility],$D118),IF($G$4="Q2",SUMIFS(Network_Length__Kms___2[Length],Network_Length__Kms___2[Year],a!B$100,Network_Length__Kms___2[Quarter],"Q2",Network_Length__Kms___2[Utility],$D118),IF($G$4="Q3",SUMIFS(Network_Length__Kms___2[Length],Network_Length__Kms___2[Year],a!B$100,Network_Length__Kms___2[Quarter],"Q3",Network_Length__Kms___2[Utility],$D118),IF($G$4="Q4",SUMIFS(Network_Length__Kms___2[Length],Network_Length__Kms___2[Year],a!B$100,Network_Length__Kms___2[Quarter],"Q4",Network_Length__Kms___2[Utility],$D118), IF($G$4="Calendar Year",SUMIFS(Network_Length__Kms___2[Length],Network_Length__Kms___2[Year],a!B$100,Network_Length__Kms___2[Quarter],"Q4",Network_Length__Kms___2[Utility],$D118),IF($G$4="Jan - June (Bi-annual)",SUM(SUMIFS(Network_Length__Kms___2[Length],Network_Length__Kms___2[Year],a!B$100,Network_Length__Kms___2[Utility],$D118,Network_Length__Kms___2[Quarter],"Q1",Network_Length__Kms___2[Utility],$D118),SUMIFS(Network_Length__Kms___2[Length],Network_Length__Kms___2[Year],a!B$100,Network_Length__Kms___2[Utility],$D118,Network_Length__Kms___2[Quarter],"Q2",Network_Length__Kms___2[Utility],$D118)),""))))))),"") -> 1012 | G118: =IFERROR(SUM(IF($G$4="Q1",SUMIFS(Network_Length__Kms___2[Length],Network_Length__Kms___2[Year],a!C$100,Network_Length__Kms___2[Quarter],"Q1",Network_Length__Kms___2[Utility],$D118),IF($G$4="Q2",SUMIFS(Network_Length__Kms___2[Length],Network_Length__Kms___2[Year],a!C$100,Network_Length__Kms___2[Quarter],"Q2",Network_Length__Kms___2[Utility],$D118),IF($G$4="Q3",SUMIFS(Network_Length__Kms___2[Length],Network_Length__Kms___2[Year],a!C$100,Network_Length__Kms___2[Quarter],"Q3",Network_Length__Kms___2[Utility],$D118),IF($G$4="Q4",SUMIFS(Network_Length__Kms___2[Length],Network_Length__Kms___2[Year],a!C$100,Network_Length__Kms___2[Quarter],"Q4",Network_Length__Kms___2[Utility],$D118), IF($G$4="Calendar Year",SUMIFS(Network_Length__Kms___2[Length],Network_Length__Kms___2[Year],a!C$100,Network_Length__Kms___2[Quarter],"Q4",Network_Length__Kms___2[Utility],$D118),IF($G$4="Jan - June (Bi-annual)",SUM(SUMIFS(Network_Length__Kms___2[Length],Network_Length__Kms___2[Year],a!C$100,Network_Length__Kms___2[Utility],$D118,Network_Length__Kms___2[Quarter],"Q1",Network_Length__Kms___2[Utility],$D118),SUMIFS(Network_Length__Kms___2[Length],Network_Length__Kms___2[Year],a!C$100,Network_Length__Kms___2[Utility],$D118,Network_Length__Kms___2[Quarter],"Q2",Network_Length__Kms___2[Utility],$D118)),""))))))),"") -> 1491.804 | H118: =IFERROR(SUM(IF($G$4="Q1",SUMIFS(Network_Length__Kms___2[Length],Network_Length__Kms___2[Year],a!D$100,Network_Length__Kms___2[Quarter],"Q1",Network_Length__Kms___2[Utility],$D118),IF($G$4="Q2",SUMIFS(Network_Length__Kms___2[Length],Network_Length__Kms___2[Year],a!D$100,Network_Length__Kms___2[Quarter],"Q2",Network_Length__Kms___2[Utility],$D118),IF($G$4="Q3",SUMIFS(Network_Length__Kms___2[Length],Network_Length__Kms___2[Year],a!D$100,Network_Length__Kms___2[Quarter],"Q3",Network_Length__Kms___2[Utility],$D118),IF($G$4="Q4",SUMIFS(Network_Length__Kms___2[Length],Network_Length__Kms___2[Year],a!D$100,Network_Length__Kms___2[Quarter],"Q4",Network_Length__Kms___2[Utility],$D118), IF($G$4="Calendar Year",SUMIFS(Network_Length__Kms___2[Length],Network_Length__Kms___2[Year],a!D$100,Network_Length__Kms___2[Quarter],"Q4",Network_Length__Kms___2[Utility],$D118),IF($G$4="Jan - June (Bi-annual)",SUM(SUMIFS(Network_Length__Kms___2[Length],Network_Length__Kms___2[Year],a!D$100,Network_Length__Kms___2[Utility],$D118,Network_Length__Kms___2[Quarter],"Q1",Network_Length__Kms___2[Utility],$D118),SUMIFS(Network_Length__Kms___2[Length],Network_Length__Kms___2[Year],a!D$100,Network_Length__Kms___2[Utility],$D118,Network_Length__Kms___2[Quarter],"Q2",Network_Length__Kms___2[Utility],$D118)),""))))))),"") -> 22.834 | I118: =IFERROR(SUM(IF($G$4="Q1",SUMIFS(Network_Length__Kms___2[Length],Network_Length__Kms___2[Year],a!E$100,Network_Length__Kms___2[Quarter],"Q1",Network_Length__Kms___2[Utility],$D118),IF($G$4="Q2",SUMIFS(Network_Length__Kms___2[Length],Network_Length__Kms___2[Year],a!E$100,Network_Length__Kms___2[Quarter],"Q2",Network_Length__Kms___2[Utility],$D118),IF($G$4="Q3",SUMIFS(Network_Length__Kms___2[Length],Network_Length__Kms___2[Year],a!E$100,Network_Length__Kms___2[Quarter],"Q3",Network_Length__Kms___2[Utility],$D118),IF($G$4="Q4",SUMIFS(Network_Length__Kms___2[Length],Network_Length__Kms___2[Year],a!E$100,Network_Length__Kms___2[Quarter],"Q4",Network_Length__Kms___2[Utility],$D118), IF($G$4="Calendar Year",SUMIFS(Network_Length__Kms___2[Length],Network_Length__Kms___2[Year],a!E$100,Network_Length__Kms___2[Quarter],"Q4",Network_Length__Kms___2[Utility],$D118),IF($G$4="Jan - June (Bi-annual)",SUM(SUMIFS(Network_Length__Kms___2[Length],Network_Length__Kms___2[Year],a!E$100,Network_Length__Kms___2[Utility],$D118,Network_Length__Kms___2[Quarter],"Q1",Network_Length__Kms___2[Utility],$D118),SUMIFS(Network_Length__Kms___2[Length],Network_Length__Kms___2[Year],a!E$100,Network_Length__Kms___2[Utility],$D118,Network_Length__Kms___2[Quarter],"Q2",Network_Length__Kms___2[Utility],$D118)),""))))))),"") -> 0
D119: KIS | E119: =IFERROR(SUM(IF($G$4="Q1",SUMIFS(Network_Length__Kms___2[Length],Network_Length__Kms___2[Year],a!A$100,Network_Length__Kms___2[Quarter],"Q1",Network_Length__Kms___2[Utility],$D119),IF($G$4="Q2",SUMIFS(Network_Length__Kms___2[Length],Network_Length__Kms___2[Year],a!A$100,Network_Length__Kms___2[Quarter],"Q2",Network_Length__Kms___2[Utility],$D119),IF($G$4="Q3",SUMIFS(Network_Length__Kms___2[Length],Network_Length__Kms___2[Year],a!A$100,Network_Length__Kms___2[Quarter],"Q3",Network_Length__Kms___2[Utility],$D119),IF($G$4="Q4",SUMIFS(Network_Length__Kms___2[Length],Network_Length__Kms___2[Year],a!A$100,Network_Length__Kms___2[Quarter],"Q4",Network_Length__Kms___2[Utility],$D119), IF($G$4="Calendar Year",SUMIFS(Network_Length__Kms___2[Length],Network_Length__Kms___2[Year],a!A$100,Network_Length__Kms___2[Quarter],"Q4",Network_Length__Kms___2[Utility],$D119),IF($G$4="Jan - June (Bi-annual)",SUM(SUMIFS(Network_Length__Kms___2[Length],Network_Length__Kms___2[Year],a!A$100,Network_Length__Kms___2[Utility],$D119,Network_Length__Kms___2[Quarter],"Q1",Network_Length__Kms___2[Utility],$D119),SUMIFS(Network_Length__Kms___2[Length],Network_Length__Kms___2[Year],a!A$100,Network_Length__Kms___2[Utility],$D119,Network_Length__Kms___2[Quarter],"Q2",Network_Length__Kms___2[Utility],$D119)),""))))))),"") -> 0 | F119: =IFERROR(SUM(IF($G$4="Q1",SUMIFS(Network_Length__Kms___2[Length],Network_Length__Kms___2[Year],a!B$100,Network_Length__Kms___2[Quarter],"Q1",Network_Length__Kms___2[Utility],$D119),IF($G$4="Q2",SUMIFS(Network_Length__Kms___2[Length],Network_Length__Kms___2[Year],a!B$100,Network_Length__Kms___2[Quarter],"Q2",Network_Length__Kms___2[Utility],$D119),IF($G$4="Q3",SUMIFS(Network_Length__Kms___2[Length],Network_Length__Kms___2[Year],a!B$100,Network_Length__Kms___2[Quarter],"Q3",Network_Length__Kms___2[Utility],$D119),IF($G$4="Q4",SUMIFS(Network_Length__Kms___2[Length],Network_Length__Kms___2[Year],a!B$100,Network_Length__Kms___2[Quarter],"Q4",Network_Length__Kms___2[Utility],$D119), IF($G$4="Calendar Year",SUMIFS(Network_Length__Kms___2[Length],Network_Length__Kms___2[Year],a!B$100,Network_Length__Kms___2[Quarter],"Q4",Network_Length__Kms___2[Utility],$D119),IF($G$4="Jan - June (Bi-annual)",SUM(SUMIFS(Network_Length__Kms___2[Length],Network_Length__Kms___2[Year],a!B$100,Network_Length__Kms___2[Utility],$D119,Network_Length__Kms___2[Quarter],"Q1",Network_Length__Kms___2[Utility],$D119),SUMIFS(Network_Length__Kms___2[Length],Network_Length__Kms___2[Year],a!B$100,Network_Length__Kms___2[Utility],$D119,Network_Length__Kms___2[Quarter],"Q2",Network_Length__Kms___2[Utility],$D119)),""))))))),"") -> 0 | G119: =IFERROR(SUM(IF($G$4="Q1",SUMIFS(Network_Length__Kms___2[Length],Network_Length__Kms___2[Year],a!C$100,Network_Length__Kms___2[Quarter],"Q1",Network_Length__Kms___2[Utility],$D119),IF($G$4="Q2",SUMIFS(Network_Length__Kms___2[Length],Network_Length__Kms___2[Year],a!C$100,Network_Length__Kms___2[Quarter],"Q2",Network_Length__Kms___2[Utility],$D119),IF($G$4="Q3",SUMIFS(Network_Length__Kms___2[Length],Network_Length__Kms___2[Year],a!C$100,Network_Length__Kms___2[Quarter],"Q3",Network_Length__Kms___2[Utility],$D119),IF($G$4="Q4",SUMIFS(Network_Length__Kms___2[Length],Network_Length__Kms___2[Year],a!C$100,Network_Length__Kms___2[Quarter],"Q4",Network_Length__Kms___2[Utility],$D119), IF($G$4="Calendar Year",SUMIFS(Network_Length__Kms___2[Length],Network_Length__Kms___2[Year],a!C$100,Network_Length__Kms___2[Quarter],"Q4",Network_Length__Kms___2[Utility],$D119),IF($G$4="Jan - June (Bi-annual)",SUM(SUMIFS(Network_Length__Kms___2[Length],Network_Length__Kms___2[Year],a!C$100,Network_Length__Kms___2[Utility],$D119,Network_Length__Kms___2[Quarter],"Q1",Network_Length__Kms___2[Utility],$D119),SUMIFS(Network_Length__Kms___2[Length],Network_Length__Kms___2[Year],a!C$100,Network_Length__Kms___2[Utility],$D119,Network_Length__Kms___2[Quarter],"Q2",Network_Length__Kms___2[Utility],$D119)),""))))))),"") -> 0 | H119: =IFERROR(SUM(IF($G$4="Q1",SUMIFS(Network_Length__Kms___2[Length],Network_Length__Kms___2[Year],a!D$100,Network_Length__Kms___2[Quarter],"Q1",Network_Length__Kms___2[Utility],$D119),IF($G$4="Q2",SUMIFS(Network_Length__Kms___2[Length],Network_Length__Kms___2[Year],a!D$100,Network_Length__Kms___2[Quarter],"Q2",Network_Length__Kms___2[Utility],$D119),IF($G$4="Q3",SUMIFS(Network_Length__Kms___2[Length],Network_Length__Kms___2[Year],a!D$100,Network_Length__Kms___2[Quarter],"Q3",Network_Length__Kms___2[Utility],$D119),IF($G$4="Q4",SUMIFS(Network_Length__Kms___2[Length],Network_Length__Kms___2[Year],a!D$100,Network_Length__Kms___2[Quarter],"Q4",Network_Length__Kms___2[Utility],$D119), IF($G$4="Calendar Year",SUMIFS(Network_Length__Kms___2[Length],Network_Length__Kms___2[Year],a!D$100,Network_Length__Kms___2[Quarter],"Q4",Network_Length__Kms___2[Utility],$D119),IF($G$4="Jan - June (Bi-annual)",SUM(SUMIFS(Network_Length__Kms___2[Length],Network_Length__Kms___2[Year],a!D$100,Network_Length__Kms___2[Utility],$D119,Network_Length__Kms___2[Quarter],"Q1",Network_Length__Kms___2[Utility],$D119),SUMIFS(Network_Length__Kms___2[Length],Network_Length__Kms___2[Year],a!D$100,Network_Length__Kms___2[Utility],$D119,Network_Length__Kms___2[Quarter],"Q2",Network_Length__Kms___2[Utility],$D119)),""))))))),"") -> 324.692 | I119: =IFERROR(SUM(IF($G$4="Q1",SUMIFS(Network_Length__Kms___2[Length],Network_Length__Kms___2[Year],a!E$100,Network_Length__Kms___2[Quarter],"Q1",Network_Length__Kms___2[Utility],$D119),IF($G$4="Q2",SUMIFS(Network_Length__Kms___2[Length],Network_Length__Kms___2[Year],a!E$100,Network_Length__Kms___2[Quarter],"Q2",Network_Length__Kms___2[Utility],$D119),IF($G$4="Q3",SUMIFS(Network_Length__Kms___2[Length],Network_Length__Kms___2[Year],a!E$100,Network_Length__Kms___2[Quarter],"Q3",Network_Length__Kms___2[Utility],$D119),IF($G$4="Q4",SUMIFS(Network_Length__Kms___2[Length],Network_Length__Kms___2[Year],a!E$100,Network_Length__Kms___2[Quarter],"Q4",Network_Length__Kms___2[Utility],$D119), IF($G$4="Calendar Year",SUMIFS(Network_Length__Kms___2[Length],Network_Length__Kms___2[Year],a!E$100,Network_Length__Kms___2[Quarter],"Q4",Network_Length__Kms___2[Utility],$D119),IF($G$4="Jan - June (Bi-annual)",SUM(SUMIFS(Network_Length__Kms___2[Length],Network_Length__Kms___2[Year],a!E$100,Network_Length__Kms___2[Utility],$D119,Network_Length__Kms___2[Quarter],"Q1",Network_Length__Kms___2[Utility],$D119),SUMIFS(Network_Length__Kms___2[Length],Network_Length__Kms___2[Year],a!E$100,Network_Length__Kms___2[Utility],$D119,Network_Length__Kms___2[Quarter],"Q2",Network_Length__Kms___2[Utility],$D119)),""))))))),"") -> 324
D120: KRECS | E120: =IFERROR(SUM(IF($G$4="Q1",SUMIFS(Network_Length__Kms___2[Length],Network_Length__Kms___2[Year],a!A$100,Network_Length__Kms___2[Quarter],"Q1",Network_Length__Kms___2[Utility],$D120),IF($G$4="Q2",SUMIFS(Network_Length__Kms___2[Length],Network_Length__Kms___2[Year],a!A$100,Network_Length__Kms___2[Quarter],"Q2",Network_Length__Kms___2[Utility],$D120),IF($G$4="Q3",SUMIFS(Network_Length__Kms___2[Length],Network_Length__Kms___2[Year],a!A$100,Network_Length__Kms___2[Quarter],"Q3",Network_Length__Kms___2[Utility],$D120),IF($G$4="Q4",SUMIFS(Network_Length__Kms___2[Length],Network_Length__Kms___2[Year],a!A$100,Network_Length__Kms___2[Quarter],"Q4",Network_Length__Kms___2[Utility],$D120), IF($G$4="Calendar Year",SUMIFS(Network_Length__Kms___2[Length],Network_Length__Kms___2[Year],a!A$100,Network_Length__Kms___2[Quarter],"Q4",Network_Length__Kms___2[Utility],$D120),IF($G$4="Jan - June (Bi-annual)",SUM(SUMIFS(Network_Length__Kms___2[Length],Network_Length__Kms___2[Year],a!A$100,Network_Length__Kms___2[Utility],$D120,Network_Length__Kms___2[Quarter],"Q1",Network_Length__Kms___2[Utility],$D120),SUMIFS(Network_Length__Kms___2[Length],Network_Length__Kms___2[Year],a!A$100,Network_Length__Kms___2[Utility],$D120,Network_Length__Kms___2[Quarter],"Q2",Network_Length__Kms___2[Utility],$D120)),""))))))),"") -> 1577.0301 | F120: =IFERROR(SUM(IF($G$4="Q1",SUMIFS(Network_Length__Kms___2[Length],Network_Length__Kms___2[Year],a!B$100,Network_Length__Kms___2[Quarter],"Q1",Network_Length__Kms___2[Utility],$D120),IF($G$4="Q2",SUMIFS(Network_Length__Kms___2[Length],Network_Length__Kms___2[Year],a!B$100,Network_Length__Kms___2[Quarter],"Q2",Network_Length__Kms___2[Utility],$D120),IF($G$4="Q3",SUMIFS(Network_Length__Kms___2[Length],Network_Length__Kms___2[Year],a!B$100,Network_Length__Kms___2[Quarter],"Q3",Network_Length__Kms___2[Utility],$D120),IF($G$4="Q4",SUMIFS(Network_Length__Kms___2[Length],Network_Length__Kms___2[Year],a!B$100,Network_Length__Kms___2[Quarter],"Q4",Network_Length__Kms___2[Utility],$D120), IF($G$4="Calendar Year",SUMIFS(Network_Length__Kms___2[Length],Network_Length__Kms___2[Year],a!B$100,Network_Length__Kms___2[Quarter],"Q4",Network_Length__Kms___2[Utility],$D120),IF($G$4="Jan - June (Bi-annual)",SUM(SUMIFS(Network_Length__Kms___2[Length],Network_Length__Kms___2[Year],a!B$100,Network_Length__Kms___2[Utility],$D120,Network_Length__Kms___2[Quarter],"Q1",Network_Length__Kms___2[Utility],$D120),SUMIFS(Network_Length__Kms___2[Length],Network_Length__Kms___2[Year],a!B$100,Network_Length__Kms___2[Utility],$D120,Network_Length__Kms___2[Quarter],"Q2",Network_Length__Kms___2[Utility],$D120)),""))))))),"") -> 2227.1 | G120: =IFERROR(SUM(IF($G$4="Q1",SUMIFS(Network_Length__Kms___2[Length],Network_Length__Kms___2[Year],a!C$100,Network_Length__Kms___2[Quarter],"Q1",Network_Length__Kms___2[Utility],$D120),IF($G$4="Q2",SUMIFS(Network_Length__Kms___2[Length],Network_Length__Kms___2[Year],a!C$100,Network_Length__Kms___2[Quarter],"Q2",Network_Length__Kms___2[Utility],$D120),IF($G$4="Q3",SUMIFS(Network_Length__Kms___2[Length],Network_Length__Kms___2[Year],a!C$100,Network_Length__Kms___2[Quarter],"Q3",Network_Length__Kms___2[Utility],$D120),IF($G$4="Q4",SUMIFS(Network_Length__Kms___2[Length],Network_Length__Kms___2[Year],a!C$100,Network_Length__Kms___2[Quarter],"Q4",Network_Length__Kms___2[Utility],$D120), IF($G$4="Calendar Year",SUMIFS(Network_Length__Kms___2[Length],Network_Length__Kms___2[Year],a!C$100,Network_Length__Kms___2[Quarter],"Q4",Network_Length__Kms___2[Utility],$D120),IF($G$4="Jan - June (Bi-annual)",SUM(SUMIFS(Network_Length__Kms___2[Length],Network_Length__Kms___2[Year],a!C$100,Network_Length__Kms___2[Utility],$D120,Network_Length__Kms___2[Quarter],"Q1",Network_Length__Kms___2[Utility],$D120),SUMIFS(Network_Length__Kms___2[Length],Network_Length__Kms___2[Year],a!C$100,Network_Length__Kms___2[Utility],$D120,Network_Length__Kms___2[Quarter],"Q2",Network_Length__Kms___2[Utility],$D120)),""))))))),"") -> 2230.4 | H120: =IFERROR(SUM(IF($G$4="Q1",SUMIFS(Network_Length__Kms___2[Length],Network_Length__Kms___2[Year],a!D$100,Network_Length__Kms___2[Quarter],"Q1",Network_Length__Kms___2[Utility],$D120),IF($G$4="Q2",SUMIFS(Network_Length__Kms___2[Length],Network_Length__Kms___2[Year],a!D$100,Network_Length__Kms___2[Quarter],"Q2",Network_Length__Kms___2[Utility],$D120),IF($G$4="Q3",SUMIFS(Network_Length__Kms___2[Length],Network_Length__Kms___2[Year],a!D$100,Network_Length__Kms___2[Quarter],"Q3",Network_Length__Kms___2[Utility],$D120),IF($G$4="Q4",SUMIFS(Network_Length__Kms___2[Length],Network_Length__Kms___2[Year],a!D$100,Network_Length__Kms___2[Quarter],"Q4",Network_Length__Kms___2[Utility],$D120), IF($G$4="Calendar Year",SUMIFS(Network_Length__Kms___2[Length],Network_Length__Kms___2[Year],a!D$100,Network_Length__Kms___2[Quarter],"Q4",Network_Length__Kms___2[Utility],$D120),IF($G$4="Jan - June (Bi-annual)",SUM(SUMIFS(Network_Length__Kms___2[Length],Network_Length__Kms___2[Year],a!D$100,Network_Length__Kms___2[Utility],$D120,Network_Length__Kms___2[Quarter],"Q1",Network_Length__Kms___2[Utility],$D120),SUMIFS(Network_Length__Kms___2[Length],Network_Length__Kms___2[Year],a!D$100,Network_Length__Kms___2[Utility],$D120,Network_Length__Kms___2[Quarter],"Q2",Network_Length__Kms___2[Utility],$D120)),""))))))),"") -> 0 | I120: =IFERROR(SUM(IF($G$4="Q1",SUMIFS(Network_Length__Kms___2[Length],Network_Length__Kms___2[Year],a!E$100,Network_Length__Kms___2[Quarter],"Q1",Network_Length__Kms___2[Utility],$D120),IF($G$4="Q2",SUMIFS(Network_Length__Kms___2[Length],Network_Length__Kms___2[Year],a!E$100,Network_Length__Kms___2[Quarter],"Q2",Network_Length__Kms___2[Utility],$D120),IF($G$4="Q3",SUMIFS(Network_Length__Kms___2[Length],Network_Length__Kms___2[Year],a!E$100,Network_Length__Kms___2[Quarter],"Q3",Network_Length__Kms___2[Utility],$D120),IF($G$4="Q4",SUMIFS(Network_Length__Kms___2[Length],Network_Length__Kms___2[Year],a!E$100,Network_Length__Kms___2[Quarter],"Q4",Network_Length__Kms___2[Utility],$D120), IF($G$4="Calendar Year",SUMIFS(Network_Length__Kms___2[Length],Network_Length__Kms___2[Year],a!E$100,Network_Length__Kms___2[Quarter],"Q4",Network_Length__Kms___2[Utility],$D120),IF($G$4="Jan - June (Bi-annual)",SUM(SUMIFS(Network_Length__Kms___2[Length],Network_Length__Kms___2[Year],a!E$100,Network_Length__Kms___2[Utility],$D120,Network_Length__Kms___2[Quarter],"Q1",Network_Length__Kms___2[Utility],$D120),SUMIFS(Network_Length__Kms___2[Length],Network_Length__Kms___2[Year],a!E$100,Network_Length__Kms___2[Utility],$D120,Network_Length__Kms___2[Quarter],"Q2",Network_Length__Kms___2[Utility],$D120)),""))))))),"") -> 0
D121: PACMECS | E121: =IFERROR(SUM(IF($G$4="Q1",SUMIFS(Network_Length__Kms___2[Length],Network_Length__Kms___2[Year],a!A$100,Network_Length__Kms___2[Quarter],"Q1",Network_Length__Kms___2[Utility],$D121),IF($G$4="Q2",SUMIFS(Network_Length__Kms___2[Length],Network_Length__Kms___2[Year],a!A$100,Network_Length__Kms___2[Quarter],"Q2",Network_Length__Kms___2[Utility],$D121),IF($G$4="Q3",SUMIFS(Network_Length__Kms___2[Length],Network_Length__Kms___2[Year],a!A$100,Network_Length__Kms___2[Quarter],"Q3",Network_Length__Kms___2[Utility],$D121),IF($G$4="Q4",SUMIFS(Network_Length__Kms___2[Length],Network_Length__Kms___2[Year],a!A$100,Network_Length__Kms___2[Quarter],"Q4",Network_Length__Kms___2[Utility],$D121), IF($G$4="Calendar Year",SUMIFS(Network_Length__Kms___2[Length],Network_Length__Kms___2[Year],a!A$100,Network_Length__Kms___2[Quarter],"Q4",Network_Length__Kms___2[Utility],$D121),IF($G$4="Jan - June (Bi-annual)",SUM(SUMIFS(Network_Length__Kms___2[Length],Network_Length__Kms___2[Year],a!A$100,Network_Length__Kms___2[Utility],$D121,Network_Length__Kms___2[Quarter],"Q1",Network_Length__Kms___2[Utility],$D121),SUMIFS(Network_Length__Kms___2[Length],Network_Length__Kms___2[Year],a!A$100,Network_Length__Kms___2[Utility],$D121,Network_Length__Kms___2[Quarter],"Q2",Network_Length__Kms___2[Utility],$D121)),""))))))),"") -> 1216.063 | F121: =IFERROR(SUM(IF($G$4="Q1",SUMIFS(Network_Length__Kms___2[Length],Network_Length__Kms___2[Year],a!B$100,Network_Length__Kms___2[Quarter],"Q1",Network_Length__Kms___2[Utility],$D121),IF($G$4="Q2",SUMIFS(Network_Length__Kms___2[Length],Network_Length__Kms___2[Year],a!B$100,Network_Length__Kms___2[Quarter],"Q2",Network_Length__Kms___2[Utility],$D121),IF($G$4="Q3",SUMIFS(Network_Length__Kms___2[Length],Network_Length__Kms___2[Year],a!B$100,Network_Length__Kms___2[Quarter],"Q3",Network_Length__Kms___2[Utility],$D121),IF($G$4="Q4",SUMIFS(Network_Length__Kms___2[Length],Network_Length__Kms___2[Year],a!B$100,Network_Length__Kms___2[Quarter],"Q4",Network_Length__Kms___2[Utility],$D121), IF($G$4="Calendar Year",SUMIFS(Network_Length__Kms___2[Length],Network_Length__Kms___2[Year],a!B$100,Network_Length__Kms___2[Quarter],"Q4",Network_Length__Kms___2[Utility],$D121),IF($G$4="Jan - June (Bi-annual)",SUM(SUMIFS(Network_Length__Kms___2[Length],Network_Length__Kms___2[Year],a!B$100,Network_Length__Kms___2[Utility],$D121,Network_Length__Kms___2[Quarter],"Q1",Network_Length__Kms___2[Utility],$D121),SUMIFS(Network_Length__Kms___2[Length],Network_Length__Kms___2[Year],a!B$100,Network_Length__Kms___2[Utility],$D121,Network_Length__Kms___2[Quarter],"Q2",Network_Length__Kms___2[Utility],$D121)),""))))))),"") -> 1216.063 | G121: =IFERROR(SUM(IF($G$4="Q1",SUMIFS(Network_Length__Kms___2[Length],Network_Length__Kms___2[Year],a!C$100,Network_Length__Kms___2[Quarter],"Q1",Network_Length__Kms___2[Utility],$D121),IF($G$4="Q2",SUMIFS(Network_Length__Kms___2[Length],Network_Length__Kms___2[Year],a!C$100,Network_Length__Kms___2[Quarter],"Q2",Network_Length__Kms___2[Utility],$D121),IF($G$4="Q3",SUMIFS(Network_Length__Kms___2[Length],Network_Length__Kms___2[Year],a!C$100,Network_Length__Kms___2[Quarter],"Q3",Network_Length__Kms___2[Utility],$D121),IF($G$4="Q4",SUMIFS(Network_Length__Kms___2[Length],Network_Length__Kms___2[Year],a!C$100,Network_Length__Kms___2[Quarter],"Q4",Network_Length__Kms___2[Utility],$D121), IF($G$4="Calendar Year",SUMIFS(Network_Length__Kms___2[Length],Network_Length__Kms___2[Year],a!C$100,Network_Length__Kms___2[Quarter],"Q4",Network_Length__Kms___2[Utility],$D121),IF($G$4="Jan - June (Bi-annual)",SUM(SUMIFS(Network_Length__Kms___2[Length],Network_Length__Kms___2[Year],a!C$100,Network_Length__Kms___2[Utility],$D121,Network_Length__Kms___2[Quarter],"Q1",Network_Length__Kms___2[Utility],$D121),SUMIFS(Network_Length__Kms___2[Length],Network_Length__Kms___2[Year],a!C$100,Network_Length__Kms___2[Utility],$D121,Network_Length__Kms___2[Quarter],"Q2",Network_Length__Kms___2[Utility],$D121)),""))))))),"") -> 1283.29 | H121: =IFERROR(SUM(IF($G$4="Q1",SUMIFS(Network_Length__Kms___2[Length],Network_Length__Kms___2[Year],a!D$100,Network_Length__Kms___2[Quarter],"Q1",Network_Length__Kms___2[Utility],$D121),IF($G$4="Q2",SUMIFS(Network_Length__Kms___2[Length],Network_Length__Kms___2[Year],a!D$100,Network_Length__Kms___2[Quarter],"Q2",Network_Length__Kms___2[Utility],$D121),IF($G$4="Q3",SUMIFS(Network_Length__Kms___2[Length],Network_Length__Kms___2[Year],a!D$100,Network_Length__Kms___2[Quarter],"Q3",Network_Length__Kms___2[Utility],$D121),IF($G$4="Q4",SUMIFS(Network_Length__Kms___2[Length],Network_Length__Kms___2[Year],a!D$100,Network_Length__Kms___2[Quarter],"Q4",Network_Length__Kms___2[Utility],$D121), IF($G$4="Calendar Year",SUMIFS(Network_Length__Kms___2[Length],Network_Length__Kms___2[Year],a!D$100,Network_Length__Kms___2[Quarter],"Q4",Network_Length__Kms___2[Utility],$D121),IF($G$4="Jan - June (Bi-annual)",SUM(SUMIFS(Network_Length__Kms___2[Length],Network_Length__Kms___2[Year],a!D$100,Network_Length__Kms___2[Utility],$D121,Network_Length__Kms___2[Quarter],"Q1",Network_Length__Kms___2[Utility],$D121),SUMIFS(Network_Length__Kms___2[Length],Network_Length__Kms___2[Year],a!D$100,Network_Length__Kms___2[Utility],$D121,Network_Length__Kms___2[Quarter],"Q2",Network_Length__Kms___2[Utility],$D121)),""))))))),"") -> 0 | I121: =IFERROR(SUM(IF($G$4="Q1",SUMIFS(Network_Length__Kms___2[Length],Network_Length__Kms___2[Year],a!E$100,Network_Length__Kms___2[Quarter],"Q1",Network_Length__Kms___2[Utility],$D121),IF($G$4="Q2",SUMIFS(Network_Length__Kms___2[Length],Network_Length__Kms___2[Year],a!E$100,Network_Length__Kms___2[Quarter],"Q2",Network_Length__Kms___2[Utility],$D121),IF($G$4="Q3",SUMIFS(Network_Length__Kms___2[Length],Network_Length__Kms___2[Year],a!E$100,Network_Length__Kms___2[Quarter],"Q3",Network_Length__Kms___2[Utility],$D121),IF($G$4="Q4",SUMIFS(Network_Length__Kms___2[Length],Network_Length__Kms___2[Year],a!E$100,Network_Length__Kms___2[Quarter],"Q4",Network_Length__Kms___2[Utility],$D121), IF($G$4="Calendar Year",SUMIFS(Network_Length__Kms___2[Length],Network_Length__Kms___2[Year],a!E$100,Network_Length__Kms___2[Quarter],"Q4",Network_Length__Kms___2[Utility],$D121),IF($G$4="Jan - June (Bi-annual)",SUM(SUMIFS(Network_Length__Kms___2[Length],Network_Length__Kms___2[Year],a!E$100,Network_Length__Kms___2[Utility],$D121,Network_Length__Kms___2[Quarter],"Q1",Network_Length__Kms___2[Utility],$D121),SUMIFS(Network_Length__Kms___2[Length],Network_Length__Kms___2[Year],a!E$100,Network_Length__Kms___2[Utility],$D121,Network_Length__Kms___2[Quarter],"Q2",Network_Length__Kms___2[Utility],$D121)),""))))))),"") -> 0
D122: UEDCL | E122: =IFERROR(SUM(IF($G$4="Q1",SUMIFS(Network_Length__Kms___2[Length],Network_Length__Kms___2[Year],a!A$100,Network_Length__Kms___2[Quarter],"Q1",Network_Length__Kms___2[Utility],$D122),IF($G$4="Q2",SUMIFS(Network_Length__Kms___2[Length],Network_Length__Kms___2[Year],a!A$100,Network_Length__Kms___2[Quarter],"Q2",Network_Length__Kms___2[Utility],$D122),IF($G$4="Q3",SUMIFS(Network_Length__Kms___2[Length],Network_Length__Kms___2[Year],a!A$100,Network_Length__Kms___2[Quarter],"Q3",Network_Length__Kms___2[Utility],$D122),IF($G$4="Q4",SUMIFS(Network_Length__Kms___2[Length],Network_Length__Kms___2[Year],a!A$100,Network_Length__Kms___2[Quarter],"Q4",Network_Length__Kms___2[Utility],$D122), IF($G$4="Calendar Year",SUMIFS(Network_Length__Kms___2[Length],Network_Length__Kms___2[Year],a!A$100,Network_Length__Kms___2[Quarter],"Q4",Network_Length__Kms___2[Utility],$D122),IF($G$4="Jan - June (Bi-annual)",SUM(SUMIFS(Network_Length__Kms___2[Length],Network_Length__Kms___2[Year],a!A$100,Network_Length__Kms___2[Utility],$D122,Network_Length__Kms___2[Quarter],"Q1",Network_Length__Kms___2[Utility],$D122),SUMIFS(Network_Length__Kms___2[Length],Network_Length__Kms___2[Year],a!A$100,Network_Length__Kms___2[Utility],$D122,Network_Length__Kms___2[Quarter],"Q2",Network_Length__Kms___2[Utility],$D122)),""))))))),"") -> 14224.404 | F122: =IFERROR(SUM(IF($G$4="Q1",SUMIFS(Network_Length__Kms___2[Length],Network_Length__Kms___2[Year],a!B$100,Network_Length__Kms___2[Quarter],"Q1",Network_Length__Kms___2[Utility],$D122),IF($G$4="Q2",SUMIFS(Network_Length__Kms___2[Length],Network_Length__Kms___2[Year],a!B$100,Network_Length__Kms___2[Quarter],"Q2",Network_Length__Kms___2[Utility],$D122),IF($G$4="Q3",SUMIFS(Network_Length__Kms___2[Length],Network_Length__Kms___2[Year],a!B$100,Network_Length__Kms___2[Quarter],"Q3",Network_Length__Kms___2[Utility],$D122),IF($G$4="Q4",SUMIFS(Network_Length__Kms___2[Length],Network_Length__Kms___2[Year],a!B$100,Network_Length__Kms___2[Quarter],"Q4",Network_Length__Kms___2[Utility],$D122), IF($G$4="Calendar Year",SUMIFS(Network_Length__Kms___2[Length],Network_Length__Kms___2[Year],a!B$100,Network_Length__Kms___2[Quarter],"Q4",Network_Length__Kms___2[Utility],$D122),IF($G$4="Jan - June (Bi-annual)",SUM(SUMIFS(Network_Length__Kms___2[Length],Network_Length__Kms___2[Year],a!B$100,Network_Length__Kms___2[Utility],$D122,Network_Length__Kms___2[Quarter],"Q1",Network_Length__Kms___2[Utility],$D122),SUMIFS(Network_Length__Kms___2[Length],Network_Length__Kms___2[Year],a!B$100,Network_Length__Kms___2[Utility],$D122,Network_Length__Kms___2[Quarter],"Q2",Network_Length__Kms___2[Utility],$D122)),""))))))),"") -> 16832.192 | G122: =IFERROR(SUM(IF($G$4="Q1",SUMIFS(Network_Length__Kms___2[Length],Network_Length__Kms___2[Year],a!C$100,Network_Length__Kms___2[Quarter],"Q1",Network_Length__Kms___2[Utility],$D122),IF($G$4="Q2",SUMIFS(Network_Length__Kms___2[Length],Network_Length__Kms___2[Year],a!C$100,Network_Length__Kms___2[Quarter],"Q2",Network_Length__Kms___2[Utility],$D122),IF($G$4="Q3",SUMIFS(Network_Length__Kms___2[Length],Network_Length__Kms___2[Year],a!C$100,Network_Length__Kms___2[Quarter],"Q3",Network_Length__Kms___2[Utility],$D122),IF($G$4="Q4",SUMIFS(Network_Length__Kms___2[Length],Network_Length__Kms___2[Year],a!C$100,Network_Length__Kms___2[Quarter],"Q4",Network_Length__Kms___2[Utility],$D122), IF($G$4="Calendar Year",SUMIFS(Network_Length__Kms___2[Length],Network_Length__Kms___2[Year],a!C$100,Network_Length__Kms___2[Quarter],"Q4",Network_Length__Kms___2[Utility],$D122),IF($G$4="Jan - June (Bi-annual)",SUM(SUMIFS(Network_Length__Kms___2[Length],Network_Length__Kms___2[Year],a!C$100,Network_Length__Kms___2[Utility],$D122,Network_Length__Kms___2[Quarter],"Q1",Network_Length__Kms___2[Utility],$D122),SUMIFS(Network_Length__Kms___2[Length],Network_Length__Kms___2[Year],a!C$100,Network_Length__Kms___2[Utility],$D122,Network_Length__Kms___2[Quarter],"Q2",Network_Length__Kms___2[Utility],$D122)),""))))))),"") -> 19788.06665 | H122: =IFERROR(SUM(IF($G$4="Q1",SUMIFS(Network_Length__Kms___2[Length],Network_Length__Kms___2[Year],a!D$100,Network_Length__Kms___2[Quarter],"Q1",Network_Length__Kms___2[Utility],$D122),IF($G$4="Q2",SUMIFS(Network_Length__Kms___2[Length],Network_Length__Kms___2[Year],a!D$100,Network_Length__Kms___2[Quarter],"Q2",Network_Length__Kms___2[Utility],$D122),IF($G$4="Q3",SUMIFS(Network_Length__Kms___2[Length],Network_Length__Kms___2[Year],a!D$100,Network_Length__Kms___2[Quarter],"Q3",Network_Length__Kms___2[Utility],$D122),IF($G$4="Q4",SUMIFS(Network_Length__Kms___2[Length],Network_Length__Kms___2[Year],a!D$100,Network_Length__Kms___2[Quarter],"Q4",Network_Length__Kms___2[Utility],$D122), IF($G$4="Calendar Year",SUMIFS(Network_Length__Kms___2[Length],Network_Length__Kms___2[Year],a!D$100,Network_Length__Kms___2[Quarter],"Q4",Network_Length__Kms___2[Utility],$D122),IF($G$4="Jan - June (Bi-annual)",SUM(SUMIFS(Network_Length__Kms___2[Length],Network_Length__Kms___2[Year],a!D$100,Network_Length__Kms___2[Utility],$D122,Network_Length__Kms___2[Quarter],"Q1",Network_Length__Kms___2[Utility],$D122),SUMIFS(Network_Length__Kms___2[Length],Network_Length__Kms___2[Year],a!D$100,Network_Length__Kms___2[Utility],$D122,Network_Length__Kms___2[Quarter],"Q2",Network_Length__Kms___2[Utility],$D122)),""))))))),"") -> 23887.02936 | I122: 93148.96
D123: UMEME | E123: =IFERROR(SUM(IF($G$4="Q1",SUMIFS(Network_Length__Kms___2[Length],Network_Length__Kms___2[Year],a!A$100,Network_Length__Kms___2[Quarter],"Q1",Network_Length__Kms___2[Utility],$D123),IF($G$4="Q2",SUMIFS(Network_Length__Kms___2[Length],Network_Length__Kms___2[Year],a!A$100,Network_Length__Kms___2[Quarter],"Q2",Network_Length__Kms___2[Utility],$D123),IF($G$4="Q3",SUMIFS(Network_Length__Kms___2[Length],Network_Length__Kms___2[Year],a!A$100,Network_Length__Kms___2[Quarter],"Q3",Network_Length__Kms___2[Utility],$D123),IF($G$4="Q4",SUMIFS(Network_Length__Kms___2[Length],Network_Length__Kms___2[Year],a!A$100,Network_Length__Kms___2[Quarter],"Q4",Network_Length__Kms___2[Utility],$D123), IF($G$4="Calendar Year",SUMIFS(Network_Length__Kms___2[Length],Network_Length__Kms___2[Year],a!A$100,Network_Length__Kms___2[Quarter],"Q4",Network_Length__Kms___2[Utility],$D123),IF($G$4="Jan - June (Bi-annual)",SUM(SUMIFS(Network_Length__Kms___2[Length],Network_Length__Kms___2[Year],a!A$100,Network_Length__Kms___2[Utility],$D123,Network_Length__Kms___2[Quarter],"Q1",Network_Length__Kms___2[Utility],$D123),SUMIFS(Network_Length__Kms___2[Length],Network_Length__Kms___2[Year],a!A$100,Network_Length__Kms___2[Utility],$D123,Network_Length__Kms___2[Quarter],"Q2",Network_Length__Kms___2[Utility],$D123)),""))))))),"") -> 40215.50973 | F123: =IFERROR(SUM(IF($G$4="Q1",SUMIFS(Network_Length__Kms___2[Length],Network_Length__Kms___2[Year],a!B$100,Network_Length__Kms___2[Quarter],"Q1",Network_Length__Kms___2[Utility],$D123),IF($G$4="Q2",SUMIFS(Network_Length__Kms___2[Length],Network_Length__Kms___2[Year],a!B$100,Network_Length__Kms___2[Quarter],"Q2",Network_Length__Kms___2[Utility],$D123),IF($G$4="Q3",SUMIFS(Network_Length__Kms___2[Length],Network_Length__Kms___2[Year],a!B$100,Network_Length__Kms___2[Quarter],"Q3",Network_Length__Kms___2[Utility],$D123),IF($G$4="Q4",SUMIFS(Network_Length__Kms___2[Length],Network_Length__Kms___2[Year],a!B$100,Network_Length__Kms___2[Quarter],"Q4",Network_Length__Kms___2[Utility],$D123), IF($G$4="Calendar Year",SUMIFS(Network_Length__Kms___2[Length],Network_Length__Kms___2[Year],a!B$100,Network_Length__Kms___2[Quarter],"Q4",Network_Length__Kms___2[Utility],$D123),IF($G$4="Jan - June (Bi-annual)",SUM(SUMIFS(Network_Length__Kms___2[Length],Network_Length__Kms___2[Year],a!B$100,Network_Length__Kms___2[Utility],$D123,Network_Length__Kms___2[Quarter],"Q1",Network_Length__Kms___2[Utility],$D123),SUMIFS(Network_Length__Kms___2[Length],Network_Length__Kms___2[Year],a!B$100,Network_Length__Kms___2[Utility],$D123,Network_Length__Kms___2[Quarter],"Q2",Network_Length__Kms___2[Utility],$D123)),""))))))),"") -> 41266.6099 | G123: =IFERROR(SUM(IF($G$4="Q1",SUMIFS(Network_Length__Kms___2[Length],Network_Length__Kms___2[Year],a!C$100,Network_Length__Kms___2[Quarter],"Q1",Network_Length__Kms___2[Utility],$D123),IF($G$4="Q2",SUMIFS(Network_Length__Kms___2[Length],Network_Length__Kms___2[Year],a!C$100,Network_Length__Kms___2[Quarter],"Q2",Network_Length__Kms___2[Utility],$D123),IF($G$4="Q3",SUMIFS(Network_Length__Kms___2[Length],Network_Length__Kms___2[Year],a!C$100,Network_Length__Kms___2[Quarter],"Q3",Network_Length__Kms___2[Utility],$D123),IF($G$4="Q4",SUMIFS(Network_Length__Kms___2[Length],Network_Length__Kms___2[Year],a!C$100,Network_Length__Kms___2[Quarter],"Q4",Network_Length__Kms___2[Utility],$D123), IF($G$4="Calendar Year",SUMIFS(Network_Length__Kms___2[Length],Network_Length__Kms___2[Year],a!C$100,Network_Length__Kms___2[Quarter],"Q4",Network_Length__Kms___2[Utility],$D123),IF($G$4="Jan - June (Bi-annual)",SUM(SUMIFS(Network_Length__Kms___2[Length],Network_Length__Kms___2[Year],a!C$100,Network_Length__Kms___2[Utility],$D123,Network_Length__Kms___2[Quarter],"Q1",Network_Length__Kms___2[Utility],$D123),SUMIFS(Network_Length__Kms___2[Length],Network_Length__Kms___2[Year],a!C$100,Network_Length__Kms___2[Utility],$D123,Network_Length__Kms___2[Quarter],"Q2",Network_Length__Kms___2[Utility],$D123)),""))))))),"") -> 42481.32221 | H123: =IFERROR(SUM(IF($G$4="Q1",SUMIFS(Network_Length__Kms___2[Length],Network_Length__Kms___2[Year],a!D$100,Network_Length__Kms___2[Quarter],"Q1",Network_Length__Kms___2[Utility],$D123),IF($G$4="Q2",SUMIFS(Network_Length__Kms___2[Length],Network_Length__Kms___2[Year],a!D$100,Network_Length__Kms___2[Quarter],"Q2",Network_Length__Kms___2[Utility],$D123),IF($G$4="Q3",SUMIFS(Network_Length__Kms___2[Length],Network_Length__Kms___2[Year],a!D$100,Network_Length__Kms___2[Quarter],"Q3",Network_Length__Kms___2[Utility],$D123),IF($G$4="Q4",SUMIFS(Network_Length__Kms___2[Length],Network_Length__Kms___2[Year],a!D$100,Network_Length__Kms___2[Quarter],"Q4",Network_Length__Kms___2[Utility],$D123), IF($G$4="Calendar Year",SUMIFS(Network_Length__Kms___2[Length],Network_Length__Kms___2[Year],a!D$100,Network_Length__Kms___2[Quarter],"Q4",Network_Length__Kms___2[Utility],$D123),IF($G$4="Jan - June (Bi-annual)",SUM(SUMIFS(Network_Length__Kms___2[Length],Network_Length__Kms___2[Year],a!D$100,Network_Length__Kms___2[Utility],$D123,Network_Length__Kms___2[Quarter],"Q1",Network_Length__Kms___2[Utility],$D123),SUMIFS(Network_Length__Kms___2[Length],Network_Length__Kms___2[Year],a!D$100,Network_Length__Kms___2[Utility],$D123,Network_Length__Kms___2[Quarter],"Q2",Network_Length__Kms___2[Utility],$D123)),""))))))),"") -> 35203.63 | I123: =IFERROR(SUM(IF($G$4="Q1",SUMIFS(Network_Length__Kms___2[Length],Network_Length__Kms___2[Year],a!E$100,Network_Length__Kms___2[Quarter],"Q1",Network_Length__Kms___2[Utility],$D123),IF($G$4="Q2",SUMIFS(Network_Length__Kms___2[Length],Network_Length__Kms___2[Year],a!E$100,Network_Length__Kms___2[Quarter],"Q2",Network_Length__Kms___2[Utility],$D123),IF($G$4="Q3",SUMIFS(Network_Length__Kms___2[Length],Network_Length__Kms___2[Year],a!E$100,Network_Length__Kms___2[Quarter],"Q3",Network_Length__Kms___2[Utility],$D123),IF($G$4="Q4",SUMIFS(Network_Length__Kms___2[Length],Network_Length__Kms___2[Year],a!E$100,Network_Length__Kms___2[Quarter],"Q4",Network_Length__Kms___2[Utility],$D123), IF($G$4="Calendar Year",SUMIFS(Network_Length__Kms___2[Length],Network_Length__Kms___2[Year],a!E$100,Network_Length__Kms___2[Quarter],"Q4",Network_Length__Kms___2[Utility],$D123),IF($G$4="Jan - June (Bi-annual)",SUM(SUMIFS(Network_Length__Kms___2[Length],Network_Length__Kms___2[Year],a!E$100,Network_Length__Kms___2[Utility],$D123,Network_Length__Kms___2[Quarter],"Q1",Network_Length__Kms___2[Utility],$D123),SUMIFS(Network_Length__Kms___2[Length],Network_Length__Kms___2[Year],a!E$100,Network_Length__Kms___2[Utility],$D123,Network_Length__Kms___2[Quarter],"Q2",Network_Length__Kms___2[Utility],$D123)),""))))))),"") -> 0
D124: WENRECO | E124: =IFERROR(SUM(IF($G$4="Q1",SUMIFS(Network_Length__Kms___2[Length],Network_Length__Kms___2[Year],a!A$100,Network_Length__Kms___2[Quarter],"Q1",Network_Length__Kms___2[Utility],$D124),IF($G$4="Q2",SUMIFS(Network_Length__Kms___2[Length],Network_Length__Kms___2[Year],a!A$100,Network_Length__Kms___2[Quarter],"Q2",Network_Length__Kms___2[Utility],$D124),IF($G$4="Q3",SUMIFS(Network_Length__Kms___2[Length],Network_Length__Kms___2[Year],a!A$100,Network_Length__Kms___2[Quarter],"Q3",Network_Length__Kms___2[Utility],$D124),IF($G$4="Q4",SUMIFS(Network_Length__Kms___2[Length],Network_Length__Kms___2[Year],a!A$100,Network_Length__Kms___2[Quarter],"Q4",Network_Length__Kms___2[Utility],$D124), IF($G$4="Calendar Year",SUMIFS(Network_Length__Kms___2[Length],Network_Length__Kms___2[Year],a!A$100,Network_Length__Kms___2[Quarter],"Q4",Network_Length__Kms___2[Utility],$D124),IF($G$4="Jan - June (Bi-annual)",SUM(SUMIFS(Network_Length__Kms___2[Length],Network_Length__Kms___2[Year],a!A$100,Network_Length__Kms___2[Utility],$D124,Network_Length__Kms___2[Quarter],"Q1",Network_Length__Kms___2[Utility],$D124),SUMIFS(Network_Length__Kms___2[Length],Network_Length__Kms___2[Year],a!A$100,Network_Length__Kms___2[Utility],$D124,Network_Length__Kms___2[Quarter],"Q2",Network_Length__Kms___2[Utility],$D124)),""))))))),"") -> 0 | F124: =IFERROR(SUM(IF($G$4="Q1",SUMIFS(Network_Length__Kms___2[Length],Network_Length__Kms___2[Year],a!B$100,Network_Length__Kms___2[Quarter],"Q1",Network_Length__Kms___2[Utility],$D124),IF($G$4="Q2",SUMIFS(Network_Length__Kms___2[Length],Network_Length__Kms___2[Year],a!B$100,Network_Length__Kms___2[Quarter],"Q2",Network_Length__Kms___2[Utility],$D124),IF($G$4="Q3",SUMIFS(Network_Length__Kms___2[Length],Network_Length__Kms___2[Year],a!B$100,Network_Length__Kms___2[Quarter],"Q3",Network_Length__Kms___2[Utility],$D124),IF($G$4="Q4",SUMIFS(Network_Length__Kms___2[Length],Network_Length__Kms___2[Year],a!B$100,Network_Length__Kms___2[Quarter],"Q4",Network_Length__Kms___2[Utility],$D124), IF($G$4="Calendar Year",SUMIFS(Network_Length__Kms___2[Length],Network_Length__Kms___2[Year],a!B$100,Network_Length__Kms___2[Quarter],"Q4",Network_Length__Kms___2[Utility],$D124),IF($G$4="Jan - June (Bi-annual)",SUM(SUMIFS(Network_Length__Kms___2[Length],Network_Length__Kms___2[Year],a!B$100,Network_Length__Kms___2[Utility],$D124,Network_Length__Kms___2[Quarter],"Q1",Network_Length__Kms___2[Utility],$D124),SUMIFS(Network_Length__Kms___2[Length],Network_Length__Kms___2[Year],a!B$100,Network_Length__Kms___2[Utility],$D124,Network_Length__Kms___2[Quarter],"Q2",Network_Length__Kms___2[Utility],$D124)),""))))))),"") -> 0 | G124: =IFERROR(SUM(IF($G$4="Q1",SUMIFS(Network_Length__Kms___2[Length],Network_Length__Kms___2[Year],a!C$100,Network_Length__Kms___2[Quarter],"Q1",Network_Length__Kms___2[Utility],$D124),IF($G$4="Q2",SUMIFS(Network_Length__Kms___2[Length],Network_Length__Kms___2[Year],a!C$100,Network_Length__Kms___2[Quarter],"Q2",Network_Length__Kms___2[Utility],$D124),IF($G$4="Q3",SUMIFS(Network_Length__Kms___2[Length],Network_Length__Kms___2[Year],a!C$100,Network_Length__Kms___2[Quarter],"Q3",Network_Length__Kms___2[Utility],$D124),IF($G$4="Q4",SUMIFS(Network_Length__Kms___2[Length],Network_Length__Kms___2[Year],a!C$100,Network_Length__Kms___2[Quarter],"Q4",Network_Length__Kms___2[Utility],$D124), IF($G$4="Calendar Year",SUMIFS(Network_Length__Kms___2[Length],Network_Length__Kms___2[Year],a!C$100,Network_Length__Kms___2[Quarter],"Q4",Network_Length__Kms___2[Utility],$D124),IF($G$4="Jan - June (Bi-annual)",SUM(SUMIFS(Network_Length__Kms___2[Length],Network_Length__Kms___2[Year],a!C$100,Network_Length__Kms___2[Utility],$D124,Network_Length__Kms___2[Quarter],"Q1",Network_Length__Kms___2[Utility],$D124),SUMIFS(Network_Length__Kms___2[Length],Network_Length__Kms___2[Year],a!C$100,Network_Length__Kms___2[Utility],$D124,Network_Length__Kms___2[Quarter],"Q2",Network_Length__Kms___2[Utility],$D124)),""))))))),"") -> 0 | H124: =IFERROR(SUM(IF($G$4="Q1",SUMIFS(Network_Length__Kms___2[Length],Network_Length__Kms___2[Year],a!D$100,Network_Length__Kms___2[Quarter],"Q1",Network_Length__Kms___2[Utility],$D124),IF($G$4="Q2",SUMIFS(Network_Length__Kms___2[Length],Network_Length__Kms___2[Year],a!D$100,Network_Length__Kms___2[Quarter],"Q2",Network_Length__Kms___2[Utility],$D124),IF($G$4="Q3",SUMIFS(Network_Length__Kms___2[Length],Network_Length__Kms___2[Year],a!D$100,Network_Length__Kms___2[Quarter],"Q3",Network_Length__Kms___2[Utility],$D124),IF($G$4="Q4",SUMIFS(Network_Length__Kms___2[Length],Network_Length__Kms___2[Year],a!D$100,Network_Length__Kms___2[Quarter],"Q4",Network_Length__Kms___2[Utility],$D124), IF($G$4="Calendar Year",SUMIFS(Network_Length__Kms___2[Length],Network_Length__Kms___2[Year],a!D$100,Network_Length__Kms___2[Quarter],"Q4",Network_Length__Kms___2[Utility],$D124),IF($G$4="Jan - June (Bi-annual)",SUM(SUMIFS(Network_Length__Kms___2[Length],Network_Length__Kms___2[Year],a!D$100,Network_Length__Kms___2[Utility],$D124,Network_Length__Kms___2[Quarter],"Q1",Network_Length__Kms___2[Utility],$D124),SUMIFS(Network_Length__Kms___2[Length],Network_Length__Kms___2[Year],a!D$100,Network_Length__Kms___2[Utility],$D124,Network_Length__Kms___2[Quarter],"Q2",Network_Length__Kms___2[Utility],$D124)),""))))))),"") -> 2603.576 | I124: =IFERROR(SUM(IF($G$4="Q1",SUMIFS(Network_Length__Kms___2[Length],Network_Length__Kms___2[Year],a!E$100,Network_Length__Kms___2[Quarter],"Q1",Network_Length__Kms___2[Utility],$D124),IF($G$4="Q2",SUMIFS(Network_Length__Kms___2[Length],Network_Length__Kms___2[Year],a!E$100,Network_Length__Kms___2[Quarter],"Q2",Network_Length__Kms___2[Utility],$D124),IF($G$4="Q3",SUMIFS(Network_Length__Kms___2[Length],Network_Length__Kms___2[Year],a!E$100,Network_Length__Kms___2[Quarter],"Q3",Network_Length__Kms___2[Utility],$D124),IF($G$4="Q4",SUMIFS(Network_Length__Kms___2[Length],Network_Length__Kms___2[Year],a!E$100,Network_Length__Kms___2[Quarter],"Q4",Network_Length__Kms___2[Utility],$D124), IF($G$4="Calendar Year",SUMIFS(Network_Length__Kms___2[Length],Network_Length__Kms___2[Year],a!E$100,Network_Length__Kms___2[Quarter],"Q4",Network_Length__Kms___2[Utility],$D124),IF($G$4="Jan - June (Bi-annual)",SUM(SUMIFS(Network_Length__Kms___2[Length],Network_Length__Kms___2[Year],a!E$100,Network_Length__Kms___2[Utility],$D124,Network_Length__Kms___2[Quarter],"Q1",Network_Length__Kms___2[Utility],$D124),SUMIFS(Network_Length__Kms___2[Length],Network_Length__Kms___2[Year],a!E$100,Network_Length__Kms___2[Utility],$D124,Network_Length__Kms___2[Quarter],"Q2",Network_Length__Kms___2[Utility],$D124)),""))))))),"") -> 3377.32
D129: Network_Length__Kms___2

Sheet Umm (hidden)
A1: Year
B2: Quarter | D2: Domestic | E2: Commercial | F2: Medium Indusries | G2: Large Industries | H2: Extra Large | I2: Street Lights | J2: GWh | L2: =D2 -> Domestic | M2: =E2 -> Commercial | N2: Medium Indusries | O2: Large Industries | P2: Extra Large | Q2: Street Lights
A3: 2021 | B3: Q2 | C3: =A3&"-"&B3 -> 2021-Q2 | D3: 186274489 | E3: 93744113.92 | F3: 118800130.7 | G3: 224248299.4 | H3: 246639179.4 | I3: 456104.622 | J3: =SUM(D3:I3)/10^6 -> 870.1623172 | L3: =D3/SUM($D3:$I3)*100 -> 21.40686689 | M3: =E3/SUM($D3:$I3)*100 -> 10.77317554 | N3: 13.65264025 | O3: 25.7708585 | P3: 28.34404278 | Q3: 0.05241603928
A4: 2021 | B4: Q1 | C4: =A4&"-"&B4 -> 2021-Q1 | D4: 173392154.7 | E4: 89980092.88 | F4: 118592907.9 | G4: 222106583.4 | H4: 245502513.7 | I4: 463254.616 | J4: =SUM(D4:I4)/10^6 -> 850.0375072 | L4: =D4/SUM($D4:$I4)*100 -> 20.39817693 | M4: 10.58542619 | N4: 13.95149118 | O4: 26.12903331 | P4: 28.88137425 | Q4: 0.05449813827
A5: 2020 | B5: Q4 | C5: 2020-Q4 | D5: 181923122.6 | E5: 89195572.86 | F5: 115818057.4 | G5: 216075286.3 | H5: 236221847.9 | I5: 419993.708 | J5: 839.6538809 | L5: 21.66644218 | M5: 10.62289771 | N5: 13.79354756 | O5: 25.73385192 | P5: 28.13324077 | Q5: 0.05001986147
A6: 2020 | B6: Q3 | C6: 2020-Q3 | D6: 173349696.6 | E6: 83838679.18 | F6: 114120488.9 | G6: 206073099.7 | H6: 244986902.5 | I6: 424534.05 | J6: 822.7934008 | L6: 21.06843546 | M6: 10.1895177 | N6: 13.86988383 | O6: 25.045546 | P6: 29.77502034 | Q6: 0.05159667659
A7: 2020 | B7: Q2 | C7: 2020-Q2 | D7: 160650552.4 | E7: 71899088.23 | F7: 96997917.46 | G7: 173895447.1 | H7: 182539170.3 | I7: 419342.193 | J7: 686.4015176 | L7: 23.40474901 | M7: 10.47478573 | N7: 14.13136699 | O7: 25.33436227 | P7: 26.59364317 | Q7: 0.06109284176
A8: 2020 | B8: Q1 | C8: 2020-Q1 | D8: 181640093.9 | E8: 90828996.19 | F8: 127588158.3 | G8: 216894243.6 | H8: 234607039.2 | I8: 367782.823 | J8: 851.9263141 | L8: 21.32110382 | M8: 10.66160238 | N8: 14.9764312 | O8: 25.45927272 | P8: 27.53841914 | Q8: 0.04317073166
A9: 2019 | B9: Q4 | C9: 2019-Q4 | D9: 176133253.8 | E9: 88952482.66 | F9: 122149985.8 | G9: 231839346.4 | H9: 190064660.4 | I9: 401713.197 | J9: 809.5414423 | L9: 21.75716333 | M9: 10.98800852 | N9: 15.08878723 | O9: 28.6383543 | P9: 23.4780643 | Q9: 0.04962231407
A10: 2019 | B10: Q3 | C10: 2019-Q3 | D10: 169945525.1 | E10: 91224711.36 | F10: 125052049.6 | G10: 229080619.8 | H10: 193770532.5 | I10: 446675.803 | J10: 809.5201142 | L10: 20.99336658 | M10: 11.26898637 | N10: 15.44767665 | O10: 28.29832339 | P10: 23.93646916 | Q10: 0.05517785107
A11: 2019 | B11: Q2 | C11: 2019-Q2 | D11: 160918500.3 | E11: 91406168.57 | F11: 123135214.7 | G11: 211653263.8 | H11: 187639571.6 | I11: 220382.582 | J11: 774.9731016 | L11: 20.76439814 | M11: 11.7947537 | N11: 15.88896627 | O11: 27.31104646 | P11: 24.21239798 | Q11: 0.02843744919
A12: 2019 | B12: Q1 | C12: 2019-Q1 | D12: 159431648.7 | E12: 93500536.8 | F12: 129736978.3 | G12: 217218095.4 | H12: 187842194.1 | I12: 221620.508 | J12: 787.9510738 | L12: 20.23369902 | M12: 11.86628712 | N12: 16.46510584 | O12: 27.56745978 | P12: 23.83932206 | Q12: 0.02812617628
A13: 2018 | B13: Q4 | C13: 2018-Q4 | D13: 161444928.7 | E13: 94925218.82 | F13: 126970248.7 | G13: 210781534.3 | H13: 182120944.9 | I13: 243264.182 | J13: 776.4861397 | L13: 20.79173349 | M13: 12.22497273 | N13: 16.3519015 | O13: 27.14556301 | P13: 23.45450042 | Q13: 0.03132885052
A14: 2018 | B14: Q3 | C14: 2018-Q3 | D14: 161492867 | E14: 94449552.52 | F14: 125919872.4 | G14: 209137023.7 | H14: 183329704.6 | I14: 278554 | J14: 774.6075743 | L14: 20.84834597 | M14: 12.19321314 | N14: 16.25595677 | O14: 26.99909356 | P14: 23.6674299 | Q14: 0.0359606605
A15: 2018 | B15: Q2 | C15: 2018-Q2 | D15: 159332531.3 | E15: 89365136.99 | F15: 111753426.8 | G15: 196672724 | H15: 180826648.2 | I15: 280258.961 | J15: 738.2307262 | L15: 21.58302624 | M15: 12.10531258 | N15: 15.13800805 | O15: 26.6410916 | P15: 24.49459793 | Q15: 0.03796360014
A16: 2018 | B16: Q1 | C16: 2018-Q1 | D16: 158165862.3 | E16: 88143319.68 | F16: 112585171 | G16: 176560834.2 | H16: 185956794.9 | I16: 268407.297 | J16: 721.6803894 | L16: 21.91633092 | M16: 12.21362267 | N16: 15.60041989 | O16: 24.46523929 | P16: 25.76719523 | Q16: 0.03719198983
A17: 2017 | B17: Q4 | C17: 2017-Q4 | D17: 157645527 | E17: 87327902.14 | F17: 112178663.3 | G17: 188123480.5 | H17: 162883326.1 | I17: 322146 | J17: 708.481045 | L17: 22.25119897 | M17: 12.3260746 | N17: 15.83368589 | O17: 26.55307179 | P17: 22.99049879 | Q17: 0.04546995325
A18: 2017 | B18: Q3 | C18: 2017-Q3 | D18: 155892934.3 | E18: 88242893.72 | F18: 108763114 | G18: 188851037.9 | H18: 163724101 | I18: 453909 | J18: 705.9279899 | L18: 22.08340462 | M18: 12.50026844 | N18: 15.40711171 | O18: 26.75216744 | P18: 23.19274818 | Q18: 0.06429961788
A19: 2017 | B19: Q2 | C19: 2017-Q2 | D19: 155024153.2 | E19: 82622616.48 | F19: 105302460.1 | G19: 170460358.5 | H19: 160306247 | I19: 445182 | J19: 674.1610172 | L19: 22.99512272 | M19: =E19/SUM($D19:$I19)*100 -> 12.2556206 | N19: =F19/SUM($D19:$I19)*100 -> 15.61977886 | O19: =G19/SUM($D19:$I19)*100 -> 25.28481388 | P19: =H19/SUM($D19:$I19)*100 -> 23.77862898 | Q19: =I19/SUM($D19:$I19)*100 -> 0.06603496622
A20: 2017 | B20: Q1 | C20: 2017-Q1 | D20: 151990510.5 | E20: 83176343.56 | F20: 107792339.2 | G20: 170523975 | H20: 160162944 | I20: 373005 | J20: 674.0191173 | L20: 22.54988125 | M20: 12.34035377 | N20: 15.99247506 | O20: 25.29957543 | P20: 23.76237408 | Q20: 0.05534041846
A21: 2016 | B21: Q4 | C21: 2016-Q4 | D21: 153151730.6 | E21: 83226075.67 | F21: 106877379.2 | G21: 315290506 | I21: 404831 | J21: 658.9505225 | L21: 23.24176481 | M21: 12.6300948 | N21: 16.21933294 | O21: 47.84737173 | P21: 0 | Q21: 0.06143572032
A22: 2016 | B22: Q3 | C22: 2016-Q3 | D22: 144836904 | E22: 82136043 | F22: 106616088 | G22: 316782855 | I22: 506105 | J22: 650.877995 | L22: 22.25254274 | M22: 12.61926868 | N22: 16.38034913 | O22: 48.67008217 | P22: 0 | Q22: 0.07775727615
A23: 2016 | B23: Q2 | C23: 2016-Q2 | D23: 141769168.6 | E23: 78724156.59 | F23: 102711632.1 | G23: 312694005 | I23: 331695 | J23: 636.2306573 | L23: 22.28266856 | M23: 12.37352455 | N23: 16.14377284 | O23: 49.14789965 | P23: 0 | Q23: 0.05213439437
A24: 2016 | B24: Q1 | C24: 2016-Q1 | D24: 144923029 | E24: 78958877.51 | F24: 105929293 | G24: 293995105.3 | I24: 363337 | J24: 624.1696418 | L24: 23.21853216 | M24: 12.65022715 | N24: 16.97123441 | O24: 47.10179502 | P24: 0 | Q24: 0.05821125791
A25: 2015 | B25: Q4 | C25: 2015-Q4 | D25: 138890499.8 | E25: 77537224.71 | F25: 102147326.7 | G25: 292464648.5 | I25: 351059 | J25: 611.3907587 | L25: 22.71714085 | M25: 12.6821061 | N25: 16.70737172 | O25: 47.83596159 | P25: 0 | Q25: 0.05741974261
A26: 2015 | B26: Q3 | C26: 2015-Q3 | D26: 141586135 | E26: 80346520.81 | F26: 103547818 | G26: 300612147 | I26: 390767 | J26: 626.4833878 | L26: 22.60014196 | M26: 12.8250042 | N26: 16.52842198 | O26: 47.98405718 | P26: 0 | Q26: 0.06237467866
A27: 2015 | B27: Q2 | C27: 2015-Q2 | D27: 143555787 | E27: 76042129 | F27: 97754731 | G27: 293948350 | I27: 370472 | J27: 611.671469 | L27: 23.46942669 | M27: 12.43185809 | N27: 15.98157442 | O27: 48.05657365 | P27: 0 | Q27: 0.0605671539
A28: 2015 | B28: Q1 | C28: 2015-Q1 | D28: 146183589.7 | E28: 75880697.99 | F28: 102669080.2 | G28: 282665539 | I28: 446399 | J28: 607.8453058 | L28: 24.0494725 | M28: 12.48355416 | N28: 16.89065939 | O28: 46.50287438 | P28: 0 | Q28: 0.07343957347
A29: 2014 | B29: Q4 | C29: 2014-Q4 | D29: 135689076 | E29: 72895628.09 | F29: 98301537.21 | G29: 269411431 | I29: 580420 | J29: 576.8780923 | L29: 23.52127387 | M29: 12.63622749 | N29: 17.0402618 | O29: 46.70162285 | P29: 0 | Q29: 0.1006139785
A30: 2014 | B30: Q3 | C30: 2014-Q3 | D30: 137116543.9 | E30: 73761224.45 | F30: 99047616.72 | G30: 274545867.4 | I30: 446449 | J30: 584.9177015 | L30: 23.44202331 | M30: 12.61053038 | N30: 16.93359877 | O30: 46.93752073 | P30: 0 | Q30: 0.07632680612
A31: 2014 | B31: Q2 | C31: 2014-Q2 | D31: 135052488.6 | E31: 68652793.51 | F31: 95663776.28 | G31: 260730817.1 | I31: 410278 | J31: 560.5101535 | L31: 24.09456596 | M31: 12.24826938 | N31: 17.06726911 | O31: 46.5166983 | P31: 0 | Q31: 0.07319724673
A32: 2014 | B32: Q1 | C32: 2014-Q1 | D32: 133007149.8 | E32: 68408666.06 | F32: 97006650.95 | G32: 255374032.3 | I32: 441392 | J32: 554.2378911 | L32: 23.99820581 | M32: 12.34283458 | N32: 17.50271003 | O32: 46.07661014 | P32: 0 | Q32: 0.07963944853
A33: 2013 | B33: Q4 | C33: 2013-Q4 | D33: 124785953.9 | E33: 65026346.63 | F33: 93422925.61 | G33: 253248028.8 | I33: 466133 | J33: 536.9493879 | L33: 23.23979814 | M33: 12.11033071 | N33: 17.39883269 | O33: 47.16422711 | P33: 0 | Q33: 0.08681134768
A34: 2013 | B34: Q3 | C34: 2013-Q3 | D34: 117718855.7 | E34: 64897731.04 | F34: 93971965.12 | G34: 248336522.8 | I34: 440088 | J34: 525.3651626 | L34: 22.407054 | M34: 12.35288056 | N34: 17.88698068 | O34: 47.26931674 | P34: 0 | Q34: 0.08376802105
A35: 2013 | B35: Q2 | C35: 2013-Q2 | D35: 117498138.9 | E35: 63341995.51 | F35: 94919889.97 | G35: 246271831.8 | I35: 397000 | J35: 522.4288561 | L35: 22.49074443 | M35: 12.12452084 | N35: 18.16896002 | O35: 47.13978351 | P35: 0 | Q35: 0.07599120825
A36: 2013 | B36: Q1 | C36: 2013-Q1 | D36: 116123000 | E36: 62141000 | F36: 96023000 | G36: 232288000 | I36: 506000 | J36: 507.081 | L36: 22.90028615 | M36: 12.25464965 | N36: 18.93642239 | O36: 45.808855 | P36: 0 | Q36: 0.09978681907
A37: 2012 | B37: Q4 | C37: 2012-Q4 | D37: 117118573.6 | E37: 60342200.8 | F37: 92132902 | G37: 233043792 | I37: 341113.5276 | J37: 502.9785819 | L37: 23.28500215 | M37: 11.99697223 | N37: 18.31746029 | O37: 46.33274664 | P37: 0 | Q37: 0.06781869842
A38: 2012 | B38: Q3 | C38: 2012-Q3 | D38: 132087827.4 | E38: 45930400 | F38: 92030534 | G38: 228767728 | I38: 411437 | J38: 499.2279264 | L38: 26.45842118 | M38: 9.200286597 | N38: 18.43457249 | O38: 45.82430507 | P38: 0 | Q38: 0.08241466037
A39: 2012 | B39: Q2 | C39: 2012-Q2 | D39: 114029000 | E39: 55458000 | F39: 80186000 | G39: 227509000 | I39: 390000 | J39: 477.572 | L39: 23.87681857 | M39: 11.61248984 | N39: 16.79034784 | O39: 47.63868066 | P39: 0 | Q39: 0.08166307907
A40: 2012 | B40: Q1 | C40: 2012-Q1 | D40: 106217000 | E40: 54306000 | F40: 77357000 | G40: 219420000 | I40: 207000 | J40: 457.507 | L40: 23.21647538 | M40: 11.86998232 | N40: 16.90837517 | O40: 47.95992192 | P40: 0 | Q40: 0.04524520936
A41: 2011 | B41: Q4 | C41: 2011-Q4 | D41: 96444000 | E41: 50624000 | F41: 71902000 | G41: 210454000 | I41: 370000 | J41: 429.794 | L41: 22.43958734 | M41: 11.77866606 | N41: 16.7294099 | O41: 48.96624895 | P41: 0 | Q41: 0.08608775367
A42: 2011 | B42: Q3 | C42: 2011-Q3 | D42: 99730000 | E42: 53633000 | F42: 70058000 | G42: 219767000 | I42: 369000 | J42: 443.557 | L42: 22.48414522 | M42: 12.09156884 | N42: 15.79458784 | O42: 49.54650699 | P42: 0 | Q42: 0.08319111185
A43: 2011 | B43: Q2 | C43: 2011-Q2 | D43: 104457000 | E43: 55842000 | F43: 72441000 | G43: 206893000 | I43: 458000 | J43: 440.091 | L43: 23.73531838 | M43: 12.68873937 | N43: 16.46045931 | O43: 47.01141355 | P43: 0 | Q43: 0.1040693856
A44: 2011 | B44: Q1 | C44: 2011-Q1 | D44: 96784000 | E44: 53483000 | F44: 45813000 | G44: 222230000 | I44: 224000 | J44: 418.534 | L44: 23.12452513 | M44: 12.7786512 | N44: 10.94606412 | O44: 53.09723941 | P44: 0 | Q44: 0.05352014412
A45: 2010 | B45: Q4 | C45: 2010-Q4 | D45: 104444540 | E45: 60629552 | F45: 66453739 | G45: 196596224 | I45: 438940 | J45: 428.562995 | L45: 24.37087224 | M45: 14.14717386 | N45: 15.50617757 | O45: 45.87335498 | P45: 0 | Q45: 0.1024213488
A46: 2010 | B46: Q3 | C46: 2010-Q3 | D46: 104560056 | E46: 59495783 | F46: 66219588 | G46: 187585128 | I46: 651157 | J46: 418.511712 | L46: 24.98378253 | M46: 14.21603776 | N46: 15.82263676 | O46: 44.82195423 | P46: 0 | Q46: 0.1555887162
A47: 2010 | B47: Q2 | C47: 2010-Q2 | D47: 102554794 | E47: 57941128 | F47: 63144972 | G47: 172706424 | I47: 710731 | J47: 397.058049 | L47: 25.82866517 | M47: 14.59260885 | N47: 15.90320916 | O47: 43.49651756 | P47: 0 | Q47: 0.1789992677
A48: 2010 | B48: Q1 | C48: 2010-Q1 | D48: 106299800 | E48: 61808396 | F48: 60353914 | G48: 154378567 | I48: 562329 | J48: 383.403006 | L48: 27.72534339 | M48: 16.12099932 | N48: 15.74163819 | O48: 40.26535123 | P48: 0 | Q48: 0.1466678642
A49: 2009 | B49: Q4 | C49: 2009-Q4 | D49: 102731000 | E49: 56210000 | F49: 59257000 | G49: 151735000 | I49: 512000 | J49: 370.445 | L49: 27.73178205 | M49: 15.17364251 | N49: 15.99616677 | O49: 40.96019652 | P49: 0 | Q49: 0.1382121503
A50: 2009 | B50: Q3 | C50: 2009-Q3 | D50: 98762000 | E50: 55755000 | F50: 57522000 | G50: 155835000 | I50: 596000 | J50: 368.47 | L50: 26.80326757 | M50: 15.13148967 | N50: 15.61104025 | O50: 42.29245257 | P50: 0 | Q50: 0.1617499389
A51: 2009 | B51: Q2 | C51: 2009-Q2 | D51: 84635000 | E51: 52059000 | F51: 57700000 | G51: 149996000 | I51: 566000 | J51: 344.956 | L51: 24.53501316 | M51: 15.09148993 | N51: 16.72677095 | O51: 43.48264706 | P51: 0 | Q51: 0.164078897
A52: 2009 | B52: Q1 | C52: 2009-Q1 | D52: 77524320 | E52: 44522000 | F52: 57918000 | G52: 136574140 | I52: 509380 | J52: 317.04784 | L52: 24.45193129 | M52: 14.0426757 | N52: 18.26790556 | O52: 43.07682399 | P52: 0 | Q52: 0.1606634507
A53: 2008 | B53: Q4 | C53: 2008-Q4 | D53: 98926872 | E53: 48855268 | F53: 56859195 | G53: 132329355 | I53: 352731 | J53: 337.323421 | L53: 29.32700958 | M53: 14.48321254 | N53: 16.85598789 | O53: 39.22922239 | P53: 0 | Q53: 0.1045675983
A54: 2008 | B54: Q3 | C54: 2008-Q3 | D54: 74804888 | E54: 44377064 | F54: 58854162 | G54: 143771330 | I54: 396442 | J54: 322.203886 | L54: 23.21663122 | M54: 13.77297603 | N54: 18.2661242 | O54: 44.62122781 | P54: 0 | Q54: 0.1230407258
A55: 2008 | B55: Q2 | C55: 2008-Q2 | D55: 79793800 | E55: 43447700 | F55: 53879600 | G55: 135956900 | I55: 336300 | J55: 313.4143 | L55: 25.45952753 | M55: 13.86270505 | N55: 17.19117475 | O55: 43.37929061 | P55: 0 | Q55: 0.1073020599
A56: 2008 | B56: Q1 | C56: 2008-Q1 | D56: 73914500 | E56: 40054500 | F56: 53313800 | G56: 137415200 | I56: 837400 | J56: 305.5354 | L56: 24.19179578 | M56: 13.10961021 | N56: 17.44930375 | O56: 44.975214 | P56: 0 | Q56: 0.2740762609
C65: sales by customer category
C67: IF(C$4="Domestic",SUMIFS('ESI_Database_09_2019-DESKTOP-7GOBKDM 16.04.2022v3.xlsx'!Msale_Dom,'ESI_Database_09_2019-DESKTOP-7GOBKDM 16.04.2022v3.xlsx'!Distr_Year,$A5,'ESI_Database_09_2019-DESKTOP-7GOBKDM 16.04.2022v3.xlsx'!Distr_Quarter,$B5,'ESI_Database_09_2019-DESKTOP-7GOBKDM 16.04.2022v3.xlsx'!Distr_Utility,C$2),IF(C$4="Commercial",SUMIFS('ESI_Database_09_2019-DESKTOP-7GOBKDM 16.04.2022v3.xlsx'!Msale_comm,'ESI_Database_09_2019-DESKTOP-7GOBKDM 16.04.2022v3.xlsx'!Distr_Year,$A5,'ESI_Database_09_2019-DESKTOP-7GOBKDM 16.04.2022v3.xlsx'!Distr_Quarter,$B5,'ESI_Database_09_2019-DESKTOP-7GOBKDM 16.04.2022v3.xlsx'!Distr_Utility,C$2),IF(C$4="Medium Industries",SUMIFS('ESI_Database_09_2019-DESKTOP-7GOBKDM 16.04.2022v3.xlsx'!Msale_medi,'ESI_Database_09_2019-DESKTOP-7GOBKDM 16.04.2022v3.xlsx'!Distr_Year,$A5,'ESI_Database_09_2019-DESKTOP-7GOBKDM 16.04.2022v3.xlsx'!Distr_Quarter,$B5,'ESI_Database_09_2019-DESKTOP-7GOBKDM 16.04.2022v3.xlsx'!Distr_Utility,C$2),IF(C$4="Large Industries",SUMIFS('ESI_Database_09_2019-DESKTOP-7GOBKDM 16.04.2022v3.xlsx'!Msale_large,'ESI_Database_09_2019-DESKTOP-7GOBKDM 16.04.2022v3.xlsx'!Distr_Year,$A5,'ESI_Database_09_2019-DESKTOP-7GOBKDM 16.04.2022v3.xlsx'!Distr_Quarter,$B5,'ESI_Database_09_2019-DESKTOP-7GOBKDM 16.04.2022v3.xlsx'!Distr_Utility,C$2),IF(C$4="Extra Large",SUMIFS('ESI_Database_09_2019-DESKTOP-7GOBKDM 16.04.2022v3.xlsx'!Msale_extra,'ESI_Database_09_2019-DESKTOP-7GOBKDM 16.04.2022v3.xlsx'!Distr_Year,$A5,'ESI_Database_09_2019-DESKTOP-7GOBKDM 16.04.2022v3.xlsx'!Distr_Quarter,$B5,'ESI_Database_09_2019-DESKTOP-7GOBKDM 16.04.2022v3.xlsx'!Distr_Utility,C$2),IF(C$4="Street Lights",SUMIFS('ESI_Database_09_2019-DESKTOP-7GOBKDM 16.04.2022v3.xlsx'!Msale_street,'ESI_Database_09_2019-DESKTOP-7GOBKDM 16.04.2022v3.xlsx'!Distr_Year,$A5,'ESI_Database_09_2019-DESKTOP-7GOBKDM 16.04.2022v3.xlsx'!Distr_Quarter,$B5,'ESI_Database_09_2019-DESKTOP-7GOBKDM 16.04.2022v3.xlsx'!Distr_Utility,C$2),0))))))
C69: employees
C70: SUMIFS('ESI_Database_09_2019-DESKTOP-7GOBKDM 06.xlsx'!Mstaff_Total,'ESI_Database_09_2019-DESKTOP-7GOBKDM 06.xlsx'!Distr_Year,$A6,'ESI_Database_09_2019-DESKTOP-7GOBKDM 06.xlsx'!Distr_Quarter,$B6,'ESI_Database_09_2019-DESKTOP-7GOBKDM 06.xlsx'!Distr_Utility,E$3)
C73: Customers
C74: IF(C$4="Domestic",SUMIFS('ESI_Database_09_2019-DESKTOP-7GOBKDM 16.04.2022v3.xlsx'!Distr_Cust_dome,'ESI_Database_09_2019-DESKTOP-7GOBKDM 16.04.2022v3.xlsx'!Distr_Year,$A5,'ESI_Database_09_2019-DESKTOP-7GOBKDM 16.04.2022v3.xlsx'!Distr_Quarter,$B5,'ESI_Database_09_2019-DESKTOP-7GOBKDM 16.04.2022v3.xlsx'!Distr_Utility,C$1),IF(C$4="Commercial", SUMIFS('ESI_Database_09_2019-DESKTOP-7GOBKDM 16.04.2022v3.xlsx'!Distr_cust_comm,'ESI_Database_09_2019-DESKTOP-7GOBKDM 16.04.2022v3.xlsx'!Distr_Year,$A5,'ESI_Database_09_2019-DESKTOP-7GOBKDM 16.04.2022v3.xlsx'!Distr_Quarter,$B5,'ESI_Database_09_2019-DESKTOP-7GOBKDM 16.04.2022v3.xlsx'!Distr_Utility,C$1),IF(C$4="Medium Industries", SUMIFS('ESI_Database_09_2019-DESKTOP-7GOBKDM 16.04.2022v3.xlsx'!Distr_cust_med,'ESI_Database_09_2019-DESKTOP-7GOBKDM 16.04.2022v3.xlsx'!Distr_Year,$A5,'ESI_Database_09_2019-DESKTOP-7GOBKDM 16.04.2022v3.xlsx'!Distr_Quarter,$B5,'ESI_Database_09_2019-DESKTOP-7GOBKDM 16.04.2022v3.xlsx'!Distr_Utility,C$1),IF(C$4="Large Industries", SUMIFS('ESI_Database_09_2019-DESKTOP-7GOBKDM 16.04.2022v3.xlsx'!Distr_cust_Large,'ESI_Database_09_2019-DESKTOP-7GOBKDM 16.04.2022v3.xlsx'!Distr_Year,$A5,'ESI_Database_09_2019-DESKTOP-7GOBKDM 16.04.2022v3.xlsx'!Distr_Quarter,$B5,'ESI_Database_09_2019-DESKTOP-7GOBKDM 16.04.2022v3.xlsx'!Distr_Utility,C$1),IF(C$4="Extra Large", SUMIFS('ESI_Database_09_2019-DESKTOP-7GOBKDM 16.04.2022v3.xlsx'!Distr_Cust_extra,'ESI_Database_09_2019-DESKTOP-7GOBKDM 16.04.2022v3.xlsx'!Distr_Year,$A5,'ESI_Database_09_2019-DESKTOP-7GOBKDM 16.04.2022v3.xlsx'!Distr_Quarter,$B5,'ESI_Database_09_2019-DESKTOP-7GOBKDM 16.04.2022v3.xlsx'!Distr_Utility,C$1),IF(C$4="Street Lights", SUMIFS('ESI_Database_09_2019-DESKTOP-7GOBKDM 16.04.2022v3.xlsx'!Distr_cust_street,'ESI_Database_09_2019-DESKTOP-7GOBKDM 16.04.2022v3.xlsx'!Distr_Year,$A5,'ESI_Database_09_2019-DESKTOP-7GOBKDM 16.04.2022v3.xlsx'!Distr_Quarter,$B5,'ESI_Database_09_2019-DESKTOP-7GOBKDM 16.04.2022v3.xlsx'!Distr_Utility,C$1),0))))))
C78: O&M Costs
C79: IF(C$4="Staff Costs",SUMIFS('ESI_Database_09_2019-DESKTOP-7GOBKDM 16.04.2022v3.xlsx'!Memployee_cost,'ESI_Database_09_2019-DESKTOP-7GOBKDM 16.04.2022v3.xlsx'!Distr_Year,$A5,'ESI_Database_09_2019-DESKTOP-7GOBKDM 16.04.2022v3.xlsx'!Distr_Quarter,$B5,'ESI_Database_09_2019-DESKTOP-7GOBKDM 16.04.2022v3.xlsx'!Distr_Utility,C$2),IF(C$4="Repairs & maintenance",SUMIFS('ESI_Database_09_2019-DESKTOP-7GOBKDM 16.04.2022v3.xlsx'!MRepairMant_Cost,'ESI_Database_09_2019-DESKTOP-7GOBKDM 16.04.2022v3.xlsx'!Distr_Year,$A5,'ESI_Database_09_2019-DESKTOP-7GOBKDM 16.04.2022v3.xlsx'!Distr_Quarter,$B5,'ESI_Database_09_2019-DESKTOP-7GOBKDM 16.04.2022v3.xlsx'!Distr_Utility,C$2),IF(C$4="Admin Expenses",SUMIFS('ESI_Database_09_2019-DESKTOP-7GOBKDM 16.04.2022v3.xlsx'!MAdmin_Cost,'ESI_Database_09_2019-DESKTOP-7GOBKDM 16.04.2022v3.xlsx'!Distr_Year,$A5,'ESI_Database_09_2019-DESKTOP-7GOBKDM 16.04.2022v3.xlsx'!Distr_Quarter,$B5,'ESI_Database_09_2019-DESKTOP-7GOBKDM 16.04.2022v3.xlsx'!Distr_Utility,C$2),IF(C$4="Transport & vehicles",SUMIFS('ESI_Database_09_2019-DESKTOP-7GOBKDM 16.04.2022v3.xlsx'!MTrans_Cost,'ESI_Database_09_2019-DESKTOP-7GOBKDM 16.04.2022v3.xlsx'!Distr_Year,$A5,'ESI_Database_09_2019-DESKTOP-7GOBKDM 16.04.2022v3.xlsx'!Distr_Quarter,$B5,'ESI_Database_09_2019-DESKTOP-7GOBKDM 16.04.2022v3.xlsx'!Distr_Utility,C$2),IF(C$4="Sales & Other Costs",SUM(SUMIFS('ESI_Database_09_2019-DESKTOP-7GOBKDM 16.04.2022v3.xlsx'!MOther_Cost,'ESI_Database_09_2019-DESKTOP-7GOBKDM 16.04.2022v3.xlsx'!Distr_Year,$A5,'ESI_Database_09_2019-DESKTOP-7GOBKDM 16.04.2022v3.xlsx'!Distr_Quarter,$B5,'ESI_Database_09_2019-DESKTOP-7GOBKDM 16.04.2022v3.xlsx'!Distr_Utility,C$2),SUMIFS('ESI_Database_09_2019-DESKTOP-7GOBKDM 16.04.2022v3.xlsx'!MSales_Cost,'ESI_Database_09_2019-DESKTOP-7GOBKDM 16.04.2022v3.xlsx'!Distr_Year,$A5,'ESI_Database_09_2019-DESKTOP-7GOBKDM 16.04.2022v3.xlsx'!Distr_Quarter,$B5,'ESI_Database_09_2019-DESKTOP-7GOBKDM 16.04.2022v3.xlsx'!Distr_Utility,C$2)))))))
C82: Transformers
C83: SUM(IF('[ESI_Database_09_2019-DESKTOP-7GOBKDM 16.04.2022v3.xlsx]Distribution'!$A$2:$A$583=$A5,IF('[ESI_Database_09_2019-DESKTOP-7GOBKDM 16.04.2022v3.xlsx]Distribution'!$B$2:$B$583=$B5,IF('[ESI_Database_09_2019-DESKTOP-7GOBKDM 16.04.2022v3.xlsx]Distribution'!$G$2:$G$583=C$2,IF('[ESI_Database_09_2019-DESKTOP-7GOBKDM 16.04.2022v3.xlsx]Distribution'!$AN$1:$BX$1=C$3,'[ESI_Database_09_2019-DESKTOP-7GOBKDM 16.04.2022v3.xlsx]Distribution'!$AN$2:$BX$583)))))
C85: Distance
C86: IF(C$4="Street lights",SUMIFS('ESI_Database_09_2019-DESKTOP-7GOBKDM 16.04.2022v3.xlsx'!Distr_Lights,'ESI_Database_09_2019-DESKTOP-7GOBKDM 16.04.2022v3.xlsx'!Distr_Year,$A5,'ESI_Database_09_2019-DESKTOP-7GOBKDM 16.04.2022v3.xlsx'!Distr_Quarter,$B5,'ESI_Database_09_2019-DESKTOP-7GOBKDM 16.04.2022v3.xlsx'!Distr_Utility,C$3), IF(C$4="LV",SUMIFS('ESI_Database_09_2019-DESKTOP-7GOBKDM 16.04.2022v3.xlsx'!Distr_LV,'ESI_Database_09_2019-DESKTOP-7GOBKDM 16.04.2022v3.xlsx'!Distr_Year,$A5,'ESI_Database_09_2019-DESKTOP-7GOBKDM 16.04.2022v3.xlsx'!Distr_Quarter,$B5,'ESI_Database_09_2019-DESKTOP-7GOBKDM 16.04.2022v3.xlsx'!Distr_Utility,C$3), IF(C$4="11 kV",SUMIFS('ESI_Database_09_2019-DESKTOP-7GOBKDM 16.04.2022v3.xlsx'!Distr_11KV,'ESI_Database_09_2019-DESKTOP-7GOBKDM 16.04.2022v3.xlsx'!Distr_Year,$A5,'ESI_Database_09_2019-DESKTOP-7GOBKDM 16.04.2022v3.xlsx'!Distr_Quarter,$B5,'ESI_Database_09_2019-DESKTOP-7GOBKDM 16.04.2022v3.xlsx'!Distr_Utility,C$3),IF(C$4="33 kv",SUMIFS('ESI_Database_09_2019-DESKTOP-7GOBKDM 16.04.2022v3.xlsx'!Distr_33KV,'ESI_Database_09_2019-DESKTOP-7GOBKDM 16.04.2022v3.xlsx'!Distr_Year,$A5,'ESI_Database_09_2019-DESKTOP-7GOBKDM 16.04.2022v3.xlsx'!Distr_Quarter,$B5,'ESI_Database_09_2019-DESKTOP-7GOBKDM 16.04.2022v3.xlsx'!Distr_Utility,C$3)))))
C89: ESI_Database_09_2019-DESKTOP-7GOBKDM 06.xlsx'!

Sheet Sheet1 (hidden)
A2: SUM(IF([ESI_Database_09_2019.xlsx]Distribution!$G$2:$G$481=C$3,IF([ESI_Database_09_2019.xlsx]Distribution!$A$2:$A$481=$A6,IF([ESI_Database_09_2019.xlsx]Distribution!$B$2:$B$481=$B6,IF([ESI_Database_09_2019.xlsx]Distribution!$AK$1:$BJ$1=C$4,[ESI_Database_09_2019.xlsx]Distribution!$AK$2:$BJ$481)))))
A3: Transformers
A6: SUM(IF('[ESI_Database_09_2019-DESKTOP-7GOBKDM 22.09.2020v1.xlsx]Distribution'!$G$2:$G$430=C$3,IF('[ESI_Database_09_2019-DESKTOP-7GOBKDM 22.09.2020v1.xlsx]Distribution'!$A$2:$A$430=$A6, IF('[ESI_Database_09_2019-DESKTOP-7GOBKDM 22.09.2020v1.xlsx]Distribution'!$B$2:$B$430=$B6,IF('[ESI_Database_09_2019-DESKTOP-7GOBKDM 22.09.2020v1.xlsx]Distribution'!$DS$1:$DV$1=C$4,'[ESI_Database_09_2019-DESKTOP-7GOBKDM 22.09.2020v1.xlsx]Distribution'!$DS$2:$DV$430)))))
A8: SUMIFS('ESI_Database_09_2019-DESKTOP-7GOBKDM 22.09.2020v2.xlsx'!Dist_Purchase_Totalkwh,'ESI_Database_09_2019-DESKTOP-7GOBKDM 22.09.2020v2.xlsx'!Distr_Year,$B4,'ESI_Database_09_2019-DESKTOP-7GOBKDM 22.09.2020v2.xlsx'!Distr_Quarter,$C4,'ESI_Database_09_2019-DESKTOP-7GOBKDM 22.09.2020v2.xlsx'!Distr_Utility,G$3)
A10: energy sales
B11: IF(C4="Domestic",SUMIFS('ESI_Database_09_2019-DESKTOP-7GOBKDM 16.04.2022v3.xlsx'!Msale_Dom,'ESI_Database_09_2019-DESKTOP-7GOBKDM 16.04.2022v3.xlsx'!Distr_Year,$A5,'ESI_Database_09_2019-DESKTOP-7GOBKDM 16.04.2022v3.xlsx'!Distr_Quarter,$B5,'ESI_Database_09_2019-DESKTOP-7GOBKDM 16.04.2022v3.xlsx'!Distr_Utility,C$2),IF(C4="Commercial",SUMIFS('ESI_Database_09_2019-DESKTOP-7GOBKDM 16.04.2022v3.xlsx'!Msale_comm,'ESI_Database_09_2019-DESKTOP-7GOBKDM 16.04.2022v3.xlsx'!Distr_Year,$A5,'ESI_Database_09_2019-DESKTOP-7GOBKDM 16.04.2022v3.xlsx'!Distr_Quarter,$B5,'ESI_Database_09_2019-DESKTOP-7GOBKDM 16.04.2022v3.xlsx'!Distr_Utility,C$2),IF(C4="Medium Industries",SUMIFS('ESI_Database_09_2019-DESKTOP-7GOBKDM 16.04.2022v3.xlsx'!Msale_medi,'ESI_Database_09_2019-DESKTOP-7GOBKDM 16.04.2022v3.xlsx'!Distr_Year,$A5,'ESI_Database_09_2019-DESKTOP-7GOBKDM 16.04.2022v3.xlsx'!Distr_Quarter,$B5,'ESI_Database_09_2019-DESKTOP-7GOBKDM 16.04.2022v3.xlsx'!Distr_Utility,C$2),IF(C4="Large Industries",SUMIFS('ESI_Database_09_2019-DESKTOP-7GOBKDM 16.04.2022v3.xlsx'!Msale_large,'ESI_Database_09_2019-DESKTOP-7GOBKDM 16.04.2022v3.xlsx'!Distr_Year,$A5,'ESI_Database_09_2019-DESKTOP-7GOBKDM 16.04.2022v3.xlsx'!Distr_Quarter,$B5,'ESI_Database_09_2019-DESKTOP-7GOBKDM 16.04.2022v3.xlsx'!Distr_Utility,C$2),IF(C4="Extra Large",SUMIFS('ESI_Database_09_2019-DESKTOP-7GOBKDM 16.04.2022v3.xlsx'!Msale_extra,'ESI_Database_09_2019-DESKTOP-7GOBKDM 16.04.2022v3.xlsx'!Distr_Year,$A5,'ESI_Database_09_2019-DESKTOP-7GOBKDM 16.04.2022v3.xlsx'!Distr_Quarter,$B5,'ESI_Database_09_2019-DESKTOP-7GOBKDM 16.04.2022v3.xlsx'!Distr_Utility,C$2),IF(C4="Street Lights",SUMIFS('ESI_Database_09_2019-DESKTOP-7GOBKDM 16.04.2022v3.xlsx'!Msale_street,'ESI_Database_09_2019-DESKTOP-7GOBKDM 16.04.2022v3.xlsx'!Distr_Year,$A5,'ESI_Database_09_2019-DESKTOP-7GOBKDM 16.04.2022v3.xlsx'!Distr_Quarter,$B5,'ESI_Database_09_2019-DESKTOP-7GOBKDM 16.04.2022v3.xlsx'!Distr_Utility,C$2),0))))))
A12: Customers | B12: IF(C4="Domestic",SUMIFS('ESI_Database_09_2019-DESKTOP-7GOBKDM 16.04.2022v3.xlsx'!Distr_Cust_dome,'ESI_Database_09_2019-DESKTOP-7GOBKDM 16.04.2022v3.xlsx'!Distr_Year,$A5,'ESI_Database_09_2019-DESKTOP-7GOBKDM 16.04.2022v3.xlsx'!Distr_Quarter,$B5,'ESI_Database_09_2019-DESKTOP-7GOBKDM 16.04.2022v3.xlsx'!Distr_Utility,C$1),IF(C4="Commercial",SUMIFS('ESI_Database_09_2019-DESKTOP-7GOBKDM 16.04.2022v3.xlsx'!Distr_cust_comm,'ESI_Database_09_2019-DESKTOP-7GOBKDM 16.04.2022v3.xlsx'!Distr_Year,$A5,'ESI_Database_09_2019-DESKTOP-7GOBKDM 16.04.2022v3.xlsx'!Distr_Quarter,$B5,'ESI_Database_09_2019-DESKTOP-7GOBKDM 16.04.2022v3.xlsx'!Distr_Utility,C$1),IF(C4="Medium Industries",SUMIFS('ESI_Database_09_2019-DESKTOP-7GOBKDM 16.04.2022v3.xlsx'!Distr_cust_med,'ESI_Database_09_2019-DESKTOP-7GOBKDM 16.04.2022v3.xlsx'!Distr_Year,$A5,'ESI_Database_09_2019-DESKTOP-7GOBKDM 16.04.2022v3.xlsx'!Distr_Quarter,$B5,'ESI_Database_09_2019-DESKTOP-7GOBKDM 16.04.2022v3.xlsx'!Distr_Utility,C$1),IF(C4="Large Industries",SUMIFS('ESI_Database_09_2019-DESKTOP-7GOBKDM 16.04.2022v3.xlsx'!Distr_cust_Large,'ESI_Database_09_2019-DESKTOP-7GOBKDM 16.04.2022v3.xlsx'!Distr_Year,$A5,'ESI_Database_09_2019-DESKTOP-7GOBKDM 16.04.2022v3.xlsx'!Distr_Quarter,$B5,'ESI_Database_09_2019-DESKTOP-7GOBKDM 16.04.2022v3.xlsx'!Distr_Utility,C$1),IF(C4="Extra Large",SUMIFS('ESI_Database_09_2019-DESKTOP-7GOBKDM 16.04.2022v3.xlsx'!Distr_Cust_extra,'ESI_Database_09_2019-DESKTOP-7GOBKDM 16.04.2022v3.xlsx'!Distr_Year,$A5,'ESI_Database_09_2019-DESKTOP-7GOBKDM 16.04.2022v3.xlsx'!Distr_Quarter,$B5,'ESI_Database_09_2019-DESKTOP-7GOBKDM 16.04.2022v3.xlsx'!Distr_Utility,C$1),IF(C4="Street Lights",SUMIFS('ESI_Database_09_2019-DESKTOP-7GOBKDM 16.04.2022v3.xlsx'!Distr_cust_street,'ESI_Database_09_2019-DESKTOP-7GOBKDM 16.04.2022v3.xlsx'!Distr_Year,$A5,'ESI_Database_09_2019-DESKTOP-7GOBKDM 16.04.2022v3.xlsx'!Distr_Quarter,$B5,'ESI_Database_09_2019-DESKTOP-7GOBKDM 16.04.2022v3.xlsx'!Distr_Utility,C$1),0))))))
A13: O*M | B13: IF(C$4="Staff Costs",SUMIFS('ESI_Database_09_2019-DESKTOP-7GOBKDM 16.04.2022v3.xlsx'!Memployee_cost,'ESI_Database_09_2019-DESKTOP-7GOBKDM 16.04.2022v3.xlsx'!Distr_Year,$A5,'ESI_Database_09_2019-DESKTOP-7GOBKDM 16.04.2022v3.xlsx'!Distr_Quarter,$B5,'ESI_Database_09_2019-DESKTOP-7GOBKDM 16.04.2022v3.xlsx'!Distr_Utility,C$2),IF(C$4="Repairs & maintenance",SUMIFS('ESI_Database_09_2019-DESKTOP-7GOBKDM 16.04.2022v3.xlsx'!MRepairMant_Cost,'ESI_Database_09_2019-DESKTOP-7GOBKDM 16.04.2022v3.xlsx'!Distr_Year,$A5,'ESI_Database_09_2019-DESKTOP-7GOBKDM 16.04.2022v3.xlsx'!Distr_Quarter,$B5,'ESI_Database_09_2019-DESKTOP-7GOBKDM 16.04.2022v3.xlsx'!Distr_Utility,C$2),IF(C$4="Admin Expenses",SUMIFS('ESI_Database_09_2019-DESKTOP-7GOBKDM 16.04.2022v3.xlsx'!MAdmin_Cost,'ESI_Database_09_2019-DESKTOP-7GOBKDM 16.04.2022v3.xlsx'!Distr_Year,$A5,'ESI_Database_09_2019-DESKTOP-7GOBKDM 16.04.2022v3.xlsx'!Distr_Quarter,$B5,'ESI_Database_09_2019-DESKTOP-7GOBKDM 16.04.2022v3.xlsx'!Distr_Utility,C$2),IF(OR(C$4="Regulatory, Sales & Other costs",C$4="Sales & Other costs"),SUMIFS('ESI_Database_09_2019-DESKTOP-7GOBKDM 16.04.2022v3.xlsx'!MOther_Cost,'ESI_Database_09_2019-DESKTOP-7GOBKDM 16.04.2022v3.xlsx'!Distr_Year,$A5,'ESI_Database_09_2019-DESKTOP-7GOBKDM 16.04.2022v3.xlsx'!Distr_Quarter,$B5,'ESI_Database_09_2019-DESKTOP-7GOBKDM 16.04.2022v3.xlsx'!Distr_Utility,C$2),IF(C$4="Transport & vehicles",SUMIFS('ESI_Database_09_2019-DESKTOP-7GOBKDM 16.04.2022v3.xlsx'!MTrans_Cost,'ESI_Database_09_2019-DESKTOP-7GOBKDM 16.04.2022v3.xlsx'!Distr_Year,$A5,'ESI_Database_09_2019-DESKTOP-7GOBKDM 16.04.2022v3.xlsx'!Distr_Quarter,$B5,'ESI_Database_09_2019-DESKTOP-7GOBKDM 16.04.2022v3.xlsx'!Distr_Utility,C$2),0)))))
A14: TX | B14: SUM(IF('[ESI_Database_09_2019-DESKTOP-7GOBKDM 16.04.2022v3.xlsx]Distribution'!$A$2:$A$537=$A5,IF('[ESI_Database_09_2019-DESKTOP-7GOBKDM 16.04.2022v3.xlsx]Distribution'!$B$2:$B$537=$B5,IF('[ESI_Database_09_2019-DESKTOP-7GOBKDM 16.04.2022v3.xlsx]Distribution'!$G$2:$G$537=C$2,IF('[ESI_Database_09_2019-DESKTOP-7GOBKDM 16.04.2022v3.xlsx]Distribution'!$AN$1:$BX$1=C$3,'[ESI_Database_09_2019-DESKTOP-7GOBKDM 16.04.2022v3.xlsx]Distribution'!$AN$2:$BX$537)))))
A15: Network | B15: IF(C$4="Street lights",SUMIFS('ESI_Database_09_2019-DESKTOP-7GOBKDM 16.04.2022v3.xlsx'!Distr_Lights,'ESI_Database_09_2019-DESKTOP-7GOBKDM 16.04.2022v3.xlsx'!Distr_Year,$A5,'ESI_Database_09_2019-DESKTOP-7GOBKDM 16.04.2022v3.xlsx'!Distr_Quarter,$B5,'ESI_Database_09_2019-DESKTOP-7GOBKDM 16.04.2022v3.xlsx'!Distr_Utility,C$3),IF(C$4="LV",SUMIFS('ESI_Database_09_2019-DESKTOP-7GOBKDM 16.04.2022v3.xlsx'!Distr_LV,'ESI_Database_09_2019-DESKTOP-7GOBKDM 16.04.2022v3.xlsx'!Distr_Year,$A5,'ESI_Database_09_2019-DESKTOP-7GOBKDM 16.04.2022v3.xlsx'!Distr_Quarter,$B5,'ESI_Database_09_2019-DESKTOP-7GOBKDM 16.04.2022v3.xlsx'!Distr_Utility,C$3),IF(C$4="11 kv",SUMIFS('ESI_Database_09_2019-DESKTOP-7GOBKDM 16.04.2022v3.xlsx'!Distr_11KV,'ESI_Database_09_2019-DESKTOP-7GOBKDM 16.04.2022v3.xlsx'!Distr_Year,$A5,'ESI_Database_09_2019-DESKTOP-7GOBKDM 16.04.2022v3.xlsx'!Distr_Quarter,$B5,'ESI_Database_09_2019-DESKTOP-7GOBKDM 16.04.2022v3.xlsx'!Distr_Utility,C$3),IF(C$4="33 kv",SUMIFS('ESI_Database_09_2019-DESKTOP-7GOBKDM 16.04.2022v3.xlsx'!Distr_33KV,'ESI_Database_09_2019-DESKTOP-7GOBKDM 16.04.2022v3.xlsx'!Distr_Year,$A5,'ESI_Database_09_2019-DESKTOP-7GOBKDM 16.04.2022v3.xlsx'!Distr_Quarter,$B5,'ESI_Database_09_2019-DESKTOP-7GOBKDM 16.04.2022v3.xlsx'!Distr_Utility,C$3),0))))
C23: =SUMIFS('ESI_Database_09_2019-DESKTOP-7GOBKDM 22.09.2020v2.xlsx'!Memployee_cost,'ESI_Database_09_2019-DESKTOP-7GOBKDM 22.09.2020v2.xlsx'!Distr_Year,$A23,'ESI_Database_09_2019-DESKTOP-7GOBKDM 22.09.2020v2.xlsx'!Distr_Quarter,$B23,'ESI_Database_09_2019-DESKTOP-7GOBKDM 22.09.2020v2.xlsx'!Distr_Utility,C$2) | D23: =SUMIFS('ESI_Database_09_2019-DESKTOP-7GOBKDM 22.09.2020v2.xlsx'!MRepairMant_Cost,'ESI_Database_09_2019-DESKTOP-7GOBKDM 22.09.2020v2.xlsx'!Distr_Year,$A23,'ESI_Database_09_2019-DESKTOP-7GOBKDM 22.09.2020v2.xlsx'!Distr_Quarter,$B23,'ESI_Database_09_2019-DESKTOP-7GOBKDM 22.09.2020v2.xlsx'!Distr_Utility,D$2) | E23: =SUMIFS('ESI_Database_09_2019-DESKTOP-7GOBKDM 22.09.2020v2.xlsx'!MTrans_Cost,'ESI_Database_09_2019-DESKTOP-7GOBKDM 22.09.2020v2.xlsx'!Distr_Year,$A23,'ESI_Database_09_2019-DESKTOP-7GOBKDM 22.09.2020v2.xlsx'!Distr_Quarter,$B23,'ESI_Database_09_2019-DESKTOP-7GOBKDM 22.09.2020v2.xlsx'!Distr_Utility,E$2) | F23: =SUMIFS('ESI_Database_09_2019-DESKTOP-7GOBKDM 22.09.2020v2.xlsx'!MAdmin_Cost,'ESI_Database_09_2019-DESKTOP-7GOBKDM 22.09.2020v2.xlsx'!Distr_Year,$A23,'ESI_Database_09_2019-DESKTOP-7GOBKDM 22.09.2020v2.xlsx'!Distr_Quarter,$B23,'ESI_Database_09_2019-DESKTOP-7GOBKDM 22.09.2020v2.xlsx'!Distr_Utility,F$2) | G23: =SUMIFS('ESI_Database_09_2019-DESKTOP-7GOBKDM 22.09.2020v2.xlsx'!MOther_Cost,'ESI_Database_09_2019-DESKTOP-7GOBKDM 22.09.2020v2.xlsx'!Distr_Year,$A23,'ESI_Database_09_2019-DESKTOP-7GOBKDM 22.09.2020v2.xlsx'!Distr_Quarter,$B23,'ESI_Database_09_2019-DESKTOP-7GOBKDM 22.09.2020v2.xlsx'!Distr_Utility,G$2)

Sheet Sheet2 (hidden)
A1: Utility | B1: Category | C1: Year | D1: Quarter | E1: Length
A2: UMEME | B2: Street lights | C2: 2024 | D2: Q3 | E2: 595
A3: UMEME | B3: Street lights | C3: 2024 | D3: Q2 | E3: 595
A4: UMEME | B4: Street lights | C4: 2024 | D4: Q1 | E4: 595
A5: UMEME | B5: Street lights | C5: 2023 | D5: Q4 | E5: 595
A6: UMEME | B6: Street lights | C6: 2023 | D6: Q3 | E6: 595
A7: UMEME | B7: Street lights | C7: 2023 | D7: Q2 | E7: 595
A8: UMEME | B8: Street lights | C8: 2023 | D8: Q1 | E8: 595
A9: UMEME | B9: Street lights | C9: 2022 | D9: Q4 | E9: 595
A10: UMEME | B10: Street lights | C10: 2022 | D10: Q3 | E10: 595
A11: UMEME | B11: Street lights | C11: 2022 | D11: Q2 | E11: 595
A12: UMEME | B12: Street lights | C12: 2022 | D12: Q1 | E12: 595
A13: UMEME | B13: Street lights | C13: 2021 | D13: Q4 | E13: 595
A14: UMEME | B14: Street lights | C14: 2021 | D14: Q3 | E14: 595
A15: UMEME | B15: Street lights | C15: 2021 | D15: Q2 | E15: 595
A16: UMEME | B16: Street lights | C16: 2021 | D16: Q1 | E16: 595
A17: UMEME | B17: Street lights | C17: 2020 | D17: Q4 | E17: 595
A18: UMEME | B18: Street lights | C18: 2020 | D18: Q3 | E18: 595
A19: UMEME | B19: Street lights | C19: 2020 | D19: Q2 | E19: 595.2
A20: UMEME | B20: Street lights | C20: 2020 | D20: Q1 | E20: 595.2
A21: UMEME | B21: Street lights | C21: 2019 | D21: Q4 | E21: 507.4
A22: UMEME | B22: Street lights | C22: 2019 | D22: Q3 | E22: 595.2
A23: UMEME | B23: Street lights | C23: 2019 | D23: Q2 | E23: 595.2
A24: UMEME | B24: Street lights | C24: 2019 | D24: Q1 | E24: 595.2
A25: UMEME | B25: Street lights | C25: 2018 | D25: Q4 | E25: 595.2
A26: UMEME | B26: Street lights | C26: 2018 | D26: Q3 | E26: 595.2
A27: UMEME | B27: Street lights | C27: 2018 | D27: Q2 | E27: 595
A28: UMEME | B28: Street lights | C28: 2018 | D28: Q1 | E28: 683
A29: UMEME | B29: Street lights | C29: 2017 | D29: Q4 | E29: 595.2
A30: UMEME | B30: Street lights | C30: 2017 | D30: Q3 | E30: 595.2
A31: UMEME | B31: Street lights | C31: 2017 | D31: Q2 | E31: 595.2
A32: UMEME | B32: Street lights | C32: 2017 | D32: Q1 | E32: 1013.2
A33: UMEME | B33: Street lights | C33: 2016 | D33: Q4 | E33: 1013.2
A34: UMEME | B34: Street lights | C34: 2016 | D34: Q3 | E34: 1013.2
A35: UMEME | B35: Street lights | C35: 2016 | D35: Q2 | E35: 1013.2
A36: UMEME | B36: Street lights | C36: 2016 | D36: Q1 | E36: 1013.2
A37: UMEME | B37: Street lights | C37: 2015 | D37: Q4 | E37: 1013.2
A38: UMEME | B38: Street lights | C38: 2015 | D38: Q3 | E38: 1013.2
A39: UMEME | B39: Street lights | C39: 2015 | D39: Q2 | E39: 1013.2
A40: UMEME | B40: Street lights | C40: 2015 | D40: Q1 | E40: 1013.2
A41: UMEME | B41: Street lights | C41: 2014 | D41: Q4 | E41: 1013.2
A42: UMEME | B42: Street lights | C42: 2014 | D42: Q3 | E42: 760.3
A43: UMEME | B43: Street lights | C43: 2014 | D43: Q2 | E43: 507.4
A44: UMEME | B44: Street lights | C44: 2014 | D44: Q1 | E44: 507.4
A45: UMEME | B45: Street lights | C45: 2013 | D45: Q4 | E45: 507
A46: UMEME | B46: Street lights | C46: 2013 | D46: Q3 | E46: 507
A47: UMEME | B47: Street lights | C47: 2013 | D47: Q2 | E47: 633.85
A48: UMEME | B48: Street lights | C48: 2013 | D48: Q1 | E48: 633.85
A49: UMEME | B49: Street lights | C49: 2012 | D49: Q4 | E49: 633.85
A50: UMEME | B50: Street lights | C50: 2012 | D50: Q3 | E50: 0
A51: UMEME | B51: Street lights | C51: 2012 | D51: Q2 | E51: 0
A52: UMEME | B52: Street lights | C52: 2012 | D52: Q1 | E52: 0
A53: UMEME | B53: Street lights | C53: 2011 | D53: Q4 | E53: 0
A54: UMEME | B54: Street lights | C54: 2011 | D54: Q3 | E54: 0
A55: UMEME | B55: Street lights | C55: 2011 | D55: Q2 | E55: 0
A56: UMEME | B56: Street lights | C56: 2011 | D56: Q1 | E56: 0
A57: UMEME | B57: Street lights | C57: 2010 | D57: Q4 | E57: 0
A58: UMEME | B58: Street lights | C58: 2010 | D58: Q3 | E58: 0
A59: UMEME | B59: Street lights | C59: 2010 | D59: Q2 | E59: 0
A60: UMEME | B60: Street lights | C60: 2010 | D60: Q1 | E60: 0
A61: UMEME | B61: Street lights | C61: 2009 | D61: Q4 | E61: 0
A62: UMEME | B62: Street lights | C62: 2009 | D62: Q3 | E62: 0
A63: UMEME | B63: Street lights | C63: 2009 | D63: Q2 | E63: 0
A64: UMEME | B64: Street lights | C64: 2009 | D64: Q1 | E64: 0
A65: UMEME | B65: Street lights | C65: 2008 | D65: Q4 | E65: 0
A66: UMEME | B66: Street lights | C66: 2008 | D66: Q3 | E66: 0
A67: UMEME | B67: Street lights | C67: 2008 | D67: Q2 | E67: 0
A68: UMEME | B68: Street lights | C68: 2008 | D68: Q1 | E68: 0
A69: UMEME | B69: Street lights | C69: 2007 | D69: Q4 | E69: 0
A70: UMEME | B70: Street lights | C70: 2007 | D70: Q3 | E70: 0
A71: UMEME | B71: Street lights | C71: 2007 | D71: Q2 | E71: 0
A72: UMEME | B72: Street lights | C72: 2007 | D72: Q1 | E72: 0
A73: UMEME | B73: Street lights | C73: 2006 | D73: Q4 | E73: 0
A74: UMEME | B74: Street lights | C74: 2006 | D74: Q3 | E74: 0
A75: UMEME | B75: Street lights | C75: 2006 | D75: Q2 | E75: 0
A76: UMEME | B76: Street lights | C76: 2006 | D76: Q1 | E76: 0
A77: UMEME | B77: Street lights | C77: 2005 | D77: Q4 | E77: 0
A78: UMEME | B78: Street lights | C78: 2005 | D78: Q3 | E78: 0
A79: UMEME | B79: Street lights | C79: 2005 | D79: Q2 | E79: 0
A80: UMEME | B80: Street lights | C80: 2005 | D80: Q1 | E80: 0
A81: UMEME | B81: LV | C81: 2024 | D81: Q3 | E81: 22930.84923
A82: UMEME | B82: LV | C82: 2024 | D82: Q2 | E82: 22930.85
A83: UMEME | B83: LV | C83: 2024 | D83: Q1 | E83: 22930.84
A84: UMEME | B84: LV | C84: 2023 | D84: Q4 | E84: 22930.52
A85: UMEME | B85: LV | C85: 2023 | D85: Q3 | E85: 22849.77
A86: UMEME | B86: LV | C86: 2023 | D86: Q2 | E86: 22849.7774
A87: UMEME | B87: LV | C87: 2023 | D87: Q1 | E87: 22824.449
A88: UMEME | B88: LV | C88: 2022 | D88: Q4 | E88: 22802.90348
A89: UMEME | B89: LV | C89: 2022 | D89: Q3 | E89: 22623.7515
A90: UMEME | B90: LV | C90: 2022 | D90: Q2 | E90: 22557.07929
A91: UMEME | B91: LV | C91: 2022 | D91: Q1 | E91: 22472.67617
A92: UMEME | B92: LV | C92: 2021 | D92: Q4 | E92: 22405.47497
A93: UMEME | B93: LV | C93: 2021 | D93: Q3 | E93: 22265.846
A94: UMEME | B94: LV | C94: 2021 | D94: Q2 | E94: 22223.02
A95: UMEME | B95: LV | C95: 2021 | D95: Q1 | E95: 21788.06
A96: UMEME | B96: LV | C96: 2020 | D96: Q4 | E96: 21788.06
A97: UMEME | B97: LV | C97: 2020 | D97: Q3 | E97: 21869.41156
A98: UMEME | B98: LV | C98: 2020 | D98: Q2 | E98: 21317.3
A99: UMEME | B99: LV | C99: 2020 | D99: Q1 | E99: 21110.74093
A100: UMEME | B100: LV | C100: 2019 | D100: Q4 | E100: 20933.28
A101: UMEME | B101: LV | C101: 2019 | D101: Q3 | E101: 20360.79081
A102: UMEME | B102: LV | C102: 2019 | D102: Q2 | E102: 20160.83
A103: UMEME | B103: LV | C103: 2019 | D103: Q1 | E103: 20093.73
A104: UMEME | B104: LV | C104: 2018 | D104: Q4 | E104: 19929.46461
A105: UMEME | B105: LV | C105: 2018 | D105: Q3 | E105: 19724.32
A106: UMEME | B106: LV | C106: 2018 | D106: Q2 | E106: 19605.583
A107: UMEME | B107: LV | C107: 2018 | D107: Q1 | E107: 19524.806
A108: UMEME | B108: LV | C108: 2017 | D108: Q4 | E108: 19431.108
A109: UMEME | B109: LV | C109: 2017 | D109: Q3 | E109: 19293.862
A110: UMEME | B110: LV | C110: 2017 | D110: Q2 | E110: 18965.912
A111: UMEME | B111: LV | C111: 2017 | D111: Q1 | E111: 18833.31
A112: UMEME | B112: LV | C112: 2016 | D112: Q4 | E112: 18669.7
A113: UMEME | B113: LV | C113: 2016 | D113: Q3 | E113: 18048.85
A114: UMEME | B114: LV | C114: 2016 | D114: Q2 | E114: 17163.89
A115: UMEME | B115: LV | C115: 2016 | D115: Q1 | E115: 17163.89
A116: UMEME | B116: LV | C116: 2015 | D116: Q4 | E116: 16862.5
A117: UMEME | B117: LV | C117: 2015 | D117: Q3 | E117: 16548.75
A118: UMEME | B118: LV | C118: 2015 | D118: Q2 | E118: 16515.73
A119: UMEME | B119: LV | C119: 2015 | D119: Q1 | E119: 15828.99
A120: UMEME | B120: LV | C120: 2014 | D120: Q4 | E120: 16903.43
A121: UMEME | B121: LV | C121: 2014 | D121: Q3 | E121: 16712.77
A122: UMEME | B122: LV | C122: 2014 | D122: Q2 | E122: 15402.46
A123: UMEME | B123: LV | C123: 2014 | D123: Q1 | E123: 11418.55246
A124: UMEME | B124: LV | C124: 2013 | D124: Q4 | E124: 17030.52262
A125: UMEME | B125: LV | C125: 2013 | D125: Q3 | E125: 17030.52262
A126: UMEME | B126: LV | C126: 2013 | D126: Q2 | E126: 15933.29
A127: UMEME | B127: LV | C127: 2013 | D127: Q1 | E127: 15933.29
A128: UMEME | B128: LV | C128: 2012 | D128: Q4 | E128: 15933.29
A129: UMEME | B129: LV | C129: 2012 | D129: Q3 | E129: 10733.30246
A130: UMEME | B130: LV | C130: 2012 | D130: Q2 | E130: 10651.33311
A131: UMEME | B131: LV | C131: 2012 | D131: Q1 | E131: 10569.36376
A132: UMEME | B132: LV | C132: 2011 | D132: Q4 | E132: 10477.44776
A133: UMEME | B133: LV | C133: 2011 | D133: Q3 | E133: 10382.304
A134: UMEME | B134: LV | C134: 2011 | D134: Q2 | E134: 10254.55048
A135: UMEME | B135: LV | C135: 2011 | D135: Q1 | E135: 10660.34
A136: UMEME | B136: LV | C136: 2010 | D136: Q4 | E136: 10379.53
A137: UMEME | B137: LV | C137: 2010 | D137: Q3 | E137: 10379.53
A138: UMEME | B138: LV | C138: 2010 | D138: Q2 | E138: 9736.44
A139: UMEME | B139: LV | C139: 2010 | D139: Q1 | E139: 9643.22
A140: UMEME | B140: LV | C140: 2009 | D140: Q4 | E140: 9643.22
A141: UMEME | B141: LV | C141: 2009 | D141: Q3 | E141: 9643.22
A142: UMEME | B142: LV | C142: 2009 | D142: Q2 | E142: 9618.471682
A143: UMEME | B143: LV | C143: 2009 | D143: Q1 | E143: 10344.12
A144: UMEME | B144: LV | C144: 2008 | D144: Q4 | E144: 10344.12
A145: UMEME | B145: LV | C145: 2008 | D145: Q3 | E145: 10344.12
A146: UMEME | B146: LV | C146: 2008 | D146: Q2 | E146: 10344.12
A147: UMEME | B147: LV | C147: 2008 | D147: Q1 | E147: 10231.82
A148: UMEME | B148: LV | C148: 2007 | D148: Q4 | E148: 10231.82
A149: UMEME | B149: LV | C149: 2007 | D149: Q3 | E149: 10060.01
A150: UMEME | B150: LV | C150: 2007 | D150: Q2 | E150: 10018.35
A151: UMEME | B151: LV | C151: 2007 | D151: Q1 | E151: 9138.7
A152: UMEME | B152: LV | C152: 2006 | D152: Q4 | E152: 8702.481
A153: UMEME | B153: LV | C153: 2006 | D153: Q3 | E153: 8643.08
A154: UMEME | B154: LV | C154: 2006 | D154: Q2 | E154: 8555.08
A155: UMEME | B155: LV | C155: 2006 | D155: Q1 | E155: 8535.78
A156: UMEME | B156: LV | C156: 2005 | D156: Q4 | E156: 8448.208
A157: UMEME | B157: LV | C157: 2005 | D157: Q3 | E157: 8448.208
A158: UMEME | B158: LV | C158: 2005 | D158: Q2 | E158: 8448.208
A159: UMEME | B159: LV | C159: 2005 | D159: Q1 | E159: 8472.094
A160: UMEME | B160: 11 kV | C160: 2024 | D160: Q3 | E160: 7797.403293
A161: UMEME | B161: 11 kV | C161: 2024 | D161: Q2 | E161: 7647.61084
A162: UMEME | B162: 11 kV | C162: 2024 | D162: Q1 | E162: 7595.171567
A163: UMEME | B163: 11 kV | C163: 2023 | D163: Q4 | E163: 7562.156425
A164: UMEME | B164: 11 kV | C164: 2023 | D164: Q3 | E164: 7454.556
A165: UMEME | B165: 11 kV | C165: 2023 | D165: Q2 | E165: 7399.15
A166: UMEME | B166: 11 kV | C166: 2023 | D166: Q1 | E166: 7274.1609
A167: UMEME | B167: 11 kV | C167: 2022 | D167: Q4 | E167: 7264.720108
A168: UMEME | B168: 11 kV | C168: 2022 | D168: Q3 | E168: 7183.969
A169: UMEME | B169: 11 kV | C169: 2022 | D169: Q2 | E169: 7114.134532
A170: UMEME | B170: 11 kV | C170: 2022 | D170: Q1 | E170: 7311.812621
A171: UMEME | B171: 11 kV | C171: 2021 | D171: Q4 | E171: 7164.743519
A172: UMEME | B172: 11 kV | C172: 2021 | D172: Q3 | E172: 7106.962249
A173: UMEME | B173: 11 kV | C173: 2021 | D173: Q2 | E173: 6932.065
A174: UMEME | B174: 11 kV | C174: 2021 | D174: Q1 | E174: 6535.315
A175: UMEME | B175: 11 kV | C175: 2020 | D175: Q4 | E175: 6535.315
A176: UMEME | B176: 11 kV | C176: 2020 | D176: Q3 | E176: 6489.29
A177: UMEME | B177: 11 kV | C177: 2020 | D177: Q2 | E177: 6412
A178: UMEME | B178: 11 kV | C178: 2020 | D178: Q1 | E178: 6449.01736
A179: UMEME | B179: 11 kV | C179: 2019 | D179: Q4 | E179: 6363.6
A180: UMEME | B180: 11 kV | C180: 2019 | D180: Q3 | E180: 6298.824758
A181: UMEME | B181: 11 kV | C181: 2019 | D181: Q2 | E181: 6294.083565
A182: UMEME | B182: 11 kV | C182: 2019 | D182: Q1 | E182: 6141.113565
A183: UMEME | B183: 11 kV | C183: 2018 | D183: Q4 | E183: 6058.373565
A184: UMEME | B184: 11 kV | C184: 2018 | D184: Q3 | E184: 6081.87
A185: UMEME | B185: 11 kV | C185: 2018 | D185: Q2 | E185: 6125.12
A186: UMEME | B186: 11 kV | C186: 2018 | D186: Q1 | E186: 6122.12
A187: UMEME | B187: 11 kV | C187: 2017 | D187: Q4 | E187: 6055.16
A188: UMEME | B188: 11 kV | C188: 2017 | D188: Q3 | E188: 6085.86
A189: UMEME | B189: 11 kV | C189: 2017 | D189: Q2 | E189: 6125.1
A190: UMEME | B190: 11 kV | C190: 2017 | D190: Q1 | E190: 5978.74
A191: UMEME | B191: 11 kV | C191: 2016 | D191: Q4 | E191: 5950.78
A192: UMEME | B192: 11 kV | C192: 2016 | D192: Q3 | E192: 5885.1
A193: UMEME | B193: 11 kV | C193: 2016 | D193: Q2 | E193: 5620.1
A194: UMEME | B194: 11 kV | C194: 2016 | D194: Q1 | E194: 5620.1
A195: UMEME | B195: 11 kV | C195: 2015 | D195: Q4 | E195: 5562.5
A196: UMEME | B196: 11 kV | C196: 2015 | D196: Q3 | E196: 5495.3
A197: UMEME | B197: 11 kV | C197: 2015 | D197: Q2 | E197: 5342.18
A198: UMEME | B198: 11 kV | C198: 2015 | D198: Q1 | E198: 5301.66
A199: UMEME | B199: 11 kV | C199: 2014 | D199: Q4 | E199: 5331.11
A200: UMEME | B200: 11 kV | C200: 2014 | D200: Q3 | E200: 5279.9
... 1401 more rows

Sheet Energy_Purchased_kWh
B2: PERIOD | D2: UEDCL OVERALL | E2: UMEME UGANDA LIMITED | H2: UGANDA ELECTRICITY DISTRIBUTION COMPANY LIMITED | T2: KABALEGA HYDROMAX** | U2: WESTNILE RURAL ELECTRIFICATION COMPANY* | V2: KALANGALA INFRASTRUCTURE SERVICES*
B3: Year | C3: Quarter | D3: UEDCL OVERALL | E3: PEAK | F3: SHOULDER | G3: OFF-PEAK | H3: CNST | I3: EST | J3: MWST | K3: NEST | L3: NNWST | M3: SST | N3: SWST | O3: NWST | P3: RST*** | Q3: NST*** | R3: CST*** | S3: WST*** | T3: KABALEGA HYDROMAX | U3: WENRECO | V3: KIS
B4: 2026 | C4: Q1 | D4: 1766984864 | U4: 10316989 | V4: 837741.9643
B5: 2025 | C5: Q4 | D5: 1741873851 | U5: 14560740 | V5: 858788.129
B6: 2025 | C6: Q3 | D6: 1702597059 | U6: 6214977 | V6: 870381.646
B7: 2025 | C7: Q2 | D7: 1626764922 | T7: 200821.6 | U7: 5359813 | V7: 794646.466
B8: 2025 | C8: Q1 | E8: 404629856 | F8: 759196514.5 | G8: 304843231.1 | H8: 1964182.13 | I8: 3327934.41 | J8: 2651747.73 | K8: 4081109.91 | L8: 5131859.006 | M8: 5601951.26 | N8: 4458897.28 | O8: 14251934.14 | P8: 2594800 | Q8: 1799842.29 | R8: 4447917.17 | S8: 4358851 | T8: 102694 | U8: 9606338 | V8: 839379.2472
B9: 2024 | C9: Q4 | E9: 395596943 | F9: 744127940.1 | G9: 298853854 | H9: 2000575.18 | I9: 3044168.11 | J9: 2373996.23 | K9: 3547369.281 | L9: 6135274.2 | M9: 5808759.98 | N9: 4059677.48 | O9: 12069702.61 | P9: 3264500 | Q9: 1896416.58 | R9: 3901189.25 | S9: 4093653.753 | T9: 91724.8 | U9: 12044659 | V9: 858448.8388
B10: 2024 | C10: Q3 | E10: 384266580.4 | F10: 744534435.4 | G10: 293215478.6 | H10: 2065613.65 | I10: 2993975.93 | J10: 2417746.7 | K10: 3484217.09 | L10: 5329593.27 | M10: 5893541.13 | N10: 3658470.81 | O10: 13055162.68 | P10: 2309500 | Q10: 1671072.22 | R10: 4021458.69 | T10: 140239.8 | U10: 10705918 | V10: 852295.8091
B11: 2024 | C11: Q2 | E11: 362450411.7 | F11: 716750312.1 | G11: 279150787.3 | H11: 1825222.94 | I11: 2642817.25 | J11: 2443472.44 | K11: 3241409.11 | L11: 5479050.18 | M11: 5398213.28 | N11: 3793516.651 | O11: 18132620.83 | P11: 2400600 | Q11: 1502796.14 | R11: 3311278.06 | S11: 4192392.08 | T11: 111450.3 | U11: 9287650 | V11: 600538.446
B12: 2024 | C12: Q1 | E12: 351908216 | F12: 712101653 | G12: 281719799 | H12: 1799301.37 | I12: 3088723.61 | J12: 2454227.61 | K12: 3220016.12 | L12: 6052796.61 | M12: 5389962.18 | N12: 3553353.899 | O12: 18235990.41 | P12: 2457900 | Q12: 1557264.82 | S12: 4425214 | T12: 192069 | U12: 9622792 | V12: 603670.7198
B13: 2023 | C13: Q4 | E13: 378942018.6 | F13: 625858691 | G13: 301444550.5 | H13: 1672683.21 | I13: 2548207.37 | J13: 2048918.68 | K13: 3220016.12 | L13: 6265492.095 | M13: 4816571.98 | N13: 3362572.79 | O13: 17582844.63 | P13: 3091600 | Q13: 1444102.51 | R13: 3074415 | S13: 5015986
B14: 2023 | C14: Q3 | E14: 342856912 | F14: 677112683 | G14: 267981967 | H14: 1408966.02 | I14: 2592680.35 | J14: 2166737.18 | K14: 3005509.41 | L14: 8853696.575 | M14: 5196999.86 | N14: 3267501.28 | O14: 16338439.08 | P14: 2109600 | Q14: 1201637.77 | R14: 3649075 | S14: 4011458
B15: 2023 | C15: Q2 | E15: 328052263 | F15: 642077543 | G15: 256330315 | H15: 1168860.64 | I15: 1825683.46 | J15: 2107310.73 | K15: 2663219.54 | L15: 6863375.02 | M15: 4759278.6 | N15: 3722399.36 | O15: 16052482.81 | P15: 2566100 | R15: 3230898 | S15: 4258334
B16: 2023 | C16: Q1 | E16: 322759805 | F16: 638898512 | G16: 255038096 | H16: 1392571.98 | I16: 2116150.3 | J16: 2112839.01 | K16: 2779916.5 | L16: 4141269.24 | M16: 4580626.8 | N16: 3161799.21 | O16: 13286367.78 | P16: 1991900 | Q16: 1305669 | R16: 3410437 | S16: 3825556
B17: 2022 | C17: Q4 | E17: 317362070 | F17: 621489071 | G17: 245353168 | H17: 1281133.7 | I17: 1626658.94 | J17: 1742633.45 | K17: 2939760.97 | L17: 5839551.12 | M17: 4050360.4 | N17: 3297080.92 | O17: 15442778.33 | P17: 2724000 | Q17: 1247890 | R17: 2320584 | S17: 4320069
B18: 2022 | C18: Q3 | E18: 315984576 | F18: 627353435 | G18: 242112728 | H18: 1215420.03 | I18: 1763282.8 | J18: 1762449.01 | K18: 2742725.52 | L18: 5064201.4 | M18: 4401512.1 | N18: 2736577.08 | O18: 10085151.31 | P18: 2051212 | Q18: 1113763 | R18: 2502271 | S18: 3501236
B19: 2022 | C19: Q2 | E19: 305357917 | F19: 602295948 | G19: 227039821 | H19: 1042427.08 | I19: 1439283.99 | J19: 1773514.63 | K19: 2424508.46 | L19: 3792019.23 | M19: 4279374.3 | N19: 3078725.01 | O19: 12143604.49 | P19: 2076992.171 | Q19: 925850 | R19: 2162474 | S19: 3256297
B20: 2022 | C20: Q1 | E20: 283050674 | F20: 616073351 | G20: 227529516 | H20: 1132635.78 | I20: 1540378.43 | J20: 1768835.28 | K20: 2362486.8 | L20: 4014608.3 | M20: 3859481 | N20: 2801250.31 | O20: 9282741.846 | P20: 1975672.4 | Q20: 1022117 | R20: 2088983 | S20: 2815634
B21: 2021 | C21: Q4 | E21: 286962230.3 | F21: 590853102.5 | G21: 229717488.2 | H21: 1118945.35 | I21: 1384957.03 | J21: 1455790.12 | K21: 2231400.54 | L21: 5240722.8 | M21: 3557657.43 | N21: 2540587.68 | O21: 13718213.52 | P21: 2771596.13 | Q21: 904545 | R21: 1847195 | S21: 2772053
B22: 2021 | C22: Q3 | E22: 278901048.3 | F22: 575867286.6 | G22: 219043446.2 | H22: 1054745.167 | I22: 1461658.59 | J22: 1444392.59 | K22: 2104304.33 | L22: 4428196 | M22: 3937254.023 | N22: 2322818.33 | O22: 10600387.99 | P22: 2234104.35 | Q22: 820370 | R22: 1832223 | S22: 2087669
B23: 2021 | C23: Q2 | E23: 276321379.7 | F23: 561662389.8 | G23: 218233280.5 | H23: 922720.46 | I23: 1105573.99 | J23: 1497182.87 | K23: 1789375.56 | L23: 3046957.1 | M23: 3842963.79 | N23: 2539283.69 | O23: 11644004.39 | P23: 1993300 | Q23: 611049 | R23: 1367353 | S23: 2216217
B24: 2021 | C24: Q1 | E24: 274137900.2 | F24: 552430444.3 | G24: 213277224.5 | H24: 4199017.916 | I24: 1200790.47 | J24: 1409582.929 | K24: 1837218.17 | L24: 2996696 | M24: 3226043.07 | N24: 2112173.37 | O24: 11081641.07 | P24: 1872643 | Q24: 651063 | R24: 1317760 | S24: 2105965
B25: 2020 | C25: Q4 | E25: 272116756.3 | F25: 544319967.5 | G25: 208579130.2 | H25: 840150.78 | I25: 913766.09 | J25: 1234804.47 | K25: 2010429 | L25: 3029804.7 | M25: 3130842.3 | N25: 2473459.6 | O25: 11808915.86 | P25: 3075795 | Q25: 601744 | R25: 1446584 | S25: 2240055
B26: 2020 | C26: Q3 | E26: 255204784 | F26: 519815998 | G26: 201142294 | H26: 767056.73 | I26: 969348.44 | J26: 1210484.69 | K26: 1749705.94 | L26: 1852609.3 | M26: 3157776.96 | N26: 2029185.859 | O26: 11500771.8 | P26: 2282358 | Q26: 517687 | R26: 1483635 | S26: 2014074
B27: 2020 | C27: Q2 | E27: 226255689 | F27: 449419621 | G27: 179894462 | H27: 631175 | I27: 753959.7 | J27: 1109837 | K27: 1639926 | L27: 1961396 | M27: 2692894 | N27: 2273654 | O27: 11500771.8 | P27: 2022480 | Q27: 502043 | R27: 1253259 | S27: 1877394
B28: 2020 | C28: Q1 | E28: 266316313 | F28: 528067307 | G28: 211772361 | H28: 666197.9131 | I28: 822769.5 | J28: 1183848 | K28: 1629193.21 | L28: 3193991.4 | M28: 2776468 | N28: 2266860 | O28: 11444336.14 | P28: 1818518 | Q28: 592598 | R28: 1428767 | S28: 1900670
B29: 2019 | C29: Q4 | E29: 256309261 | F29: 502715017 | G29: 198596140 | H29: 767913.94 | I29: 746981.27 | J29: 1223863 | K29: 1689279.79 | L29: 1925184.6 | M29: 2648296.46 | N29: 2436829.3 | O29: 10532682.72 | P29: 2378266 | Q29: 655058 | R29: 1242923 | S29: 1942651
B30: 2019 | C30: Q3 | E30: 251044299 | F30: 506379589 | G30: 207200573 | H30: 609365.45 | I30: 777050.14 | J30: 1162580.059 | K30: 1686640.204 | L30: 1990040.3 | M30: 2911068.82 | N30: 2006060.394 | O30: 10985478.23 | P30: 906630 | Q30: 590831 | R30: 1153196 | S30: 1571529
B31: 2019 | C31: Q2 | E31: 244469654 | F31: 485388686 | G31: 201905451 | H31: 598978.068 | I31: 602195.15 | J31: 1172180.84 | K31: 1433298.58 | L31: 1816545.7 | M31: 2540273.653 | N31: 2058642 | O31: 6654221.672 | P31: 931660 | Q31: 531027 | R31: 983355 | S31: 1627314
B32: 2019 | C32: Q1 | E32: 248927128 | F32: 495159500 | G32: 205054794 | H32: 701278 | I32: 650867 | J32: 1186131 | K32: 1781443 | L32: 2025620 | M32: 2330406 | N32: 1973011 | O32: 6105003 | P32: 863676 | Q32: 647936 | R32: 1062636 | S32: 1658731
B33: 2018 | C33: Q4 | E33: 249523605 | F33: 482995857 | G33: 197097679 | H33: 824904.32 | I33: 736770.6 | J33: 1234455 | K33: 1816135.79 | L33: 1736142.5 | M33: 2518725 | N33: 2246377 | O33: 9419189 | P33: 900926 | Q33: 647936 | R33: 1116030 | S33: 1812539
B34: 2018 | C34: Q3 | E34: 243377452 | F34: 481311179 | G34: 196870027 | H34: 768294 | I34: 787178 | J34: 1123649 | K34: 1901310 | L34: 1703335 | M34: 2642512 | N34: 2083322 | O34: 8310167 | P34: 726684 | Q34: 651996 | R34: 1127148 | S34: 1559144.52
B35: 2018 | C35: Q2 | E35: 234429646 | F35: 458195834 | G35: 188221640 | H35: 604467.88 | I35: 491990.2 | J35: 970435 | K35: 1277466.99 | L35: 1728669 | M35: 2309622 | N35: 2365571 | O35: 5334276 | P35: 703006 | Q35: 544375 | R35: 924394 | S35: 1503662
B36: 2018 | C36: Q1 | E36: 236439226 | F36: 447600010 | G36: 185064126 | H36: 589176.2 | I36: 584985.9 | J36: 961440 | K36: 1146047.05 | L36: 1651715.4 | M36: 2194912.98 | N36: 1696107.001 | O36: 4427161.724 | P36: 757120 | Q36: 497323 | R36: 985781 | S36: 1447580
B37: 2017 | C37: Q4 | E37: 231332227 | F37: 437175366 | G37: 189708514 | H37: 670317 | I37: 584985.9 | J37: 921578 | K37: 1054922 | L37: 1564273 | M37: 2433967.14 | N37: 1571071 | O37: 4793104.096 | P37: 796488 | Q37: 562715 | R37: 972138 | S37: 1518084
B38: 2017 | C38: Q3 | E38: 230780918 | F38: 432854118 | G38: 183221157 | H38: 541078 | I38: 461555 | J38: 816302 | K38: 931145 | L38: 1285022 | M38: 2465076.96 | N38: 1349409 | O38: 4575568 | P38: 642736 | Q38: 600817 | R38: 907113 | S38: 1388794
B39: 2017 | C39: Q2 | E39: 222517378 | F39: 410890865 | G39: 176976902 | H39: 505981.5 | I39: 356193.7 | J39: 719054 | K39: 1001417 | L39: 1247151.7 | M39: 2027653 | N39: 1122985 | O39: 3751278 | P39: 685190 | Q39: 473099 | R39: 741891 | S39: 1385853
B40: 2017 | C40: Q1 | E40: 226207498 | F40: 417074205 | G40: 177008886 | H40: 442090.8 | I40: 201056.6 | J40: 931168 | K40: 876341 | L40: 1247494.9 | P40: 790388 | Q40: 592634 | R40: 861474 | S40: 1369968
B41: 2016 | C41: Q4 | E41: 224929886.9 | F41: 409036602.8 | G41: 168580510.3 | P41: 762689 | Q41: 548169 | R41: 758230 | S41: 1274411
B42: 2016 | C42: Q3 | E42: 221480537 | F42: 413064979 | G42: 167351423 | P42: 710757 | Q42: 562537 | R42: 723568 | S42: 1273642
B43: 2016 | C43: Q2 | E43: 225090220 | F43: 399290511 | G43: 164536566 | M43: 2013298 | N43: 1779966 | O43: 3857105 | P43: 733000 | Q43: 579456 | R43: 579606 | S43: 1091475
B44: 2016 | C44: Q1 | E44: 217764090 | F44: 396005550 | G44: 163209887 | M44: 1834480 | N44: 1569191 | O44: 3891064 | P44: 752000 | Q44: 572533 | R44: 580848 | S44: 1398172.56
B45: 2015 | C45: Q4 | E45: 214944295 | F45: 389715970 | G45: 163144087 | M45: 1571538 | N45: 1499094 | O45: 4073984 | P45: 492280 | Q45: 584280 | R45: 611108 | S45: 1435777.98
B46: 2015 | C46: Q3 | E46: 217545412 | F46: 391840102 | G46: 165118508 | M46: 1746622 | N46: 1323372 | O46: 3669851 | P46: 573731 | Q46: 538932 | R46: 544061 | S46: 1426595
B47: 2015 | C47: Q2 | E47: 216156994 | F47: 377705641 | G47: 159568345 | M47: 1845806 | N47: 1471084.17 | O47: 3363478 | P47: 555670.286 | Q47: 479651 | R47: 462865 | S47: 1035341
B48: 2015 | C48: Q1 | E48: 221059110 | F48: 376998558 | G48: 157346628 | M48: 1526433 | N48: 1232721 | O48: 3034815 | P48: 522168 | Q48: 562031 | R48: 457178 | S48: 1123456
B49: 2014 | C49: Q4 | E49: 216005749 | F49: 363645746 | G49: 156198466 | M49: 1491067 | N49: 1533084.9 | O49: 3752424.68 | P49: 518079 | Q49: 613504 | R49: 377987 | S49: 1145609
B50: 2014 | C50: Q3 | E50: 215839306 | F50: 370401204 | G50: 155298595 | M50: 1699490.7 | N50: 1171722.5 | O50: 3624925.53 | P50: 444242 | Q50: 400105 | R50: 347688 | S50: 951355
B51: 2014 | C51: Q2 | E51: 208447000 | F51: 356912000 | G51: 146118000 | M51: 1355386.59 | N51: 1528914.3 | O51: 3128667.32 | P51: 382244 | Q51: 350351 | R51: 203613 | S51: 841937
B52: 2014 | C52: Q1 | E52: 208571820 | F52: 351101778 | G52: 150302372 | M52: 1241121.45 | N52: 1050857.2 | O52: 2302559.91 | P52: 426053 | Q52: 390801 | R52: 305583 | S52: 776397
B53: 2013 | C53: Q4 | E53: 208120000 | F53: 344870000 | G53: 148470000 | M53: 1128872 | N53: 1469949 | O53: 2376089 | P53: 497186 | Q53: 385899 | S53: 880603
B54: 2013 | C54: Q3 | E54: 204386852 | F54: 354767588 | G54: 145928060 | M54: 1296177 | N54: 1190395 | O54: 2092336 | P54: 420940 | Q54: 349389 | S54: 673983
B55: 2013 | C55: Q2 | E55: 204075773 | F55: 354612410 | G55: 144204192 | M55: 1389881 | N55: 3165134 | O55: 1662647 | P55: 403630 | Q55: 341236 | S55: 713096
B56: 2013 | C56: Q1 | E56: 201073620 | F56: 343483358 | G56: 142433955 | M56: 1408313 | N56: 1854370 | O56: 1661203 | P56: 421026 | Q56: 385288 | S56: 642873
B57: 2012 | C57: Q4 | E57: 202392465 | F57: 340571225 | G57: 144099174 | M57: 1317968 | N57: 1544419 | O57: 2044016 | P57: 403060 | Q57: 289212 | S57: 1884619
B58: 2012 | C58: Q3 | E58: 201334646 | F58: 336209912 | G58: 139309226 | M58: 1479222 | N58: 1221757 | O58: 1697405 | P58: 332773 | Q58: 355862 | S58: 1553334
B59: 2012 | C59: Q2 | E59: 187559187 | F59: 327872857 | G59: 134936737 | M59: 1214317 | N59: 1497397 | O59: 1756724 | P59: 330704 | Q59: 334176 | S59: 1242551
B60: 2012 | C60: Q1 | E60: 167892592.9 | F60: 313605632.8 | G60: 129031593.3 | M60: 1122925 | N60: 1079202 | O60: 1156150 | P60: 319923 | Q60: 268711 | S60: 1803578.646
B61: 2011 | C61: Q4 | E61: 153413978 | F61: 301925846 | G61: 120944633 | M61: 1013243.06 | N61: 1063296.96 | O61: 1646682.06 | P61: 309189 | S61: 1474897
B62: 2011 | C62: Q3 | E62: 159806087 | F62: 312510320 | G62: 123634197 | M62: 930356.02 | N62: 1200908 | O62: 1267648.94 | P62: 261182 | S62: 836431
B63: 2011 | C63: Q2 | E63: 176477870 | F63: 302637682 | G63: 132394498 | M63: 846916 | N63: 1204520 | O63: 1476952 | P63: 295000 | S63: 1031735
B64: 2011 | C64: Q1 | E64: 179340183 | F64: 297832448 | G64: 126505693 | M64: 520643 | N64: 893420 | O64: 1012709 | P64: - | S64: 796176
B65: 2010 | C65: Q4 | E65: 180649446 | F65: 290973220 | G65: 126842309 | M65: 441017 | N65: 930000 | O65: 1278929 | S65: 698411
B66: 2010 | C66: Q3 | E66: 179947000 | F66: 288186000 | G66: 122572000 | M66: 417699 | N66: 577000 | O66: 1119625 | S66: 472758
B67: 2010 | C67: Q2 | E67: 171524395 | F67: 286533819 | G67: 121160043 | M67: 378076 | N67: 845000 | O67: 1318826 | S67: 206741
B68: 2010 | C68: Q1 | E68: 189252200 | F68: 259220400 | G68: 106964800 | M68: 267124 | N68: 725484 | O68: 1200413 | S68: 171991
B69: 2009 | C69: Q4 | E69: 163541000 | F69: 271954000 | G69: 115353000 | M69: 226299 | N69: 490949 | O69: 904995 | S69: 133466
B70: 2009 | C70: Q3 | E70: 163089000 | F70: 281470000 | G70: 115167000 | M70: 249000 | N70: 523917 | O70: 318889 | S70: 161000
B71: 2009 | C71: Q2 | E71: 155703270 | F71: 262283150 | G71: 112406570 | M71: 109000 | N71: 614934 | O71: 379307
B72: 2009 | C72: Q1 | E72: 153293700 | F72: 252222530 | G72: 105208950 | N72: 507629 | O72: 279964
B73: 2008 | C73: Q4 | E73: 149069900 | F73: 248631400 | G73: 104317300
B74: 2008 | C74: Q3 | E74: 146697514 | F74: 246047464 | G74: 101560726
B75: 2008 | C75: Q2 | E75: 145532000 | F75: 236797000 | G75: 96493000
B76: 2008 | C76: Q1 | E76: 142240000 | F76: 231130000 | G76: 95520000
B77: Source: ERA ESI database
C78: Transition from Distribution Utility to UEDCL Territory
C79: Before utility commenced operations
C80: Before UEDCL Takeover
C81: Transition from Distribution Utility to UEDCL Territory
C82: UEDCL Dissolved Territories

Sheet Energy Sales_kWh
B2: Period | D2: UEDCL OVERALL | L2: UMEME UGANDA LIMITED | R2: CNST | W2: EST | Z2: MWST | AC2: NEST | AH2: NNWST | AM2: SST | AQ2: SWST | AU2: NWST (Kibaale-Kyenjojo (NWST) | AZ2: RWENZORI SERVICE TERRITORY*** | BC2: NST*** | BF2: CST*** | BI2: WST*** | BL2: KABALEGA HYDROMAX** | BO2: WESTNILE RURAL ELECTRIFICATION COMPANY* | BS2: KALANGALA INFRASTRUCTURE SERVICES*
B3: Year | C3: Quarter | D3: Domestic | E3: Commercial | F3: Medium Industries-Service | G3: Medium Industries-Manufacturing | H3: Large Industries-service | I3: Large Industries-Manufacturing | J3: Extra Large | K3: Public Amenities | L3: Domestic | M3: Commercial | N3: Medium Industries | O3: Large Industries | P3: Extra Large | Q3: Streetlighting | R3: Domestic | S3: Commercial | T3: Medium Industries | U3: Large Industries | V3: Streetlighting | W3: Domestic | X3: Commercial | Y3: Medium Industries | Z3: Domestic | AA3: Commercial | AB3: Medium Industries | AC3: Domestic | AD3: Commercial | AE3: Medium Industries | AF3: Large Industries | AG3: Streetlighting | AH3: Domestic | AI3: Commercial | AJ3: Medium Industries | AK3: Large Industries | AL3: Streetlighting | AM3: Domestic | AN3: Commercial | AO3: Medium Industries | AP3: Large Industries | AQ3: Domestic | AR3: Commercial | AS3: Medium Industries | AT3: Large Industries | AU3: Domestic | AV3: Commercial | AW3: Medium Industries | AX3: Large Industries | AY3: Streetlighting | AZ3: Domestic | BA3: Commercial | BB3: Medium Industries | BC3: Domestic | BD3: Commercial | BE3: Medium Industries | BF3: Domestic | BG3: Commercial | BH3: Medium Industries | BI3: Domestic | BJ3: Commercial | BK3: Medium Industries | BL3: Domestic | BM3: Commercial | BN3: Medium Industries | BO3: Domestic | BP3: Commercial | BQ3: Medium Industrial | BR3: Large Industrial | BS3: Domestic | BT3: Commercial
B4: 2026 | C4: Q1 | D4: 325860201.3 | E4: 158338703 | F4: 110396809.5 | G4: 84195605.94 | H4: 67724132.91 | I4: 276561523.4 | J4: 410741137.7 | K4: 6038116.661 | BO4: 5734478 | BP4: 2976366 | BQ4: 1359200 | BR4: 2573331 | BS4: 382289.2 | BT4: 134098
B5: 2025 | C5: Q4 | D5: 330057778.9 | E5: 153175637 | F5: 121747643.4 | G5: 75174366.6 | H5: 75579495.8 | I5: 281432709.2 | J5: 368393706 | K5: 5406550.55 | BO5: 5737265.2 | BP5: 2620330 | BQ5: 1302342 | BR5: 2817004 | BS5: 427408.98 | BT5: 144227
B6: 2025 | C6: Q3 | D6: 320834458.3 | E6: 152530789.6 | F6: 107774787.9 | G6: 77588136.93 | H6: 76907552.17 | I6: 279589557.3 | J6: 366069527.2 | K6: 5103726.05 | BO6: 5181825 | BP6: 2445507 | BQ6: 999344 | BR6: 2062387 | BS6: 427918.5 | BT6: 170594
B7: 2025 | C7: Q2 | D7: 293386010 | E7: 141444406.9 | F7: 109665534.3 | G7: 64914224.23 | H7: 73318037.03 | I7: 256859926.8 | J7: 362125309.6 | K7: 4935095.051 | BL7: 23548.2 | BM7: 59580.6 | BN7: 117692.8 | BO7: 4908701 | BP7: 2226872 | BQ7: 905977 | BR7: 1371483 | BS7: 397333.06 | BT7: 150303
B8: 2025 | C8: Q1 | L8: 280755344.3 | M8: 132865623.5 | N8: 176208779.2 | O8: 348095623.5 | P8: 299431383.3 | Q8: 1116755.394 | R8: 882341.3563 | S8: 523749.7523 | T8: 30782.3 | U8: 226022 | V8: 0 | W8: 1380154.5 | X8: 990749.6 | Y8: 27417.4 | Z8: 913730.9 | AA8: 1192311.733 | AB8: 133847.2 | AC8: 1211667.627 | AD8: 932886.6907 | AE8: 1053603.8 | AF8: 678305 | AG8: 12457.8 | AH8: 2133695.3 | AI8: 1191575.133 | AJ8: 918992.1 | AK8: 401162.1 | AL8: 696.2 | AM8: 2498434.7 | AN8: 1577634.83 | AO8: 82194.8 | AP8: 73214 | AQ8: 1228163 | AR8: 1078897.1 | AS8: 501132.7 | AT8: 271300 | AU8: 4273588 | AV8: 3727602.8 | AW8: 2917878.9 | AX8: 465079.8 | AY8: 115.6 | AZ8: 1051246.3 | BA8: 300024.7667 | BB8: 120060.9 | BC8: 1046483 | BD8: 501645.4333 | BE8: 0 | BF8: 1718439.9 | BG8: 1150306.967 | BH8: 753075.6 | BI8: 1653370.4 | BJ8: 650571 | BK8: 375959.8769 | BL8: 11665.5 | BM8: 30248.1 | BN8: 25063.5 | BO8: 4937012 | BP8: 2527936 | BQ8: 871148 | BR8: 1270242 | BS8: 363634.49 | BT8: 157861
B9: 2024 | C9: Q4 | L9: 274437828.8 | M9: 130019904.7 | N9: 172901647.1 | O9: 339183154.8 | P9: 294513116.9 | Q9: 1040848.536 | R9: 799698.3173 | S9: 500169.9582 | T9: 56743.6 | U9: 231751 | V9: 634.8 | W9: 1265563.3 | X9: 897206.3 | Y9: 18042 | Z9: 884376.2 | AA9: 925810.4 | AB9: 85674.2 | AC9: 1112863.162 | AD9: 799688.5821 | AE9: 652319.4 | AF9: 387314 | AG9: 100272.5 | AH9: 1980216.4 | AI9: 1252912.8 | AJ9: 695472.5 | AK9: 416523 | AL9: 762.3 | AM9: 2355611.6 | AN9: 1359859.5 | AO9: 99694.1 | AP9: 14962 | AQ9: 1195742.4 | AR9: 951167.1 | AS9: 479324 | AT9: 469738 | AU9: 3682416.133 | AV9: 3381799.567 | AW9: 1890826.9 | AX9: 708948 | AY9: 135.7 | AZ9: 851351.2 | BA9: 263614.7 | BB9: 5506 | BC9: 874908.3542 | BD9: 338321.4991 | BE9: 271818.9467 | BF9: 1537087.4 | BG9: 832717.5 | BH9: 625285 | BI9: 1550192.3 | BJ9: 386060.1062 | BK9: 374027.765 | BL9: 14535.9 | BM9: 43570.9 | BN9: 33618 | BO9: 4432902.7 | BP9: 2377838 | BQ9: 1521370 | BR9: 1769209 | BS9: 383039.48 | BT9: 141606
B10: 2024 | C10: Q3 | L10: 266273882.7 | M10: 132088936.4 | N10: 169677919.5 | O10: 333463471.7 | P10: 291399470.1 | Q10: 812861.825 | R10: 755772.6862 | S10: 527152.7077 | T10: 64506.6 | U10: 262318 | V10: 0 | W10: 1139491.7 | X10: 1003452.7 | Y10: 23885.1 | Z10: 841133.1 | AA10: 1058855.1 | AB10: 95461.6 | AC10: 1021499.097 | AD10: 879858.8234 | AE10: 607372.6 | AF10: 420098.6 | AG10: 4553.6 | AH10: 1739438.4 | AI10: 1216908.656 | AJ10: 649116.8 | AK10: 703786.7 | AL10: 428.3 | AM10: 2264429.8 | AN10: 1662999.033 | AO10: 122962.8 | AP10: 5898 | AQ10: 1103894.6 | AR10: 861666 | AS10: 556506 | AT10: 276201 | AU10: 3533658.7 | AV10: 3383617.2 | AW10: 1787541.8 | AX10: 271370.1 | AY10: 204.5 | AZ10: 773840.8 | BA10: 298850.5 | BB10: 5406.6 | BC10: 896328.6 | BD10: 288173.15 | BE10: 264963.48 | BF10: 1379893.6 | BG10: 1083663.5 | BH10: 719192.8 | BL10: 18450.7 | BM10: 53012.7 | BN10: 68776.4 | BO10: 4057249 | BP10: 1816830 | BQ10: 1269839 | BR10: 1512311 | BS10: 354895.7599 | BT10: 119811.08
B11: 2024 | C11: Q2 | L11: 253735854.4 | M11: 128495488.7 | N11: 159233519.6 | O11: 315088671.8 | P11: 279572604.9 | Q11: 672403.551 | R11: 614297.8908 | S11: 491434.7869 | T11: 45038.6 | U11: 237099 | V11: 609.7 | W11: 1036135.3 | X11: 823138.6 | Y11: 20524.8 | Z11: 761198.3 | AA11: 1208548.3 | AB11: 95826.2 | AC11: 934421.1441 | AD11: 872670.1987 | AE11: 582311.9 | AF11: 314948 | AG11: 99007 | AH11: 1585664 | AI11: 1100976.903 | AJ11: 708782.2 | AK11: 758804 | AL11: 482.7 | AM11: 2104778.2 | AN11: 1756275.3 | AO11: 106674.7 | AP11: 3956 | AQ11: 964212.1 | AR11: 934158.4 | AS11: 413537.8 | AT11: 394932 | AU11: 3285645.6 | AV11: 3096923.5 | AW11: 1880579.4 | AX11: 570751 | AY11: 148 | AZ11: 775237 | BA11: 310737.3 | BB11: 10632 | BC11: 738316 | BD11: 387575.05 | BE11: 250011.5 | BF11: 800158.4 | BG11: 531559.3 | BH11: 430128.2 | BI11: 1812031.525 | BJ11: 942400.595 | BK11: 374784 | BL11: 15909.2 | BM11: 45556.1 | BN11: 49985 | BO11: 3719080 | BP11: 1856556 | BQ11: 1072070 | BR11: 454480 | BS11: 354895.7599 | BT11: 119811.08
B12: 2024 | C12: Q1 | L12: 250232263.8 | M12: 126833336.2 | N12: 157295479 | O12: 317071945.7 | P12: 277531055.7 | Q12: 925295.681 | R12: 565402.2958 | S12: 632151.388 | T12: 41178.7 | U12: 193282 | V12: 0 | W12: 1016693.9 | X12: 1178262.7 | Y12: 26963.8 | Z12: 679960.6 | AA12: 1234843.9 | AB12: 159154.8 | AC12: 1052619.068 | AD12: 856375.1044 | AE12: 651882.8 | AF12: 335497 | AG12: 9776.2 | AH12: 1723321.2 | AI12: 1173147.13 | AJ12: 776111.8 | AK12: 963041 | AL12: 518.1 | AM12: 1904813.1 | AN12: 1678398 | AO12: 0 | AP12: 0 | AQ12: 936764.9 | AR12: 994486.5 | AS12: 3352.5 | AT12: 0 | AU12: 3022945.6 | AV12: 3571163.3 | AW12: 114313.9 | AX12: 0 | AY12: 133.7 | AZ12: 670247.2 | BA12: 302980.5 | BB12: 0 | BC12: 855754.4 | BD12: 320873.8133 | BE12: 168232.6 | BI12: 1567639.92 | BJ12: 995294.16 | BK12: 260799 | BL12: 15747.2 | BM12: 44751.2 | BN12: 131570.6 | BO12: 3818940 | BP12: 2018820 | BQ12: 1016421 | BR12: 847915 | BS12: 354895.7599 | BT12: 119811.08
B13: 2023 | C13: Q4 | L13: 249117153.3 | M13: 117334075.8 | N13: 151243757.6 | O13: 312459481.2 | P13: 263791919.1 | Q13: 670924.32 | R13: 532943.232 | S13: 515108.7579 | T13: 61006.5 | U13: 197866 | V13: 772.9 | W13: 886846.4 | X13: 846892.7 | Y13: 30787.7 | Z13: 681020.9 | AA13: 769614 | AB13: 47143.4 | AC13: 1000708.641 | AD13: 854040.259 | AE13: 501214 | AF13: 244682 | AG13: 4553.6 | AH13: 1503104.1 | AI13: 946640.45 | AJ13: 657895.1 | AK13: 464769 | AL13: 453.9 | AM13: 1823716.3 | AN13: 1077779.4 | AO13: 150147 | AQ13: 879768 | AR13: 640315.1 | AS13: 459149.1 | AT13: 506134 | AU13: 2915100.8 | AV13: 2527212.9 | AW13: 1477409.7 | AX13: 1051301 | AY13: 178.1 | AZ13: 563445.5 | BA13: 236214.6 | BB13: 7528.3 | BC13: 888700.3 | BD13: 198441.4 | BE13: 226515.5 | BF13: 960571 | BG13: 764646 | BH13: 217823 | BI13: 1252841.225 | BJ13: 449243.47 | BK13: 343063
B14: 2023 | C14: Q3 | L14: 235172114.7 | M14: 123519483.9 | N14: 151130949 | O14: 299661753.5 | P14: 276805478.1 | Q14: 602561.78 | R14: 484157.0728 | S14: 475002.9349 | T14: 94980.8 | V14: 0 | W14: 832082.4 | X14: 1217753.633 | Y14: 28301.7 | Z14: 568855.5 | AA14: 1023453.7 | AB14: 75123.2 | AC14: 843768.9843 | AD14: 941160.8328 | AE14: 411067 | AF14: 310330 | AG14: 100988.7 | AH14: 1423139.8 | AI14: 941299 | AJ14: 558208.6 | AK14: 514860 | AL14: 285.5 | AM14: 1847748.3 | AN14: 1612187.4 | AO14: 145697 | AQ14: 841459.5 | AR14: 746612.4 | AS14: 477019.9 | AT14: 355115 | AU14: 2697006.5 | AV14: 3013405.5 | AW14: 1601793.2 | AX14: 1082611 | AY14: 121.9 | AZ14: 513949.79 | BA14: 233993.01 | BB14: 6418.8 | BC14: 627362.43 | BD14: 267514.5667 | BE14: 155067.5 | BF14: 1030499 | BG14: 1040635 | BH14: 655352 | BI14: 1170237.67 | BJ14: 512457.12 | BK14: 238189
B15: 2023 | C15: Q2 | L15: 218388485.6 | M15: 111586191.2 | N15: 142858706.6 | O15: 279897915.3 | P15: 262713156 | Q15: 470097.383 | R15: 498267.4955 | S15: 434426.252 | T15: 48331.4 | V15: 0 | W15: 700870.2 | X15: 611941.9667 | Y15: 35232 | Z15: 649186.5 | AA15: 863970.4667 | AB15: 67166.8 | AC15: 754453.3189 | AD15: 748080.9667 | AE15: 635868.1 | AF15: 266823 | AG15: 669 | AH15: 1280089.7 | AI15: 949273.3333 | AJ15: 516460.3 | AK15: 303864 | AL15: 169.2 | AM15: 1735363.4 | AN15: 1282310.733 | AO15: 211345 | AQ15: 784007 | AR15: 786859.6667 | AS15: 591837 | AT15: 607994 | AU15: 2568478.2 | AV15: 2632190.533 | AW15: 1472280.3 | AX15: 1272252 | AY15: 105.9 | AZ15: 463793.4 | BA15: 218056.2667 | BB15: 4609 | BF15: 948744 | BG15: 788259 | BH15: 698788 | BI15: 1163426.09 | BJ15: 439760.06 | BK15: 295421
B16: 2023 | C16: Q1 | L16: 212797272.8 | M16: 111923421.5 | N16: 145342840.8 | O16: 286378351.7 | P16: 256816130.2 | Q16: 669389.17 | R16: 541547.2059 | S16: 368160.7719 | T16: 139450.2 | V16: 0 | W16: 727653.6 | X16: 736441.6333 | Y16: 49445 | Z16: 584143.5 | AA16: 1022398.067 | AB16: 56932.1 | AC16: 709108.0228 | AD16: 956680.9138 | AE16: 388764.4 | AF16: 279099 | AG16: 69884.8 | AH16: 1183354.8 | AI16: 663214.4667 | AJ16: 374624.9 | AM16: 1628621.6 | AN16: 1307408.033 | AO16: 192561 | AQ16: 757952.5 | AR16: 950756.0333 | AS16: 525806 | AT16: 267430 | AU16: 2502753.8 | AV16: 2970850.944 | AW16: 994973.5 | AX16: 831393 | AZ16: 466980.7 | BA16: 199917.9333 | BC16: 863826 | BD16: 179686 | BF16: 905268 | BG16: 1027290 | BH16: 589262 | BI16: 1107380.59 | BJ16: 610971.38 | BK16: 255941
B17: 2022 | C17: Q4 | L17: 213236006.3 | M17: 107804049 | N17: 144641847.7 | O17: 267151599.3 | P17: 248020574.5 | Q17: 503482.43 | R17: 489592.0312 | S17: 301225.5081 | T17: 154046.8 | V17: 366.9 | W17: 651530.1 | X17: 493472.5 | Y17: 49611 | Z17: 601941.4 | AA17: 679255.9 | AB17: 42903.4 | AC17: 779910.6456 | AD17: 731746.491 | AE17: 503344.9 | AF17: 365695 | AG17: 1975.8 | AH17: 1227226.2 | AI17: 644793.1 | AJ17: 313172.5 | AM17: 1658769.079 | AN17: 739026.9 | AO17: 178597 | AQ17: 772251.2 | AR17: 581415.8 | AS17: 549433 | AT17: 527482 | AU17: 2480057.99 | AV17: 1855127.7 | AW17: 741098.3 | AX17: 1320665 | AZ17: 388356.2 | BA17: 158701.9 | BC17: 965192 | BD17: 212093 | BF17: 736288 | BG17: 443707 | BH17: 341142 | BI17: 1055265.75 | BJ17: 404662.76 | BK17: 262840
B18: 2022 | C18: Q3 | L18: 211369162.1 | M18: 108896573.9 | N18: 137135584.4 | O18: 267816036.5 | P18: 265535413.5 | Q18: 573802.338 | R18: 453859.1039 | S18: 349502.5886 | T18: 107098.2 | V18: 172 | W18: 610223.7 | X18: 659011.3 | Y18: 41670 | Z18: 543697.9 | AA18: 752599.3 | AB18: 60131.1 | AC18: 715292.953 | AD18: 689179.1947 | AE18: 611368.9 | AF18: 188788 | AG18: 0 | AH18: 1138373.6 | AI18: 710723.0333 | AJ18: 300470.9 | AM18: 1590253.9 | AN18: 1330131.4 | AO18: 200845 | AQ18: 765817.2 | AR18: 652135.1 | AS18: 333449 | AT18: 378930 | AU18: 2303038.2 | AV18: 2418634.3 | AW18: 828303 | AX18: 737055 | AZ18: 310742.5 | BA18: 192819.6 | BC18: 598668 | BD18: 182873 | BF18: 987219.3406 | BG18: 681153.6594 | BH18: 481257 | BI18: 1072460.505 | BJ18: 522177.2 | BK18: 161409
B19: 2022 | C19: Q2 | L19: 204403925.5 | M19: 103380951.8 | N19: 132757191.4 | O19: 255530627 | P19: 246118392.3 | Q19: 527097.329 | R19: 432012.4558 | S19: 279965.4664 | T19: 74503 | V19: 162.9 | W19: 590691.5 | X19: 450111.8 | Y19: 42125 | Z19: 559452 | AA19: 789992.3 | AB19: 38548.4 | AC19: 694286.5918 | AD19: 474996.978 | AE19: 537212.9 | AF19: 302427 | AG19: 47663.2 | AH19: 1129344.5 | AI19: 624377.5122 | AJ19: 284836.6 | AM19: 1384736.4 | AN19: 1075648.5 | AO19: 183362 | AQ19: 737515.9 | AR19: 706720 | AS19: 413925 | AT19: 544149 | AU19: 2119750 | AV19: 1826880.7 | AW19: 656975.4 | AX19: 1148757 | AZ19: 355870.2667 | BA19: 194464.4 | BC19: 482040 | BD19: 190992 | BF19: 787332 | BG19: 543237 | BH19: 335494 | BI19: 1015889.77 | BJ19: 454436.42 | BK19: 94184
B20: 2022 | C20: Q1 | L20: 196570351.5 | M20: 101694886.6 | N20: 131312216.8 | O20: 253013111.7 | P20: 249650064.1 | Q20: 446494.886 | R20: 469914.7434 | S20: 284375.3104 | T20: 80539.2 | V20: 206.3 | W20: 566506.7 | X20: 505771 | Y20: 61381 | Z20: 512973.4 | AA20: 766735.7 | AB20: 44081.4 | AC20: 703311.8866 | AD20: 670133.5405 | AE20: 386445.3 | AF20: 214026 | AG20: 605.4 | AH20: 1169574.6 | AI20: 631522.6 | AJ20: 301505.9 | AM20: 1321017.7 | AN20: 927663.1 | AO20: 260455 | AQ20: 685615.1 | AR20: 593728.6667 | AS20: 316897 | AT20: 548565 | AU20: 2136898 | AV20: 2015361.462 | AW20: 951466.8 | AX20: 926038 | AZ20: 370541.98 | BA20: 152324.8 | BC20: 661692 | BD20: 190246 | BF20: 763734 | BG20: 660263 | BH20: 261318 | BI20: 1001447.26 | BJ20: 594825.12 | BK20: 127821
B21: 2021 | C21: Q4 | L21: 197095408.4 | M21: 93187486.92 | N21: 125488973.1 | O21: 239764549.7 | P21: 249893333.5 | Q21: 414674.383 | R21: 437649.64 | S21: 315407.8511 | T21: 93982 | V21: 511 | W21: 571290.2 | X21: 378666.5333 | Y21: 40616 | Z21: 514053.7 | AA21: 581118.0667 | AB21: 12437.7 | AC21: 655555.2281 | AD21: 725480.1721 | AE21: 204112.1 | AF21: 9384 | AG21: 44386.1 | AH21: 1116309.8 | AI21: 729010.4 | AJ21: 321376.6 | AM21: 1360847.4 | AN21: 827902.53 | AO21: 232849 | AQ21: 687259.9 | AR21: 503941.3 | AS21: 301181 | AT21: 584472 | AU21: 2115087.9 | AV21: 1716101.07 | AW21: 686682.8 | AX21: 1413961 | AZ21: 385532.4 | BA21: 188833.0633 | BC21: 581527 | BD21: 186991 | BF21: 768869 | BG21: 440000 | BH21: 20947 | BI21: 960173.14 | BJ21: 416095.83 | BK21: 100197
B22: 2021 | C22: Q3 | L22: 186538217.6 | M22: 93607335.46 | N22: 116727768.3 | O22: 225169361.8 | P22: 254074690 | Q22: 462627.939 | R22: 381374.3775 | S22: 307793.1237 | T22: 130575 | V22: 0 | W22: 547393.8 | X22: 495865.6 | Y22: 19586 | Z22: 459014.2 | AA22: 616153.8 | AB22: 15702.7 | AC22: 559609.628 | AD22: 515700.6309 | AE22: 227590.4 | AF22: 50530 | AG22: 430.9 | AH22: 965868.63 | AI22: 682320.4 | AJ22: 202091.2 | AM22: 1357226.6 | AN22: 1233916.1 | AO22: 295279 | AQ22: 608767.3 | AR22: 556332.1 | AS22: 423245 | AT22: 399906 | AU22: 1928371.3 | AV22: 1765499.6 | AW22: 530001.5 | AX22: 934775 | AZ22: 174691 | BA22: 156594.8 | BC22: 461580 | BD22: 153550 | BF22: 668909 | BG22: 693997 | BH22: 14286 | BI22: 892092 | BJ22: 439834.75 | BK22: 60232
B23: 2021 | C23: Q2 | L23: 186274489 | M23: 93744113.92 | N23: 118800130.7 | O23: 224248299.4 | P23: 246639179.4 | Q23: 456104.622 | R23: 355280.5068 | S23: 290899.6237 | T23: 92155 | V23: 524.9 | W23: 492281.3 | X23: 323024.5 | Y23: 14090 | Z23: 456441.8 | AA23: 668146.3 | AB23: 17218.2 | AC23: 536063.6019 | AD23: 483357.5667 | AE23: 110305.2 | AF23: 53470 | AG23: 48081.4 | AH23: 891198.6 | AI23: 573468.3 | AJ23: 161445.1 | AM23: 1269790 | AN23: 1035647.6 | AO23: 316902 | AQ23: 598850.2 | AR23: 527099.5 | AS23: 378808 | AT23: 484924 | AU23: 1964855.4 | AV23: 1549510.3 | AW23: 567950.3 | AX23: 990487 | AZ23: 378269.53 | BA23: 74632.9 | BC23: 317350 | BD23: 111505 | BF23: 653186 | BG23: 645096 | BI23: 955116 | BJ23: 418320 | BK23: 100468
B24: 2021 | C24: Q1 | L24: 173392154.7 | M24: 89980092.88 | N24: 118592907.9 | O24: 222106583.4 | P24: 245502513.7 | Q24: 463254.616 | R24: 383678.6028 | S24: 290743.929 | T24: 119303 | V24: 413.5 | W24: 524708.3 | X24: 408471 | Y24: 11892 | Z24: 439899.8 | AA24: 621904.4 | AB24: 35928.1 | AC24: 583015.2643 | AD24: 489087.4561 | AE24: 311993.1 | AF24: 70268 | AG24: 194.3 | AH24: 863577.6 | AI24: 550065.2 | AJ24: 205980.3 | AM24: 1214139.7 | AN24: 980093 | AO24: 356219 | AQ24: 559027.5 | AR24: 494269.7 | AS24: 286162 | AT24: 371094 | AU24: 1951075.5 | AV24: 1730662.7 | AW24: 799736 | AX24: 640112 | AZ24: 0 | BA24: 0 | BC24: 433410 | BD24: 108482 | BF24: 597460.19 | BG24: 678255.66 | BI24: 914628.04 | BJ24: 448819.99 | BK24: 104784
B25: 2020 | C25: Q4 | L25: 181923122.6 | M25: 89195572.86 | N25: 115818057.4 | O25: 216075286.3 | P25: 236221847.9 | Q25: 419993.708 | R25: 367122.868 | S25: 318756.8837 | T25: 88803 | V25: 483.6 | W25: 500282.6 | X25: 342992.6 | Y25: 8774 | Z25: 413542.9 | AA25: 479156.9 | AB25: 47475 | AC25: 549981.3379 | AD25: 472541.5505 | AE25: 65583.4 | AF25: 98672 | AG25: 5197.4 | AH25: 881261 | AI25: 653968.9 | AJ25: 175932.8 | AM25: 1255696.6 | AN25: 777300.6 | AO25: 269683 | AQ25: 605006.1 | AR25: 472381.4 | AS25: 344807 | AT25: 552883 | AU25: 1973423.6 | AV25: 1463435.9 | AW25: 477034.5 | AX25: 1050203 | AZ25: 1098608.39 | BA25: 194214.53 | BC25: 287909.05 | BD25: 134497.95 | BF25: 667752 | BG25: 449849 | BH25: 35793 | BI25: 920394.81 | BJ25: 355190.32 | BK25: 95061
B26: 2020 | C26: Q3 | L26: 173349696.6 | M26: 83838679.18 | N26: 114120488.9 | O26: 206073099.7 | P26: 244986902.5 | Q26: 424534.05 | R26: 317044.5508 | S26: 289600.3538 | T26: 33859.3 | W26: 433885.3 | X26: 426354.6 | Y26: 11691.6 | Z26: 374970.4 | AA26: 508812 | AB26: 61586.9 | AC26: 502146.7673 | AD26: 530452.1503 | AE26: 143886.9 | AF26: 96586 | AG26: 0 | AH26: 799894.9 | AI26: 592274.4 | AJ26: 149181.9 | AM26: 1188448.7 | AN26: 924474.9 | AO26: 300837 | AQ26: 521983.7 | AR26: 409542.1 | AS26: 233617 | AT26: 429978 | AU26: 1501557.289 | AV26: 1093542.486 | AW26: 598391.7 | AX26: 909189 | AZ26: 679001.505 | BA26: 119823.795 | BC26: 248021 | BD26: 119630 | BF26: 547981 | BG26: 520282 | BH26: 36401 | BI26: 871828.21 | BJ26: 430275.34 | BK26: 76577
B27: 2020 | C27: Q2 | L27: 160650552.4 | M27: 71899088.23 | N27: 96997917.46 | O27: 173895447.1 | P27: 182539170.3 | Q27: 419342.193 | R27: 204074.5588 | S27: 162471.8628 | T27: 12067 | W27: 349000.8 | X27: 245546.5 | Y27: 295 | Z27: 332327.2 | AA27: 463369.8 | AB27: 13724.9 | AC27: 406540.3657 | AD27: 347602.6045 | AE27: 195289.9 | AF27: 91714 | AG27: 0 | AH27: 713690.6 | AI27: 483760.2 | AJ27: 174164.6 | AM27: 1018085.6 | AN27: 734920 | AO27: 205985 | AQ27: 484218.4 | AR27: 318379.7 | AS27: 242555 | AT27: 587295 | AU27: 1501557.289 | AV27: 1093542.486 | AW27: 598391.7 | AX27: 909189 | AZ27: 606743.0962 | BA27: 107072.3111 | BC27: 261407 | BD27: 123528.78 | BF27: 528067 | BG27: 380365 | BI27: 766122.54 | BJ27: 308304.27 | BK27: 70139
B28: 2020 | C28: Q1 | L28: 181640093.9 | M28: 90828996.19 | N28: 127588158.3 | O28: 216894243.6 | P28: 234607039.2 | Q28: 367782.823 | R28: 317883.9893 | S28: 247206.3238 | T28: 100837 | W28: 398058.9 | X28: 328056.9 | Z28: 355626.5 | AA28: 513948 | AB28: 39574.7 | AC28: 510106.6026 | AD28: 473466.2431 | AE28: 79340.4 | AF28: 128097 | AG28: 0 | AH28: 871020.7 | AI28: 570977.8 | AJ28: 179560.5 | AM28: 1128421.2 | AN28: 827988.5 | AO28: 215894 | AQ28: 558997.8 | AR28: 446766.1 | AS28: 280522 | AT28: 385140 | AU28: 1764224.3 | AV28: 1498465.8 | AW28: 1057629.2 | AX28: 479860 | AZ28: 594263.9257 | BA28: 104870.1045 | BC28: 320393 | BD28: 162207.8 | BF28: 534976 | BG28: 485188 | BI28: 904424.46 | BJ28: 388870.59 | BK28: 108616
B29: 2019 | C29: Q4 | L29: 176133253.8 | M29: 88952482.66 | N29: 122149985.8 | O29: 231839346.4 | P29: 190064660.4 | Q29: 401713.197 | R29: 279673.8799 | S29: 205937.4673 | T29: 199759.6 | W29: 359340.2 | X29: 206998.2 | Z29: 357108.2 | AA29: 456828.8 | AB29: 54795.9 | AC29: 493994.1648 | AD29: 419624.9129 | AE29: 175427.7 | AF29: 120375 | AG29: 0 | AH29: 830309.9 | AI29: 499912.1 | AJ29: 247599.2 | AM29: 1168473.4 | AN29: 601848.7 | AO29: 243189 | AQ29: 623304.3 | AR29: 342805.1 | AS29: 258992 | AT29: 429722 | AU29: 1834318.8 | AV29: 1178053.3 | AW29: 672141 | AX29: 773438 | AZ29: 641831.4825 | BA29: 113264.3793 | BC29: 391889 | BD29: 171420 | BF29: 602044 | BG29: 325769 | BI29: 976147.79 | BJ29: 333576.11 | BK29: 189507
B30: 2019 | C30: Q3 | L30: 169945525.1 | M30: 91224711.36 | N30: 125052049.6 | O30: 229080619.8 | P30: 193770532.5 | Q30: 446675.803 | R30: 282347.0733 | S30: 203546.7319 | T30: 50053.3 | W30: 339645.9 | X30: 280433.9 | Z30: 358469.5 | AA30: 481755.9 | AB30: 94913.1 | AC30: 483982.6556 | AD30: 365938.245 | AE30: 184351 | AF30: 150476 | AG30: 0 | AH30: 865084.7 | AI30: 528608.2 | AJ30: 212484.2 | AM30: 1209291.5 | AN30: 873697.9 | AO30: 207748 | AQ30: 559415.3 | AR30: 371982.6 | AS30: 187422 | AT30: 457400 | AU30: 1589159 | AV30: 1277350.8 | AW30: 779085.7 | AX30: 702836 | AZ30: 611268.0786 | BA30: 107870.8374 | BC30: 287186 | BD30: 164119.3 | BF30: 520650 | BG30: 347100 | BI30: 894405.77 | BJ30: 293980.53 | BK30: 146471
B31: 2019 | C31: Q2 | L31: 160918500.3 | M31: 91406168.57 | N31: 123135214.7 | O31: 211653263.8 | P31: 187639571.6 | Q31: 220382.582 | R31: 245074.8032 | S31: 176960.6694 | T31: 27937.5 | W31: 325002.5 | X31: 150481.6 | Z31: 359742.7 | AA31: 436240.6 | AB31: 41452.5 | AC31: 430279.7587 | AD31: 352927.1807 | AE31: 157037.4 | AF31: 144777 | AG31: 0 | AH31: 786395.5 | AI31: 462303.3 | AJ31: 187116.5 | AM31: 1127571.8 | AN31: 636611.6 | AO31: 165152 | AQ31: 550674.2 | AR31: 410538.7 | AS31: 281351 | AT31: 342670 | AU31: 1586187.1 | AV31: 962522.4 | AW31: 807386.1 | AX31: 655269 | AZ31: 628143.8052 | BA31: 110848.9068 | BC31: 272105 | BD31: 144253 | BF31: 447391.65 | BG31: 279291.17 | BI31: 897952.52 | BJ31: 226123 | BK31: 163745.14
